Workbook

Sheet 10.1
A1: I | C1: II | E1: III | G1: IV
A2: x | B2: y | C2: x | D2: y | E2: x | F2: y | G2: x | H2: y
A3: 10 | B3: 8.04 | C3: 10 | D3: 9.14 | E3: 10 | F3: 7.46 | G3: 8 | H3: 6.58
A4: 8 | B4: 6.95 | C4: 8 | D4: 8.14 | E4: 8 | F4: 6.77 | G4: 8 | H4: 5.76
A5: 13 | B5: 7.58 | C5: 13 | D5: 8.74 | E5: 13 | F5: 12.74 | G5: 8 | H5: 7.71
A6: 9 | B6: 8.81 | C6: 9 | D6: 8.77 | E6: 9 | F6: 7.11 | G6: 8 | H6: 8.84
A7: 11 | B7: 8.33 | C7: 11 | D7: 9.26 | E7: 11 | F7: 7.81 | G7: 8 | H7: 8.47
A8: 14 | B8: 9.96 | C8: 14 | D8: 8.1 | E8: 14 | F8: 8.84 | G8: 8 | H8: 7.04
A9: 6 | B9: 7.24 | C9: 6 | D9: 6.13 | E9: 6 | F9: 6.08 | G9: 8 | H9: 5.25
A10: 4 | B10: 4.26 | C10: 4 | D10: 3.1 | E10: 4 | F10: 5.39 | G10: 19 | H10: 12.5
A11: 12 | B11: 10.84 | C11: 12 | D11: 9.13 | E11: 12 | F11: 8.15 | G11: 8 | H11: 5.56
A12: 7 | B12: 4.82 | C12: 7 | D12: 7.26 | E12: 7 | F12: 6.42 | G12: 8 | H12: 7.91
A13: 5 | B13: 5.68 | C13: 5 | D13: 4.74 | E13: 5 | F13: 5.73 | G13: 8 | H13: 6.89
A34: Data taken from the Wikipedia article

Sheet Agricultural Data
N1: POPULATION PER SPECIES IN THE U.S. IN 2012
Y2: (000)
A3: State | B3: Cattle and calves | C3: Beef cows | D3: Milk cows | E3: Hogs and pigs | F3: Sheep and lambs | G3: All goats | H3: Colonies of bees | I3: Broilers | J3: Turkeys | K3: Horses and Ponies | L3: Population | N3: State | O3: Cattle and calves | P3: Beef cows (*) | Q3: Milk cows (*) | R3: Hogs and pigs | S3: Sheep and lambs | T3: All goats | U3: Colonies of bees | V3: Broilers | W3: Turkeys | X3: Horses and Ponies | Y3: Human Population
A4: Alabama | B4: 1236467 | C4: 722787 | D4: 9116 | E4: 142555 | F4: 21114 | G4: 52749 | H4: 11628 | I4: 172955409 | J4: 7354 | K4: 63707 | L4: 4822023 | N4: =+Table3[[#This Row],[State]] -> Alabama | O4: =+B4/1000 -> 1236.467 | P4: =+C4/1000 -> 722.787 | Q4: =+D4/1000 -> 9.116 | R4: =+E4/1000 -> 142.555 | S4: =+F4/1000 -> 21.114 | T4: =+G4/1000 -> 52.749 | U4: =+H4/1000 -> 11.628 | V4: =+I4/1000 -> 172955.409 | W4: =+J4/1000 -> 7.354 | X4: =+K4/1000 -> 63.707 | Y4: =+L4/1000 -> 4822.023
A5: Alaska | B5: 10667 | C5: 3423 | D5: 1097 | E5: 1009 | F5: 773 | G5: 595 | H5: 546 | I5: 1863 | J5: 3000 | K5: 1581 | L5: 731449 | N5: =+Table3[[#This Row],[State]] -> Alaska | O5: =+B5/1000 -> 10.667 | P5: 3.423 | Q5: 1.097 | R5: 1.009 | S5: 0.773 | T5: 0.595 | U5: 0.546 | V5: 1.863 | W5: 3 | X5: 1.581 | Y5: 731.449
A6: Arizona | B6: 911334 | C6: 197901 | D6: 193621 | E6: 169603 | F6: 180551 | G6: 71654 | H6: 58461 | I6: 8451 | J6: 2465 | K6: 92394 | L6: 6553255 | N6: =+Table3[[#This Row],[State]] -> Arizona | O6: 911.334 | P6: 197.901 | Q6: 193.621 | R6: 169.603 | S6: 180.551 | T6: 71.654 | U6: 58.461 | V6: 8.451 | W6: 2.465 | X6: 92.394 | Y6: 6553.255
A7: Arkansas | B7: 1615774 | C7: 813250 | D7: 8972 | E7: 109316 | F7: 18808 | G7: 41610 | H7: 23259 | I7: 170380435 | J7: 8821769 | K7: 61090 | L7: 2949131 | N7: =+Table3[[#This Row],[State]] -> Arkansas | O7: 1615.774 | P7: 813.25 | Q7: 8.972 | R7: 109.316 | S7: 18.808 | T7: 41.61 | U7: 23.259 | V7: 170380.435 | W7: 8821.769 | X7: 61.09 | Y7: 2949.131
A8: California | B8: 5370531 | C8: 583594 | D8: 1815655 | E8: 111893 | F8: 668517 | G8: 140042 | H8: 945589 | I8: 42268482 | J8: 4532307 | K8: 142555 | L8: 38041430 | N8: =+Table3[[#This Row],[State]] -> California | O8: 5370.531 | P8: 583.594 | Q8: 1815.655 | R8: 111.893 | S8: 668.517 | T8: 140.042 | U8: 945.589 | V8: 42268.482 | W8: 4532.307 | X8: 142.555 | Y8: 38041.43
A9: Colorado | B9: 2630082 | C9: 683291 | D9: 130736 | E9: 727301 | F9: 401376 | G9: 34757 | H9: 34813 | I9: 19571 | J9: 3761 | K9: 110360 | L9: 5187582 | N9: =+Table3[[#This Row],[State]] -> Colorado | O9: 2630.082 | P9: 683.291 | Q9: 130.736 | R9: 727.301 | S9: 401.376 | T9: 34.757 | U9: 34.813 | V9: 19.571 | W9: 3.761 | X9: 110.36 | Y9: 5187.582
A10: Connecticut | B10: 48278 | C10: 8080 | D10: 17740 | E10: 4737 | F10: 6093 | G10: 4393 | H10: 5639 | I10: 79605 | J10: 9421 | K10: 17424 | L10: 3590347 | N10: =+Table3[[#This Row],[State]] -> Connecticut | O10: 48.278 | P10: 8.08 | Q10: 17.74 | R10: 4.737 | S10: 6.093 | T10: 4.393 | U10: 5.639 | V10: 79.605 | W10: 9.421 | X10: 17.424 | Y10: 3590.347
A11: Delaware | B11: 18225 | C11: 3833 | D11: 4512 | E11: 5891 | F11: 1040 | G11: 2008 | H11: 817 | I11: 43206514 | J11: 778 | K11: 6157 | L11: 917092 | N11: =+Table3[[#This Row],[State]] -> Delaware | O11: 18.225 | P11: 3.833 | Q11: 4.512 | R11: 5.891 | S11: 1.04 | T11: 2.008 | U11: 0.817 | V11: 43206.514 | W11: 0.778 | X11: 6.157 | Y11: 917.092
A12: Florida | B12: 1675323 | C12: 982790 | D12: 123220 | E12: 14915 | F12: 18232 | G12: 52052 | H12: 206654 | I12: 11031656 | J12: 5567 | K12: 121034 | L12: 19317568 | N12: =+Table3[[#This Row],[State]] -> Florida | O12: 1675.323 | P12: 982.79 | Q12: 123.22 | R12: 14.915 | S12: 18.232 | T12: 52.052 | U12: 206.654 | V12: 11031.656 | W12: 5.567 | X12: 121.034 | Y12: 19317.568
A13: Georgia | B13: 1033717 | C13: 469942 | D13: 79492 | E13: 153733 | F13: 21798 | G13: 71709 | H13: 64213 | I13: 243463943 | J13: 2661 | K13: 69861 | L13: 9919945 | N13: =+Table3[[#This Row],[State]] -> Georgia | O13: 1033.717 | P13: 469.942 | Q13: 79.492 | R13: 153.733 | S13: 21.798 | T13: 71.709 | U13: 64.213 | V13: 243463.943 | W13: 2.661 | X13: 69.861 | Y13: 9919.945
A14: Hawaii | B14: 133957 | C14: 73227 | D14: 1501 | E14: 11441 | F14: 21921 | G14: 12996 | H14: 8630 | I14: 3375 | J14: 117 | K14: 5114 | L14: 1392313 | N14: =+Table3[[#This Row],[State]] -> Hawaii | O14: 133.957 | P14: 73.227 | Q14: 1.501 | R14: 11.441 | S14: 21.921 | T14: 12.996 | U14: 8.63 | V14: 3.375 | W14: 0.117 | X14: 5.114 | Y14: 1392.313
A15: Idaho | B15: 2397541 | C15: 485025 | D15: 578761 | E15: 45139 | F15: 231078 | G15: 18139 | H15: 103604 | I15: 9639 | J15: 6696 | K15: 61439 | L15: 1595728 | N15: =+Table3[[#This Row],[State]] -> Idaho | O15: 2397.541 | P15: 485.025 | Q15: 578.761 | R15: 45.139 | S15: 231.078 | T15: 18.139 | U15: 103.604 | V15: 9.639 | W15: 6.696 | X15: 61.439 | Y15: 1595.728
A16: Illinois | B16: 1127630 | C16: 343972 | D16: 98849 | E16: 4630796 | F16: 54675 | G16: 31546 | H16: 10043 | I16: 115927 | J16: 739660 | K16: 62714 | L16: 12875255 | N16: =+Table3[[#This Row],[State]] -> Illinois | O16: 1127.63 | P16: 343.972 | Q16: 98.849 | R16: 4630.796 | S16: 54.675 | T16: 31.546 | U16: 10.043 | V16: 115.927 | W16: 739.66 | X16: 62.714 | Y16: 12875.255
A17: Indiana | B17: 821265 | C17: 182627 | D17: 174141 | E17: 3747352 | F17: 52169 | G17: 38632 | H17: 13017 | I17: 6238623 | J17: 5084794 | K17: 97383 | L17: 6537334 | N17: =+Table3[[#This Row],[State]] -> Indiana | O17: 821.265 | P17: 182.627 | Q17: 174.141 | R17: 3747.352 | S17: 52.169 | T17: 38.632 | U17: 13.017 | V17: 6238.623 | W17: 5084.794 | X17: 97.383 | Y17: 6537.334
A18: Iowa | B18: 3893683 | C18: 885568 | D18: 204757 | E18: 20455666 | F18: 165815 | G18: 56239 | H18: 30004 | I18: 1948950 | J18: 4383172 | K18: 62206 | L18: 3074186 | N18: =+Table3[[#This Row],[State]] -> Iowa | O18: 3893.683 | P18: 885.568 | Q18: 204.757 | R18: 20455.666 | S18: 165.815 | T18: 56.239 | U18: 30.004 | V18: 1948.95 | W18: 4383.172 | X18: 62.206 | Y18: 3074.186
A19: Kansas | B19: 5922187 | C19: 1270538 | D19: 131688 | E19: 1886197 | F19: 62541 | G19: 42315 | H19: 10726 | I19: 17851 | J19: 131247 | K19: 74873 | L19: 2885905 | N19: =+Table3[[#This Row],[State]] -> Kansas | O19: 5922.187 | P19: 1270.538 | Q19: 131.688 | R19: 1886.197 | S19: 62.541 | T19: 42.315 | U19: 10.726 | V19: 17.851 | W19: 131.247 | X19: 74.873 | Y19: 2885.905
A20: Kentucky | B20: 2270871 | C20: 985075 | D20: 71783 | E20: 313360 | F20: 54612 | G20: 64118 | H20: 12669 | I20: 51189742 | J20: 34629 | K20: 141842 | L20: 4380415 | N20: =+Table3[[#This Row],[State]] -> Kentucky | O20: 2270.871 | P20: 985.075 | Q20: 71.783 | R20: 313.36 | S20: 54.612 | T20: 64.118 | U20: 12.669 | V20: 51189.742 | W20: 34.629 | X20: 141.842 | Y20: 4380.415
A21: Louisiana | B21: 788967 | C21: 434252 | D21: 16089 | E21: 6806 | F21: 9843 | G21: 18779 | H21: 34905 | I21: 25061453 | J21: 1400 | K21: 59791 | L21: 4601893 | N21: =+Table3[[#This Row],[State]] -> Louisiana | O21: 788.967 | P21: 434.252 | Q21: 16.089 | R21: 6.806 | S21: 9.843 | T21: 18.779 | U21: 34.905 | V21: 25061.453 | W21: 1.4 | X21: 59.791 | Y21: 4601.893
A22: Maine | B22: 86256 | C22: 10505 | D22: 32117 | E22: 8923 | F22: 11925 | G22: 6449 | H22: 14456 | I22: 47252 | J22: 5554 | K22: 11987 | L22: 1329192 | N22: =+Table3[[#This Row],[State]] -> Maine | O22: 86.256 | P22: 10.505 | Q22: 32.117 | R22: 8.923 | S22: 11.925 | T22: 6.449 | U22: 14.456 | V22: 47.252 | W22: 5.554 | X22: 11.987 | Y22: 1329.192
A23: Maryland | B23: 194524 | C23: 39188 | D23: 50923 | E23: 19869 | F23: 19265 | G23: 10745 | H23: 7892 | I23: 64192426 | J23: 77375 | K23: 28662 | L23: 5884563 | N23: =+Table3[[#This Row],[State]] -> Maryland | O23: 194.524 | P23: 39.188 | Q23: 50.923 | R23: 19.869 | S23: 19.265 | T23: 10.745 | U23: 7.892 | V23: 64192.426 | W23: 77.375 | X23: 28.662 | Y23: 5884.563
A24: Massachusetts | B24: 35703 | C24: 6240 | D24: 12500 | E24: 11151 | F24: 12504 | G24: 8599 | H24: 4666 | I24: 18137 | J24: 12142 | K24: 20337 | L24: 6646144 | N24: =+Table3[[#This Row],[State]] -> Massachusetts | O24: 35.703 | P24: 6.24 | Q24: 12.5 | R24: 11.151 | S24: 12.504 | T24: 8.599 | U24: 4.666 | V24: 18.137 | W24: 12.142 | X24: 20.337 | Y24: 6646.144
A25: Michigan | B25: 1130477 | C25: 108126 | D25: 376255 | E25: 1099478 | F25: 86503 | G25: 27059 | H25: 78995 | I25: 1125601 | J25: 2190486 | K25: 87998 | L25: 9883360 | N25: =+Table3[[#This Row],[State]] -> Michigan | O25: 1130.477 | P25: 108.126 | Q25: 376.255 | R25: 1099.478 | S25: 86.503 | T25: 27.059 | U25: 78.995 | V25: 1125.601 | W25: 2190.486 | X25: 87.998 | Y25: 9883.36
A26: Minnesota | B26: 2412684 | C26: 357826 | D26: 463312 | E26: 7606785 | F26: 126506 | G26: 33721 | H26: 101424 | I26: 7765172 | J26: 19449992 | K26: 66384 | L26: 5379139 | N26: =+Table3[[#This Row],[State]] -> Minnesota | O26: 2412.684 | P26: 357.826 | Q26: 463.312 | R26: 7606.785 | S26: 126.506 | T26: 33.721 | U26: 101.424 | V26: 7765.172 | W26: 19449.992 | X26: 66.384 | Y26: 5379.139
A27: Mississippi | B27: 921508 | C27: 495381 | D27: 14480 | E27: 401898 | F27: 12984 | G27: 24528 | H27: 36097 | I27: 134479892 | J27: 1548 | K27: 58697 | L27: 2984926 | N27: =+Table3[[#This Row],[State]] -> Mississippi | O27: 921.508 | P27: 495.381 | Q27: 14.48 | R27: 401.898 | S27: 12.984 | T27: 24.528 | U27: 36.097 | V27: 134479.892 | W27: 1.548 | X27: 58.697 | Y27: 2984.926
A28: Missouri | B28: 3703120 | C28: 1683731 | D28: 92952 | E28: 2774597 | F28: 91967 | G28: 103669 | H28: 14561 | I28: 46880714 | J28: 7572505 | K28: 117295 | L28: 6021988 | N28: =+Table3[[#This Row],[State]] -> Missouri | O28: 3703.12 | P28: 1683.731 | Q28: 92.952 | R28: 2774.597 | S28: 91.967 | T28: 103.669 | U28: 14.561 | V28: 46880.714 | W28: 7572.505 | X28: 117.295 | Y28: 6021.988
A29: Montana | B29: 2633740 | C29: 1439653 | D29: 13947 | E29: 173953 | F29: 236646 | G29: 10323 | H29: 119002 | I29: 89862 | J29: 20206 | K29: 97921 | L29: 1005141 | N29: =+Table3[[#This Row],[State]] -> Montana | O29: 2633.74 | P29: 1439.653 | Q29: 13.947 | R29: 173.953 | S29: 236.646 | T29: 10.323 | U29: 119.002 | V29: 89.862 | W29: 20.206 | X29: 97.921 | Y29: 1005.141
A30: Nebraska | B30: 6385675 | C30: 1730112 | D30: 54628 | E30: 2992576 | F30: 71771 | G30: 25840 | H30: 44895 | I30: 908965 | J30: 195598 | K30: 64326 | L30: 1855525 | N30: =+Table3[[#This Row],[State]] -> Nebraska | O30: 6385.675 | P30: 1730.112 | Q30: 54.628 | R30: 2992.576 | S30: 71.771 | T30: 25.84 | U30: 44.895 | V30: 908.965 | W30: 195.598 | X30: 64.326 | Y30: 1855.525
A31: Nevada | B31: 420322 | C31: 220150 | D31: 29484 | E31: 2700 | F31: 91934 | G31: 21388 | H31: 10182 | I31: 3813 | J31: 1275 | K31: 22464 | L31: 2758931 | N31: =+Table3[[#This Row],[State]] -> Nevada | O31: 420.322 | P31: 220.15 | Q31: 29.484 | R31: 2.7 | S31: 91.934 | T31: 21.388 | U31: 10.182 | V31: 3.813 | W31: 1.275 | X31: 22.464 | Y31: 2758.931
A32: New Hampshire | B32: 33392 | C32: 4075 | D32: 13474 | E32: 3287 | F32: 8079 | G32: 4875 | H32: 2912 | I32: 28924 | J32: 2556 | K32: 9097 | L32: 1320718 | N32: =+Table3[[#This Row],[State]] -> New Hampshire | O32: 33.392 | P32: 4.075 | Q32: 13.474 | R32: 3.287 | S32: 8.079 | T32: 4.875 | U32: 2.912 | V32: 28.924 | W32: 2.556 | X32: 9.097 | Y32: 1320.718
A33: New Jersey | B33: 31449 | C33: 9500 | D33: 7192 | E33: 7901 | F33: 14924 | G33: 8258 | H33: 13298 | I33: 19945 | J33: 13687 | K33: 27658 | L33: 8864590 | N33: =+Table3[[#This Row],[State]] -> New Jersey | O33: 31.449 | P33: 9.5 | Q33: 7.192 | R33: 7.901 | S33: 14.924 | T33: 8.258 | U33: 13.298 | V33: 19.945 | W33: 13.687 | X33: 27.658 | Y33: 8864.59
A34: New Mexico | B34: 1354240 | C34: 461595 | D34: 318878 | E34: 1294 | F34: 89745 | G34: 30981 | H34: 15088 | I34: 3928 | J34: 6425 | K34: 50723 | L34: 2085538 | N34: =+Table3[[#This Row],[State]] -> New Mexico | O34: 1354.24 | P34: 461.595 | Q34: 318.878 | R34: 1.294 | S34: 89.745 | T34: 30.981 | U34: 15.088 | V34: 3.928 | W34: 6.425 | X34: 50.723 | Y34: 2085.538
A35: New York | B35: 1419365 | C35: 86030 | D35: 610712 | E35: 74671 | F35: 86286 | G35: 36441 | H35: 70557 | I35: 591576 | J35: 143473 | K35: 90157 | L35: 19570261 | N35: =+Table3[[#This Row],[State]] -> New York | O35: 1419.365 | P35: 86.03 | Q35: 610.712 | R35: 74.671 | S35: 86.286 | T35: 36.441 | U35: 70.557 | V35: 591.576 | W35: 143.473 | X35: 90.157 | Y35: 19570.261
A36: North Carolina | B36: 829717 | C36: 348196 | D36: 45960 | E36: 8901434 | F36: 29224 | G36: 66367 | H36: 24225 | I36: 148251469 | J36: 17191277 | K36: 66870 | L36: 9752073 | N36: =+Table3[[#This Row],[State]] -> North Carolina | O36: 829.717 | P36: 348.196 | Q36: 45.96 | R36: 8901.434 | S36: 29.224 | T36: 66.367 | U36: 24.225 | V36: 148251.469 | W36: 17191.277 | X36: 66.87 | Y36: 9752.073
A37: North Dakota | B37: 1809613 | C37: 881682 | D37: 17876 | E37: 133653 | F37: 64607 | G37: 4740 | H37: 370480 | I37: 24708 | J37: 419319 | K37: 45271 | L37: 699628 | N37: =+Table3[[#This Row],[State]] -> North Dakota | O37: 1809.613 | P37: 881.682 | Q37: 17.876 | R37: 133.653 | S37: 64.607 | T37: 4.74 | U37: 370.48 | V37: 24.708 | W37: 419.319 | X37: 45.271 | Y37: 699.628
A38: Ohio | B38: 1242293 | C38: 277949 | D38: 267857 | E38: 2058503 | F38: 111972 | G38: 51558 | H38: 21398 | I38: 12194024 | J38: 2096395 | K38: 114127 | L38: 11544225 | N38: =+Table3[[#This Row],[State]] -> Ohio | O38: 1242.293 | P38: 277.949 | Q38: 267.857 | R38: 2058.503 | S38: 111.972 | T38: 51.558 | U38: 21.398 | V38: 12194.024 | W38: 2096.395 | X38: 114.127 | Y38: 11544.225
A39: Oklahoma | B39: 4245970 | C39: 1677903 | D39: 45885 | E39: 2304740 | F39: 53738 | G39: 89060 | H39: 21011 | I39: 38429952 | J39: 102140 | K39: 158918 | L39: 3814820 | N39: =+Table3[[#This Row],[State]] -> Oklahoma | O39: 4245.97 | P39: 1677.903 | Q39: 45.885 | R39: 2304.74 | S39: 53.738 | T39: 89.06 | U39: 21.011 | V39: 38429.952 | W39: 102.14 | X39: 158.918 | Y39: 3814.82
A40: Oregon | B40: 1297945 | C40: 504279 | D40: 125767 | E40: 12693 | F40: 214613 | G40: 33226 | H40: 82190 | I40: 3294786 | J40: 4770 | K40: 70427 | L40: 3899353 | N40: =+Table3[[#This Row],[State]] -> Oregon | O40: 1297.945 | P40: 504.279 | Q40: 125.767 | R40: 12.693 | S40: 214.613 | T40: 33.226 | U40: 82.19 | V40: 3294.786 | W40: 4.77 | X40: 70.427 | Y40: 3899.353
A41: Pennsylvania | B41: 1626374 | C41: 148249 | D41: 532335 | E41: 1134957 | F41: 96648 | G41: 50174 | H41: 32023 | I41: 29248115 | J41: 2955993 | K41: 119900 | L41: 12763536 | N41: =+Table3[[#This Row],[State]] -> Pennsylvania | O41: 1626.374 | P41: 148.249 | Q41: 532.335 | R41: 1134.957 | S41: 96.648 | T41: 50.174 | U41: 32.023 | V41: 29248.115 | W41: 2955.993 | X41: 119.9 | Y41: 12763.536
A42: Rhode Island | B42: 4667 | C42: 1447 | D42: 1209 | E42: 1830 | F42: 1823 | G42: 886 | H42: 739 | I42: 13402 | J42: 6252 | K42: 2417 | L42: 1050292 | N42: =+Table3[[#This Row],[State]] -> Rhode Island | O42: 4.667 | P42: 1.447 | Q42: 1.209 | R42: 1.83 | S42: 1.823 | T42: 0.886 | U42: 0.739 | V42: 13.402 | W42: 6.252 | X42: 2.417 | Y42: 1050.292
A43: South Carolina | B43: 297286 | C43: 166745 | D43: 15997 | E43: 224076 | F43: 12684 | G43: 38732 | H43: 10083 | I43: 44296198 | J43: 6999565 | K43: 52395 | L43: 4723723 | N43: =+Table3[[#This Row],[State]] -> South Carolina | O43: 297.286 | P43: 166.745 | Q43: 15.997 | R43: 224.076 | S43: 12.684 | T43: 38.732 | U43: 10.083 | V43: 44296.198 | W43: 6999.565 | X43: 52.395 | Y43: 4723.723
A44: South Dakota | B44: 3893251 | C44: 1610559 | D44: 91831 | E44: 1191162 | F44: 257676 | G44: 16545 | H44: 210447 | I44: 57635 | J44: 2449784 | K44: 68925 | L44: 833354 | N44: =+Table3[[#This Row],[State]] -> South Dakota | O44: 3893.251 | P44: 1610.559 | Q44: 91.831 | R44: 1191.162 | S44: 257.676 | T44: 16.545 | U44: 210.447 | V44: 57.635 | W44: 2449.784 | X44: 68.925 | Y44: 833.354
A45: Tennessee | B45: 1856316 | C45: 874630 | D45: 47978 | E45: 147795 | F45: 43836 | G45: 91716 | H45: 14161 | I45: 30400743 | J45: 3985 | K45: 96541 | L45: 6456243 | N45: =+Table3[[#This Row],[State]] -> Tennessee | O45: 1856.316 | P45: 874.63 | Q45: 47.978 | R45: 147.795 | S45: 43.836 | T45: 91.716 | U45: 14.161 | V45: 30400.743 | W45: 3.985 | X45: 96.541 | Y45: 6456.243
A46: Texas | B46: 11159747 | C46: 4329341 | D46: 434928 | E46: 800893 | F46: 623000 | G46: 878914 | H46: 136830 | I46: 107351698 | J46: 1747526 | K46: 395816 | L46: 26059203 | N46: =+Table3[[#This Row],[State]] -> Texas | O46: 11159.747 | P46: 4329.341 | Q46: 434.928 | R46: 800.893 | S46: 623 | T46: 878.914 | U46: 136.83 | V46: 107351.698 | W46: 1747.526 | X46: 395.816 | Y46: 26059.203
A47: Utah | B47: 776833 | C47: 369670 | D47: 90449 | E47: 731666 | F47: 287883 | G47: 14723 | H47: 26083 | I47: 5629 | J47: 2894895 | K47: 58979 | L47: 2855287 | N47: =+Table3[[#This Row],[State]] -> Utah | O47: 776.833 | P47: 369.67 | Q47: 90.449 | R47: 731.666 | S47: 287.883 | T47: 14.723 | U47: 26.083 | V47: 5.629 | W47: 2894.895 | X47: 58.979 | Y47: 2855.287
A48: Vermont | B48: 274251 | C48: 11487 | D48: 134142 | E48: 3874 | F48: 18803 | G48: 10589 | H48: 8624 | I48: 48545 | J48: 3790 | K48: 11666 | L48: 626011 | N48: =+Table3[[#This Row],[State]] -> Vermont | O48: 274.251 | P48: 11.487 | Q48: 134.142 | R48: 3.874 | S48: 18.803 | T48: 10.589 | U48: 8.624 | V48: 48.545 | W48: 3.79 | X48: 11.666 | Y48: 626.011
A49: Virginia | B49: 1631882 | C49: 657320 | D49: 94105 | E49: 239899 | F49: 84983 | G49: 50831 | H49: 14334 | I49: 38386310 | J49: 5160805 | K49: 86840 | L49: 8185867 | N49: =+Table3[[#This Row],[State]] -> Virginia | O49: 1631.882 | P49: 657.32 | Q49: 94.105 | R49: 239.899 | S49: 84.983 | T49: 50.831 | U49: 14.334 | V49: 38386.31 | W49: 5160.805 | X49: 86.84 | Y49: 8185.867
A50: Washington | B50: 1162792 | C50: 211852 | D50: 266989 | E50: 19861 | F50: 44863 | G50: 27062 | H50: 96685 | I50: 7511065 | J50: 5326 | K50: 64616 | L50: 6897012 | N50: =+Table3[[#This Row],[State]] -> Washington | O50: 1162.792 | P50: 211.852 | Q50: 266.989 | R50: 19.861 | S50: 44.863 | T50: 27.062 | U50: 96.685 | V50: 7511.065 | W50: 5.326 | X50: 64.616 | Y50: 6897.012
A51: West Virginia | B51: 414908 | C51: 191398 | D51: 10095 | E51: 5873 | F51: 31630 | G51: 18825 | H51: 9325 | I51: 14781332 | J51: 1817308 | K51: 26467 | L51: 1855413 | N51: =+Table3[[#This Row],[State]] -> West Virginia | O51: 414.908 | P51: 191.398 | Q51: 10.095 | R51: 5.873 | S51: 31.63 | T51: 18.825 | U51: 9.325 | V51: 14781.332 | W51: 1817.308 | X51: 26.467 | Y51: 1855.413
A52: Wisconsin | B52: 3494084 | C52: 248305 | D52: 1270091 | E52: 311651 | F52: 80081 | G52: 61111 | H52: 49661 | I52: 7818682 | J52: 3468522 | K52: 103481 | L52: 5726398 | N52: =+Table3[[#This Row],[State]] -> Wisconsin | O52: 3494.084 | P52: 248.305 | Q52: 1270.091 | R52: 311.651 | S52: 80.081 | T52: 61.111 | U52: 49.661 | V52: 7818.682 | W52: 3468.522 | X52: 103.481 | Y52: 5726.398
A53: Wyoming | B53: 1307731 | C53: 664254 | D53: 6194 | E53: 85432 | F53: 354785 | G53: 9246 | H53: 45029 | I53: 4857 | J53: 926 | K53: 72461 | L53: 576412 | N53: =+Table3[[#This Row],[State]] -> Wyoming | O53: 1307.731 | P53: 664.254 | Q53: 6.194 | R53: 85.432 | S53: 354.785 | T53: 9.246 | U53: 45.029 | V53: 4.857 | W53: 0.926 | X53: 72.461 | Y53: 576.412
N54: Total | O54: =SUBTOTAL(109,Table4[Cattle and calves]) -> 89994.614 | P54: =SUBTOTAL(109,Table4[Beef cows (*)]) -> 28956.553 | Q54: =SUBTOTAL(109,Table4[Milk cows (*)]) -> 9252.272 | R54: =SUBTOTAL(109,Table4[Hogs and pigs]) -> 66026.785 | S54: =SUBTOTAL(109,Table4[Sheep and lambs]) -> 5364.844 | T54: =SUBTOTAL(109,Table4[All goats]) -> 2621.514 | U54: =SUBTOTAL(109,Table4[Colonies of bees]) -> 3282.57 | V54: =SUBTOTAL(109,Table4[Broilers]) -> 1506276.846 | W54: =SUBTOTAL(109,Table4[Turkeys]) -> 100792.198 | X54: =SUBTOTAL(109,Table4[Horses and Ponies]) -> 3621.348 | Y54: =SUBTOTAL(109,Table4[Human Population]) -> 313281.717
N55: Note: Beef cows are cattle raise for meat production and milk cows are cattle raised for milk production. These two columns are subsets the first column, cattle and calves.
N57: Sources: USDA Census of Agriculture and U.S. Census Bureau

Sheet 10.3-10.8
B5: Absolute | M5: Z-Scores | X5: Vertical position
A8: State | B8: Cattle and calves inventory | C8: Beef cows | D8: Milk cows | E8: Hogs and pigs inventory | F8: Sheep and lambs inventory | G8: All goats | H8: Colonies of bees | I8: Broilers and other meat-type chickens | J8: Turkeys | K8: Horses and Ponies | L8: Population | M8: Cattle and calves inventory2 | N8: Beef cows2 | O8: Milk cows2 | P8: Hogs and pigs inventory2 | Q8: Sheep and lambs inventory2 | R8: All goats2 | S8: Colonies of bees2 | T8: Broilers and other meat-type chickens2 | U8: Turkeys2 | V8: Horses and Ponies2 | W8: Population2 | X8: y | Y8: Jitter | Z8: Column1 | AA8: Column2 | AB8: Column3 | AC8: Column4 | AD8: Column5 | AE8: Column6 | AF8: Column7 | AG8: Column8 | AH8: Column9 | AI8: Column10 | AJ8: Column11 | AK8: Horses and Ponies3 | AL8: Cattle and calves inventory3 | AM8: Beef cows3 | AN8: Milk cows3 | AO8: Hogs and pigs inventory3 | AP8: Sheep and lambs inventory3 | AQ8: All goats3 | AR8: Colonies of bees3 | AS8: Broilers and other meat-type chickens | AT8: Turkeys3 | AU8: Horses and Ponies4 | AV8: Population3 | AW8: Population213 | AX8: State2 | AY8: State3
A9: Alabama | B9: 1236467 | C9: 722787 | D9: 9116 | E9: 142555 | F9: 21114 | G9: 52749 | H9: 11628 | I9: 172955409 | J9: 7354 | K9: 63707 | L9: 4822023 | M9: =STANDARDIZE(Table1[[#This Row],[Cattle and calves inventory]],AVERAGE(Table1[Cattle and calves inventory]),_xlfn.STDEV.P(Table1[Cattle and calves inventory])) -> -0.2751321005 | N9: =STANDARDIZE(Table1[[#This Row],[Beef cows]],AVERAGE(Table1[Beef cows]),_xlfn.STDEV.P(Table1[Beef cows])) -> 0.1980579294 | O9: =STANDARDIZE(Table1[[#This Row],[Milk cows]],AVERAGE(Table1[Milk cows]),_xlfn.STDEV.P(Table1[Milk cows])) -> -0.5432483432 | P9: =STANDARDIZE(Table1[[#This Row],[Hogs and pigs inventory]],AVERAGE(Table1[Hogs and pigs inventory]),_xlfn.STDEV.P(Table1[Hogs and pigs inventory])) -> -0.3584945644 | Q9: =STANDARDIZE(Table1[[#This Row],[Sheep and lambs inventory]],AVERAGE(Table1[Sheep and lambs inventory]),_xlfn.STDEV.P(Table1[Sheep and lambs inventory])) -> -0.5984070258 | R9: =STANDARDIZE(Table1[[#This Row],[All goats]],AVERAGE(Table1[All goats]),_xlfn.STDEV.P(Table1[All goats])) -> 0.00262075855 | S9: =STANDARDIZE(Table1[[#This Row],[Colonies of bees]],AVERAGE(Table1[Colonies of bees]),_xlfn.STDEV.P(Table1[Colonies of bees])) -> -0.3802946598 | T9: =STANDARDIZE(Table1[[#This Row],[Broilers and other meat-type chickens]],AVERAGE(Table1[Broilers and other meat-type chickens]),_xlfn.STDEV.P(Table1[Broilers and other meat-type chickens])) -> 2.651704391 | U9: =STANDARDIZE(Table1[[#This Row],[Turkeys]],AVERAGE(Table1[Turkeys]),_xlfn.STDEV.P(Table1[Turkeys])) -> -0.502568084 | V9: =STANDARDIZE(Table1[[#This Row],[Horses and Ponies]],AVERAGE(Table1[Horses and Ponies]),_xlfn.STDEV.P(Table1[Horses and Ponies])) -> -0.1441608192 | W9: =STANDARDIZE(Table1[[#This Row],[Population]],AVERAGE(Table1[Population]),_xlfn.STDEV.P(Table1[Population])) -> -0.2083149077 | X9: 1 | Y9: =RANDBETWEEN(190,210)/100 -> 1.99 | Z9: 3 | AA9: 4 | AB9: 5 | AC9: 6 | AD9: 2 | AE9: 7 | AF9: 8 | AG9: 9 | AH9: 10 | AI9: 11 | AJ9: 12 | AK9: =IF(Table1[[#This Row],[Horses and Ponies]]<_xlfn.PERCENTILE.EXC(Table1[Horses and Ponies],0.2),1,IF(Table1[[#This Row],[Horses and Ponies]]<_xlfn.PERCENTILE.EXC(Table1[Horses and Ponies],0.4),2,IF(Table1[[#This Row],[Horses and Ponies]]<_xlfn.PERCENTILE.EXC(Table1[Horses and Ponies],0.6),3,IF(Table1[[#This Row],[Horses and Ponies]]<_xlfn.PERCENTILE.EXC(Table1[Horses and Ponies],0.8),4,5)))) -> 3 | AL9: 4 | AM9: 5 | AN9: 7 | AO9: 8 | AP9: 9 | AQ9: 2 | AR9: 6 | AS9: 11 | AT9: 10 | AU9: 1 | AV9: 3 | AW9: =(Table1[[#This Row],[Cattle and calves inventory]]-QUARTILE(Table1[Cattle and calves inventory],2))/(QUARTILE(Table1[Cattle and calves inventory],3)-QUARTILE(Table1[Cattle and calves inventory],1)) -> -0.00149414345 | AX9: =Table1[[#This Row],[State]] -> Alabama | AY9: =IF(Table1[[#This Row],[Horses and Ponies]]<_xlfn.PERCENTILE.EXC(Table1[Horses and Ponies],0.2),1,IF(Table1[[#This Row],[Horses and Ponies]]<_xlfn.PERCENTILE.EXC(Table1[Horses and Ponies],0.4),2,IF(Table1[[#This Row],[Horses and Ponies]]<_xlfn.PERCENTILE.EXC(Table1[Horses and Ponies],0.6),3,IF(Table1[[#This Row],[Horses and Ponies]]<_xlfn.PERCENTILE.EXC(Table1[Horses and Ponies],0.8),4,5)))) -> 3
A10: Alaska | B10: 10667 | C10: 3423 | D10: 1097 | E10: 1009 | F10: 773 | G10: 595 | H10: 546 | I10: 1863 | J10: 3000 | K10: 1581 | L10: 731449 | M10: =STANDARDIZE(Table1[[#This Row],[Cattle and calves inventory]],AVERAGE(Table1[Cattle and calves inventory]),_xlfn.STDEV.P(Table1[Cattle and calves inventory])) -> -0.8737153392 | N10: =STANDARDIZE(Table1[[#This Row],[Beef cows]],AVERAGE(Table1[Beef cows]),_xlfn.STDEV.P(Table1[Beef cows])) -> -0.793726638 | O10: =STANDARDIZE(Table1[[#This Row],[Milk cows]],AVERAGE(Table1[Milk cows]),_xlfn.STDEV.P(Table1[Milk cows])) -> -0.568010023 | P10: =STANDARDIZE(Table1[[#This Row],[Hogs and pigs inventory]],AVERAGE(Table1[Hogs and pigs inventory]),_xlfn.STDEV.P(Table1[Hogs and pigs inventory])) -> -0.4015712223 | Q10: =STANDARDIZE(Table1[[#This Row],[Sheep and lambs inventory]],AVERAGE(Table1[Sheep and lambs inventory]),_xlfn.STDEV.P(Table1[Sheep and lambs inventory])) -> -0.7396438621 | R10: =STANDARDIZE(Table1[[#This Row],[All goats]],AVERAGE(Table1[All goats]),_xlfn.STDEV.P(Table1[All goats])) -> -0.4262291454 | S10: =STANDARDIZE(Table1[[#This Row],[Colonies of bees]],AVERAGE(Table1[Colonies of bees]),_xlfn.STDEV.P(Table1[Colonies of bees])) -> -0.4583057702 | T10: =STANDARDIZE(Table1[[#This Row],[Broilers and other meat-type chickens]],AVERAGE(Table1[Broilers and other meat-type chickens]),_xlfn.STDEV.P(Table1[Broilers and other meat-type chickens])) -> -0.5592603092 | U10: =STANDARDIZE(Table1[[#This Row],[Turkeys]],AVERAGE(Table1[Turkeys]),_xlfn.STDEV.P(Table1[Turkeys])) -> -0.5036575499 | V10: =STANDARDIZE(Table1[[#This Row],[Horses and Ponies]],AVERAGE(Table1[Horses and Ponies]),_xlfn.STDEV.P(Table1[Horses and Ponies])) -> -1.171245238 | W10: =STANDARDIZE(Table1[[#This Row],[Population]],AVERAGE(Table1[Population]),_xlfn.STDEV.P(Table1[Population])) -> -0.7985898116 | X10: 1 | Y10: 1.99 | Z10: 3 | AA10: 4 | AB10: 5 | AC10: 6 | AD10: 2 | AE10: 7 | AF10: 8 | AG10: 9 | AH10: 10 | AI10: 11 | AJ10: 12 | AK10: =IF(Table1[[#This Row],[Horses and Ponies]]<_xlfn.PERCENTILE.EXC(Table1[Horses and Ponies],0.2),1,IF(Table1[[#This Row],[Horses and Ponies]]<_xlfn.PERCENTILE.EXC(Table1[Horses and Ponies],0.4),2,IF(Table1[[#This Row],[Horses and Ponies]]<_xlfn.PERCENTILE.EXC(Table1[Horses and Ponies],0.6),3,IF(Table1[[#This Row],[Horses and Ponies]]<_xlfn.PERCENTILE.EXC(Table1[Horses and Ponies],0.8),4,5)))) -> 1 | AL10: 4 | AM10: 5 | AN10: 7 | AO10: 8 | AP10: 9 | AQ10: 2 | AR10: 6 | AS10: 11 | AT10: 10 | AU10: 1 | AV10: 3 | AW10: =(Table1[[#This Row],[Cattle and calves inventory]]-QUARTILE(Table1[Cattle and calves inventory],2))/(QUARTILE(Table1[Cattle and calves inventory],3)-QUARTILE(Table1[Cattle and calves inventory],1)) -> -0.6302346313 | AX10: =Table1[[#This Row],[State]] -> Alaska | AY10: =IF(Table1[[#This Row],[Horses and Ponies]]<_xlfn.PERCENTILE.EXC(Table1[Horses and Ponies],0.2),1,IF(Table1[[#This Row],[Horses and Ponies]]<_xlfn.PERCENTILE.EXC(Table1[Horses and Ponies],0.4),2,IF(Table1[[#This Row],[Horses and Ponies]]<_xlfn.PERCENTILE.EXC(Table1[Horses and Ponies],0.6),3,IF(Table1[[#This Row],[Horses and Ponies]]<_xlfn.PERCENTILE.EXC(Table1[Horses and Ponies],0.8),4,5)))) -> 1
A11: Arizona | B11: 911334 | C11: 197901 | D11: 193621 | E11: 169603 | F11: 180551 | G11: 71654 | H11: 58461 | I11: 8451 | J11: 2465 | K11: 92394 | L11: 6553255 | M11: =STANDARDIZE(Table1[[#This Row],[Cattle and calves inventory]],AVERAGE(Table1[Cattle and calves inventory]),_xlfn.STDEV.P(Table1[Cattle and calves inventory])) -> -0.4339012016 | N11: =STANDARDIZE(Table1[[#This Row],[Beef cows]],AVERAGE(Table1[Beef cows]),_xlfn.STDEV.P(Table1[Beef cows])) -> -0.5256005168 | O11: =STANDARDIZE(Table1[[#This Row],[Milk cows]],AVERAGE(Table1[Milk cows]),_xlfn.STDEV.P(Table1[Milk cows])) -> 0.02648026824 | P11: =STANDARDIZE(Table1[[#This Row],[Hogs and pigs inventory]],AVERAGE(Table1[Hogs and pigs inventory]),_xlfn.STDEV.P(Table1[Hogs and pigs inventory])) -> -0.3502630535 | Q11: =STANDARDIZE(Table1[[#This Row],[Sheep and lambs inventory]],AVERAGE(Table1[Sheep and lambs inventory]),_xlfn.STDEV.P(Table1[Sheep and lambs inventory])) -> 0.5086367511 | R11: =STANDARDIZE(Table1[[#This Row],[All goats]],AVERAGE(Table1[All goats]),_xlfn.STDEV.P(Table1[All goats])) -> 0.158072065 | S11: =STANDARDIZE(Table1[[#This Row],[Colonies of bees]],AVERAGE(Table1[Colonies of bees]),_xlfn.STDEV.P(Table1[Colonies of bees])) -> -0.05061641292 | T11: =STANDARDIZE(Table1[[#This Row],[Broilers and other meat-type chickens]],AVERAGE(Table1[Broilers and other meat-type chickens]),_xlfn.STDEV.P(Table1[Broilers and other meat-type chickens])) -> -0.5591379998 | U11: =STANDARDIZE(Table1[[#This Row],[Turkeys]],AVERAGE(Table1[Turkeys]),_xlfn.STDEV.P(Table1[Turkeys])) -> -0.5037914186 | V11: =STANDARDIZE(Table1[[#This Row],[Horses and Ponies]],AVERAGE(Table1[Horses and Ponies]),_xlfn.STDEV.P(Table1[Horses and Ponies])) -> 0.3301006934 | W11: =STANDARDIZE(Table1[[#This Row],[Population]],AVERAGE(Table1[Population]),_xlfn.STDEV.P(Table1[Population])) -> 0.04150401813 | X11: 1 | Y11: 1.93 | Z11: 3 | AA11: 4 | AB11: 5 | AC11: 6 | AD11: 2 | AE11: 7 | AF11: 8 | AG11: 9 | AH11: 10 | AI11: 11 | AJ11: 12 | AK11: =IF(Table1[[#This Row],[Horses and Ponies]]<_xlfn.PERCENTILE.EXC(Table1[Horses and Ponies],0.2),1,IF(Table1[[#This Row],[Horses and Ponies]]<_xlfn.PERCENTILE.EXC(Table1[Horses and Ponies],0.4),2,IF(Table1[[#This Row],[Horses and Ponies]]<_xlfn.PERCENTILE.EXC(Table1[Horses and Ponies],0.6),3,IF(Table1[[#This Row],[Horses and Ponies]]<_xlfn.PERCENTILE.EXC(Table1[Horses and Ponies],0.8),4,5)))) -> 4 | AL11: 4 | AM11: 5 | AN11: 7 | AO11: 8 | AP11: 9 | AQ11: 2 | AR11: 6 | AS11: 11 | AT11: 10 | AU11: 1 | AV11: 3 | AW11: =(Table1[[#This Row],[Cattle and calves inventory]]-QUARTILE(Table1[Cattle and calves inventory],2))/(QUARTILE(Table1[Cattle and calves inventory],3)-QUARTILE(Table1[Cattle and calves inventory],1)) -> -0.1682621978 | AX11: =Table1[[#This Row],[State]] -> Arizona | AY11: =IF(Table1[[#This Row],[Horses and Ponies]]<_xlfn.PERCENTILE.EXC(Table1[Horses and Ponies],0.2),1,IF(Table1[[#This Row],[Horses and Ponies]]<_xlfn.PERCENTILE.EXC(Table1[Horses and Ponies],0.4),2,IF(Table1[[#This Row],[Horses and Ponies]]<_xlfn.PERCENTILE.EXC(Table1[Horses and Ponies],0.6),3,IF(Table1[[#This Row],[Horses and Ponies]]<_xlfn.PERCENTILE.EXC(Table1[Horses and Ponies],0.8),4,5)))) -> 4
A12: Arkansas | B12: 1615774 | C12: 813250 | D12: 8972 | E12: 109316 | F12: 18808 | G12: 41610 | H12: 23259 | I12: 170380435 | J12: 8821769 | K12: 61090 | L12: 2949131 | M12: =STANDARDIZE(Table1[[#This Row],[Cattle and calves inventory]],AVERAGE(Table1[Cattle and calves inventory]),_xlfn.STDEV.P(Table1[Cattle and calves inventory])) -> -0.089908726 | N12: =STANDARDIZE(Table1[[#This Row],[Beef cows]],AVERAGE(Table1[Beef cows]),_xlfn.STDEV.P(Table1[Beef cows])) -> 0.3227789431 | O12: =STANDARDIZE(Table1[[#This Row],[Milk cows]],AVERAGE(Table1[Milk cows]),_xlfn.STDEV.P(Table1[Milk cows])) -> -0.5436929974 | P12: =STANDARDIZE(Table1[[#This Row],[Hogs and pigs inventory]],AVERAGE(Table1[Hogs and pigs inventory]),_xlfn.STDEV.P(Table1[Hogs and pigs inventory])) -> -0.3686101808 | Q12: =STANDARDIZE(Table1[[#This Row],[Sheep and lambs inventory]],AVERAGE(Table1[Sheep and lambs inventory]),_xlfn.STDEV.P(Table1[Sheep and lambs inventory])) -> -0.6144186351 | R12: =STANDARDIZE(Table1[[#This Row],[All goats]],AVERAGE(Table1[All goats]),_xlfn.STDEV.P(Table1[All goats])) -> -0.08897258195 | S12: =STANDARDIZE(Table1[[#This Row],[Colonies of bees]],AVERAGE(Table1[Colonies of bees]),_xlfn.STDEV.P(Table1[Colonies of bees])) -> -0.2984188951 | T12: =STANDARDIZE(Table1[[#This Row],[Broilers and other meat-type chickens]],AVERAGE(Table1[Broilers and other meat-type chickens]),_xlfn.STDEV.P(Table1[Broilers and other meat-type chickens])) -> 2.603898777 | U12: =STANDARDIZE(Table1[[#This Row],[Turkeys]],AVERAGE(Table1[Turkeys]),_xlfn.STDEV.P(Table1[Turkeys])) -> 1.70299119 | V12: =STANDARDIZE(Table1[[#This Row],[Horses and Ponies]],AVERAGE(Table1[Horses and Ponies]),_xlfn.STDEV.P(Table1[Horses and Ponies])) -> -0.1874257956 | W12: =STANDARDIZE(Table1[[#This Row],[Population]],AVERAGE(Table1[Population]),_xlfn.STDEV.P(Table1[Population])) -> -0.4785755472 | X12: 1 | Y12: 1.97 | Z12: 3 | AA12: 4 | AB12: 5 | AC12: 6 | AD12: 2 | AE12: 7 | AF12: 8 | AG12: 9 | AH12: 10 | AI12: 11 | AJ12: 12 | AK12: =IF(Table1[[#This Row],[Horses and Ponies]]<_xlfn.PERCENTILE.EXC(Table1[Horses and Ponies],0.2),1,IF(Table1[[#This Row],[Horses and Ponies]]<_xlfn.PERCENTILE.EXC(Table1[Horses and Ponies],0.4),2,IF(Table1[[#This Row],[Horses and Ponies]]<_xlfn.PERCENTILE.EXC(Table1[Horses and Ponies],0.6),3,IF(Table1[[#This Row],[Horses and Ponies]]<_xlfn.PERCENTILE.EXC(Table1[Horses and Ponies],0.8),4,5)))) -> 2 | AL12: 4 | AM12: 5 | AN12: 7 | AO12: 8 | AP12: 9 | AQ12: 2 | AR12: 6 | AS12: 11 | AT12: 10 | AU12: 1 | AV12: 3 | AW12: =(Table1[[#This Row],[Cattle and calves inventory]]-QUARTILE(Table1[Cattle and calves inventory],2))/(QUARTILE(Table1[Cattle and calves inventory],3)-QUARTILE(Table1[Cattle and calves inventory],1)) -> 0.1930609783 | AX12: =Table1[[#This Row],[State]] -> Arkansas | AY12: =IF(Table1[[#This Row],[Horses and Ponies]]<_xlfn.PERCENTILE.EXC(Table1[Horses and Ponies],0.2),1,IF(Table1[[#This Row],[Horses and Ponies]]<_xlfn.PERCENTILE.EXC(Table1[Horses and Ponies],0.4),2,IF(Table1[[#This Row],[Horses and Ponies]]<_xlfn.PERCENTILE.EXC(Table1[Horses and Ponies],0.6),3,IF(Table1[[#This Row],[Horses and Ponies]]<_xlfn.PERCENTILE.EXC(Table1[Horses and Ponies],0.8),4,5)))) -> 2
A13: California | B13: 5370531 | C13: 583594 | D13: 1815655 | E13: 111893 | F13: 668517 | G13: 140042 | H13: 945589 | I13: 42268482 | J13: 4532307 | K13: 142555 | L13: 38041430 | M13: =STANDARDIZE(Table1[[#This Row],[Cattle and calves inventory]],AVERAGE(Table1[Cattle and calves inventory]),_xlfn.STDEV.P(Table1[Cattle and calves inventory])) -> 1.743615997 | N13: =STANDARDIZE(Table1[[#This Row],[Beef cows]],AVERAGE(Table1[Beef cows]),_xlfn.STDEV.P(Table1[Beef cows])) -> 0.006153039376 | O13: =STANDARDIZE(Table1[[#This Row],[Milk cows]],AVERAGE(Table1[Milk cows]),_xlfn.STDEV.P(Table1[Milk cows])) -> 5.035120568 | P13: =STANDARDIZE(Table1[[#This Row],[Hogs and pigs inventory]],AVERAGE(Table1[Hogs and pigs inventory]),_xlfn.STDEV.P(Table1[Hogs and pigs inventory])) -> -0.367825923 | Q13: =STANDARDIZE(Table1[[#This Row],[Sheep and lambs inventory]],AVERAGE(Table1[Sheep and lambs inventory]),_xlfn.STDEV.P(Table1[Sheep and lambs inventory])) -> 3.896807148 | R13: =STANDARDIZE(Table1[[#This Row],[All goats]],AVERAGE(Table1[All goats]),_xlfn.STDEV.P(Table1[All goats])) -> 0.7204102793 | S13: =STANDARDIZE(Table1[[#This Row],[Colonies of bees]],AVERAGE(Table1[Colonies of bees]),_xlfn.STDEV.P(Table1[Colonies of bees])) -> 6.194270821 | T13: =STANDARDIZE(Table1[[#This Row],[Broilers and other meat-type chickens]],AVERAGE(Table1[Broilers and other meat-type chickens]),_xlfn.STDEV.P(Table1[Broilers and other meat-type chickens])) -> 0.2254395409 | U13: =STANDARDIZE(Table1[[#This Row],[Turkeys]],AVERAGE(Table1[Turkeys]),_xlfn.STDEV.P(Table1[Turkeys])) -> 0.6296740505 | V13: =STANDARDIZE(Table1[[#This Row],[Horses and Ponies]],AVERAGE(Table1[Horses and Ponies]),_xlfn.STDEV.P(Table1[Horses and Ponies])) -> 1.159376384 | W13: =STANDARDIZE(Table1[[#This Row],[Population]],AVERAGE(Table1[Population]),_xlfn.STDEV.P(Table1[Population])) -> 4.585286743 | X13: 1 | Y13: 2 | Z13: 3 | AA13: 4 | AB13: 5 | AC13: 6 | AD13: 2 | AE13: 7 | AF13: 8 | AG13: 9 | AH13: 10 | AI13: 11 | AJ13: 12 | AK13: =IF(Table1[[#This Row],[Horses and Ponies]]<_xlfn.PERCENTILE.EXC(Table1[Horses and Ponies],0.2),1,IF(Table1[[#This Row],[Horses and Ponies]]<_xlfn.PERCENTILE.EXC(Table1[Horses and Ponies],0.4),2,IF(Table1[[#This Row],[Horses and Ponies]]<_xlfn.PERCENTILE.EXC(Table1[Horses and Ponies],0.6),3,IF(Table1[[#This Row],[Horses and Ponies]]<_xlfn.PERCENTILE.EXC(Table1[Horses and Ponies],0.8),4,5)))) -> 5 | AL13: 4 | AM13: 5 | AN13: 7 | AO13: 8 | AP13: 9 | AQ13: 2 | AR13: 6 | AS13: 11 | AT13: 10 | AU13: 1 | AV13: 3 | AW13: =(Table1[[#This Row],[Cattle and calves inventory]]-QUARTILE(Table1[Cattle and calves inventory],2))/(QUARTILE(Table1[Cattle and calves inventory],3)-QUARTILE(Table1[Cattle and calves inventory],1)) -> 2.118960593 | AX13: =Table1[[#This Row],[State]] -> California | AY13: =IF(Table1[[#This Row],[Horses and Ponies]]<_xlfn.PERCENTILE.EXC(Table1[Horses and Ponies],0.2),1,IF(Table1[[#This Row],[Horses and Ponies]]<_xlfn.PERCENTILE.EXC(Table1[Horses and Ponies],0.4),2,IF(Table1[[#This Row],[Horses and Ponies]]<_xlfn.PERCENTILE.EXC(Table1[Horses and Ponies],0.6),3,IF(Table1[[#This Row],[Horses and Ponies]]<_xlfn.PERCENTILE.EXC(Table1[Horses and Ponies],0.8),4,5)))) -> 5
A14: Colorado | B14: 2630082 | C14: 683291 | D14: 130736 | E14: 727301 | F14: 401376 | G14: 34757 | H14: 34813 | I14: 19571 | J14: 3761 | K14: 110360 | L14: 5187582 | M14: =STANDARDIZE(Table1[[#This Row],[Cattle and calves inventory]],AVERAGE(Table1[Cattle and calves inventory]),_xlfn.STDEV.P(Table1[Cattle and calves inventory])) -> 0.4053986387 | N14: =STANDARDIZE(Table1[[#This Row],[Beef cows]],AVERAGE(Table1[Beef cows]),_xlfn.STDEV.P(Table1[Beef cows])) -> 0.1436049358 | O14: =STANDARDIZE(Table1[[#This Row],[Milk cows]],AVERAGE(Table1[Milk cows]),_xlfn.STDEV.P(Table1[Milk cows])) -> -0.1677008311 | P14: =STANDARDIZE(Table1[[#This Row],[Hogs and pigs inventory]],AVERAGE(Table1[Hogs and pigs inventory]),_xlfn.STDEV.P(Table1[Hogs and pigs inventory])) -> -0.1805389642 | Q14: =STANDARDIZE(Table1[[#This Row],[Sheep and lambs inventory]],AVERAGE(Table1[Sheep and lambs inventory]),_xlfn.STDEV.P(Table1[Sheep and lambs inventory])) -> 2.041925398 | R14: =STANDARDIZE(Table1[[#This Row],[All goats]],AVERAGE(Table1[All goats]),_xlfn.STDEV.P(Table1[All goats])) -> -0.1453231666 | S14: =STANDARDIZE(Table1[[#This Row],[Colonies of bees]],AVERAGE(Table1[Colonies of bees]),_xlfn.STDEV.P(Table1[Colonies of bees])) -> -0.2170851675 | T14: =STANDARDIZE(Table1[[#This Row],[Broilers and other meat-type chickens]],AVERAGE(Table1[Broilers and other meat-type chickens]),_xlfn.STDEV.P(Table1[Broilers and other meat-type chickens])) -> -0.5589315518 | U14: =STANDARDIZE(Table1[[#This Row],[Turkeys]],AVERAGE(Table1[Turkeys]),_xlfn.STDEV.P(Table1[Turkeys])) -> -0.5034671311 | V14: =STANDARDIZE(Table1[[#This Row],[Horses and Ponies]],AVERAGE(Table1[Horses and Ponies]),_xlfn.STDEV.P(Table1[Horses and Ponies])) -> 0.6271196335 | W14: =STANDARDIZE(Table1[[#This Row],[Population]],AVERAGE(Table1[Population]),_xlfn.STDEV.P(Table1[Population])) -> -0.1555642904 | X14: 1 | Y14: 1.97 | Z14: 3 | AA14: 4 | AB14: 5 | AC14: 6 | AD14: 2 | AE14: 7 | AF14: 8 | AG14: 9 | AH14: 10 | AI14: 11 | AJ14: 12 | AK14: =IF(Table1[[#This Row],[Horses and Ponies]]<_xlfn.PERCENTILE.EXC(Table1[Horses and Ponies],0.2),1,IF(Table1[[#This Row],[Horses and Ponies]]<_xlfn.PERCENTILE.EXC(Table1[Horses and Ponies],0.4),2,IF(Table1[[#This Row],[Horses and Ponies]]<_xlfn.PERCENTILE.EXC(Table1[Horses and Ponies],0.6),3,IF(Table1[[#This Row],[Horses and Ponies]]<_xlfn.PERCENTILE.EXC(Table1[Horses and Ponies],0.8),4,5)))) -> 5 | AL14: 4 | AM14: 5 | AN14: 7 | AO14: 8 | AP14: 9 | AQ14: 2 | AR14: 6 | AS14: 11 | AT14: 10 | AU14: 1 | AV14: 3 | AW14: =(Table1[[#This Row],[Cattle and calves inventory]]-QUARTILE(Table1[Cattle and calves inventory],2))/(QUARTILE(Table1[Cattle and calves inventory],3)-QUARTILE(Table1[Cattle and calves inventory],1)) -> 0.7133224457 | AX14: =Table1[[#This Row],[State]] -> Colorado | AY14: =IF(Table1[[#This Row],[Horses and Ponies]]<_xlfn.PERCENTILE.EXC(Table1[Horses and Ponies],0.2),1,IF(Table1[[#This Row],[Horses and Ponies]]<_xlfn.PERCENTILE.EXC(Table1[Horses and Ponies],0.4),2,IF(Table1[[#This Row],[Horses and Ponies]]<_xlfn.PERCENTILE.EXC(Table1[Horses and Ponies],0.6),3,IF(Table1[[#This Row],[Horses and Ponies]]<_xlfn.PERCENTILE.EXC(Table1[Horses and Ponies],0.8),4,5)))) -> 5
A15: Connecticut | B15: 48278 | C15: 8080 | D15: 17740 | E15: 4737 | F15: 6093 | G15: 4393 | H15: 5639 | I15: 79605 | J15: 9421 | K15: 17424 | L15: 3590347 | M15: =STANDARDIZE(Table1[[#This Row],[Cattle and calves inventory]],AVERAGE(Table1[Cattle and calves inventory]),_xlfn.STDEV.P(Table1[Cattle and calves inventory])) -> -0.8553491178 | N15: =STANDARDIZE(Table1[[#This Row],[Beef cows]],AVERAGE(Table1[Beef cows]),_xlfn.STDEV.P(Table1[Beef cows])) -> -0.7873060488 | O15: =STANDARDIZE(Table1[[#This Row],[Milk cows]],AVERAGE(Table1[Milk cows]),_xlfn.STDEV.P(Table1[Milk cows])) -> -0.5166184983 | P15: =STANDARDIZE(Table1[[#This Row],[Hogs and pigs inventory]],AVERAGE(Table1[Hogs and pigs inventory]),_xlfn.STDEV.P(Table1[Hogs and pigs inventory])) -> -0.400436681 | Q15: =STANDARDIZE(Table1[[#This Row],[Sheep and lambs inventory]],AVERAGE(Table1[Sheep and lambs inventory]),_xlfn.STDEV.P(Table1[Sheep and lambs inventory])) -> -0.7027046768 | R15: =STANDARDIZE(Table1[[#This Row],[All goats]],AVERAGE(Table1[All goats]),_xlfn.STDEV.P(Table1[All goats])) -> -0.3949990972 | S15: =STANDARDIZE(Table1[[#This Row],[Colonies of bees]],AVERAGE(Table1[Colonies of bees]),_xlfn.STDEV.P(Table1[Colonies of bees])) -> -0.4224538856 | T15: =STANDARDIZE(Table1[[#This Row],[Broilers and other meat-type chickens]],AVERAGE(Table1[Broilers and other meat-type chickens]),_xlfn.STDEV.P(Table1[Broilers and other meat-type chickens])) -> -0.557816992 | U15: =STANDARDIZE(Table1[[#This Row],[Turkeys]],AVERAGE(Table1[Turkeys]),_xlfn.STDEV.P(Table1[Turkeys])) -> -0.5020508754 | V15: =STANDARDIZE(Table1[[#This Row],[Horses and Ponies]],AVERAGE(Table1[Horses and Ponies]),_xlfn.STDEV.P(Table1[Horses and Ponies])) -> -0.9093243283 | W15: =STANDARDIZE(Table1[[#This Row],[Population]],AVERAGE(Table1[Population]),_xlfn.STDEV.P(Table1[Population])) -> -0.3860472828 | X15: 1 | Y15: 1.94 | Z15: 3 | AA15: 4 | AB15: 5 | AC15: 6 | AD15: 2 | AE15: 7 | AF15: 8 | AG15: 9 | AH15: 10 | AI15: 11 | AJ15: 12 | AK15: =IF(Table1[[#This Row],[Horses and Ponies]]<_xlfn.PERCENTILE.EXC(Table1[Horses and Ponies],0.2),1,IF(Table1[[#This Row],[Horses and Ponies]]<_xlfn.PERCENTILE.EXC(Table1[Horses and Ponies],0.4),2,IF(Table1[[#This Row],[Horses and Ponies]]<_xlfn.PERCENTILE.EXC(Table1[Horses and Ponies],0.6),3,IF(Table1[[#This Row],[Horses and Ponies]]<_xlfn.PERCENTILE.EXC(Table1[Horses and Ponies],0.8),4,5)))) -> 1 | AL15: 4 | AM15: 5 | AN15: 7 | AO15: 8 | AP15: 9 | AQ15: 2 | AR15: 6 | AS15: 11 | AT15: 10 | AU15: 1 | AV15: 3 | AW15: =(Table1[[#This Row],[Cattle and calves inventory]]-QUARTILE(Table1[Cattle and calves inventory],2))/(QUARTILE(Table1[Cattle and calves inventory],3)-QUARTILE(Table1[Cattle and calves inventory],1)) -> -0.6109431005 | AX15: =Table1[[#This Row],[State]] -> Connecticut | AY15: =IF(Table1[[#This Row],[Horses and Ponies]]<_xlfn.PERCENTILE.EXC(Table1[Horses and Ponies],0.2),1,IF(Table1[[#This Row],[Horses and Ponies]]<_xlfn.PERCENTILE.EXC(Table1[Horses and Ponies],0.4),2,IF(Table1[[#This Row],[Horses and Ponies]]<_xlfn.PERCENTILE.EXC(Table1[Horses and Ponies],0.6),3,IF(Table1[[#This Row],[Horses and Ponies]]<_xlfn.PERCENTILE.EXC(Table1[Horses and Ponies],0.8),4,5)))) -> 1
A16: Delaware | B16: 18225 | C16: 3833 | D16: 4512 | E16: 5891 | F16: 1040 | G16: 2008 | H16: 817 | I16: 43206514 | J16: 778 | K16: 6157 | L16: 917092 | M16: =STANDARDIZE(Table1[[#This Row],[Cattle and calves inventory]],AVERAGE(Table1[Cattle and calves inventory]),_xlfn.STDEV.P(Table1[Cattle and calves inventory])) -> -0.870024613 | N16: =STANDARDIZE(Table1[[#This Row],[Beef cows]],AVERAGE(Table1[Beef cows]),_xlfn.STDEV.P(Table1[Beef cows])) -> -0.7931613725 | O16: =STANDARDIZE(Table1[[#This Row],[Milk cows]],AVERAGE(Table1[Milk cows]),_xlfn.STDEV.P(Table1[Milk cows])) -> -0.5574649256 | P16: =STANDARDIZE(Table1[[#This Row],[Hogs and pigs inventory]],AVERAGE(Table1[Hogs and pigs inventory]),_xlfn.STDEV.P(Table1[Hogs and pigs inventory])) -> -0.4000854845 | Q16: =STANDARDIZE(Table1[[#This Row],[Sheep and lambs inventory]],AVERAGE(Table1[Sheep and lambs inventory]),_xlfn.STDEV.P(Table1[Sheep and lambs inventory])) -> -0.7377899594 | R16: =STANDARDIZE(Table1[[#This Row],[All goats]],AVERAGE(Table1[All goats]),_xlfn.STDEV.P(Table1[All goats])) -> -0.4146103834 | S16: =STANDARDIZE(Table1[[#This Row],[Colonies of bees]],AVERAGE(Table1[Colonies of bees]),_xlfn.STDEV.P(Table1[Colonies of bees])) -> -0.4563980811 | T16: =STANDARDIZE(Table1[[#This Row],[Broilers and other meat-type chickens]],AVERAGE(Table1[Broilers and other meat-type chickens]),_xlfn.STDEV.P(Table1[Broilers and other meat-type chickens])) -> 0.2428545504 | U16: =STANDARDIZE(Table1[[#This Row],[Turkeys]],AVERAGE(Table1[Turkeys]),_xlfn.STDEV.P(Table1[Turkeys])) -> -0.5042135429 | V16: =STANDARDIZE(Table1[[#This Row],[Horses and Ponies]],AVERAGE(Table1[Horses and Ponies]),_xlfn.STDEV.P(Table1[Horses and Ponies])) -> -1.095593526 | W16: =STANDARDIZE(Table1[[#This Row],[Population]],AVERAGE(Table1[Population]),_xlfn.STDEV.P(Table1[Population])) -> -0.7718012964 | X16: 1 | Y16: 1.9 | Z16: 3 | AA16: 4 | AB16: 5 | AC16: 6 | AD16: 2 | AE16: 7 | AF16: 8 | AG16: 9 | AH16: 10 | AI16: 11 | AJ16: 12 | AK16: =IF(Table1[[#This Row],[Horses and Ponies]]<_xlfn.PERCENTILE.EXC(Table1[Horses and Ponies],0.2),1,IF(Table1[[#This Row],[Horses and Ponies]]<_xlfn.PERCENTILE.EXC(Table1[Horses and Ponies],0.4),2,IF(Table1[[#This Row],[Horses and Ponies]]<_xlfn.PERCENTILE.EXC(Table1[Horses and Ponies],0.6),3,IF(Table1[[#This Row],[Horses and Ponies]]<_xlfn.PERCENTILE.EXC(Table1[Horses and Ponies],0.8),4,5)))) -> 1 | AL16: 4 | AM16: 5 | AN16: 7 | AO16: 8 | AP16: 9 | AQ16: 2 | AR16: 6 | AS16: 11 | AT16: 10 | AU16: 1 | AV16: 3 | AW16: =(Table1[[#This Row],[Cattle and calves inventory]]-QUARTILE(Table1[Cattle and calves inventory],2))/(QUARTILE(Table1[Cattle and calves inventory],3)-QUARTILE(Table1[Cattle and calves inventory],1)) -> -0.6263579625 | AX16: =Table1[[#This Row],[State]] -> Delaware | AY16: =IF(Table1[[#This Row],[Horses and Ponies]]<_xlfn.PERCENTILE.EXC(Table1[Horses and Ponies],0.2),1,IF(Table1[[#This Row],[Horses and Ponies]]<_xlfn.PERCENTILE.EXC(Table1[Horses and Ponies],0.4),2,IF(Table1[[#This Row],[Horses and Ponies]]<_xlfn.PERCENTILE.EXC(Table1[Horses and Ponies],0.6),3,IF(Table1[[#This Row],[Horses and Ponies]]<_xlfn.PERCENTILE.EXC(Table1[Horses and Ponies],0.8),4,5)))) -> 1
A17: Florida | B17: 1675323 | C17: 982790 | D17: 123220 | E17: 14915 | F17: 18232 | G17: 52052 | H17: 206654 | I17: 11031656 | J17: 5567 | K17: 121034 | L17: 19317568 | M17: =STANDARDIZE(Table1[[#This Row],[Cattle and calves inventory]],AVERAGE(Table1[Cattle and calves inventory]),_xlfn.STDEV.P(Table1[Cattle and calves inventory])) -> -0.06082973002 | N17: =STANDARDIZE(Table1[[#This Row],[Beef cows]],AVERAGE(Table1[Beef cows]),_xlfn.STDEV.P(Table1[Beef cows])) -> 0.5565231332 | O17: =STANDARDIZE(Table1[[#This Row],[Milk cows]],AVERAGE(Table1[Milk cows]),_xlfn.STDEV.P(Table1[Milk cows])) -> -0.1909093091 | P17: =STANDARDIZE(Table1[[#This Row],[Hogs and pigs inventory]],AVERAGE(Table1[Hogs and pigs inventory]),_xlfn.STDEV.P(Table1[Hogs and pigs inventory])) -> -0.3973392129 | Q17: =STANDARDIZE(Table1[[#This Row],[Sheep and lambs inventory]],AVERAGE(Table1[Sheep and lambs inventory]),_xlfn.STDEV.P(Table1[Sheep and lambs inventory])) -> -0.6184180657 | R17: =STANDARDIZE(Table1[[#This Row],[All goats]],AVERAGE(Table1[All goats]),_xlfn.STDEV.P(Table1[All goats])) -> -0.003110506225 | S17: =STANDARDIZE(Table1[[#This Row],[Colonies of bees]],AVERAGE(Table1[Colonies of bees]),_xlfn.STDEV.P(Table1[Colonies of bees])) -> 0.9925798043 | T17: =STANDARDIZE(Table1[[#This Row],[Broilers and other meat-type chickens]],AVERAGE(Table1[Broilers and other meat-type chickens]),_xlfn.STDEV.P(Table1[Broilers and other meat-type chickens])) -> -0.3544869651 | U17: =STANDARDIZE(Table1[[#This Row],[Turkeys]],AVERAGE(Table1[Turkeys]),_xlfn.STDEV.P(Table1[Turkeys])) -> -0.5030152304 | V17: =STANDARDIZE(Table1[[#This Row],[Horses and Ponies]],AVERAGE(Table1[Horses and Ponies]),_xlfn.STDEV.P(Table1[Horses and Ponies])) -> 0.8035851889 | W17: =STANDARDIZE(Table1[[#This Row],[Population]],AVERAGE(Table1[Population]),_xlfn.STDEV.P(Table1[Population])) -> 1.883410223 | X17: 1 | Y17: 2.02 | Z17: 3 | AA17: 4 | AB17: 5 | AC17: 6 | AD17: 2 | AE17: 7 | AF17: 8 | AG17: 9 | AH17: 10 | AI17: 11 | AJ17: 12 | AK17: =IF(Table1[[#This Row],[Horses and Ponies]]<_xlfn.PERCENTILE.EXC(Table1[Horses and Ponies],0.2),1,IF(Table1[[#This Row],[Horses and Ponies]]<_xlfn.PERCENTILE.EXC(Table1[Horses and Ponies],0.4),2,IF(Table1[[#This Row],[Horses and Ponies]]<_xlfn.PERCENTILE.EXC(Table1[Horses and Ponies],0.6),3,IF(Table1[[#This Row],[Horses and Ponies]]<_xlfn.PERCENTILE.EXC(Table1[Horses and Ponies],0.8),4,5)))) -> 5 | AL17: 4 | AM17: 5 | AN17: 7 | AO17: 8 | AP17: 9 | AQ17: 2 | AR17: 6 | AS17: 11 | AT17: 10 | AU17: 1 | AV17: 3 | AW17: =(Table1[[#This Row],[Cattle and calves inventory]]-QUARTILE(Table1[Cattle and calves inventory],2))/(QUARTILE(Table1[Cattle and calves inventory],3)-QUARTILE(Table1[Cattle and calves inventory],1)) -> 0.2236050045 | AX17: =Table1[[#This Row],[State]] -> Florida | AY17: =IF(Table1[[#This Row],[Horses and Ponies]]<_xlfn.PERCENTILE.EXC(Table1[Horses and Ponies],0.2),1,IF(Table1[[#This Row],[Horses and Ponies]]<_xlfn.PERCENTILE.EXC(Table1[Horses and Ponies],0.4),2,IF(Table1[[#This Row],[Horses and Ponies]]<_xlfn.PERCENTILE.EXC(Table1[Horses and Ponies],0.6),3,IF(Table1[[#This Row],[Horses and Ponies]]<_xlfn.PERCENTILE.EXC(Table1[Horses and Ponies],0.8),4,5)))) -> 5
A18: Georgia | B18: 1033717 | C18: 469942 | D18: 79492 | E18: 153733 | F18: 21798 | G18: 71709 | H18: 64213 | I18: 243463943 | J18: 2661 | K18: 69861 | L18: 9919945 | M18: =STANDARDIZE(Table1[[#This Row],[Cattle and calves inventory]],AVERAGE(Table1[Cattle and calves inventory]),_xlfn.STDEV.P(Table1[Cattle and calves inventory])) -> -0.3741390769 | N18: =STANDARDIZE(Table1[[#This Row],[Beef cows]],AVERAGE(Table1[Beef cows]),_xlfn.STDEV.P(Table1[Beef cows])) -> -0.1505385655 | O18: =STANDARDIZE(Table1[[#This Row],[Milk cows]],AVERAGE(Table1[Milk cows]),_xlfn.STDEV.P(Table1[Milk cows])) -> -0.3259359627 | P18: =STANDARDIZE(Table1[[#This Row],[Hogs and pigs inventory]],AVERAGE(Table1[Hogs and pigs inventory]),_xlfn.STDEV.P(Table1[Hogs and pigs inventory])) -> -0.3550927665 | Q18: =STANDARDIZE(Table1[[#This Row],[Sheep and lambs inventory]],AVERAGE(Table1[Sheep and lambs inventory]),_xlfn.STDEV.P(Table1[Sheep and lambs inventory])) -> -0.593657702 | R18: =STANDARDIZE(Table1[[#This Row],[All goats]],AVERAGE(Table1[All goats]),_xlfn.STDEV.P(Table1[All goats])) -> 0.1585243168 | S18: =STANDARDIZE(Table1[[#This Row],[Colonies of bees]],AVERAGE(Table1[Colonies of bees]),_xlfn.STDEV.P(Table1[Colonies of bees])) -> -0.01012553521 | T18: =STANDARDIZE(Table1[[#This Row],[Broilers and other meat-type chickens]],AVERAGE(Table1[Broilers and other meat-type chickens]),_xlfn.STDEV.P(Table1[Broilers and other meat-type chickens])) -> 3.960728803 | U18: =STANDARDIZE(Table1[[#This Row],[Turkeys]],AVERAGE(Table1[Turkeys]),_xlfn.STDEV.P(Table1[Turkeys])) -> -0.5037423752 | V18: =STANDARDIZE(Table1[[#This Row],[Horses and Ponies]],AVERAGE(Table1[Horses and Ponies]),_xlfn.STDEV.P(Table1[Horses and Ponies])) -> -0.04242116885 | W18: =STANDARDIZE(Table1[[#This Row],[Population]],AVERAGE(Table1[Population]),_xlfn.STDEV.P(Table1[Population])) -> 0.5273215627 | X18: 1 | Y18: 2.05 | Z18: 3 | AA18: 4 | AB18: 5 | AC18: 6 | AD18: 2 | AE18: 7 | AF18: 8 | AG18: 9 | AH18: 10 | AI18: 11 | AJ18: 12 | AK18: =IF(Table1[[#This Row],[Horses and Ponies]]<_xlfn.PERCENTILE.EXC(Table1[Horses and Ponies],0.2),1,IF(Table1[[#This Row],[Horses and Ponies]]<_xlfn.PERCENTILE.EXC(Table1[Horses and Ponies],0.4),2,IF(Table1[[#This Row],[Horses and Ponies]]<_xlfn.PERCENTILE.EXC(Table1[Horses and Ponies],0.6),3,IF(Table1[[#This Row],[Horses and Ponies]]<_xlfn.PERCENTILE.EXC(Table1[Horses and Ponies],0.8),4,5)))) -> 3 | AL18: 4 | AM18: 5 | AN18: 7 | AO18: 8 | AP18: 9 | AQ18: 2 | AR18: 6 | AS18: 11 | AT18: 10 | AU18: 1 | AV18: 3 | AW18: =(Table1[[#This Row],[Cattle and calves inventory]]-QUARTILE(Table1[Cattle and calves inventory],2))/(QUARTILE(Table1[Cattle and calves inventory],3)-QUARTILE(Table1[Cattle and calves inventory],1)) -> -0.1054891948 | AX18: =Table1[[#This Row],[State]] -> Georgia | AY18: =IF(Table1[[#This Row],[Horses and Ponies]]<_xlfn.PERCENTILE.EXC(Table1[Horses and Ponies],0.2),1,IF(Table1[[#This Row],[Horses and Ponies]]<_xlfn.PERCENTILE.EXC(Table1[Horses and Ponies],0.4),2,IF(Table1[[#This Row],[Horses and Ponies]]<_xlfn.PERCENTILE.EXC(Table1[Horses and Ponies],0.6),3,IF(Table1[[#This Row],[Horses and Ponies]]<_xlfn.PERCENTILE.EXC(Table1[Horses and Ponies],0.8),4,5)))) -> 3
A19: Hawaii | B19: 133957 | C19: 73227 | D19: 1501 | E19: 11441 | F19: 21921 | G19: 12996 | H19: 8630 | I19: 3375 | J19: 117 | K19: 5114 | L19: 1392313 | M19: =STANDARDIZE(Table1[[#This Row],[Cattle and calves inventory]],AVERAGE(Table1[Cattle and calves inventory]),_xlfn.STDEV.P(Table1[Cattle and calves inventory])) -> -0.8135103078 | N19: =STANDARDIZE(Table1[[#This Row],[Beef cows]],AVERAGE(Table1[Beef cows]),_xlfn.STDEV.P(Table1[Beef cows])) -> -0.6974881135 | O19: =STANDARDIZE(Table1[[#This Row],[Milk cows]],AVERAGE(Table1[Milk cows]),_xlfn.STDEV.P(Table1[Milk cows])) -> -0.566762521 | P19: =STANDARDIZE(Table1[[#This Row],[Hogs and pigs inventory]],AVERAGE(Table1[Hogs and pigs inventory]),_xlfn.STDEV.P(Table1[Hogs and pigs inventory])) -> -0.3983964544 | Q19: =STANDARDIZE(Table1[[#This Row],[Sheep and lambs inventory]],AVERAGE(Table1[Sheep and lambs inventory]),_xlfn.STDEV.P(Table1[Sheep and lambs inventory])) -> -0.5928036569 | R19: =STANDARDIZE(Table1[[#This Row],[All goats]],AVERAGE(Table1[All goats]),_xlfn.STDEV.P(Table1[All goats])) -> -0.3242586799 | S19: =STANDARDIZE(Table1[[#This Row],[Colonies of bees]],AVERAGE(Table1[Colonies of bees]),_xlfn.STDEV.P(Table1[Colonies of bees])) -> -0.4013989108 | T19: =STANDARDIZE(Table1[[#This Row],[Broilers and other meat-type chickens]],AVERAGE(Table1[Broilers and other meat-type chickens]),_xlfn.STDEV.P(Table1[Broilers and other meat-type chickens])) -> -0.5592322382 | U19: =STANDARDIZE(Table1[[#This Row],[Turkeys]],AVERAGE(Table1[Turkeys]),_xlfn.STDEV.P(Table1[Turkeys])) -> -0.5043789396 | V19: =STANDARDIZE(Table1[[#This Row],[Horses and Ponies]],AVERAGE(Table1[Horses and Ponies]),_xlfn.STDEV.P(Table1[Horses and Ponies])) -> -1.112836693 | W19: =STANDARDIZE(Table1[[#This Row],[Population]],AVERAGE(Table1[Population]),_xlfn.STDEV.P(Table1[Population])) -> -0.7032263164 | X19: 1 | Y19: 1.99 | Z19: 3 | AA19: 4 | AB19: 5 | AC19: 6 | AD19: 2 | AE19: 7 | AF19: 8 | AG19: 9 | AH19: 10 | AI19: 11 | AJ19: 12 | AK19: =IF(Table1[[#This Row],[Horses and Ponies]]<_xlfn.PERCENTILE.EXC(Table1[Horses and Ponies],0.2),1,IF(Table1[[#This Row],[Horses and Ponies]]<_xlfn.PERCENTILE.EXC(Table1[Horses and Ponies],0.4),2,IF(Table1[[#This Row],[Horses and Ponies]]<_xlfn.PERCENTILE.EXC(Table1[Horses and Ponies],0.6),3,IF(Table1[[#This Row],[Horses and Ponies]]<_xlfn.PERCENTILE.EXC(Table1[Horses and Ponies],0.8),4,5)))) -> 1 | AL19: 4 | AM19: 5 | AN19: 7 | AO19: 8 | AP19: 9 | AQ19: 2 | AR19: 6 | AS19: 11 | AT19: 10 | AU19: 1 | AV19: 3 | AW19: =(Table1[[#This Row],[Cattle and calves inventory]]-QUARTILE(Table1[Cattle and calves inventory],2))/(QUARTILE(Table1[Cattle and calves inventory],3)-QUARTILE(Table1[Cattle and calves inventory],1)) -> -0.5669964075 | AX19: =Table1[[#This Row],[State]] -> Hawaii | AY19: =IF(Table1[[#This Row],[Horses and Ponies]]<_xlfn.PERCENTILE.EXC(Table1[Horses and Ponies],0.2),1,IF(Table1[[#This Row],[Horses and Ponies]]<_xlfn.PERCENTILE.EXC(Table1[Horses and Ponies],0.4),2,IF(Table1[[#This Row],[Horses and Ponies]]<_xlfn.PERCENTILE.EXC(Table1[Horses and Ponies],0.6),3,IF(Table1[[#This Row],[Horses and Ponies]]<_xlfn.PERCENTILE.EXC(Table1[Horses and Ponies],0.8),4,5)))) -> 1
A20: Idaho | B20: 2397541 | C20: 485025 | D20: 578761 | E20: 45139 | F20: 231078 | G20: 18139 | H20: 103604 | I20: 9639 | J20: 6696 | K20: 61439 | L20: 1595728 | M20: =STANDARDIZE(Table1[[#This Row],[Cattle and calves inventory]],AVERAGE(Table1[Cattle and calves inventory]),_xlfn.STDEV.P(Table1[Cattle and calves inventory])) -> 0.291844107 | N20: =STANDARDIZE(Table1[[#This Row],[Beef cows]],AVERAGE(Table1[Beef cows]),_xlfn.STDEV.P(Table1[Beef cows])) -> -0.1297436875 | O20: =STANDARDIZE(Table1[[#This Row],[Milk cows]],AVERAGE(Table1[Milk cows]),_xlfn.STDEV.P(Table1[Milk cows])) -> 1.215744935 | P20: =STANDARDIZE(Table1[[#This Row],[Hogs and pigs inventory]],AVERAGE(Table1[Hogs and pigs inventory]),_xlfn.STDEV.P(Table1[Hogs and pigs inventory])) -> -0.3881411507 | Q20: =STANDARDIZE(Table1[[#This Row],[Sheep and lambs inventory]],AVERAGE(Table1[Sheep and lambs inventory]),_xlfn.STDEV.P(Table1[Sheep and lambs inventory])) -> 0.8594687469 | R20: =STANDARDIZE(Table1[[#This Row],[All goats]],AVERAGE(Table1[All goats]),_xlfn.STDEV.P(Table1[All goats])) -> -0.2819690174 | S20: =STANDARDIZE(Table1[[#This Row],[Colonies of bees]],AVERAGE(Table1[Colonies of bees]),_xlfn.STDEV.P(Table1[Colonies of bees])) -> 0.2671651748 | T20: =STANDARDIZE(Table1[[#This Row],[Broilers and other meat-type chickens]],AVERAGE(Table1[Broilers and other meat-type chickens]),_xlfn.STDEV.P(Table1[Broilers and other meat-type chickens])) -> -0.559115944 | U20: =STANDARDIZE(Table1[[#This Row],[Turkeys]],AVERAGE(Table1[Turkeys]),_xlfn.STDEV.P(Table1[Turkeys])) -> -0.50273273 | V20: =STANDARDIZE(Table1[[#This Row],[Horses and Ponies]],AVERAGE(Table1[Horses and Ponies]),_xlfn.STDEV.P(Table1[Horses and Ponies])) -> -0.1816560299 | W20: =STANDARDIZE(Table1[[#This Row],[Population]],AVERAGE(Table1[Population]),_xlfn.STDEV.P(Table1[Population])) -> -0.6738732795 | X20: 1 | Y20: 2.05 | Z20: 3 | AA20: 4 | AB20: 5 | AC20: 6 | AD20: 2 | AE20: 7 | AF20: 8 | AG20: 9 | AH20: 10 | AI20: 11 | AJ20: 12 | AK20: =IF(Table1[[#This Row],[Horses and Ponies]]<_xlfn.PERCENTILE.EXC(Table1[Horses and Ponies],0.2),1,IF(Table1[[#This Row],[Horses and Ponies]]<_xlfn.PERCENTILE.EXC(Table1[Horses and Ponies],0.4),2,IF(Table1[[#This Row],[Horses and Ponies]]<_xlfn.PERCENTILE.EXC(Table1[Horses and Ponies],0.6),3,IF(Table1[[#This Row],[Horses and Ponies]]<_xlfn.PERCENTILE.EXC(Table1[Horses and Ponies],0.8),4,5)))) -> 3 | AL20: 4 | AM20: 5 | AN20: 7 | AO20: 8 | AP20: 9 | AQ20: 2 | AR20: 6 | AS20: 11 | AT20: 10 | AU20: 1 | AV20: 3 | AW20: =(Table1[[#This Row],[Cattle and calves inventory]]-QUARTILE(Table1[Cattle and calves inventory],2))/(QUARTILE(Table1[Cattle and calves inventory],3)-QUARTILE(Table1[Cattle and calves inventory],1)) -> 0.5940469181 | AX20: =Table1[[#This Row],[State]] -> Idaho | AY20: =IF(Table1[[#This Row],[Horses and Ponies]]<_xlfn.PERCENTILE.EXC(Table1[Horses and Ponies],0.2),1,IF(Table1[[#This Row],[Horses and Ponies]]<_xlfn.PERCENTILE.EXC(Table1[Horses and Ponies],0.4),2,IF(Table1[[#This Row],[Horses and Ponies]]<_xlfn.PERCENTILE.EXC(Table1[Horses and Ponies],0.6),3,IF(Table1[[#This Row],[Horses and Ponies]]<_xlfn.PERCENTILE.EXC(Table1[Horses and Ponies],0.8),4,5)))) -> 3
A21: Illinois | B21: 1127630 | C21: 343972 | D21: 98849 | E21: 4630796 | F21: 54675 | G21: 31546 | H21: 10043 | I21: 115927 | J21: 739660 | K21: 62714 | L21: 12875255 | M21: =STANDARDIZE(Table1[[#This Row],[Cattle and calves inventory]],AVERAGE(Table1[Cattle and calves inventory]),_xlfn.STDEV.P(Table1[Cattle and calves inventory])) -> -0.3282794361 | N21: =STANDARDIZE(Table1[[#This Row],[Beef cows]],AVERAGE(Table1[Beef cows]),_xlfn.STDEV.P(Table1[Beef cows])) -> -0.3242129528 | O21: =STANDARDIZE(Table1[[#This Row],[Milk cows]],AVERAGE(Table1[Milk cows]),_xlfn.STDEV.P(Table1[Milk cows])) -> -0.2661639418 | P21: =STANDARDIZE(Table1[[#This Row],[Hogs and pigs inventory]],AVERAGE(Table1[Hogs and pigs inventory]),_xlfn.STDEV.P(Table1[Hogs and pigs inventory])) -> 1.007410668 | Q21: =STANDARDIZE(Table1[[#This Row],[Sheep and lambs inventory]],AVERAGE(Table1[Sheep and lambs inventory]),_xlfn.STDEV.P(Table1[Sheep and lambs inventory])) -> -0.3653777027 | R21: =STANDARDIZE(Table1[[#This Row],[All goats]],AVERAGE(Table1[All goats]),_xlfn.STDEV.P(Table1[All goats])) -> -0.1717264538 | S21: =STANDARDIZE(Table1[[#This Row],[Colonies of bees]],AVERAGE(Table1[Colonies of bees]),_xlfn.STDEV.P(Table1[Colonies of bees])) -> -0.3914521774 | T21: =STANDARDIZE(Table1[[#This Row],[Broilers and other meat-type chickens]],AVERAGE(Table1[Broilers and other meat-type chickens]),_xlfn.STDEV.P(Table1[Broilers and other meat-type chickens])) -> -0.5571426569 | U21: =STANDARDIZE(Table1[[#This Row],[Turkeys]],AVERAGE(Table1[Turkeys]),_xlfn.STDEV.P(Table1[Turkeys])) -> -0.3193291181 | V21: =STANDARDIZE(Table1[[#This Row],[Horses and Ponies]],AVERAGE(Table1[Horses and Ponies]),_xlfn.STDEV.P(Table1[Horses and Ponies])) -> -0.1605773731 | W21: =STANDARDIZE(Table1[[#This Row],[Population]],AVERAGE(Table1[Population]),_xlfn.STDEV.P(Table1[Population])) -> 0.9537764627 | X21: 1 | Y21: 2.04 | Z21: 3 | AA21: 4 | AB21: 5 | AC21: 6 | AD21: 2 | AE21: 7 | AF21: 8 | AG21: 9 | AH21: 10 | AI21: 11 | AJ21: 12 | AK21: =IF(Table1[[#This Row],[Horses and Ponies]]<_xlfn.PERCENTILE.EXC(Table1[Horses and Ponies],0.2),1,IF(Table1[[#This Row],[Horses and Ponies]]<_xlfn.PERCENTILE.EXC(Table1[Horses and Ponies],0.4),2,IF(Table1[[#This Row],[Horses and Ponies]]<_xlfn.PERCENTILE.EXC(Table1[Horses and Ponies],0.6),3,IF(Table1[[#This Row],[Horses and Ponies]]<_xlfn.PERCENTILE.EXC(Table1[Horses and Ponies],0.8),4,5)))) -> 3 | AL21: 4 | AM21: 5 | AN21: 7 | AO21: 8 | AP21: 9 | AQ21: 2 | AR21: 6 | AS21: 11 | AT21: 10 | AU21: 1 | AV21: 3 | AW21: =(Table1[[#This Row],[Cattle and calves inventory]]-QUARTILE(Table1[Cattle and calves inventory],2))/(QUARTILE(Table1[Cattle and calves inventory],3)-QUARTILE(Table1[Cattle and calves inventory],1)) -> -0.05731909734 | AX21: =Table1[[#This Row],[State]] -> Illinois | AY21: =IF(Table1[[#This Row],[Horses and Ponies]]<_xlfn.PERCENTILE.EXC(Table1[Horses and Ponies],0.2),1,IF(Table1[[#This Row],[Horses and Ponies]]<_xlfn.PERCENTILE.EXC(Table1[Horses and Ponies],0.4),2,IF(Table1[[#This Row],[Horses and Ponies]]<_xlfn.PERCENTILE.EXC(Table1[Horses and Ponies],0.6),3,IF(Table1[[#This Row],[Horses and Ponies]]<_xlfn.PERCENTILE.EXC(Table1[Horses and Ponies],0.8),4,5)))) -> 3
A22: Indiana | B22: 821265 | C22: 182627 | D22: 174141 | E22: 3747352 | F22: 52169 | G22: 38632 | H22: 13017 | I22: 6238623 | J22: 5084794 | K22: 97383 | L22: 6537334 | M22: =STANDARDIZE(Table1[[#This Row],[Cattle and calves inventory]],AVERAGE(Table1[Cattle and calves inventory]),_xlfn.STDEV.P(Table1[Cattle and calves inventory])) -> -0.4778837385 | N22: =STANDARDIZE(Table1[[#This Row],[Beef cows]],AVERAGE(Table1[Beef cows]),_xlfn.STDEV.P(Table1[Beef cows])) -> -0.5466587258 | O22: =STANDARDIZE(Table1[[#This Row],[Milk cows]],AVERAGE(Table1[Milk cows]),_xlfn.STDEV.P(Table1[Milk cows])) -> -0.03367156153 | P22: =STANDARDIZE(Table1[[#This Row],[Hogs and pigs inventory]],AVERAGE(Table1[Hogs and pigs inventory]),_xlfn.STDEV.P(Table1[Hogs and pigs inventory])) -> 0.7385523824 | Q22: =STANDARDIZE(Table1[[#This Row],[Sheep and lambs inventory]],AVERAGE(Table1[Sheep and lambs inventory]),_xlfn.STDEV.P(Table1[Sheep and lambs inventory])) -> -0.3827780032 | R22: =STANDARDIZE(Table1[[#This Row],[All goats]],AVERAGE(Table1[All goats]),_xlfn.STDEV.P(Table1[All goats])) -> -0.1134599657 | S22: =STANDARDIZE(Table1[[#This Row],[Colonies of bees]],AVERAGE(Table1[Colonies of bees]),_xlfn.STDEV.P(Table1[Colonies of bees])) -> -0.3705168731 | T22: =STANDARDIZE(Table1[[#This Row],[Broilers and other meat-type chickens]],AVERAGE(Table1[Broilers and other meat-type chickens]),_xlfn.STDEV.P(Table1[Broilers and other meat-type chickens])) -> -0.4434718985 | U22: =STANDARDIZE(Table1[[#This Row],[Turkeys]],AVERAGE(Table1[Turkeys]),_xlfn.STDEV.P(Table1[Turkeys])) -> 0.7679183726 | V22: =STANDARDIZE(Table1[[#This Row],[Horses and Ponies]],AVERAGE(Table1[Horses and Ponies]),_xlfn.STDEV.P(Table1[Horses and Ponies])) -> 0.4125802377 | W22: =STANDARDIZE(Table1[[#This Row],[Population]],AVERAGE(Table1[Population]),_xlfn.STDEV.P(Table1[Population])) -> 0.03920659807 | X22: 1 | Y22: 2.06 | Z22: 3 | AA22: 4 | AB22: 5 | AC22: 6 | AD22: 2 | AE22: 7 | AF22: 8 | AG22: 9 | AH22: 10 | AI22: 11 | AJ22: 12 | AK22: =IF(Table1[[#This Row],[Horses and Ponies]]<_xlfn.PERCENTILE.EXC(Table1[Horses and Ponies],0.2),1,IF(Table1[[#This Row],[Horses and Ponies]]<_xlfn.PERCENTILE.EXC(Table1[Horses and Ponies],0.4),2,IF(Table1[[#This Row],[Horses and Ponies]]<_xlfn.PERCENTILE.EXC(Table1[Horses and Ponies],0.6),3,IF(Table1[[#This Row],[Horses and Ponies]]<_xlfn.PERCENTILE.EXC(Table1[Horses and Ponies],0.8),4,5)))) -> 4 | AL22: 4 | AM22: 5 | AN22: 7 | AO22: 8 | AP22: 9 | AQ22: 2 | AR22: 6 | AS22: 11 | AT22: 10 | AU22: 1 | AV22: 3 | AW22: =(Table1[[#This Row],[Cattle and calves inventory]]-QUARTILE(Table1[Cattle and calves inventory],2))/(QUARTILE(Table1[Cattle and calves inventory],3)-QUARTILE(Table1[Cattle and calves inventory],1)) -> -0.2144606209 | AX22: =Table1[[#This Row],[State]] -> Indiana | AY22: =IF(Table1[[#This Row],[Horses and Ponies]]<_xlfn.PERCENTILE.EXC(Table1[Horses and Ponies],0.2),1,IF(Table1[[#This Row],[Horses and Ponies]]<_xlfn.PERCENTILE.EXC(Table1[Horses and Ponies],0.4),2,IF(Table1[[#This Row],[Horses and Ponies]]<_xlfn.PERCENTILE.EXC(Table1[Horses and Ponies],0.6),3,IF(Table1[[#This Row],[Horses and Ponies]]<_xlfn.PERCENTILE.EXC(Table1[Horses and Ponies],0.8),4,5)))) -> 4
A23: Iowa | B23: 3893683 | C23: 885568 | D23: 204757 | E23: 20455666 | F23: 165815 | G23: 56239 | H23: 30004 | I23: 1948950 | J23: 4383172 | K23: 62206 | L23: 3074186 | M23: =STANDARDIZE(Table1[[#This Row],[Cattle and calves inventory]],AVERAGE(Table1[Cattle and calves inventory]),_xlfn.STDEV.P(Table1[Cattle and calves inventory])) -> 1.02244088 | N23: =STANDARDIZE(Table1[[#This Row],[Beef cows]],AVERAGE(Table1[Beef cows]),_xlfn.STDEV.P(Table1[Beef cows])) -> 0.4224835104 | O23: =STANDARDIZE(Table1[[#This Row],[Milk cows]],AVERAGE(Table1[Milk cows]),_xlfn.STDEV.P(Table1[Milk cows])) -> 0.0608668584 | P23: =STANDARDIZE(Table1[[#This Row],[Hogs and pigs inventory]],AVERAGE(Table1[Hogs and pigs inventory]),_xlfn.STDEV.P(Table1[Hogs and pigs inventory])) -> 5.823389298 | Q23: =STANDARDIZE(Table1[[#This Row],[Sheep and lambs inventory]],AVERAGE(Table1[Sheep and lambs inventory]),_xlfn.STDEV.P(Table1[Sheep and lambs inventory])) -> 0.4063179851 | R23: =STANDARDIZE(Table1[[#This Row],[All goats]],AVERAGE(Table1[All goats]),_xlfn.STDEV.P(Table1[All goats])) -> 0.03131819623 | S23: =STANDARDIZE(Table1[[#This Row],[Colonies of bees]],AVERAGE(Table1[Colonies of bees]),_xlfn.STDEV.P(Table1[Colonies of bees])) -> -0.2509378502 | T23: =STANDARDIZE(Table1[[#This Row],[Broilers and other meat-type chickens]],AVERAGE(Table1[Broilers and other meat-type chickens]),_xlfn.STDEV.P(Table1[Broilers and other meat-type chickens])) -> -0.5231117145 | U23: =STANDARDIZE(Table1[[#This Row],[Turkeys]],AVERAGE(Table1[Turkeys]),_xlfn.STDEV.P(Table1[Turkeys])) -> 0.5923572141 | V23: =STANDARDIZE(Table1[[#This Row],[Horses and Ponies]],AVERAGE(Table1[Horses and Ponies]),_xlfn.STDEV.P(Table1[Horses and Ponies])) -> -0.1689757712 | W23: =STANDARDIZE(Table1[[#This Row],[Population]],AVERAGE(Table1[Population]),_xlfn.STDEV.P(Table1[Population])) -> -0.4605299556 | X23: 1 | Y23: 1.99 | Z23: 3 | AA23: 4 | AB23: 5 | AC23: 6 | AD23: 2 | AE23: 7 | AF23: 8 | AG23: 9 | AH23: 10 | AI23: 11 | AJ23: 12 | AK23: =IF(Table1[[#This Row],[Horses and Ponies]]<_xlfn.PERCENTILE.EXC(Table1[Horses and Ponies],0.2),1,IF(Table1[[#This Row],[Horses and Ponies]]<_xlfn.PERCENTILE.EXC(Table1[Horses and Ponies],0.4),2,IF(Table1[[#This Row],[Horses and Ponies]]<_xlfn.PERCENTILE.EXC(Table1[Horses and Ponies],0.6),3,IF(Table1[[#This Row],[Horses and Ponies]]<_xlfn.PERCENTILE.EXC(Table1[Horses and Ponies],0.8),4,5)))) -> 3 | AL23: 4 | AM23: 5 | AN23: 7 | AO23: 8 | AP23: 9 | AQ23: 2 | AR23: 6 | AS23: 11 | AT23: 10 | AU23: 1 | AV23: 3 | AW23: =(Table1[[#This Row],[Cattle and calves inventory]]-QUARTILE(Table1[Cattle and calves inventory],2))/(QUARTILE(Table1[Cattle and calves inventory],3)-QUARTILE(Table1[Cattle and calves inventory],1)) -> 1.36145192 | AX23: =Table1[[#This Row],[State]] -> Iowa | AY23: =IF(Table1[[#This Row],[Horses and Ponies]]<_xlfn.PERCENTILE.EXC(Table1[Horses and Ponies],0.2),1,IF(Table1[[#This Row],[Horses and Ponies]]<_xlfn.PERCENTILE.EXC(Table1[Horses and Ponies],0.4),2,IF(Table1[[#This Row],[Horses and Ponies]]<_xlfn.PERCENTILE.EXC(Table1[Horses and Ponies],0.6),3,IF(Table1[[#This Row],[Horses and Ponies]]<_xlfn.PERCENTILE.EXC(Table1[Horses and Ponies],0.8),4,5)))) -> 3
A24: Kansas | B24: 5922187 | C24: 1270538 | D24: 131688 | E24: 1886197 | F24: 62541 | G24: 42315 | H24: 10726 | I24: 17851 | J24: 131247 | K24: 74873 | L24: 2885905 | M24: =STANDARDIZE(Table1[[#This Row],[Cattle and calves inventory]],AVERAGE(Table1[Cattle and calves inventory]),_xlfn.STDEV.P(Table1[Cattle and calves inventory])) -> 2.013000917 | N24: =STANDARDIZE(Table1[[#This Row],[Beef cows]],AVERAGE(Table1[Beef cows]),_xlfn.STDEV.P(Table1[Beef cows])) -> 0.953240269 | O24: =STANDARDIZE(Table1[[#This Row],[Milk cows]],AVERAGE(Table1[Milk cows]),_xlfn.STDEV.P(Table1[Milk cows])) -> -0.1647611729 | P24: =STANDARDIZE(Table1[[#This Row],[Hogs and pigs inventory]],AVERAGE(Table1[Hogs and pigs inventory]),_xlfn.STDEV.P(Table1[Hogs and pigs inventory])) -> 0.1721475584 | Q24: =STANDARDIZE(Table1[[#This Row],[Sheep and lambs inventory]],AVERAGE(Table1[Sheep and lambs inventory]),_xlfn.STDEV.P(Table1[Sheep and lambs inventory])) -> -0.3107604786 | R24: =STANDARDIZE(Table1[[#This Row],[All goats]],AVERAGE(Table1[All goats]),_xlfn.STDEV.P(Table1[All goats])) -> -0.08317553508 | S24: =STANDARDIZE(Table1[[#This Row],[Colonies of bees]],AVERAGE(Table1[Colonies of bees]),_xlfn.STDEV.P(Table1[Colonies of bees])) -> -0.3866442376 | T24: =STANDARDIZE(Table1[[#This Row],[Broilers and other meat-type chickens]],AVERAGE(Table1[Broilers and other meat-type chickens]),_xlfn.STDEV.P(Table1[Broilers and other meat-type chickens])) -> -0.5589634844 | U24: =STANDARDIZE(Table1[[#This Row],[Turkeys]],AVERAGE(Table1[Turkeys]),_xlfn.STDEV.P(Table1[Turkeys])) -> -0.4715673477 | V24: =STANDARDIZE(Table1[[#This Row],[Horses and Ponies]],AVERAGE(Table1[Horses and Ponies]),_xlfn.STDEV.P(Table1[Horses and Ponies])) -> 0.04043861785 | W24: =STANDARDIZE(Table1[[#This Row],[Population]],AVERAGE(Table1[Population]),_xlfn.STDEV.P(Table1[Population])) -> -0.4876991375 | X24: 1 | Y24: 1.98 | Z24: 3 | AA24: 4 | AB24: 5 | AC24: 6 | AD24: 2 | AE24: 7 | AF24: 8 | AG24: 9 | AH24: 10 | AI24: 11 | AJ24: 12 | AK24: =IF(Table1[[#This Row],[Horses and Ponies]]<_xlfn.PERCENTILE.EXC(Table1[Horses and Ponies],0.2),1,IF(Table1[[#This Row],[Horses and Ponies]]<_xlfn.PERCENTILE.EXC(Table1[Horses and Ponies],0.4),2,IF(Table1[[#This Row],[Horses and Ponies]]<_xlfn.PERCENTILE.EXC(Table1[Horses and Ponies],0.6),3,IF(Table1[[#This Row],[Horses and Ponies]]<_xlfn.PERCENTILE.EXC(Table1[Horses and Ponies],0.8),4,5)))) -> 4 | AL24: 4 | AM24: 5 | AN24: 7 | AO24: 8 | AP24: 9 | AQ24: 2 | AR24: 6 | AS24: 11 | AT24: 10 | AU24: 1 | AV24: 3 | AW24: =(Table1[[#This Row],[Cattle and calves inventory]]-QUARTILE(Table1[Cattle and calves inventory],2))/(QUARTILE(Table1[Cattle and calves inventory],3)-QUARTILE(Table1[Cattle and calves inventory],1)) -> 2.401917407 | AX24: =Table1[[#This Row],[State]] -> Kansas | AY24: =IF(Table1[[#This Row],[Horses and Ponies]]<_xlfn.PERCENTILE.EXC(Table1[Horses and Ponies],0.2),1,IF(Table1[[#This Row],[Horses and Ponies]]<_xlfn.PERCENTILE.EXC(Table1[Horses and Ponies],0.4),2,IF(Table1[[#This Row],[Horses and Ponies]]<_xlfn.PERCENTILE.EXC(Table1[Horses and Ponies],0.6),3,IF(Table1[[#This Row],[Horses and Ponies]]<_xlfn.PERCENTILE.EXC(Table1[Horses and Ponies],0.8),4,5)))) -> 4
A25: Kentucky | B25: 2270871 | C25: 985075 | D25: 71783 | E25: 313360 | F25: 54612 | G25: 64118 | H25: 12669 | I25: 51189742 | J25: 34629 | K25: 141842 | L25: 4380415 | M25: =STANDARDIZE(Table1[[#This Row],[Cattle and calves inventory]],AVERAGE(Table1[Cattle and calves inventory]),_xlfn.STDEV.P(Table1[Cattle and calves inventory])) -> 0.2299885524 | N25: =STANDARDIZE(Table1[[#This Row],[Beef cows]],AVERAGE(Table1[Beef cows]),_xlfn.STDEV.P(Table1[Beef cows])) -> 0.5596734545 | O25: =STANDARDIZE(Table1[[#This Row],[Milk cows]],AVERAGE(Table1[Milk cows]),_xlfn.STDEV.P(Table1[Milk cows])) -> -0.3497404009 | P25: =STANDARDIZE(Table1[[#This Row],[Hogs and pigs inventory]],AVERAGE(Table1[Hogs and pigs inventory]),_xlfn.STDEV.P(Table1[Hogs and pigs inventory])) -> -0.3065135226 | Q25: =STANDARDIZE(Table1[[#This Row],[Sheep and lambs inventory]],AVERAGE(Table1[Sheep and lambs inventory]),_xlfn.STDEV.P(Table1[Sheep and lambs inventory])) -> -0.3658151404 | R25: =STANDARDIZE(Table1[[#This Row],[All goats]],AVERAGE(Table1[All goats]),_xlfn.STDEV.P(Table1[All goats])) -> 0.09610533419 | S25: =STANDARDIZE(Table1[[#This Row],[Colonies of bees]],AVERAGE(Table1[Colonies of bees]),_xlfn.STDEV.P(Table1[Colonies of bees])) -> -0.3729665994 | T25: =STANDARDIZE(Table1[[#This Row],[Broilers and other meat-type chickens]],AVERAGE(Table1[Broilers and other meat-type chickens]),_xlfn.STDEV.P(Table1[Broilers and other meat-type chickens])) -> 0.3910669687 | U25: =STANDARDIZE(Table1[[#This Row],[Turkeys]],AVERAGE(Table1[Turkeys]),_xlfn.STDEV.P(Table1[Turkeys])) -> -0.4957432829 | V25: =STANDARDIZE(Table1[[#This Row],[Horses and Ponies]],AVERAGE(Table1[Horses and Ponies]),_xlfn.STDEV.P(Table1[Horses and Ponies])) -> 1.147588868 | W25: =STANDARDIZE(Table1[[#This Row],[Population]],AVERAGE(Table1[Population]),_xlfn.STDEV.P(Table1[Population])) -> -0.27203949 | X25: 1 | Y25: 1.91 | Z25: 3 | AA25: 4 | AB25: 5 | AC25: 6 | AD25: 2 | AE25: 7 | AF25: 8 | AG25: 9 | AH25: 10 | AI25: 11 | AJ25: 12 | AK25: =IF(Table1[[#This Row],[Horses and Ponies]]<_xlfn.PERCENTILE.EXC(Table1[Horses and Ponies],0.2),1,IF(Table1[[#This Row],[Horses and Ponies]]<_xlfn.PERCENTILE.EXC(Table1[Horses and Ponies],0.4),2,IF(Table1[[#This Row],[Horses and Ponies]]<_xlfn.PERCENTILE.EXC(Table1[Horses and Ponies],0.6),3,IF(Table1[[#This Row],[Horses and Ponies]]<_xlfn.PERCENTILE.EXC(Table1[Horses and Ponies],0.8),4,5)))) -> 5 | AL25: 4 | AM25: 5 | AN25: 7 | AO25: 8 | AP25: 9 | AQ25: 2 | AR25: 6 | AS25: 11 | AT25: 10 | AU25: 1 | AV25: 3 | AW25: =(Table1[[#This Row],[Cattle and calves inventory]]-QUARTILE(Table1[Cattle and calves inventory],2))/(QUARTILE(Table1[Cattle and calves inventory],3)-QUARTILE(Table1[Cattle and calves inventory],1)) -> 0.529075016 | AX25: =Table1[[#This Row],[State]] -> Kentucky | AY25: =IF(Table1[[#This Row],[Horses and Ponies]]<_xlfn.PERCENTILE.EXC(Table1[Horses and Ponies],0.2),1,IF(Table1[[#This Row],[Horses and Ponies]]<_xlfn.PERCENTILE.EXC(Table1[Horses and Ponies],0.4),2,IF(Table1[[#This Row],[Horses and Ponies]]<_xlfn.PERCENTILE.EXC(Table1[Horses and Ponies],0.6),3,IF(Table1[[#This Row],[Horses and Ponies]]<_xlfn.PERCENTILE.EXC(Table1[Horses and Ponies],0.8),4,5)))) -> 5
A26: Louisiana | B26: 788967 | C26: 434252 | D26: 16089 | E26: 6806 | F26: 9843 | G26: 18779 | H26: 34905 | I26: 25061453 | J26: 1400 | K26: 59791 | L26: 4601893 | M26: =STANDARDIZE(Table1[[#This Row],[Cattle and calves inventory]],AVERAGE(Table1[Cattle and calves inventory]),_xlfn.STDEV.P(Table1[Cattle and calves inventory])) -> -0.4936555132 | N26: =STANDARDIZE(Table1[[#This Row],[Beef cows]],AVERAGE(Table1[Beef cows]),_xlfn.STDEV.P(Table1[Beef cows])) -> -0.1997442405 | O26: =STANDARDIZE(Table1[[#This Row],[Milk cows]],AVERAGE(Table1[Milk cows]),_xlfn.STDEV.P(Table1[Milk cows])) -> -0.521716582 | P26: =STANDARDIZE(Table1[[#This Row],[Hogs and pigs inventory]],AVERAGE(Table1[Hogs and pigs inventory]),_xlfn.STDEV.P(Table1[Hogs and pigs inventory])) -> -0.3998070228 | Q26: =STANDARDIZE(Table1[[#This Row],[Sheep and lambs inventory]],AVERAGE(Table1[Sheep and lambs inventory]),_xlfn.STDEV.P(Table1[Sheep and lambs inventory])) -> -0.6766667172 | R26: =STANDARDIZE(Table1[[#This Row],[All goats]],AVERAGE(Table1[All goats]),_xlfn.STDEV.P(Table1[All goats])) -> -0.2767064501 | S26: =STANDARDIZE(Table1[[#This Row],[Colonies of bees]],AVERAGE(Table1[Colonies of bees]),_xlfn.STDEV.P(Table1[Colonies of bees])) -> -0.2164375387 | T26: =STANDARDIZE(Table1[[#This Row],[Broilers and other meat-type chickens]],AVERAGE(Table1[Broilers and other meat-type chickens]),_xlfn.STDEV.P(Table1[Broilers and other meat-type chickens])) -> -0.09401712242 | U26: =STANDARDIZE(Table1[[#This Row],[Turkeys]],AVERAGE(Table1[Turkeys]),_xlfn.STDEV.P(Table1[Turkeys])) -> -0.5040579049 | V26: =STANDARDIZE(Table1[[#This Row],[Horses and Ponies]],AVERAGE(Table1[Horses and Ponies]),_xlfn.STDEV.P(Table1[Horses and Ponies])) -> -0.2089012271 | W26: =STANDARDIZE(Table1[[#This Row],[Population]],AVERAGE(Table1[Population]),_xlfn.STDEV.P(Table1[Population])) -> -0.2400799398 | X26: 1 | Y26: 2.03 | Z26: 3 | AA26: 4 | AB26: 5 | AC26: 6 | AD26: 2 | AE26: 7 | AF26: 8 | AG26: 9 | AH26: 10 | AI26: 11 | AJ26: 12 | AK26: =IF(Table1[[#This Row],[Horses and Ponies]]<_xlfn.PERCENTILE.EXC(Table1[Horses and Ponies],0.2),1,IF(Table1[[#This Row],[Horses and Ponies]]<_xlfn.PERCENTILE.EXC(Table1[Horses and Ponies],0.4),2,IF(Table1[[#This Row],[Horses and Ponies]]<_xlfn.PERCENTILE.EXC(Table1[Horses and Ponies],0.6),3,IF(Table1[[#This Row],[Horses and Ponies]]<_xlfn.PERCENTILE.EXC(Table1[Horses and Ponies],0.8),4,5)))) -> 2 | AL26: 4 | AM26: 5 | AN26: 7 | AO26: 8 | AP26: 9 | AQ26: 2 | AR26: 6 | AS26: 11 | AT26: 10 | AU26: 1 | AV26: 3 | AW26: =(Table1[[#This Row],[Cattle and calves inventory]]-QUARTILE(Table1[Cattle and calves inventory],2))/(QUARTILE(Table1[Cattle and calves inventory],3)-QUARTILE(Table1[Cattle and calves inventory],1)) -> -0.2310269941 | AX26: =Table1[[#This Row],[State]] -> Louisiana | AY26: =IF(Table1[[#This Row],[Horses and Ponies]]<_xlfn.PERCENTILE.EXC(Table1[Horses and Ponies],0.2),1,IF(Table1[[#This Row],[Horses and Ponies]]<_xlfn.PERCENTILE.EXC(Table1[Horses and Ponies],0.4),2,IF(Table1[[#This Row],[Horses and Ponies]]<_xlfn.PERCENTILE.EXC(Table1[Horses and Ponies],0.6),3,IF(Table1[[#This Row],[Horses and Ponies]]<_xlfn.PERCENTILE.EXC(Table1[Horses and Ponies],0.8),4,5)))) -> 2
A27: Maine | B27: 86256 | C27: 10505 | D27: 32117 | E27: 8923 | F27: 11925 | G27: 6449 | H27: 14456 | I27: 47252 | J27: 5554 | K27: 11987 | L27: 1329192 | M27: =STANDARDIZE(Table1[[#This Row],[Cattle and calves inventory]],AVERAGE(Table1[Cattle and calves inventory]),_xlfn.STDEV.P(Table1[Cattle and calves inventory])) -> -0.8368036828 | N27: =STANDARDIZE(Table1[[#This Row],[Beef cows]],AVERAGE(Table1[Beef cows]),_xlfn.STDEV.P(Table1[Beef cows])) -> -0.78396271 | O27: =STANDARDIZE(Table1[[#This Row],[Milk cows]],AVERAGE(Table1[Milk cows]),_xlfn.STDEV.P(Table1[Milk cows])) -> -0.4722241011 | P27: =STANDARDIZE(Table1[[#This Row],[Hogs and pigs inventory]],AVERAGE(Table1[Hogs and pigs inventory]),_xlfn.STDEV.P(Table1[Hogs and pigs inventory])) -> -0.3991627567 | Q27: =STANDARDIZE(Table1[[#This Row],[Sheep and lambs inventory]],AVERAGE(Table1[Sheep and lambs inventory]),_xlfn.STDEV.P(Table1[Sheep and lambs inventory])) -> -0.662210442 | R27: =STANDARDIZE(Table1[[#This Row],[All goats]],AVERAGE(Table1[All goats]),_xlfn.STDEV.P(Table1[All goats])) -> -0.3780930995 | S27: =STANDARDIZE(Table1[[#This Row],[Colonies of bees]],AVERAGE(Table1[Colonies of bees]),_xlfn.STDEV.P(Table1[Colonies of bees])) -> -0.3603871142 | T27: =STANDARDIZE(Table1[[#This Row],[Broilers and other meat-type chickens]],AVERAGE(Table1[Broilers and other meat-type chickens]),_xlfn.STDEV.P(Table1[Broilers and other meat-type chickens])) -> -0.5584176408 | U27: =STANDARDIZE(Table1[[#This Row],[Turkeys]],AVERAGE(Table1[Turkeys]),_xlfn.STDEV.P(Table1[Turkeys])) -> -0.5030184833 | V27: =STANDARDIZE(Table1[[#This Row],[Horses and Ponies]],AVERAGE(Table1[Horses and Ponies]),_xlfn.STDEV.P(Table1[Horses and Ponies])) -> -0.999210334 | W27: =STANDARDIZE(Table1[[#This Row],[Population]],AVERAGE(Table1[Population]),_xlfn.STDEV.P(Table1[Population])) -> -0.712334755 | X27: 1 | Y27: 2.01 | Z27: 3 | AA27: 4 | AB27: 5 | AC27: 6 | AD27: 2 | AE27: 7 | AF27: 8 | AG27: 9 | AH27: 10 | AI27: 11 | AJ27: 12 | AK27: =IF(Table1[[#This Row],[Horses and Ponies]]<_xlfn.PERCENTILE.EXC(Table1[Horses and Ponies],0.2),1,IF(Table1[[#This Row],[Horses and Ponies]]<_xlfn.PERCENTILE.EXC(Table1[Horses and Ponies],0.4),2,IF(Table1[[#This Row],[Horses and Ponies]]<_xlfn.PERCENTILE.EXC(Table1[Horses and Ponies],0.6),3,IF(Table1[[#This Row],[Horses and Ponies]]<_xlfn.PERCENTILE.EXC(Table1[Horses and Ponies],0.8),4,5)))) -> 1 | AL27: 4 | AM27: 5 | AN27: 7 | AO27: 8 | AP27: 9 | AQ27: 2 | AR27: 6 | AS27: 11 | AT27: 10 | AU27: 1 | AV27: 3 | AW27: =(Table1[[#This Row],[Cattle and calves inventory]]-QUARTILE(Table1[Cattle and calves inventory],2))/(QUARTILE(Table1[Cattle and calves inventory],3)-QUARTILE(Table1[Cattle and calves inventory],1)) -> -0.5914633271 | AX27: =Table1[[#This Row],[State]] -> Maine | AY27: =IF(Table1[[#This Row],[Horses and Ponies]]<_xlfn.PERCENTILE.EXC(Table1[Horses and Ponies],0.2),1,IF(Table1[[#This Row],[Horses and Ponies]]<_xlfn.PERCENTILE.EXC(Table1[Horses and Ponies],0.4),2,IF(Table1[[#This Row],[Horses and Ponies]]<_xlfn.PERCENTILE.EXC(Table1[Horses and Ponies],0.6),3,IF(Table1[[#This Row],[Horses and Ponies]]<_xlfn.PERCENTILE.EXC(Table1[Horses and Ponies],0.8),4,5)))) -> 1
A28: Maryland | B28: 194524 | C28: 39188 | D28: 50923 | E28: 19869 | F28: 19265 | G28: 10745 | H28: 7892 | I28: 64192426 | J28: 77375 | K28: 28662 | L28: 5884563 | M28: =STANDARDIZE(Table1[[#This Row],[Cattle and calves inventory]],AVERAGE(Table1[Cattle and calves inventory]),_xlfn.STDEV.P(Table1[Cattle and calves inventory])) -> -0.7839342015 | N28: =STANDARDIZE(Table1[[#This Row],[Beef cows]],AVERAGE(Table1[Beef cows]),_xlfn.STDEV.P(Table1[Beef cows])) -> -0.7444175608 | O28: =STANDARDIZE(Table1[[#This Row],[Milk cows]],AVERAGE(Table1[Milk cows]),_xlfn.STDEV.P(Table1[Milk cows])) -> -0.4141534999 | P28: =STANDARDIZE(Table1[[#This Row],[Hogs and pigs inventory]],AVERAGE(Table1[Hogs and pigs inventory]),_xlfn.STDEV.P(Table1[Hogs and pigs inventory])) -> -0.3958315633 | Q28: =STANDARDIZE(Table1[[#This Row],[Sheep and lambs inventory]],AVERAGE(Table1[Sheep and lambs inventory]),_xlfn.STDEV.P(Table1[Sheep and lambs inventory])) -> -0.6112454758 | R28: =STANDARDIZE(Table1[[#This Row],[All goats]],AVERAGE(Table1[All goats]),_xlfn.STDEV.P(Table1[All goats])) -> -0.3427681161 | S28: =STANDARDIZE(Table1[[#This Row],[Colonies of bees]],AVERAGE(Table1[Colonies of bees]),_xlfn.STDEV.P(Table1[Colonies of bees])) -> -0.4065940199 | T28: =STANDARDIZE(Table1[[#This Row],[Broilers and other meat-type chickens]],AVERAGE(Table1[Broilers and other meat-type chickens]),_xlfn.STDEV.P(Table1[Broilers and other meat-type chickens])) -> 0.6324679709 | U28: =STANDARDIZE(Table1[[#This Row],[Turkeys]],AVERAGE(Table1[Turkeys]),_xlfn.STDEV.P(Table1[Turkeys])) -> -0.4850472995 | V28: =STANDARDIZE(Table1[[#This Row],[Horses and Ponies]],AVERAGE(Table1[Horses and Ponies]),_xlfn.STDEV.P(Table1[Horses and Ponies])) -> -0.7235345671 | W28: =STANDARDIZE(Table1[[#This Row],[Population]],AVERAGE(Table1[Population]),_xlfn.STDEV.P(Table1[Population])) -> -0.05498906721 | X28: 1 | Y28: 2.04 | Z28: 3 | AA28: 4 | AB28: 5 | AC28: 6 | AD28: 2 | AE28: 7 | AF28: 8 | AG28: 9 | AH28: 10 | AI28: 11 | AJ28: 12 | AK28: =IF(Table1[[#This Row],[Horses and Ponies]]<_xlfn.PERCENTILE.EXC(Table1[Horses and Ponies],0.2),1,IF(Table1[[#This Row],[Horses and Ponies]]<_xlfn.PERCENTILE.EXC(Table1[Horses and Ponies],0.4),2,IF(Table1[[#This Row],[Horses and Ponies]]<_xlfn.PERCENTILE.EXC(Table1[Horses and Ponies],0.6),3,IF(Table1[[#This Row],[Horses and Ponies]]<_xlfn.PERCENTILE.EXC(Table1[Horses and Ponies],0.8),4,5)))) -> 2 | AL28: 4 | AM28: 5 | AN28: 7 | AO28: 8 | AP28: 9 | AQ28: 2 | AR28: 6 | AS28: 11 | AT28: 10 | AU28: 1 | AV28: 3 | AW28: =(Table1[[#This Row],[Cattle and calves inventory]]-QUARTILE(Table1[Cattle and calves inventory],2))/(QUARTILE(Table1[Cattle and calves inventory],3)-QUARTILE(Table1[Cattle and calves inventory],1)) -> -0.5359302261 | AX28: =Table1[[#This Row],[State]] -> Maryland | AY28: =IF(Table1[[#This Row],[Horses and Ponies]]<_xlfn.PERCENTILE.EXC(Table1[Horses and Ponies],0.2),1,IF(Table1[[#This Row],[Horses and Ponies]]<_xlfn.PERCENTILE.EXC(Table1[Horses and Ponies],0.4),2,IF(Table1[[#This Row],[Horses and Ponies]]<_xlfn.PERCENTILE.EXC(Table1[Horses and Ponies],0.6),3,IF(Table1[[#This Row],[Horses and Ponies]]<_xlfn.PERCENTILE.EXC(Table1[Horses and Ponies],0.8),4,5)))) -> 2
A29: Massachusetts | B29: 35703 | C29: 6240 | D29: 12500 | E29: 11151 | F29: 12504 | G29: 8599 | H29: 4666 | I29: 18137 | J29: 12142 | K29: 20337 | L29: 6646144 | M29: =STANDARDIZE(Table1[[#This Row],[Cattle and calves inventory]],AVERAGE(Table1[Cattle and calves inventory]),_xlfn.STDEV.P(Table1[Cattle and calves inventory])) -> -0.8614897478 | N29: =STANDARDIZE(Table1[[#This Row],[Beef cows]],AVERAGE(Table1[Beef cows]),_xlfn.STDEV.P(Table1[Beef cows])) -> -0.7898428502 | O29: =STANDARDIZE(Table1[[#This Row],[Milk cows]],AVERAGE(Table1[Milk cows]),_xlfn.STDEV.P(Table1[Milk cows])) -> -0.5327989699 | P29: =STANDARDIZE(Table1[[#This Row],[Hogs and pigs inventory]],AVERAGE(Table1[Hogs and pigs inventory]),_xlfn.STDEV.P(Table1[Hogs and pigs inventory])) -> -0.3984847101 | Q29: =STANDARDIZE(Table1[[#This Row],[Sheep and lambs inventory]],AVERAGE(Table1[Sheep and lambs inventory]),_xlfn.STDEV.P(Table1[Sheep and lambs inventory])) -> -0.6581901811 | R29: =STANDARDIZE(Table1[[#This Row],[All goats]],AVERAGE(Table1[All goats]),_xlfn.STDEV.P(Table1[All goats])) -> -0.3604141623 | S29: =STANDARDIZE(Table1[[#This Row],[Colonies of bees]],AVERAGE(Table1[Colonies of bees]),_xlfn.STDEV.P(Table1[Colonies of bees])) -> -0.4293032639 | T29: =STANDARDIZE(Table1[[#This Row],[Broilers and other meat-type chickens]],AVERAGE(Table1[Broilers and other meat-type chickens]),_xlfn.STDEV.P(Table1[Broilers and other meat-type chickens])) -> -0.5589581746 | U29: =STANDARDIZE(Table1[[#This Row],[Turkeys]],AVERAGE(Table1[Turkeys]),_xlfn.STDEV.P(Table1[Turkeys])) -> -0.5013700217 | V29: =STANDARDIZE(Table1[[#This Row],[Horses and Ponies]],AVERAGE(Table1[Horses and Ponies]),_xlfn.STDEV.P(Table1[Horses and Ponies])) -> -0.8611657971 | W29: =STANDARDIZE(Table1[[#This Row],[Population]],AVERAGE(Table1[Population]),_xlfn.STDEV.P(Table1[Population])) -> 0.05490801609 | X29: 1 | Y29: 2.03 | Z29: 3 | AA29: 4 | AB29: 5 | AC29: 6 | AD29: 2 | AE29: 7 | AF29: 8 | AG29: 9 | AH29: 10 | AI29: 11 | AJ29: 12 | AK29: =IF(Table1[[#This Row],[Horses and Ponies]]<_xlfn.PERCENTILE.EXC(Table1[Horses and Ponies],0.2),1,IF(Table1[[#This Row],[Horses and Ponies]]<_xlfn.PERCENTILE.EXC(Table1[Horses and Ponies],0.4),2,IF(Table1[[#This Row],[Horses and Ponies]]<_xlfn.PERCENTILE.EXC(Table1[Horses and Ponies],0.6),3,IF(Table1[[#This Row],[Horses and Ponies]]<_xlfn.PERCENTILE.EXC(Table1[Horses and Ponies],0.8),4,5)))) -> 1 | AL29: 4 | AM29: 5 | AN29: 7 | AO29: 8 | AP29: 9 | AQ29: 2 | AR29: 6 | AS29: 11 | AT29: 10 | AU29: 1 | AV29: 3 | AW29: =(Table1[[#This Row],[Cattle and calves inventory]]-QUARTILE(Table1[Cattle and calves inventory],2))/(QUARTILE(Table1[Cattle and calves inventory],3)-QUARTILE(Table1[Cattle and calves inventory],1)) -> -0.6173931018 | AX29: =Table1[[#This Row],[State]] -> Massachusetts | AY29: =IF(Table1[[#This Row],[Horses and Ponies]]<_xlfn.PERCENTILE.EXC(Table1[Horses and Ponies],0.2),1,IF(Table1[[#This Row],[Horses and Ponies]]<_xlfn.PERCENTILE.EXC(Table1[Horses and Ponies],0.4),2,IF(Table1[[#This Row],[Horses and Ponies]]<_xlfn.PERCENTILE.EXC(Table1[Horses and Ponies],0.6),3,IF(Table1[[#This Row],[Horses and Ponies]]<_xlfn.PERCENTILE.EXC(Table1[Horses and Ponies],0.8),4,5)))) -> 1
A30: Michigan | B30: 1130477 | C30: 108126 | D30: 376255 | E30: 1099478 | F30: 86503 | G30: 27059 | H30: 78995 | I30: 1125601 | J30: 2190486 | K30: 87998 | L30: 9883360 | M30: =STANDARDIZE(Table1[[#This Row],[Cattle and calves inventory]],AVERAGE(Table1[Cattle and calves inventory]),_xlfn.STDEV.P(Table1[Cattle and calves inventory])) -> -0.3268891877 | N30: =STANDARDIZE(Table1[[#This Row],[Beef cows]],AVERAGE(Table1[Beef cows]),_xlfn.STDEV.P(Table1[Beef cows])) -> -0.6493729874 | O30: =STANDARDIZE(Table1[[#This Row],[Milk cows]],AVERAGE(Table1[Milk cows]),_xlfn.STDEV.P(Table1[Milk cows])) -> 0.5904314632 | P30: =STANDARDIZE(Table1[[#This Row],[Hogs and pigs inventory]],AVERAGE(Table1[Hogs and pigs inventory]),_xlfn.STDEV.P(Table1[Hogs and pigs inventory])) -> -0.06727443317 | Q30: =STANDARDIZE(Table1[[#This Row],[Sheep and lambs inventory]],AVERAGE(Table1[Sheep and lambs inventory]),_xlfn.STDEV.P(Table1[Sheep and lambs inventory])) -> -0.1443813886 | R30: =STANDARDIZE(Table1[[#This Row],[All goats]],AVERAGE(Table1[All goats]),_xlfn.STDEV.P(Table1[All goats])) -> -0.2086219847 | S30: =STANDARDIZE(Table1[[#This Row],[Colonies of bees]],AVERAGE(Table1[Colonies of bees]),_xlfn.STDEV.P(Table1[Colonies of bees])) -> 0.09393151528 | T30: =STANDARDIZE(Table1[[#This Row],[Broilers and other meat-type chickens]],AVERAGE(Table1[Broilers and other meat-type chickens]),_xlfn.STDEV.P(Table1[Broilers and other meat-type chickens])) -> -0.5383975797 | U30: =STANDARDIZE(Table1[[#This Row],[Turkeys]],AVERAGE(Table1[Turkeys]),_xlfn.STDEV.P(Table1[Turkeys])) -> 0.04369925525 | V30: =STANDARDIZE(Table1[[#This Row],[Horses and Ponies]],AVERAGE(Table1[Horses and Ponies]),_xlfn.STDEV.P(Table1[Horses and Ponies])) -> 0.2574247911 | W30: =STANDARDIZE(Table1[[#This Row],[Population]],AVERAGE(Table1[Population]),_xlfn.STDEV.P(Table1[Population])) -> 0.5220423018 | X30: 1 | Y30: 1.9 | Z30: 3 | AA30: 4 | AB30: 5 | AC30: 6 | AD30: 2 | AE30: 7 | AF30: 8 | AG30: 9 | AH30: 10 | AI30: 11 | AJ30: 12 | AK30: =IF(Table1[[#This Row],[Horses and Ponies]]<_xlfn.PERCENTILE.EXC(Table1[Horses and Ponies],0.2),1,IF(Table1[[#This Row],[Horses and Ponies]]<_xlfn.PERCENTILE.EXC(Table1[Horses and Ponies],0.4),2,IF(Table1[[#This Row],[Horses and Ponies]]<_xlfn.PERCENTILE.EXC(Table1[Horses and Ponies],0.6),3,IF(Table1[[#This Row],[Horses and Ponies]]<_xlfn.PERCENTILE.EXC(Table1[Horses and Ponies],0.8),4,5)))) -> 4 | AL30: 4 | AM30: 5 | AN30: 7 | AO30: 8 | AP30: 9 | AQ30: 2 | AR30: 6 | AS30: 11 | AT30: 10 | AU30: 1 | AV30: 3 | AW30: =(Table1[[#This Row],[Cattle and calves inventory]]-QUARTILE(Table1[Cattle and calves inventory],2))/(QUARTILE(Table1[Cattle and calves inventory],3)-QUARTILE(Table1[Cattle and calves inventory],1)) -> -0.05585880678 | AX30: =Table1[[#This Row],[State]] -> Michigan | AY30: =IF(Table1[[#This Row],[Horses and Ponies]]<_xlfn.PERCENTILE.EXC(Table1[Horses and Ponies],0.2),1,IF(Table1[[#This Row],[Horses and Ponies]]<_xlfn.PERCENTILE.EXC(Table1[Horses and Ponies],0.4),2,IF(Table1[[#This Row],[Horses and Ponies]]<_xlfn.PERCENTILE.EXC(Table1[Horses and Ponies],0.6),3,IF(Table1[[#This Row],[Horses and Ponies]]<_xlfn.PERCENTILE.EXC(Table1[Horses and Ponies],0.8),4,5)))) -> 4
A31: Minnesota | B31: 2412684 | C31: 357826 | D31: 463312 | E31: 7606785 | F31: 126506 | G31: 33721 | H31: 101424 | I31: 7765172 | J31: 19449992 | K31: 66384 | L31: 5379139 | M31: =STANDARDIZE(Table1[[#This Row],[Cattle and calves inventory]],AVERAGE(Table1[Cattle and calves inventory]),_xlfn.STDEV.P(Table1[Cattle and calves inventory])) -> 0.299238744 | N31: =STANDARDIZE(Table1[[#This Row],[Beef cows]],AVERAGE(Table1[Beef cows]),_xlfn.STDEV.P(Table1[Beef cows])) -> -0.3051124927 | O31: =STANDARDIZE(Table1[[#This Row],[Milk cows]],AVERAGE(Table1[Milk cows]),_xlfn.STDEV.P(Table1[Milk cows])) -> 0.8592527078 | P31: =STANDARDIZE(Table1[[#This Row],[Hogs and pigs inventory]],AVERAGE(Table1[Hogs and pigs inventory]),_xlfn.STDEV.P(Table1[Hogs and pigs inventory])) -> 1.913092638 | Q31: =STANDARDIZE(Table1[[#This Row],[Sheep and lambs inventory]],AVERAGE(Table1[Sheep and lambs inventory]),_xlfn.STDEV.P(Table1[Sheep and lambs inventory])) -> 0.1333776774 | R31: =STANDARDIZE(Table1[[#This Row],[All goats]],AVERAGE(Table1[All goats]),_xlfn.STDEV.P(Table1[All goats])) -> -0.1538419475 | S31: =STANDARDIZE(Table1[[#This Row],[Colonies of bees]],AVERAGE(Table1[Colonies of bees]),_xlfn.STDEV.P(Table1[Colonies of bees])) -> 0.2518191885 | T31: =STANDARDIZE(Table1[[#This Row],[Broilers and other meat-type chickens]],AVERAGE(Table1[Broilers and other meat-type chickens]),_xlfn.STDEV.P(Table1[Broilers and other meat-type chickens])) -> -0.4151307915 | U31: =STANDARDIZE(Table1[[#This Row],[Turkeys]],AVERAGE(Table1[Turkeys]),_xlfn.STDEV.P(Table1[Turkeys])) -> 4.362404867 | V31: =STANDARDIZE(Table1[[#This Row],[Horses and Ponies]],AVERAGE(Table1[Horses and Ponies]),_xlfn.STDEV.P(Table1[Horses and Ponies])) -> -0.09990390595 | W31: =STANDARDIZE(Table1[[#This Row],[Population]],AVERAGE(Table1[Population]),_xlfn.STDEV.P(Table1[Population])) -> -0.1279223776 | X31: 1 | Y31: 1.98 | Z31: 3 | AA31: 4 | AB31: 5 | AC31: 6 | AD31: 2 | AE31: 7 | AF31: 8 | AG31: 9 | AH31: 10 | AI31: 11 | AJ31: 12 | AK31: =IF(Table1[[#This Row],[Horses and Ponies]]<_xlfn.PERCENTILE.EXC(Table1[Horses and Ponies],0.2),1,IF(Table1[[#This Row],[Horses and Ponies]]<_xlfn.PERCENTILE.EXC(Table1[Horses and Ponies],0.4),2,IF(Table1[[#This Row],[Horses and Ponies]]<_xlfn.PERCENTILE.EXC(Table1[Horses and Ponies],0.6),3,IF(Table1[[#This Row],[Horses and Ponies]]<_xlfn.PERCENTILE.EXC(Table1[Horses and Ponies],0.8),4,5)))) -> 3 | AL31: 4 | AM31: 5 | AN31: 7 | AO31: 8 | AP31: 9 | AQ31: 2 | AR31: 6 | AS31: 11 | AT31: 10 | AU31: 1 | AV31: 3 | AW31: =(Table1[[#This Row],[Cattle and calves inventory]]-QUARTILE(Table1[Cattle and calves inventory],2))/(QUARTILE(Table1[Cattle and calves inventory],3)-QUARTILE(Table1[Cattle and calves inventory],1)) -> 0.6018141046 | AX31: =Table1[[#This Row],[State]] -> Minnesota | AY31: =IF(Table1[[#This Row],[Horses and Ponies]]<_xlfn.PERCENTILE.EXC(Table1[Horses and Ponies],0.2),1,IF(Table1[[#This Row],[Horses and Ponies]]<_xlfn.PERCENTILE.EXC(Table1[Horses and Ponies],0.4),2,IF(Table1[[#This Row],[Horses and Ponies]]<_xlfn.PERCENTILE.EXC(Table1[Horses and Ponies],0.6),3,IF(Table1[[#This Row],[Horses and Ponies]]<_xlfn.PERCENTILE.EXC(Table1[Horses and Ponies],0.8),4,5)))) -> 3
A32: Mississippi | B32: 921508 | C32: 495381 | D32: 14480 | E32: 401898 | F32: 12984 | G32: 24528 | H32: 36097 | I32: 134479892 | J32: 1548 | K32: 58697 | L32: 2984926 | M32: =STANDARDIZE(Table1[[#This Row],[Cattle and calves inventory]],AVERAGE(Table1[Cattle and calves inventory]),_xlfn.STDEV.P(Table1[Cattle and calves inventory])) -> -0.4289330291 | N32: =STANDARDIZE(Table1[[#This Row],[Beef cows]],AVERAGE(Table1[Beef cows]),_xlfn.STDEV.P(Table1[Beef cows])) -> -0.1154659074 | O32: =STANDARDIZE(Table1[[#This Row],[Milk cows]],AVERAGE(Table1[Milk cows]),_xlfn.STDEV.P(Table1[Milk cows])) -> -0.5266849749 | P32: =STANDARDIZE(Table1[[#This Row],[Hogs and pigs inventory]],AVERAGE(Table1[Hogs and pigs inventory]),_xlfn.STDEV.P(Table1[Hogs and pigs inventory])) -> -0.2795687757 | Q32: =STANDARDIZE(Table1[[#This Row],[Sheep and lambs inventory]],AVERAGE(Table1[Sheep and lambs inventory]),_xlfn.STDEV.P(Table1[Sheep and lambs inventory])) -> -0.6548573222 | R32: =STANDARDIZE(Table1[[#This Row],[All goats]],AVERAGE(Table1[All goats]),_xlfn.STDEV.P(Table1[All goats])) -> -0.2294337941 | S32: =STANDARDIZE(Table1[[#This Row],[Colonies of bees]],AVERAGE(Table1[Colonies of bees]),_xlfn.STDEV.P(Table1[Colonies of bees])) -> -0.2080465223 | T32: =STANDARDIZE(Table1[[#This Row],[Broilers and other meat-type chickens]],AVERAGE(Table1[Broilers and other meat-type chickens]),_xlfn.STDEV.P(Table1[Broilers and other meat-type chickens])) -> 1.93738815 | U32: =STANDARDIZE(Table1[[#This Row],[Turkeys]],AVERAGE(Table1[Turkeys]),_xlfn.STDEV.P(Table1[Turkeys])) -> -0.5040208721 | V32: =STANDARDIZE(Table1[[#This Row],[Horses and Ponies]],AVERAGE(Table1[Horses and Ponies]),_xlfn.STDEV.P(Table1[Horses and Ponies])) -> -0.2269875413 | W32: =STANDARDIZE(Table1[[#This Row],[Population]],AVERAGE(Table1[Population]),_xlfn.STDEV.P(Table1[Population])) -> -0.4734102843 | X32: 1 | Y32: 2.06 | Z32: 3 | AA32: 4 | AB32: 5 | AC32: 6 | AD32: 2 | AE32: 7 | AF32: 8 | AG32: 9 | AH32: 10 | AI32: 11 | AJ32: 12 | AK32: =IF(Table1[[#This Row],[Horses and Ponies]]<_xlfn.PERCENTILE.EXC(Table1[Horses and Ponies],0.2),1,IF(Table1[[#This Row],[Horses and Ponies]]<_xlfn.PERCENTILE.EXC(Table1[Horses and Ponies],0.4),2,IF(Table1[[#This Row],[Horses and Ponies]]<_xlfn.PERCENTILE.EXC(Table1[Horses and Ponies],0.6),3,IF(Table1[[#This Row],[Horses and Ponies]]<_xlfn.PERCENTILE.EXC(Table1[Horses and Ponies],0.8),4,5)))) -> 2 | AL32: 4 | AM32: 5 | AN32: 7 | AO32: 8 | AP32: 9 | AQ32: 2 | AR32: 6 | AS32: 11 | AT32: 10 | AU32: 1 | AV32: 3 | AW32: =(Table1[[#This Row],[Cattle and calves inventory]]-QUARTILE(Table1[Cattle and calves inventory],2))/(QUARTILE(Table1[Cattle and calves inventory],3)-QUARTILE(Table1[Cattle and calves inventory],1)) -> -0.1630437236 | AX32: =Table1[[#This Row],[State]] -> Mississippi | AY32: =IF(Table1[[#This Row],[Horses and Ponies]]<_xlfn.PERCENTILE.EXC(Table1[Horses and Ponies],0.2),1,IF(Table1[[#This Row],[Horses and Ponies]]<_xlfn.PERCENTILE.EXC(Table1[Horses and Ponies],0.4),2,IF(Table1[[#This Row],[Horses and Ponies]]<_xlfn.PERCENTILE.EXC(Table1[Horses and Ponies],0.6),3,IF(Table1[[#This Row],[Horses and Ponies]]<_xlfn.PERCENTILE.EXC(Table1[Horses and Ponies],0.8),4,5)))) -> 2
A33: Missouri | B33: 3703120 | C33: 1683731 | D33: 92952 | E33: 2774597 | F33: 91967 | G33: 103669 | H33: 14561 | I33: 46880714 | J33: 7572505 | K33: 117295 | L33: 6021988 | M33: =STANDARDIZE(Table1[[#This Row],[Cattle and calves inventory]],AVERAGE(Table1[Cattle and calves inventory]),_xlfn.STDEV.P(Table1[Cattle and calves inventory])) -> 0.9293850649 | N33: =STANDARDIZE(Table1[[#This Row],[Beef cows]],AVERAGE(Table1[Beef cows]),_xlfn.STDEV.P(Table1[Beef cows])) -> 1.522907977 | O33: =STANDARDIZE(Table1[[#This Row],[Milk cows]],AVERAGE(Table1[Milk cows]),_xlfn.STDEV.P(Table1[Milk cows])) -> -0.2843731481 | P33: =STANDARDIZE(Table1[[#This Row],[Hogs and pigs inventory]],AVERAGE(Table1[Hogs and pigs inventory]),_xlfn.STDEV.P(Table1[Hogs and pigs inventory])) -> 0.4425141026 | Q33: =STANDARDIZE(Table1[[#This Row],[Sheep and lambs inventory]],AVERAGE(Table1[Sheep and lambs inventory]),_xlfn.STDEV.P(Table1[Sheep and lambs inventory])) -> -0.1064423456 | R33: =STANDARDIZE(Table1[[#This Row],[All goats]],AVERAGE(Table1[All goats]),_xlfn.STDEV.P(Table1[All goats])) -> 0.4213237748 | S33: =STANDARDIZE(Table1[[#This Row],[Colonies of bees]],AVERAGE(Table1[Colonies of bees]),_xlfn.STDEV.P(Table1[Colonies of bees])) -> -0.3596479727 | T33: =STANDARDIZE(Table1[[#This Row],[Broilers and other meat-type chickens]],AVERAGE(Table1[Broilers and other meat-type chickens]),_xlfn.STDEV.P(Table1[Broilers and other meat-type chickens])) -> 0.3110678179 | U33: =STANDARDIZE(Table1[[#This Row],[Turkeys]],AVERAGE(Table1[Turkeys]),_xlfn.STDEV.P(Table1[Turkeys])) -> 1.390398034 | V33: =STANDARDIZE(Table1[[#This Row],[Horses and Ponies]],AVERAGE(Table1[Horses and Ponies]),_xlfn.STDEV.P(Table1[Horses and Ponies])) -> 0.7417709944 | W33: =STANDARDIZE(Table1[[#This Row],[Population]],AVERAGE(Table1[Population]),_xlfn.STDEV.P(Table1[Population])) -> -0.03515846919 | X33: 1 | Y33: 1.97 | Z33: 3 | AA33: 4 | AB33: 5 | AC33: 6 | AD33: 2 | AE33: 7 | AF33: 8 | AG33: 9 | AH33: 10 | AI33: 11 | AJ33: 12 | AK33: =IF(Table1[[#This Row],[Horses and Ponies]]<_xlfn.PERCENTILE.EXC(Table1[Horses and Ponies],0.2),1,IF(Table1[[#This Row],[Horses and Ponies]]<_xlfn.PERCENTILE.EXC(Table1[Horses and Ponies],0.4),2,IF(Table1[[#This Row],[Horses and Ponies]]<_xlfn.PERCENTILE.EXC(Table1[Horses and Ponies],0.6),3,IF(Table1[[#This Row],[Horses and Ponies]]<_xlfn.PERCENTILE.EXC(Table1[Horses and Ponies],0.8),4,5)))) -> 5 | AL33: 4 | AM33: 5 | AN33: 7 | AO33: 8 | AP33: 9 | AQ33: 2 | AR33: 6 | AS33: 11 | AT33: 10 | AU33: 1 | AV33: 3 | AW33: =(Table1[[#This Row],[Cattle and calves inventory]]-QUARTILE(Table1[Cattle and calves inventory],2))/(QUARTILE(Table1[Cattle and calves inventory],3)-QUARTILE(Table1[Cattle and calves inventory],1)) -> 1.263707856 | AX33: =Table1[[#This Row],[State]] -> Missouri | AY33: =IF(Table1[[#This Row],[Horses and Ponies]]<_xlfn.PERCENTILE.EXC(Table1[Horses and Ponies],0.2),1,IF(Table1[[#This Row],[Horses and Ponies]]<_xlfn.PERCENTILE.EXC(Table1[Horses and Ponies],0.4),2,IF(Table1[[#This Row],[Horses and Ponies]]<_xlfn.PERCENTILE.EXC(Table1[Horses and Ponies],0.6),3,IF(Table1[[#This Row],[Horses and Ponies]]<_xlfn.PERCENTILE.EXC(Table1[Horses and Ponies],0.8),4,5)))) -> 5
A34: Montana | B34: 2633740 | C34: 1439653 | D34: 13947 | E34: 173953 | F34: 236646 | G34: 10323 | H34: 119002 | I34: 89862 | J34: 20206 | K34: 97921 | L34: 1005141 | M34: =STANDARDIZE(Table1[[#This Row],[Cattle and calves inventory]],AVERAGE(Table1[Cattle and calves inventory]),_xlfn.STDEV.P(Table1[Cattle and calves inventory])) -> 0.407184915 | N34: =STANDARDIZE(Table1[[#This Row],[Beef cows]],AVERAGE(Table1[Beef cows]),_xlfn.STDEV.P(Table1[Beef cows])) -> 1.186398513 | O34: =STANDARDIZE(Table1[[#This Row],[Milk cows]],AVERAGE(Table1[Milk cows]),_xlfn.STDEV.P(Table1[Milk cows])) -> -0.528330813 | P34: =STANDARDIZE(Table1[[#This Row],[Hogs and pigs inventory]],AVERAGE(Table1[Hogs and pigs inventory]),_xlfn.STDEV.P(Table1[Hogs and pigs inventory])) -> -0.3489392191 | Q34: =STANDARDIZE(Table1[[#This Row],[Sheep and lambs inventory]],AVERAGE(Table1[Sheep and lambs inventory]),_xlfn.STDEV.P(Table1[Sheep and lambs inventory])) -> 0.8981299093 | R34: =STANDARDIZE(Table1[[#This Row],[All goats]],AVERAGE(Table1[All goats]),_xlfn.STDEV.P(Table1[All goats])) -> -0.3462381214 | S34: =STANDARDIZE(Table1[[#This Row],[Colonies of bees]],AVERAGE(Table1[Colonies of bees]),_xlfn.STDEV.P(Table1[Colonies of bees])) -> 0.3755585224 | T34: =STANDARDIZE(Table1[[#This Row],[Broilers and other meat-type chickens]],AVERAGE(Table1[Broilers and other meat-type chickens]),_xlfn.STDEV.P(Table1[Broilers and other meat-type chickens])) -> -0.557626566 | U34: =STANDARDIZE(Table1[[#This Row],[Turkeys]],AVERAGE(Table1[Turkeys]),_xlfn.STDEV.P(Table1[Turkeys])) -> -0.4993522327 | V34: =STANDARDIZE(Table1[[#This Row],[Horses and Ponies]],AVERAGE(Table1[Horses and Ponies]),_xlfn.STDEV.P(Table1[Horses and Ponies])) -> 0.4214746043 | W34: =STANDARDIZE(Table1[[#This Row],[Population]],AVERAGE(Table1[Population]),_xlfn.STDEV.P(Table1[Population])) -> -0.7590957164 | X34: 1 | Y34: 2.1 | Z34: 3 | AA34: 4 | AB34: 5 | AC34: 6 | AD34: 2 | AE34: 7 | AF34: 8 | AG34: 9 | AH34: 10 | AI34: 11 | AJ34: 12 | AK34: =IF(Table1[[#This Row],[Horses and Ponies]]<_xlfn.PERCENTILE.EXC(Table1[Horses and Ponies],0.2),1,IF(Table1[[#This Row],[Horses and Ponies]]<_xlfn.PERCENTILE.EXC(Table1[Horses and Ponies],0.4),2,IF(Table1[[#This Row],[Horses and Ponies]]<_xlfn.PERCENTILE.EXC(Table1[Horses and Ponies],0.6),3,IF(Table1[[#This Row],[Horses and Ponies]]<_xlfn.PERCENTILE.EXC(Table1[Horses and Ponies],0.8),4,5)))) -> 4 | AL34: 4 | AM34: 5 | AN34: 7 | AO34: 8 | AP34: 9 | AQ34: 2 | AR34: 6 | AS34: 11 | AT34: 10 | AU34: 1 | AV34: 3 | AW34: =(Table1[[#This Row],[Cattle and calves inventory]]-QUARTILE(Table1[Cattle and calves inventory],2))/(QUARTILE(Table1[Cattle and calves inventory],3)-QUARTILE(Table1[Cattle and calves inventory],1)) -> 0.7151987165 | AX34: =Table1[[#This Row],[State]] -> Montana | AY34: =IF(Table1[[#This Row],[Horses and Ponies]]<_xlfn.PERCENTILE.EXC(Table1[Horses and Ponies],0.2),1,IF(Table1[[#This Row],[Horses and Ponies]]<_xlfn.PERCENTILE.EXC(Table1[Horses and Ponies],0.4),2,IF(Table1[[#This Row],[Horses and Ponies]]<_xlfn.PERCENTILE.EXC(Table1[Horses and Ponies],0.6),3,IF(Table1[[#This Row],[Horses and Ponies]]<_xlfn.PERCENTILE.EXC(Table1[Horses and Ponies],0.8),4,5)))) -> 4
A35: Nebraska | B35: 6385675 | C35: 1730112 | D35: 54628 | E35: 2992576 | F35: 71771 | G35: 25840 | H35: 44895 | I35: 908965 | J35: 195598 | K35: 64326 | L35: 1855525 | M35: =STANDARDIZE(Table1[[#This Row],[Cattle and calves inventory]],AVERAGE(Table1[Cattle and calves inventory]),_xlfn.STDEV.P(Table1[Cattle and calves inventory])) -> 2.239331598 | N35: =STANDARDIZE(Table1[[#This Row],[Beef cows]],AVERAGE(Table1[Beef cows]),_xlfn.STDEV.P(Table1[Beef cows])) -> 1.586853295 | O35: =STANDARDIZE(Table1[[#This Row],[Milk cows]],AVERAGE(Table1[Milk cows]),_xlfn.STDEV.P(Table1[Milk cows])) -> -0.4027129184 | P35: =STANDARDIZE(Table1[[#This Row],[Hogs and pigs inventory]],AVERAGE(Table1[Hogs and pigs inventory]),_xlfn.STDEV.P(Table1[Hogs and pigs inventory])) -> 0.5088515958 | Q35: =STANDARDIZE(Table1[[#This Row],[Sheep and lambs inventory]],AVERAGE(Table1[Sheep and lambs inventory]),_xlfn.STDEV.P(Table1[Sheep and lambs inventory])) -> -0.2466723808 | R35: =STANDARDIZE(Table1[[#This Row],[All goats]],AVERAGE(Table1[All goats]),_xlfn.STDEV.P(Table1[All goats])) -> -0.218645531 | S35: =STANDARDIZE(Table1[[#This Row],[Colonies of bees]],AVERAGE(Table1[Colonies of bees]),_xlfn.STDEV.P(Table1[Colonies of bees])) -> -0.1461135004 | T35: =STANDARDIZE(Table1[[#This Row],[Broilers and other meat-type chickens]],AVERAGE(Table1[Broilers and other meat-type chickens]),_xlfn.STDEV.P(Table1[Broilers and other meat-type chickens])) -> -0.5424195299 | U35: =STANDARDIZE(Table1[[#This Row],[Turkeys]],AVERAGE(Table1[Turkeys]),_xlfn.STDEV.P(Table1[Turkeys])) -> -0.4554653211 | V35: =STANDARDIZE(Table1[[#This Row],[Horses and Ponies]],AVERAGE(Table1[Horses and Ponies]),_xlfn.STDEV.P(Table1[Horses and Ponies])) -> -0.1339273379 | W35: =STANDARDIZE(Table1[[#This Row],[Population]],AVERAGE(Table1[Population]),_xlfn.STDEV.P(Table1[Population])) -> -0.63638425 | X35: 1 | Y35: 2.03 | Z35: 3 | AA35: 4 | AB35: 5 | AC35: 6 | AD35: 2 | AE35: 7 | AF35: 8 | AG35: 9 | AH35: 10 | AI35: 11 | AJ35: 12 | AK35: =IF(Table1[[#This Row],[Horses and Ponies]]<_xlfn.PERCENTILE.EXC(Table1[Horses and Ponies],0.2),1,IF(Table1[[#This Row],[Horses and Ponies]]<_xlfn.PERCENTILE.EXC(Table1[Horses and Ponies],0.4),2,IF(Table1[[#This Row],[Horses and Ponies]]<_xlfn.PERCENTILE.EXC(Table1[Horses and Ponies],0.6),3,IF(Table1[[#This Row],[Horses and Ponies]]<_xlfn.PERCENTILE.EXC(Table1[Horses and Ponies],0.8),4,5)))) -> 3 | AL35: 4 | AM35: 5 | AN35: 7 | AO35: 8 | AP35: 9 | AQ35: 2 | AR35: 6 | AS35: 11 | AT35: 10 | AU35: 1 | AV35: 3 | AW35: =(Table1[[#This Row],[Cattle and calves inventory]]-QUARTILE(Table1[Cattle and calves inventory],2))/(QUARTILE(Table1[Cattle and calves inventory],3)-QUARTILE(Table1[Cattle and calves inventory],1)) -> 2.639650864 | AX35: =Table1[[#This Row],[State]] -> Nebraska | AY35: =IF(Table1[[#This Row],[Horses and Ponies]]<_xlfn.PERCENTILE.EXC(Table1[Horses and Ponies],0.2),1,IF(Table1[[#This Row],[Horses and Ponies]]<_xlfn.PERCENTILE.EXC(Table1[Horses and Ponies],0.4),2,IF(Table1[[#This Row],[Horses and Ponies]]<_xlfn.PERCENTILE.EXC(Table1[Horses and Ponies],0.6),3,IF(Table1[[#This Row],[Horses and Ponies]]<_xlfn.PERCENTILE.EXC(Table1[Horses and Ponies],0.8),4,5)))) -> 3
A36: Nevada | B36: 420322 | C36: 220150 | D36: 29484 | E36: 2700 | F36: 91934 | G36: 21388 | H36: 10182 | I36: 3813 | J36: 1275 | K36: 22464 | L36: 2758931 | M36: =STANDARDIZE(Table1[[#This Row],[Cattle and calves inventory]],AVERAGE(Table1[Cattle and calves inventory]),_xlfn.STDEV.P(Table1[Cattle and calves inventory])) -> -0.6736724149 | N36: =STANDARDIZE(Table1[[#This Row],[Beef cows]],AVERAGE(Table1[Beef cows]),_xlfn.STDEV.P(Table1[Beef cows])) -> -0.4949259002 | O36: =STANDARDIZE(Table1[[#This Row],[Milk cows]],AVERAGE(Table1[Milk cows]),_xlfn.STDEV.P(Table1[Milk cows])) -> -0.4803544793 | P36: =STANDARDIZE(Table1[[#This Row],[Hogs and pigs inventory]],AVERAGE(Table1[Hogs and pigs inventory]),_xlfn.STDEV.P(Table1[Hogs and pigs inventory])) -> -0.4010566007 | Q36: =STANDARDIZE(Table1[[#This Row],[Sheep and lambs inventory]],AVERAGE(Table1[Sheep and lambs inventory]),_xlfn.STDEV.P(Table1[Sheep and lambs inventory])) -> -0.1066714796 | R36: =STANDARDIZE(Table1[[#This Row],[All goats]],AVERAGE(Table1[All goats]),_xlfn.STDEV.P(Table1[All goats])) -> -0.2552532653 | S36: =STANDARDIZE(Table1[[#This Row],[Colonies of bees]],AVERAGE(Table1[Colonies of bees]),_xlfn.STDEV.P(Table1[Colonies of bees])) -> -0.3904736948 | T36: =STANDARDIZE(Table1[[#This Row],[Broilers and other meat-type chickens]],AVERAGE(Table1[Broilers and other meat-type chickens]),_xlfn.STDEV.P(Table1[Broilers and other meat-type chickens])) -> -0.5592241065 | U36: =STANDARDIZE(Table1[[#This Row],[Turkeys]],AVERAGE(Table1[Turkeys]),_xlfn.STDEV.P(Table1[Turkeys])) -> -0.5040891826 | V36: =STANDARDIZE(Table1[[#This Row],[Horses and Ponies]],AVERAGE(Table1[Horses and Ponies]),_xlfn.STDEV.P(Table1[Horses and Ponies])) -> -0.8260016378 | W36: =STANDARDIZE(Table1[[#This Row],[Population]],AVERAGE(Table1[Population]),_xlfn.STDEV.P(Table1[Population])) -> -0.5060216432 | X36: 1 | Y36: 2.03 | Z36: 3 | AA36: 4 | AB36: 5 | AC36: 6 | AD36: 2 | AE36: 7 | AF36: 8 | AG36: 9 | AH36: 10 | AI36: 11 | AJ36: 12 | AK36: =IF(Table1[[#This Row],[Horses and Ponies]]<_xlfn.PERCENTILE.EXC(Table1[Horses and Ponies],0.2),1,IF(Table1[[#This Row],[Horses and Ponies]]<_xlfn.PERCENTILE.EXC(Table1[Horses and Ponies],0.4),2,IF(Table1[[#This Row],[Horses and Ponies]]<_xlfn.PERCENTILE.EXC(Table1[Horses and Ponies],0.6),3,IF(Table1[[#This Row],[Horses and Ponies]]<_xlfn.PERCENTILE.EXC(Table1[Horses and Ponies],0.8),4,5)))) -> 1 | AL36: 4 | AM36: 5 | AN36: 7 | AO36: 8 | AP36: 9 | AQ36: 2 | AR36: 6 | AS36: 11 | AT36: 10 | AU36: 1 | AV36: 3 | AW36: =(Table1[[#This Row],[Cattle and calves inventory]]-QUARTILE(Table1[Cattle and calves inventory],2))/(QUARTILE(Table1[Cattle and calves inventory],3)-QUARTILE(Table1[Cattle and calves inventory],1)) -> -0.4201133354 | AX36: =Table1[[#This Row],[State]] -> Nevada | AY36: =IF(Table1[[#This Row],[Horses and Ponies]]<_xlfn.PERCENTILE.EXC(Table1[Horses and Ponies],0.2),1,IF(Table1[[#This Row],[Horses and Ponies]]<_xlfn.PERCENTILE.EXC(Table1[Horses and Ponies],0.4),2,IF(Table1[[#This Row],[Horses and Ponies]]<_xlfn.PERCENTILE.EXC(Table1[Horses and Ponies],0.6),3,IF(Table1[[#This Row],[Horses and Ponies]]<_xlfn.PERCENTILE.EXC(Table1[Horses and Ponies],0.8),4,5)))) -> 1
A37: New Hampshire | B37: 33392 | C37: 4075 | D37: 13474 | E37: 3287 | F37: 8079 | G37: 4875 | H37: 2912 | I37: 28924 | J37: 2556 | K37: 9097 | L37: 1320718 | M37: =STANDARDIZE(Table1[[#This Row],[Cattle and calves inventory]],AVERAGE(Table1[Cattle and calves inventory]),_xlfn.STDEV.P(Table1[Cattle and calves inventory])) -> -0.8626182564 | N37: =STANDARDIZE(Table1[[#This Row],[Beef cows]],AVERAGE(Table1[Beef cows]),_xlfn.STDEV.P(Table1[Beef cows])) -> -0.792827728 | O37: =STANDARDIZE(Table1[[#This Row],[Milk cows]],AVERAGE(Table1[Milk cows]),_xlfn.STDEV.P(Table1[Milk cows])) -> -0.5297913784 | P37: =STANDARDIZE(Table1[[#This Row],[Hogs and pigs inventory]],AVERAGE(Table1[Hogs and pigs inventory]),_xlfn.STDEV.P(Table1[Hogs and pigs inventory])) -> -0.4008779592 | Q37: =STANDARDIZE(Table1[[#This Row],[Sheep and lambs inventory]],AVERAGE(Table1[Sheep and lambs inventory]),_xlfn.STDEV.P(Table1[Sheep and lambs inventory])) -> -0.6889149734 | R37: =STANDARDIZE(Table1[[#This Row],[All goats]],AVERAGE(Table1[All goats]),_xlfn.STDEV.P(Table1[All goats])) -> -0.3910357261 | S37: =STANDARDIZE(Table1[[#This Row],[Colonies of bees]],AVERAGE(Table1[Colonies of bees]),_xlfn.STDEV.P(Table1[Colonies of bees])) -> -0.4416504474 | T37: =STANDARDIZE(Table1[[#This Row],[Broilers and other meat-type chickens]],AVERAGE(Table1[Broilers and other meat-type chickens]),_xlfn.STDEV.P(Table1[Broilers and other meat-type chickens])) -> -0.5587579089 | U37: =STANDARDIZE(Table1[[#This Row],[Turkeys]],AVERAGE(Table1[Turkeys]),_xlfn.STDEV.P(Table1[Turkeys])) -> -0.5037686484 | V37: =STANDARDIZE(Table1[[#This Row],[Horses and Ponies]],AVERAGE(Table1[Horses and Ponies]),_xlfn.STDEV.P(Table1[Horses and Ponies])) -> -1.046988623 | W37: =STANDARDIZE(Table1[[#This Row],[Population]],AVERAGE(Table1[Population]),_xlfn.STDEV.P(Table1[Population])) -> -0.7135575637 | X37: 1 | Y37: 2.07 | Z37: 3 | AA37: 4 | AB37: 5 | AC37: 6 | AD37: 2 | AE37: 7 | AF37: 8 | AG37: 9 | AH37: 10 | AI37: 11 | AJ37: 12 | AK37: =IF(Table1[[#This Row],[Horses and Ponies]]<_xlfn.PERCENTILE.EXC(Table1[Horses and Ponies],0.2),1,IF(Table1[[#This Row],[Horses and Ponies]]<_xlfn.PERCENTILE.EXC(Table1[Horses and Ponies],0.4),2,IF(Table1[[#This Row],[Horses and Ponies]]<_xlfn.PERCENTILE.EXC(Table1[Horses and Ponies],0.6),3,IF(Table1[[#This Row],[Horses and Ponies]]<_xlfn.PERCENTILE.EXC(Table1[Horses and Ponies],0.8),4,5)))) -> 1 | AL37: 4 | AM37: 5 | AN37: 7 | AO37: 8 | AP37: 9 | AQ37: 2 | AR37: 6 | AS37: 11 | AT37: 10 | AU37: 1 | AV37: 3 | AW37: =(Table1[[#This Row],[Cattle and calves inventory]]-QUARTILE(Table1[Cattle and calves inventory],2))/(QUARTILE(Table1[Cattle and calves inventory],3)-QUARTILE(Table1[Cattle and calves inventory],1)) -> -0.6185784659 | AX37: =Table1[[#This Row],[State]] -> New Hampshire | AY37: =IF(Table1[[#This Row],[Horses and Ponies]]<_xlfn.PERCENTILE.EXC(Table1[Horses and Ponies],0.2),1,IF(Table1[[#This Row],[Horses and Ponies]]<_xlfn.PERCENTILE.EXC(Table1[Horses and Ponies],0.4),2,IF(Table1[[#This Row],[Horses and Ponies]]<_xlfn.PERCENTILE.EXC(Table1[Horses and Ponies],0.6),3,IF(Table1[[#This Row],[Horses and Ponies]]<_xlfn.PERCENTILE.EXC(Table1[Horses and Ponies],0.8),4,5)))) -> 1
A38: New Jersey | B38: 31449 | C38: 9500 | D38: 7192 | E38: 7901 | F38: 14924 | G38: 8258 | H38: 13298 | I38: 19945 | J38: 13687 | K38: 27658 | L38: 8864590 | M38: =STANDARDIZE(Table1[[#This Row],[Cattle and calves inventory]],AVERAGE(Table1[Cattle and calves inventory]),_xlfn.STDEV.P(Table1[Cattle and calves inventory])) -> -0.8635670631 | N38: =STANDARDIZE(Table1[[#This Row],[Beef cows]],AVERAGE(Table1[Beef cows]),_xlfn.STDEV.P(Table1[Beef cows])) -> -0.7853482999 | O38: =STANDARDIZE(Table1[[#This Row],[Milk cows]],AVERAGE(Table1[Milk cows]),_xlfn.STDEV.P(Table1[Milk cows])) -> -0.5491894172 | P38: =STANDARDIZE(Table1[[#This Row],[Hogs and pigs inventory]],AVERAGE(Table1[Hogs and pigs inventory]),_xlfn.STDEV.P(Table1[Hogs and pigs inventory])) -> -0.3994737817 | Q38: =STANDARDIZE(Table1[[#This Row],[Sheep and lambs inventory]],AVERAGE(Table1[Sheep and lambs inventory]),_xlfn.STDEV.P(Table1[Sheep and lambs inventory])) -> -0.6413870178 | R38: =STANDARDIZE(Table1[[#This Row],[All goats]],AVERAGE(Table1[All goats]),_xlfn.STDEV.P(Table1[All goats])) -> -0.3632181239 | S38: =STANDARDIZE(Table1[[#This Row],[Colonies of bees]],AVERAGE(Table1[Colonies of bees]),_xlfn.STDEV.P(Table1[Colonies of bees])) -> -0.3685387895 | T38: =STANDARDIZE(Table1[[#This Row],[Broilers and other meat-type chickens]],AVERAGE(Table1[Broilers and other meat-type chickens]),_xlfn.STDEV.P(Table1[Broilers and other meat-type chickens])) -> -0.5589246083 | U38: =STANDARDIZE(Table1[[#This Row],[Turkeys]],AVERAGE(Table1[Turkeys]),_xlfn.STDEV.P(Table1[Turkeys])) -> -0.500983429 | V38: =STANDARDIZE(Table1[[#This Row],[Horses and Ponies]],AVERAGE(Table1[Horses and Ponies]),_xlfn.STDEV.P(Table1[Horses and Ponies])) -> -0.7401329761 | W38: =STANDARDIZE(Table1[[#This Row],[Population]],AVERAGE(Table1[Population]),_xlfn.STDEV.P(Table1[Population])) -> 0.3750325266 | X38: 1 | Y38: 2.1 | Z38: 3 | AA38: 4 | AB38: 5 | AC38: 6 | AD38: 2 | AE38: 7 | AF38: 8 | AG38: 9 | AH38: 10 | AI38: 11 | AJ38: 12 | AK38: =IF(Table1[[#This Row],[Horses and Ponies]]<_xlfn.PERCENTILE.EXC(Table1[Horses and Ponies],0.2),1,IF(Table1[[#This Row],[Horses and Ponies]]<_xlfn.PERCENTILE.EXC(Table1[Horses and Ponies],0.4),2,IF(Table1[[#This Row],[Horses and Ponies]]<_xlfn.PERCENTILE.EXC(Table1[Horses and Ponies],0.6),3,IF(Table1[[#This Row],[Horses and Ponies]]<_xlfn.PERCENTILE.EXC(Table1[Horses and Ponies],0.8),4,5)))) -> 2 | AL38: 4 | AM38: 5 | AN38: 7 | AO38: 8 | AP38: 9 | AQ38: 2 | AR38: 6 | AS38: 11 | AT38: 10 | AU38: 1 | AV38: 3 | AW38: =(Table1[[#This Row],[Cattle and calves inventory]]-QUARTILE(Table1[Cattle and calves inventory],2))/(QUARTILE(Table1[Cattle and calves inventory],3)-QUARTILE(Table1[Cattle and calves inventory],1)) -> -0.6195750744 | AX38: =Table1[[#This Row],[State]] -> New Jersey | AY38: =IF(Table1[[#This Row],[Horses and Ponies]]<_xlfn.PERCENTILE.EXC(Table1[Horses and Ponies],0.2),1,IF(Table1[[#This Row],[Horses and Ponies]]<_xlfn.PERCENTILE.EXC(Table1[Horses and Ponies],0.4),2,IF(Table1[[#This Row],[Horses and Ponies]]<_xlfn.PERCENTILE.EXC(Table1[Horses and Ponies],0.6),3,IF(Table1[[#This Row],[Horses and Ponies]]<_xlfn.PERCENTILE.EXC(Table1[Horses and Ponies],0.8),4,5)))) -> 2
A39: New Mexico | B39: 1354240 | C39: 461595 | D39: 318878 | E39: 1294 | F39: 89745 | G39: 30981 | H39: 15088 | I39: 3928 | J39: 6425 | K39: 50723 | L39: 2085538 | M39: =STANDARDIZE(Table1[[#This Row],[Cattle and calves inventory]],AVERAGE(Table1[Cattle and calves inventory]),_xlfn.STDEV.P(Table1[Cattle and calves inventory])) -> -0.2176211332 | N39: =STANDARDIZE(Table1[[#This Row],[Beef cows]],AVERAGE(Table1[Beef cows]),_xlfn.STDEV.P(Table1[Beef cows])) -> -0.1620465445 | O39: =STANDARDIZE(Table1[[#This Row],[Milk cows]],AVERAGE(Table1[Milk cows]),_xlfn.STDEV.P(Table1[Milk cows])) -> 0.4132583864 | P39: =STANDARDIZE(Table1[[#This Row],[Hogs and pigs inventory]],AVERAGE(Table1[Hogs and pigs inventory]),_xlfn.STDEV.P(Table1[Hogs and pigs inventory])) -> -0.4014844883 | Q39: =STANDARDIZE(Table1[[#This Row],[Sheep and lambs inventory]],AVERAGE(Table1[Sheep and lambs inventory]),_xlfn.STDEV.P(Table1[Sheep and lambs inventory])) -> -0.1218707046 | R39: =STANDARDIZE(Table1[[#This Row],[All goats]],AVERAGE(Table1[All goats]),_xlfn.STDEV.P(Table1[All goats])) -> -0.1763723141 | S39: =STANDARDIZE(Table1[[#This Row],[Colonies of bees]],AVERAGE(Table1[Colonies of bees]),_xlfn.STDEV.P(Table1[Colonies of bees])) -> -0.3559381861 | T39: =STANDARDIZE(Table1[[#This Row],[Broilers and other meat-type chickens]],AVERAGE(Table1[Broilers and other meat-type chickens]),_xlfn.STDEV.P(Table1[Broilers and other meat-type chickens])) -> -0.5592219715 | U39: =STANDARDIZE(Table1[[#This Row],[Turkeys]],AVERAGE(Table1[Turkeys]),_xlfn.STDEV.P(Table1[Turkeys])) -> -0.5028005401 | V39: =STANDARDIZE(Table1[[#This Row],[Horses and Ponies]],AVERAGE(Table1[Horses and Ponies]),_xlfn.STDEV.P(Table1[Horses and Ponies])) -> -0.358815941 | W39: =STANDARDIZE(Table1[[#This Row],[Population]],AVERAGE(Table1[Population]),_xlfn.STDEV.P(Table1[Population])) -> -0.6031930887 | X39: 1 | Y39: 2.04 | Z39: 3 | AA39: 4 | AB39: 5 | AC39: 6 | AD39: 2 | AE39: 7 | AF39: 8 | AG39: 9 | AH39: 10 | AI39: 11 | AJ39: 12 | AK39: =IF(Table1[[#This Row],[Horses and Ponies]]<_xlfn.PERCENTILE.EXC(Table1[Horses and Ponies],0.2),1,IF(Table1[[#This Row],[Horses and Ponies]]<_xlfn.PERCENTILE.EXC(Table1[Horses and Ponies],0.4),2,IF(Table1[[#This Row],[Horses and Ponies]]<_xlfn.PERCENTILE.EXC(Table1[Horses and Ponies],0.6),3,IF(Table1[[#This Row],[Horses and Ponies]]<_xlfn.PERCENTILE.EXC(Table1[Horses and Ponies],0.8),4,5)))) -> 2 | AL39: 4 | AM39: 5 | AN39: 7 | AO39: 8 | AP39: 9 | AQ39: 2 | AR39: 6 | AS39: 11 | AT39: 10 | AU39: 1 | AV39: 3 | AW39: =(Table1[[#This Row],[Cattle and calves inventory]]-QUARTILE(Table1[Cattle and calves inventory],2))/(QUARTILE(Table1[Cattle and calves inventory],3)-QUARTILE(Table1[Cattle and calves inventory],1)) -> 0.05891428653 | AX39: =Table1[[#This Row],[State]] -> New Mexico | AY39: =IF(Table1[[#This Row],[Horses and Ponies]]<_xlfn.PERCENTILE.EXC(Table1[Horses and Ponies],0.2),1,IF(Table1[[#This Row],[Horses and Ponies]]<_xlfn.PERCENTILE.EXC(Table1[Horses and Ponies],0.4),2,IF(Table1[[#This Row],[Horses and Ponies]]<_xlfn.PERCENTILE.EXC(Table1[Horses and Ponies],0.6),3,IF(Table1[[#This Row],[Horses and Ponies]]<_xlfn.PERCENTILE.EXC(Table1[Horses and Ponies],0.8),4,5)))) -> 2
A40: New York | B40: 1419365 | C40: 86030 | D40: 610712 | E40: 74671 | F40: 86286 | G40: 36441 | H40: 70557 | I40: 591576 | J40: 143473 | K40: 90157 | L40: 19570261 | M40: =STANDARDIZE(Table1[[#This Row],[Cattle and calves inventory]],AVERAGE(Table1[Cattle and calves inventory]),_xlfn.STDEV.P(Table1[Cattle and calves inventory])) -> -0.1858192622 | N40: =STANDARDIZE(Table1[[#This Row],[Beef cows]],AVERAGE(Table1[Beef cows]),_xlfn.STDEV.P(Table1[Beef cows])) -> -0.6798366633 | O40: =STANDARDIZE(Table1[[#This Row],[Milk cows]],AVERAGE(Table1[Milk cows]),_xlfn.STDEV.P(Table1[Milk cows])) -> 1.31440567 | P40: =STANDARDIZE(Table1[[#This Row],[Hogs and pigs inventory]],AVERAGE(Table1[Hogs and pigs inventory]),_xlfn.STDEV.P(Table1[Hogs and pigs inventory])) -> -0.3791536847 | Q40: =STANDARDIZE(Table1[[#This Row],[Sheep and lambs inventory]],AVERAGE(Table1[Sheep and lambs inventory]),_xlfn.STDEV.P(Table1[Sheep and lambs inventory])) -> -0.1458881185 | R40: =STANDARDIZE(Table1[[#This Row],[All goats]],AVERAGE(Table1[All goats]),_xlfn.STDEV.P(Table1[All goats])) -> -0.1314760362 | S40: =STANDARDIZE(Table1[[#This Row],[Colonies of bees]],AVERAGE(Table1[Colonies of bees]),_xlfn.STDEV.P(Table1[Colonies of bees])) -> 0.03453269293 | T40: =STANDARDIZE(Table1[[#This Row],[Broilers and other meat-type chickens]],AVERAGE(Table1[Broilers and other meat-type chickens]),_xlfn.STDEV.P(Table1[Broilers and other meat-type chickens])) -> -0.5483120073 | U40: =STANDARDIZE(Table1[[#This Row],[Turkeys]],AVERAGE(Table1[Turkeys]),_xlfn.STDEV.P(Table1[Turkeys])) -> -0.4685081353 | V40: =STANDARDIZE(Table1[[#This Row],[Horses and Ponies]],AVERAGE(Table1[Horses and Ponies]),_xlfn.STDEV.P(Table1[Horses and Ponies])) -> 0.2931179834 | W40: =STANDARDIZE(Table1[[#This Row],[Population]],AVERAGE(Table1[Population]),_xlfn.STDEV.P(Table1[Population])) -> 1.919874136 | X40: 1 | Y40: 1.97 | Z40: 3 | AA40: 4 | AB40: 5 | AC40: 6 | AD40: 2 | AE40: 7 | AF40: 8 | AG40: 9 | AH40: 10 | AI40: 11 | AJ40: 12 | AK40: =IF(Table1[[#This Row],[Horses and Ponies]]<_xlfn.PERCENTILE.EXC(Table1[Horses and Ponies],0.2),1,IF(Table1[[#This Row],[Horses and Ponies]]<_xlfn.PERCENTILE.EXC(Table1[Horses and Ponies],0.4),2,IF(Table1[[#This Row],[Horses and Ponies]]<_xlfn.PERCENTILE.EXC(Table1[Horses and Ponies],0.6),3,IF(Table1[[#This Row],[Horses and Ponies]]<_xlfn.PERCENTILE.EXC(Table1[Horses and Ponies],0.8),4,5)))) -> 4 | AL40: 4 | AM40: 5 | AN40: 7 | AO40: 8 | AP40: 9 | AQ40: 2 | AR40: 6 | AS40: 11 | AT40: 10 | AU40: 1 | AV40: 3 | AW40: =(Table1[[#This Row],[Cattle and calves inventory]]-QUARTILE(Table1[Cattle and calves inventory],2))/(QUARTILE(Table1[Cattle and calves inventory],3)-QUARTILE(Table1[Cattle and calves inventory],1)) -> 0.09231836899 | AX40: =Table1[[#This Row],[State]] -> New York | AY40: =IF(Table1[[#This Row],[Horses and Ponies]]<_xlfn.PERCENTILE.EXC(Table1[Horses and Ponies],0.2),1,IF(Table1[[#This Row],[Horses and Ponies]]<_xlfn.PERCENTILE.EXC(Table1[Horses and Ponies],0.4),2,IF(Table1[[#This Row],[Horses and Ponies]]<_xlfn.PERCENTILE.EXC(Table1[Horses and Ponies],0.6),3,IF(Table1[[#This Row],[Horses and Ponies]]<_xlfn.PERCENTILE.EXC(Table1[Horses and Ponies],0.8),4,5)))) -> 4
A41: North Carolina | B41: 829717 | C41: 348196 | D41: 45960 | E41: 8901434 | F41: 29224 | G41: 66367 | H41: 24225 | I41: 148251469 | J41: 17191277 | K41: 66870 | L41: 9752073 | M41: =STANDARDIZE(Table1[[#This Row],[Cattle and calves inventory]],AVERAGE(Table1[Cattle and calves inventory]),_xlfn.STDEV.P(Table1[Cattle and calves inventory])) -> -0.4737564539 | N41: =STANDARDIZE(Table1[[#This Row],[Beef cows]],AVERAGE(Table1[Beef cows]),_xlfn.STDEV.P(Table1[Beef cows])) -> -0.3183893392 | O41: =STANDARDIZE(Table1[[#This Row],[Milk cows]],AVERAGE(Table1[Milk cows]),_xlfn.STDEV.P(Table1[Milk cows])) -> -0.4294786299 | P41: =STANDARDIZE(Table1[[#This Row],[Hogs and pigs inventory]],AVERAGE(Table1[Hogs and pigs inventory]),_xlfn.STDEV.P(Table1[Hogs and pigs inventory])) -> 2.307092836 | Q41: =STANDARDIZE(Table1[[#This Row],[Sheep and lambs inventory]],AVERAGE(Table1[Sheep and lambs inventory]),_xlfn.STDEV.P(Table1[Sheep and lambs inventory])) -> -0.5420955986 | R41: =STANDARDIZE(Table1[[#This Row],[All goats]],AVERAGE(Table1[All goats]),_xlfn.STDEV.P(Table1[All goats])) -> 0.1145983248 | S41: =STANDARDIZE(Table1[[#This Row],[Colonies of bees]],AVERAGE(Table1[Colonies of bees]),_xlfn.STDEV.P(Table1[Colonies of bees])) -> -0.2916187929 | T41: =STANDARDIZE(Table1[[#This Row],[Broilers and other meat-type chickens]],AVERAGE(Table1[Broilers and other meat-type chickens]),_xlfn.STDEV.P(Table1[Broilers and other meat-type chickens])) -> 2.193064016 | U41: =STANDARDIZE(Table1[[#This Row],[Turkeys]],AVERAGE(Table1[Turkeys]),_xlfn.STDEV.P(Table1[Turkeys])) -> 3.797225009 | V41: =STANDARDIZE(Table1[[#This Row],[Horses and Ponies]],AVERAGE(Table1[Horses and Ponies]),_xlfn.STDEV.P(Table1[Horses and Ponies])) -> -0.09186921794 | W41: =STANDARDIZE(Table1[[#This Row],[Population]],AVERAGE(Table1[Population]),_xlfn.STDEV.P(Table1[Population])) -> 0.5030974248 | X41: 1 | Y41: =RANDBETWEEN(190,210)/100 -> 1.97 | Z41: 3 | AA41: 4 | AB41: 5 | AC41: 6 | AD41: 2 | AE41: 7 | AF41: 8 | AG41: 9 | AH41: 10 | AI41: 11 | AJ41: 12 | AK41: =IF(Table1[[#This Row],[Horses and Ponies]]<_xlfn.PERCENTILE.EXC(Table1[Horses and Ponies],0.2),1,IF(Table1[[#This Row],[Horses and Ponies]]<_xlfn.PERCENTILE.EXC(Table1[Horses and Ponies],0.4),2,IF(Table1[[#This Row],[Horses and Ponies]]<_xlfn.PERCENTILE.EXC(Table1[Horses and Ponies],0.6),3,IF(Table1[[#This Row],[Horses and Ponies]]<_xlfn.PERCENTILE.EXC(Table1[Horses and Ponies],0.8),4,5)))) -> 3 | AL41: 4 | AM41: 5 | AN41: 7 | AO41: 8 | AP41: 9 | AQ41: 2 | AR41: 6 | AS41: 11 | AT41: 10 | AU41: 1 | AV41: 3 | AW41: =(Table1[[#This Row],[Cattle and calves inventory]]-QUARTILE(Table1[Cattle and calves inventory],2))/(QUARTILE(Table1[Cattle and calves inventory],3)-QUARTILE(Table1[Cattle and calves inventory],1)) -> -0.2101253993 | AX41: =Table1[[#This Row],[State]] -> North Carolina | AY41: =IF(Table1[[#This Row],[Horses and Ponies]]<_xlfn.PERCENTILE.EXC(Table1[Horses and Ponies],0.2),1,IF(Table1[[#This Row],[Horses and Ponies]]<_xlfn.PERCENTILE.EXC(Table1[Horses and Ponies],0.4),2,IF(Table1[[#This Row],[Horses and Ponies]]<_xlfn.PERCENTILE.EXC(Table1[Horses and Ponies],0.6),3,IF(Table1[[#This Row],[Horses and Ponies]]<_xlfn.PERCENTILE.EXC(Table1[Horses and Ponies],0.8),4,5)))) -> 3
A42: North Dakota | B42: 1809613 | C42: 881682 | D42: 17876 | E42: 133653 | F42: 64607 | G42: 4740 | H42: 370480 | I42: 24708 | J42: 419319 | K42: 45271 | L42: 699628 | M42: =STANDARDIZE(Table1[[#This Row],[Cattle and calves inventory]],AVERAGE(Table1[Cattle and calves inventory]),_xlfn.STDEV.P(Table1[Cattle and calves inventory])) -> 0.004746826611 | N42: =STANDARDIZE(Table1[[#This Row],[Beef cows]],AVERAGE(Table1[Beef cows]),_xlfn.STDEV.P(Table1[Beef cows])) -> 0.4171258961 | O42: =STANDARDIZE(Table1[[#This Row],[Milk cows]],AVERAGE(Table1[Milk cows]),_xlfn.STDEV.P(Table1[Milk cows])) -> -0.5161985471 | P42: =STANDARDIZE(Table1[[#This Row],[Hogs and pigs inventory]],AVERAGE(Table1[Hogs and pigs inventory]),_xlfn.STDEV.P(Table1[Hogs and pigs inventory])) -> -0.3612037078 | Q42: =STANDARDIZE(Table1[[#This Row],[Sheep and lambs inventory]],AVERAGE(Table1[Sheep and lambs inventory]),_xlfn.STDEV.P(Table1[Sheep and lambs inventory])) -> -0.2964152988 | R42: =STANDARDIZE(Table1[[#This Row],[All goats]],AVERAGE(Table1[All goats]),_xlfn.STDEV.P(Table1[All goats])) -> -0.3921457989 | S42: =STANDARDIZE(Table1[[#This Row],[Colonies of bees]],AVERAGE(Table1[Colonies of bees]),_xlfn.STDEV.P(Table1[Colonies of bees])) -> 2.145823638 | T42: =STANDARDIZE(Table1[[#This Row],[Broilers and other meat-type chickens]],AVERAGE(Table1[Broilers and other meat-type chickens]),_xlfn.STDEV.P(Table1[Broilers and other meat-type chickens])) -> -0.5588361809 | U42: =STANDARDIZE(Table1[[#This Row],[Turkeys]],AVERAGE(Table1[Turkeys]),_xlfn.STDEV.P(Table1[Turkeys])) -> -0.3994854374 | V42: =STANDARDIZE(Table1[[#This Row],[Horses and Ponies]],AVERAGE(Table1[Horses and Ponies]),_xlfn.STDEV.P(Table1[Horses and Ponies])) -> -0.4489499308 | W42: =STANDARDIZE(Table1[[#This Row],[Population]],AVERAGE(Table1[Population]),_xlfn.STDEV.P(Table1[Population])) -> -0.8031816214 | X42: 1 | Y42: 1.93 | Z42: 3 | AA42: 4 | AB42: 5 | AC42: 6 | AD42: 2 | AE42: 7 | AF42: 8 | AG42: 9 | AH42: 10 | AI42: 11 | AJ42: 12 | AK42: =IF(Table1[[#This Row],[Horses and Ponies]]<_xlfn.PERCENTILE.EXC(Table1[Horses and Ponies],0.2),1,IF(Table1[[#This Row],[Horses and Ponies]]<_xlfn.PERCENTILE.EXC(Table1[Horses and Ponies],0.4),2,IF(Table1[[#This Row],[Horses and Ponies]]<_xlfn.PERCENTILE.EXC(Table1[Horses and Ponies],0.6),3,IF(Table1[[#This Row],[Horses and Ponies]]<_xlfn.PERCENTILE.EXC(Table1[Horses and Ponies],0.8),4,5)))) -> 2 | AL42: 4 | AM42: 5 | AN42: 7 | AO42: 8 | AP42: 9 | AQ42: 2 | AR42: 6 | AS42: 11 | AT42: 10 | AU42: 1 | AV42: 3 | AW42: =(Table1[[#This Row],[Cattle and calves inventory]]-QUARTILE(Table1[Cattle and calves inventory],2))/(QUARTILE(Table1[Cattle and calves inventory],3)-QUARTILE(Table1[Cattle and calves inventory],1)) -> 0.2924853766 | AX42: =Table1[[#This Row],[State]] -> North Dakota | AY42: =IF(Table1[[#This Row],[Horses and Ponies]]<_xlfn.PERCENTILE.EXC(Table1[Horses and Ponies],0.2),1,IF(Table1[[#This Row],[Horses and Ponies]]<_xlfn.PERCENTILE.EXC(Table1[Horses and Ponies],0.4),2,IF(Table1[[#This Row],[Horses and Ponies]]<_xlfn.PERCENTILE.EXC(Table1[Horses and Ponies],0.6),3,IF(Table1[[#This Row],[Horses and Ponies]]<_xlfn.PERCENTILE.EXC(Table1[Horses and Ponies],0.8),4,5)))) -> 2
A43: Ohio | B43: 1242293 | C43: 277949 | D43: 267857 | E43: 2058503 | F43: 111972 | G43: 51558 | H43: 21398 | I43: 12194024 | J43: 2096395 | K43: 114127 | L43: 11544225 | M43: =STANDARDIZE(Table1[[#This Row],[Cattle and calves inventory]],AVERAGE(Table1[Cattle and calves inventory]),_xlfn.STDEV.P(Table1[Cattle and calves inventory])) -> -0.2722871454 | N43: =STANDARDIZE(Table1[[#This Row],[Beef cows]],AVERAGE(Table1[Beef cows]),_xlfn.STDEV.P(Table1[Beef cows])) -> -0.4152386262 | O43: =STANDARDIZE(Table1[[#This Row],[Milk cows]],AVERAGE(Table1[Milk cows]),_xlfn.STDEV.P(Table1[Milk cows])) -> 0.2557118511 | P43: =STANDARDIZE(Table1[[#This Row],[Hogs and pigs inventory]],AVERAGE(Table1[Hogs and pigs inventory]),_xlfn.STDEV.P(Table1[Hogs and pigs inventory])) -> 0.2245853992 | Q43: =STANDARDIZE(Table1[[#This Row],[Sheep and lambs inventory]],AVERAGE(Table1[Sheep and lambs inventory]),_xlfn.STDEV.P(Table1[Sheep and lambs inventory])) -> 0.03246148951 | R43: =STANDARDIZE(Table1[[#This Row],[All goats]],AVERAGE(Table1[All goats]),_xlfn.STDEV.P(Table1[All goats])) -> -0.007172550413 | S43: =STANDARDIZE(Table1[[#This Row],[Colonies of bees]],AVERAGE(Table1[Colonies of bees]),_xlfn.STDEV.P(Table1[Colonies of bees])) -> -0.311519299 | T43: =STANDARDIZE(Table1[[#This Row],[Broilers and other meat-type chickens]],AVERAGE(Table1[Broilers and other meat-type chickens]),_xlfn.STDEV.P(Table1[Broilers and other meat-type chickens])) -> -0.3329070513 | U43: =STANDARDIZE(Table1[[#This Row],[Turkeys]],AVERAGE(Table1[Turkeys]),_xlfn.STDEV.P(Table1[Turkeys])) -> 0.02015563067 | V43: =STANDARDIZE(Table1[[#This Row],[Horses and Ponies]],AVERAGE(Table1[Horses and Ponies]),_xlfn.STDEV.P(Table1[Horses and Ponies])) -> 0.6893967318 | W43: =STANDARDIZE(Table1[[#This Row],[Population]],AVERAGE(Table1[Population]),_xlfn.STDEV.P(Table1[Population])) -> 0.7617071821 | X43: 1 | Y43: 2.09 | Z43: 3 | AA43: 4 | AB43: 5 | AC43: 6 | AD43: 2 | AE43: 7 | AF43: 8 | AG43: 9 | AH43: 10 | AI43: 11 | AJ43: 12 | AK43: =IF(Table1[[#This Row],[Horses and Ponies]]<_xlfn.PERCENTILE.EXC(Table1[Horses and Ponies],0.2),1,IF(Table1[[#This Row],[Horses and Ponies]]<_xlfn.PERCENTILE.EXC(Table1[Horses and Ponies],0.4),2,IF(Table1[[#This Row],[Horses and Ponies]]<_xlfn.PERCENTILE.EXC(Table1[Horses and Ponies],0.6),3,IF(Table1[[#This Row],[Horses and Ponies]]<_xlfn.PERCENTILE.EXC(Table1[Horses and Ponies],0.8),4,5)))) -> 5 | AL43: 4 | AM43: 5 | AN43: 7 | AO43: 8 | AP43: 9 | AQ43: 2 | AR43: 6 | AS43: 11 | AT43: 10 | AU43: 1 | AV43: 3 | AW43: =(Table1[[#This Row],[Cattle and calves inventory]]-QUARTILE(Table1[Cattle and calves inventory],2))/(QUARTILE(Table1[Cattle and calves inventory],3)-QUARTILE(Table1[Cattle and calves inventory],1)) -> 0.00149414345 | AX43: =Table1[[#This Row],[State]] -> Ohio | AY43: =IF(Table1[[#This Row],[Horses and Ponies]]<_xlfn.PERCENTILE.EXC(Table1[Horses and Ponies],0.2),1,IF(Table1[[#This Row],[Horses and Ponies]]<_xlfn.PERCENTILE.EXC(Table1[Horses and Ponies],0.4),2,IF(Table1[[#This Row],[Horses and Ponies]]<_xlfn.PERCENTILE.EXC(Table1[Horses and Ponies],0.6),3,IF(Table1[[#This Row],[Horses and Ponies]]<_xlfn.PERCENTILE.EXC(Table1[Horses and Ponies],0.8),4,5)))) -> 5
A44: Oklahoma | B44: 4245970 | C44: 1677903 | D44: 45885 | E44: 2304740 | F44: 53738 | G44: 89060 | H44: 21011 | I44: 38429952 | J44: 102140 | K44: 158918 | L44: 3814820 | M44: =STANDARDIZE(Table1[[#This Row],[Cattle and calves inventory]],AVERAGE(Table1[Cattle and calves inventory]),_xlfn.STDEV.P(Table1[Cattle and calves inventory])) -> 1.194469835 | N44: =STANDARDIZE(Table1[[#This Row],[Beef cows]],AVERAGE(Table1[Beef cows]),_xlfn.STDEV.P(Table1[Beef cows])) -> 1.514872934 | O44: =STANDARDIZE(Table1[[#This Row],[Milk cows]],AVERAGE(Table1[Milk cows]),_xlfn.STDEV.P(Table1[Milk cows])) -> -0.4297102206 | P44: =STANDARDIZE(Table1[[#This Row],[Hogs and pigs inventory]],AVERAGE(Table1[Hogs and pigs inventory]),_xlfn.STDEV.P(Table1[Hogs and pigs inventory])) -> 0.2995226423 | Q44: =STANDARDIZE(Table1[[#This Row],[Sheep and lambs inventory]],AVERAGE(Table1[Sheep and lambs inventory]),_xlfn.STDEV.P(Table1[Sheep and lambs inventory])) -> -0.3718837209 | R44: =STANDARDIZE(Table1[[#This Row],[All goats]],AVERAGE(Table1[All goats]),_xlfn.STDEV.P(Table1[All goats])) -> 0.3011974519 | S44: =STANDARDIZE(Table1[[#This Row],[Colonies of bees]],AVERAGE(Table1[Colonies of bees]),_xlfn.STDEV.P(Table1[Colonies of bees])) -> -0.3142435636 | T44: =STANDARDIZE(Table1[[#This Row],[Broilers and other meat-type chickens]],AVERAGE(Table1[Broilers and other meat-type chickens]),_xlfn.STDEV.P(Table1[Broilers and other meat-type chickens])) -> 0.1541754089 | U44: =STANDARDIZE(Table1[[#This Row],[Turkeys]],AVERAGE(Table1[Turkeys]),_xlfn.STDEV.P(Table1[Turkeys])) -> -0.4788505552 | V44: =STANDARDIZE(Table1[[#This Row],[Horses and Ponies]],AVERAGE(Table1[Horses and Ponies]),_xlfn.STDEV.P(Table1[Horses and Ponies])) -> 1.429894079 | W44: =STANDARDIZE(Table1[[#This Row],[Population]],AVERAGE(Table1[Population]),_xlfn.STDEV.P(Table1[Population])) -> -0.3536555503 | X44: 1 | Y44: 2.04 | Z44: 3 | AA44: 4 | AB44: 5 | AC44: 6 | AD44: 2 | AE44: 7 | AF44: 8 | AG44: 9 | AH44: 10 | AI44: 11 | AJ44: 12 | AK44: =IF(Table1[[#This Row],[Horses and Ponies]]<_xlfn.PERCENTILE.EXC(Table1[Horses and Ponies],0.2),1,IF(Table1[[#This Row],[Horses and Ponies]]<_xlfn.PERCENTILE.EXC(Table1[Horses and Ponies],0.4),2,IF(Table1[[#This Row],[Horses and Ponies]]<_xlfn.PERCENTILE.EXC(Table1[Horses and Ponies],0.6),3,IF(Table1[[#This Row],[Horses and Ponies]]<_xlfn.PERCENTILE.EXC(Table1[Horses and Ponies],0.8),4,5)))) -> 5 | AL44: 4 | AM44: 5 | AN44: 7 | AO44: 8 | AP44: 9 | AQ44: 2 | AR44: 6 | AS44: 11 | AT44: 10 | AU44: 1 | AV44: 3 | AW44: =(Table1[[#This Row],[Cattle and calves inventory]]-QUARTILE(Table1[Cattle and calves inventory],2))/(QUARTILE(Table1[Cattle and calves inventory],3)-QUARTILE(Table1[Cattle and calves inventory],1)) -> 1.542147874 | AX44: =Table1[[#This Row],[State]] -> Oklahoma | AY44: =IF(Table1[[#This Row],[Horses and Ponies]]<_xlfn.PERCENTILE.EXC(Table1[Horses and Ponies],0.2),1,IF(Table1[[#This Row],[Horses and Ponies]]<_xlfn.PERCENTILE.EXC(Table1[Horses and Ponies],0.4),2,IF(Table1[[#This Row],[Horses and Ponies]]<_xlfn.PERCENTILE.EXC(Table1[Horses and Ponies],0.6),3,IF(Table1[[#This Row],[Horses and Ponies]]<_xlfn.PERCENTILE.EXC(Table1[Horses and Ponies],0.8),4,5)))) -> 5
A45: Oregon | B45: 1297945 | C45: 504279 | D45: 125767 | E45: 12693 | F45: 214613 | G45: 33226 | H45: 82190 | I45: 3294786 | J45: 4770 | K45: 70427 | L45: 3899353 | M45: =STANDARDIZE(Table1[[#This Row],[Cattle and calves inventory]],AVERAGE(Table1[Cattle and calves inventory]),_xlfn.STDEV.P(Table1[Cattle and calves inventory])) -> -0.2451111344 | N45: =STANDARDIZE(Table1[[#This Row],[Beef cows]],AVERAGE(Table1[Beef cows]),_xlfn.STDEV.P(Table1[Beef cows])) -> -0.1031982667 | O45: =STANDARDIZE(Table1[[#This Row],[Milk cows]],AVERAGE(Table1[Milk cows]),_xlfn.STDEV.P(Table1[Milk cows])) -> -0.1830444883 | P45: =STANDARDIZE(Table1[[#This Row],[Hogs and pigs inventory]],AVERAGE(Table1[Hogs and pigs inventory]),_xlfn.STDEV.P(Table1[Hogs and pigs inventory])) -> -0.3980154336 | Q45: =STANDARDIZE(Table1[[#This Row],[Sheep and lambs inventory]],AVERAGE(Table1[Sheep and lambs inventory]),_xlfn.STDEV.P(Table1[Sheep and lambs inventory])) -> 0.7451447456 | R45: =STANDARDIZE(Table1[[#This Row],[All goats]],AVERAGE(Table1[All goats]),_xlfn.STDEV.P(Table1[All goats])) -> -0.1579122145 | S45: =STANDARDIZE(Table1[[#This Row],[Colonies of bees]],AVERAGE(Table1[Colonies of bees]),_xlfn.STDEV.P(Table1[Colonies of bees])) -> 0.1164225365 | T45: =STANDARDIZE(Table1[[#This Row],[Broilers and other meat-type chickens]],AVERAGE(Table1[Broilers and other meat-type chickens]),_xlfn.STDEV.P(Table1[Broilers and other meat-type chickens])) -> -0.4981256302 | U45: =STANDARDIZE(Table1[[#This Row],[Turkeys]],AVERAGE(Table1[Turkeys]),_xlfn.STDEV.P(Table1[Turkeys])) -> -0.5032146573 | V45: =STANDARDIZE(Table1[[#This Row],[Horses and Ponies]],AVERAGE(Table1[Horses and Ponies]),_xlfn.STDEV.P(Table1[Horses and Ponies])) -> -0.03306389845 | W45: =STANDARDIZE(Table1[[#This Row],[Population]],AVERAGE(Table1[Population]),_xlfn.STDEV.P(Table1[Population])) -> -0.3414573335 | X45: 1 | Y45: 2 | Z45: 3 | AA45: 4 | AB45: 5 | AC45: 6 | AD45: 2 | AE45: 7 | AF45: 8 | AG45: 9 | AH45: 10 | AI45: 11 | AJ45: 12 | AK45: =IF(Table1[[#This Row],[Horses and Ponies]]<_xlfn.PERCENTILE.EXC(Table1[Horses and Ponies],0.2),1,IF(Table1[[#This Row],[Horses and Ponies]]<_xlfn.PERCENTILE.EXC(Table1[Horses and Ponies],0.4),2,IF(Table1[[#This Row],[Horses and Ponies]]<_xlfn.PERCENTILE.EXC(Table1[Horses and Ponies],0.6),3,IF(Table1[[#This Row],[Horses and Ponies]]<_xlfn.PERCENTILE.EXC(Table1[Horses and Ponies],0.8),4,5)))) -> 4 | AL45: 4 | AM45: 5 | AN45: 7 | AO45: 8 | AP45: 9 | AQ45: 2 | AR45: 6 | AS45: 11 | AT45: 10 | AU45: 1 | AV45: 3 | AW45: =(Table1[[#This Row],[Cattle and calves inventory]]-QUARTILE(Table1[Cattle and calves inventory],2))/(QUARTILE(Table1[Cattle and calves inventory],3)-QUARTILE(Table1[Cattle and calves inventory],1)) -> 0.03003931039 | AX45: =Table1[[#This Row],[State]] -> Oregon | AY45: =IF(Table1[[#This Row],[Horses and Ponies]]<_xlfn.PERCENTILE.EXC(Table1[Horses and Ponies],0.2),1,IF(Table1[[#This Row],[Horses and Ponies]]<_xlfn.PERCENTILE.EXC(Table1[Horses and Ponies],0.4),2,IF(Table1[[#This Row],[Horses and Ponies]]<_xlfn.PERCENTILE.EXC(Table1[Horses and Ponies],0.6),3,IF(Table1[[#This Row],[Horses and Ponies]]<_xlfn.PERCENTILE.EXC(Table1[Horses and Ponies],0.8),4,5)))) -> 4
A46: Pennsylvania | B46: 1626374 | C46: 148249 | D46: 532335 | E46: 1134957 | F46: 96648 | G46: 50174 | H46: 32023 | I46: 29248115 | J46: 2955993 | K46: 119900 | L46: 12763536 | M46: =STANDARDIZE(Table1[[#This Row],[Cattle and calves inventory]],AVERAGE(Table1[Cattle and calves inventory]),_xlfn.STDEV.P(Table1[Cattle and calves inventory])) -> -0.08473252897 | N46: =STANDARDIZE(Table1[[#This Row],[Beef cows]],AVERAGE(Table1[Beef cows]),_xlfn.STDEV.P(Table1[Beef cows])) -> -0.5940555511 | O46: =STANDARDIZE(Table1[[#This Row],[Milk cows]],AVERAGE(Table1[Milk cows]),_xlfn.STDEV.P(Table1[Milk cows])) -> 1.072387192 | P46: =STANDARDIZE(Table1[[#This Row],[Hogs and pigs inventory]],AVERAGE(Table1[Hogs and pigs inventory]),_xlfn.STDEV.P(Table1[Hogs and pigs inventory])) -> -0.05647711819 | Q46: =STANDARDIZE(Table1[[#This Row],[Sheep and lambs inventory]],AVERAGE(Table1[Sheep and lambs inventory]),_xlfn.STDEV.P(Table1[Sheep and lambs inventory])) -> -0.07394002857 | R46: =STANDARDIZE(Table1[[#This Row],[All goats]],AVERAGE(Table1[All goats]),_xlfn.STDEV.P(Table1[All goats])) -> -0.01855285235 | S46: =STANDARDIZE(Table1[[#This Row],[Colonies of bees]],AVERAGE(Table1[Colonies of bees]),_xlfn.STDEV.P(Table1[Colonies of bees])) -> -0.2367252142 | T46: =STANDARDIZE(Table1[[#This Row],[Broilers and other meat-type chickens]],AVERAGE(Table1[Broilers and other meat-type chickens]),_xlfn.STDEV.P(Table1[Broilers and other meat-type chickens])) -> -0.01628975455 | U46: =STANDARDIZE(Table1[[#This Row],[Turkeys]],AVERAGE(Table1[Turkeys]),_xlfn.STDEV.P(Table1[Turkeys])) -> 0.235245837 | V46: =STANDARDIZE(Table1[[#This Row],[Horses and Ponies]],AVERAGE(Table1[Horses and Ponies]),_xlfn.STDEV.P(Table1[Horses and Ponies])) -> 0.7848375835 | W46: =STANDARDIZE(Table1[[#This Row],[Population]],AVERAGE(Table1[Population]),_xlfn.STDEV.P(Table1[Population])) -> 0.9376552724 | X46: 1 | Y46: 1.93 | Z46: 3 | AA46: 4 | AB46: 5 | AC46: 6 | AD46: 2 | AE46: 7 | AF46: 8 | AG46: 9 | AH46: 10 | AI46: 11 | AJ46: 12 | AK46: =IF(Table1[[#This Row],[Horses and Ponies]]<_xlfn.PERCENTILE.EXC(Table1[Horses and Ponies],0.2),1,IF(Table1[[#This Row],[Horses and Ponies]]<_xlfn.PERCENTILE.EXC(Table1[Horses and Ponies],0.4),2,IF(Table1[[#This Row],[Horses and Ponies]]<_xlfn.PERCENTILE.EXC(Table1[Horses and Ponies],0.6),3,IF(Table1[[#This Row],[Horses and Ponies]]<_xlfn.PERCENTILE.EXC(Table1[Horses and Ponies],0.8),4,5)))) -> 5 | AL46: 4 | AM46: 5 | AN46: 7 | AO46: 8 | AP46: 9 | AQ46: 2 | AR46: 6 | AS46: 11 | AT46: 10 | AU46: 1 | AV46: 3 | AW46: =(Table1[[#This Row],[Cattle and calves inventory]]-QUARTILE(Table1[Cattle and calves inventory],2))/(QUARTILE(Table1[Cattle and calves inventory],3)-QUARTILE(Table1[Cattle and calves inventory],1)) -> 0.1984979575 | AX46: =Table1[[#This Row],[State]] -> Pennsylvania | AY46: =IF(Table1[[#This Row],[Horses and Ponies]]<_xlfn.PERCENTILE.EXC(Table1[Horses and Ponies],0.2),1,IF(Table1[[#This Row],[Horses and Ponies]]<_xlfn.PERCENTILE.EXC(Table1[Horses and Ponies],0.4),2,IF(Table1[[#This Row],[Horses and Ponies]]<_xlfn.PERCENTILE.EXC(Table1[Horses and Ponies],0.6),3,IF(Table1[[#This Row],[Horses and Ponies]]<_xlfn.PERCENTILE.EXC(Table1[Horses and Ponies],0.8),4,5)))) -> 5
A47: Rhode Island | B47: 4667 | C47: 1447 | D47: 1209 | E47: 1830 | F47: 1823 | G47: 886 | H47: 739 | I47: 13402 | J47: 6252 | K47: 2417 | L47: 1050292 | M47: =STANDARDIZE(Table1[[#This Row],[Cattle and calves inventory]],AVERAGE(Table1[Cattle and calves inventory]),_xlfn.STDEV.P(Table1[Cattle and calves inventory])) -> -0.876645262 | N47: =STANDARDIZE(Table1[[#This Row],[Beef cows]],AVERAGE(Table1[Beef cows]),_xlfn.STDEV.P(Table1[Beef cows])) -> -0.7964509422 | O47: =STANDARDIZE(Table1[[#This Row],[Milk cows]],AVERAGE(Table1[Milk cows]),_xlfn.STDEV.P(Table1[Milk cows])) -> -0.5676641809 | P47: =STANDARDIZE(Table1[[#This Row],[Hogs and pigs inventory]],AVERAGE(Table1[Hogs and pigs inventory]),_xlfn.STDEV.P(Table1[Hogs and pigs inventory])) -> -0.4013213676 | Q47: =STANDARDIZE(Table1[[#This Row],[Sheep and lambs inventory]],AVERAGE(Table1[Sheep and lambs inventory]),_xlfn.STDEV.P(Table1[Sheep and lambs inventory])) -> -0.7323532334 | R47: =STANDARDIZE(Table1[[#This Row],[All goats]],AVERAGE(Table1[All goats]),_xlfn.STDEV.P(Table1[All goats])) -> -0.4238363218 | S47: =STANDARDIZE(Table1[[#This Row],[Colonies of bees]],AVERAGE(Table1[Colonies of bees]),_xlfn.STDEV.P(Table1[Colonies of bees])) -> -0.4569471576 | T47: =STANDARDIZE(Table1[[#This Row],[Broilers and other meat-type chickens]],AVERAGE(Table1[Broilers and other meat-type chickens]),_xlfn.STDEV.P(Table1[Broilers and other meat-type chickens])) -> -0.5590460822 | U47: =STANDARDIZE(Table1[[#This Row],[Turkeys]],AVERAGE(Table1[Turkeys]),_xlfn.STDEV.P(Table1[Turkeys])) -> -0.5028438285 | V47: =STANDARDIZE(Table1[[#This Row],[Horses and Ponies]],AVERAGE(Table1[Horses and Ponies]),_xlfn.STDEV.P(Table1[Horses and Ponies])) -> -1.157424252 | W47: =STANDARDIZE(Table1[[#This Row],[Population]],AVERAGE(Table1[Population]),_xlfn.STDEV.P(Table1[Population])) -> -0.7525803711 | X47: 1 | Y47: 1.93 | Z47: 3 | AA47: 4 | AB47: 5 | AC47: 6 | AD47: 2 | AE47: 7 | AF47: 8 | AG47: 9 | AH47: 10 | AI47: 11 | AJ47: 12 | AK47: =IF(Table1[[#This Row],[Horses and Ponies]]<_xlfn.PERCENTILE.EXC(Table1[Horses and Ponies],0.2),1,IF(Table1[[#This Row],[Horses and Ponies]]<_xlfn.PERCENTILE.EXC(Table1[Horses and Ponies],0.4),2,IF(Table1[[#This Row],[Horses and Ponies]]<_xlfn.PERCENTILE.EXC(Table1[Horses and Ponies],0.6),3,IF(Table1[[#This Row],[Horses and Ponies]]<_xlfn.PERCENTILE.EXC(Table1[Horses and Ponies],0.8),4,5)))) -> 1 | AL47: 4 | AM47: 5 | AN47: 7 | AO47: 8 | AP47: 9 | AQ47: 2 | AR47: 6 | AS47: 11 | AT47: 10 | AU47: 1 | AV47: 3 | AW47: =(Table1[[#This Row],[Cattle and calves inventory]]-QUARTILE(Table1[Cattle and calves inventory],2))/(QUARTILE(Table1[Cattle and calves inventory],3)-QUARTILE(Table1[Cattle and calves inventory],1)) -> -0.6333121667 | AX47: =Table1[[#This Row],[State]] -> Rhode Island | AY47: =IF(Table1[[#This Row],[Horses and Ponies]]<_xlfn.PERCENTILE.EXC(Table1[Horses and Ponies],0.2),1,IF(Table1[[#This Row],[Horses and Ponies]]<_xlfn.PERCENTILE.EXC(Table1[Horses and Ponies],0.4),2,IF(Table1[[#This Row],[Horses and Ponies]]<_xlfn.PERCENTILE.EXC(Table1[Horses and Ponies],0.6),3,IF(Table1[[#This Row],[Horses and Ponies]]<_xlfn.PERCENTILE.EXC(Table1[Horses and Ponies],0.8),4,5)))) -> 1
A48: South Carolina | B48: 297286 | C48: 166745 | D48: 15997 | E48: 224076 | F48: 12684 | G48: 38732 | H48: 10083 | I48: 44296198 | J48: 6999565 | K48: 52395 | L48: 4723723 | M48: =STANDARDIZE(Table1[[#This Row],[Cattle and calves inventory]],AVERAGE(Table1[Cattle and calves inventory]),_xlfn.STDEV.P(Table1[Cattle and calves inventory])) -> -0.7337534129 | N48: =STANDARDIZE(Table1[[#This Row],[Beef cows]],AVERAGE(Table1[Beef cows]),_xlfn.STDEV.P(Table1[Beef cows])) -> -0.5685551823 | O48: =STANDARDIZE(Table1[[#This Row],[Milk cows]],AVERAGE(Table1[Milk cows]),_xlfn.STDEV.P(Table1[Milk cows])) -> -0.5220006666 | P48: =STANDARDIZE(Table1[[#This Row],[Hogs and pigs inventory]],AVERAGE(Table1[Hogs and pigs inventory]),_xlfn.STDEV.P(Table1[Hogs and pigs inventory])) -> -0.3336852994 | Q48: =STANDARDIZE(Table1[[#This Row],[Sheep and lambs inventory]],AVERAGE(Table1[Sheep and lambs inventory]),_xlfn.STDEV.P(Table1[Sheep and lambs inventory])) -> -0.656940359 | R48: =STANDARDIZE(Table1[[#This Row],[All goats]],AVERAGE(Table1[All goats]),_xlfn.STDEV.P(Table1[All goats])) -> -0.1126376896 | S48: =STANDARDIZE(Table1[[#This Row],[Colonies of bees]],AVERAGE(Table1[Colonies of bees]),_xlfn.STDEV.P(Table1[Colonies of bees])) -> -0.3911705997 | T48: =STANDARDIZE(Table1[[#This Row],[Broilers and other meat-type chickens]],AVERAGE(Table1[Broilers and other meat-type chickens]),_xlfn.STDEV.P(Table1[Broilers and other meat-type chickens])) -> 0.2630850512 | U48: =STANDARDIZE(Table1[[#This Row],[Turkeys]],AVERAGE(Table1[Turkeys]),_xlfn.STDEV.P(Table1[Turkeys])) -> 1.247035925 | V48: =STANDARDIZE(Table1[[#This Row],[Horses and Ponies]],AVERAGE(Table1[Horses and Ponies]),_xlfn.STDEV.P(Table1[Horses and Ponies])) -> -0.331173969 | W48: =STANDARDIZE(Table1[[#This Row],[Population]],AVERAGE(Table1[Population]),_xlfn.STDEV.P(Table1[Population])) -> -0.2224997196 | X48: 1 | Y48: 1.96 | Z48: 3 | AA48: 4 | AB48: 5 | AC48: 6 | AD48: 2 | AE48: 7 | AF48: 8 | AG48: 9 | AH48: 10 | AI48: 11 | AJ48: 12 | AK48: =IF(Table1[[#This Row],[Horses and Ponies]]<_xlfn.PERCENTILE.EXC(Table1[Horses and Ponies],0.2),1,IF(Table1[[#This Row],[Horses and Ponies]]<_xlfn.PERCENTILE.EXC(Table1[Horses and Ponies],0.4),2,IF(Table1[[#This Row],[Horses and Ponies]]<_xlfn.PERCENTILE.EXC(Table1[Horses and Ponies],0.6),3,IF(Table1[[#This Row],[Horses and Ponies]]<_xlfn.PERCENTILE.EXC(Table1[Horses and Ponies],0.8),4,5)))) -> 2 | AL48: 4 | AM48: 5 | AN48: 7 | AO48: 8 | AP48: 9 | AQ48: 2 | AR48: 6 | AS48: 11 | AT48: 10 | AU48: 1 | AV48: 3 | AW48: =(Table1[[#This Row],[Cattle and calves inventory]]-QUARTILE(Table1[Cattle and calves inventory],2))/(QUARTILE(Table1[Cattle and calves inventory],3)-QUARTILE(Table1[Cattle and calves inventory],1)) -> -0.4832212768 | AX48: =Table1[[#This Row],[State]] -> South Carolina | AY48: =IF(Table1[[#This Row],[Horses and Ponies]]<_xlfn.PERCENTILE.EXC(Table1[Horses and Ponies],0.2),1,IF(Table1[[#This Row],[Horses and Ponies]]<_xlfn.PERCENTILE.EXC(Table1[Horses and Ponies],0.4),2,IF(Table1[[#This Row],[Horses and Ponies]]<_xlfn.PERCENTILE.EXC(Table1[Horses and Ponies],0.6),3,IF(Table1[[#This Row],[Horses and Ponies]]<_xlfn.PERCENTILE.EXC(Table1[Horses and Ponies],0.8),4,5)))) -> 2
A49: South Dakota | B49: 3893251 | C49: 1610559 | D49: 91831 | E49: 1191162 | F49: 257676 | G49: 16545 | H49: 210447 | I49: 57635 | J49: 2449784 | K49: 68925 | L49: 833354 | M49: =STANDARDIZE(Table1[[#This Row],[Cattle and calves inventory]],AVERAGE(Table1[Cattle and calves inventory]),_xlfn.STDEV.P(Table1[Cattle and calves inventory])) -> 1.022229925 | N49: =STANDARDIZE(Table1[[#This Row],[Beef cows]],AVERAGE(Table1[Beef cows]),_xlfn.STDEV.P(Table1[Beef cows])) -> 1.422026003 | O49: =STANDARDIZE(Table1[[#This Row],[Milk cows]],AVERAGE(Table1[Milk cows]),_xlfn.STDEV.P(Table1[Milk cows])) -> -0.2878346574 | P49: =STANDARDIZE(Table1[[#This Row],[Hogs and pigs inventory]],AVERAGE(Table1[Hogs and pigs inventory]),_xlfn.STDEV.P(Table1[Hogs and pigs inventory])) -> -0.03937226495 | Q49: =STANDARDIZE(Table1[[#This Row],[Sheep and lambs inventory]],AVERAGE(Table1[Sheep and lambs inventory]),_xlfn.STDEV.P(Table1[Sheep and lambs inventory])) -> 1.044150787 | R49: =STANDARDIZE(Table1[[#This Row],[All goats]],AVERAGE(Table1[All goats]),_xlfn.STDEV.P(Table1[All goats])) -> -0.2950760993 | S49: =STANDARDIZE(Table1[[#This Row],[Colonies of bees]],AVERAGE(Table1[Colonies of bees]),_xlfn.STDEV.P(Table1[Colonies of bees])) -> 1.019280413 | T49: =STANDARDIZE(Table1[[#This Row],[Broilers and other meat-type chickens]],AVERAGE(Table1[Broilers and other meat-type chickens]),_xlfn.STDEV.P(Table1[Broilers and other meat-type chickens])) -> -0.5582248755 | U49: =STANDARDIZE(Table1[[#This Row],[Turkeys]],AVERAGE(Table1[Turkeys]),_xlfn.STDEV.P(Table1[Turkeys])) -> 0.1085812819 | V49: =STANDARDIZE(Table1[[#This Row],[Horses and Ponies]],AVERAGE(Table1[Horses and Ponies]),_xlfn.STDEV.P(Table1[Horses and Ponies])) -> -0.05789538281 | W49: =STANDARDIZE(Table1[[#This Row],[Population]],AVERAGE(Table1[Population]),_xlfn.STDEV.P(Table1[Population])) -> -0.7838847937 | X49: 1 | Y49: 2.01 | Z49: 3 | AA49: 4 | AB49: 5 | AC49: 6 | AD49: 2 | AE49: 7 | AF49: 8 | AG49: 9 | AH49: 10 | AI49: 11 | AJ49: 12 | AK49: =IF(Table1[[#This Row],[Horses and Ponies]]<_xlfn.PERCENTILE.EXC(Table1[Horses and Ponies],0.2),1,IF(Table1[[#This Row],[Horses and Ponies]]<_xlfn.PERCENTILE.EXC(Table1[Horses and Ponies],0.4),2,IF(Table1[[#This Row],[Horses and Ponies]]<_xlfn.PERCENTILE.EXC(Table1[Horses and Ponies],0.6),3,IF(Table1[[#This Row],[Horses and Ponies]]<_xlfn.PERCENTILE.EXC(Table1[Horses and Ponies],0.8),4,5)))) -> 3 | AL49: 4 | AM49: 5 | AN49: 7 | AO49: 8 | AP49: 9 | AQ49: 2 | AR49: 6 | AS49: 11 | AT49: 10 | AU49: 1 | AV49: 3 | AW49: =(Table1[[#This Row],[Cattle and calves inventory]]-QUARTILE(Table1[Cattle and calves inventory],2))/(QUARTILE(Table1[Cattle and calves inventory],3)-QUARTILE(Table1[Cattle and calves inventory],1)) -> 1.361230337 | AX49: =Table1[[#This Row],[State]] -> South Dakota | AY49: =IF(Table1[[#This Row],[Horses and Ponies]]<_xlfn.PERCENTILE.EXC(Table1[Horses and Ponies],0.2),1,IF(Table1[[#This Row],[Horses and Ponies]]<_xlfn.PERCENTILE.EXC(Table1[Horses and Ponies],0.4),2,IF(Table1[[#This Row],[Horses and Ponies]]<_xlfn.PERCENTILE.EXC(Table1[Horses and Ponies],0.6),3,IF(Table1[[#This Row],[Horses and Ponies]]<_xlfn.PERCENTILE.EXC(Table1[Horses and Ponies],0.8),4,5)))) -> 3
A50: Tennessee | B50: 1856316 | C50: 874630 | D50: 47978 | E50: 147795 | F50: 43836 | G50: 91716 | H50: 14161 | I50: 30400743 | J50: 3985 | K50: 96541 | L50: 6456243 | M50: =STANDARDIZE(Table1[[#This Row],[Cattle and calves inventory]],AVERAGE(Table1[Cattle and calves inventory]),_xlfn.STDEV.P(Table1[Cattle and calves inventory])) -> 0.02755285777 | N50: =STANDARDIZE(Table1[[#This Row],[Beef cows]],AVERAGE(Table1[Beef cows]),_xlfn.STDEV.P(Table1[Beef cows])) -> 0.407403329 | O50: =STANDARDIZE(Table1[[#This Row],[Milk cows]],AVERAGE(Table1[Milk cows]),_xlfn.STDEV.P(Table1[Milk cows])) -> -0.4232472956 | P50: =STANDARDIZE(Table1[[#This Row],[Hogs and pigs inventory]],AVERAGE(Table1[Hogs and pigs inventory]),_xlfn.STDEV.P(Table1[Hogs and pigs inventory])) -> -0.3568998766 | Q50: =STANDARDIZE(Table1[[#This Row],[Sheep and lambs inventory]],AVERAGE(Table1[Sheep and lambs inventory]),_xlfn.STDEV.P(Table1[Sheep and lambs inventory])) -> -0.4406378211 | R50: =STANDARDIZE(Table1[[#This Row],[All goats]],AVERAGE(Table1[All goats]),_xlfn.STDEV.P(Table1[All goats])) -> 0.3230371064 | S50: =STANDARDIZE(Table1[[#This Row],[Colonies of bees]],AVERAGE(Table1[Colonies of bees]),_xlfn.STDEV.P(Table1[Colonies of bees])) -> -0.36246375 | T50: =STANDARDIZE(Table1[[#This Row],[Broilers and other meat-type chickens]],AVERAGE(Table1[Broilers and other meat-type chickens]),_xlfn.STDEV.P(Table1[Broilers and other meat-type chickens])) -> 0.005109331544 | U50: =STANDARDIZE(Table1[[#This Row],[Turkeys]],AVERAGE(Table1[Turkeys]),_xlfn.STDEV.P(Table1[Turkeys])) -> -0.5034110814 | V50: =STANDARDIZE(Table1[[#This Row],[Horses and Ponies]],AVERAGE(Table1[Horses and Ponies]),_xlfn.STDEV.P(Table1[Horses and Ponies])) -> 0.398660058 | W50: =STANDARDIZE(Table1[[#This Row],[Population]],AVERAGE(Table1[Population]),_xlfn.STDEV.P(Table1[Population])) -> 0.02750506615 | X50: 1 | Y50: 2.1 | Z50: 3 | AA50: 4 | AB50: 5 | AC50: 6 | AD50: 2 | AE50: 7 | AF50: 8 | AG50: 9 | AH50: 10 | AI50: 11 | AJ50: 12 | AK50: =IF(Table1[[#This Row],[Horses and Ponies]]<_xlfn.PERCENTILE.EXC(Table1[Horses and Ponies],0.2),1,IF(Table1[[#This Row],[Horses and Ponies]]<_xlfn.PERCENTILE.EXC(Table1[Horses and Ponies],0.4),2,IF(Table1[[#This Row],[Horses and Ponies]]<_xlfn.PERCENTILE.EXC(Table1[Horses and Ponies],0.6),3,IF(Table1[[#This Row],[Horses and Ponies]]<_xlfn.PERCENTILE.EXC(Table1[Horses and Ponies],0.8),4,5)))) -> 4 | AL50: 4 | AM50: 5 | AN50: 7 | AO50: 8 | AP50: 9 | AQ50: 2 | AR50: 6 | AS50: 11 | AT50: 10 | AU50: 1 | AV50: 3 | AW50: =(Table1[[#This Row],[Cattle and calves inventory]]-QUARTILE(Table1[Cattle and calves inventory],2))/(QUARTILE(Table1[Cattle and calves inventory],3)-QUARTILE(Table1[Cattle and calves inventory],1)) -> 0.3164403994 | AX50: =Table1[[#This Row],[State]] -> Tennessee | AY50: =IF(Table1[[#This Row],[Horses and Ponies]]<_xlfn.PERCENTILE.EXC(Table1[Horses and Ponies],0.2),1,IF(Table1[[#This Row],[Horses and Ponies]]<_xlfn.PERCENTILE.EXC(Table1[Horses and Ponies],0.4),2,IF(Table1[[#This Row],[Horses and Ponies]]<_xlfn.PERCENTILE.EXC(Table1[Horses and Ponies],0.6),3,IF(Table1[[#This Row],[Horses and Ponies]]<_xlfn.PERCENTILE.EXC(Table1[Horses and Ponies],0.8),4,5)))) -> 4
A51: Texas | B51: 11159747 | C51: 4329341 | D51: 434928 | E51: 800893 | F51: 623000 | G51: 878914 | H51: 136830 | I51: 107351698 | J51: 1747526 | K51: 395816 | L51: 26059203 | M51: =STANDARDIZE(Table1[[#This Row],[Cattle and calves inventory]],AVERAGE(Table1[Cattle and calves inventory]),_xlfn.STDEV.P(Table1[Cattle and calves inventory])) -> 4.570608706 | N51: =STANDARDIZE(Table1[[#This Row],[Beef cows]],AVERAGE(Table1[Beef cows]),_xlfn.STDEV.P(Table1[Beef cows])) -> 5.170400997 | O51: =STANDARDIZE(Table1[[#This Row],[Milk cows]],AVERAGE(Table1[Milk cows]),_xlfn.STDEV.P(Table1[Milk cows])) -> 0.7716064277 | P51: =STANDARDIZE(Table1[[#This Row],[Hogs and pigs inventory]],AVERAGE(Table1[Hogs and pigs inventory]),_xlfn.STDEV.P(Table1[Hogs and pigs inventory])) -> -0.1581427297 | Q51: =STANDARDIZE(Table1[[#This Row],[Sheep and lambs inventory]],AVERAGE(Table1[Sheep and lambs inventory]),_xlfn.STDEV.P(Table1[Sheep and lambs inventory])) -> 3.580761867 | R51: =STANDARDIZE(Table1[[#This Row],[All goats]],AVERAGE(Table1[All goats]),_xlfn.STDEV.P(Table1[All goats])) -> 6.795978524 | S51: =STANDARDIZE(Table1[[#This Row],[Colonies of bees]],AVERAGE(Table1[Colonies of bees]),_xlfn.STDEV.P(Table1[Colonies of bees])) -> 0.5010577171 | T51: =STANDARDIZE(Table1[[#This Row],[Broilers and other meat-type chickens]],AVERAGE(Table1[Broilers and other meat-type chickens]),_xlfn.STDEV.P(Table1[Broilers and other meat-type chickens])) -> 1.433740348 | U51: =STANDARDIZE(Table1[[#This Row],[Turkeys]],AVERAGE(Table1[Turkeys]),_xlfn.STDEV.P(Table1[Turkeys])) -> -0.06713901774 | V51: =STANDARDIZE(Table1[[#This Row],[Horses and Ponies]],AVERAGE(Table1[Horses and Ponies]),_xlfn.STDEV.P(Table1[Horses and Ponies])) -> 5.346358116 | W51: =STANDARDIZE(Table1[[#This Row],[Population]],AVERAGE(Table1[Population]),_xlfn.STDEV.P(Table1[Population])) -> 2.856236518 | X51: 1 | Y51: 1.95 | Z51: 3 | AA51: 4 | AB51: 5 | AC51: 6 | AD51: 2 | AE51: 7 | AF51: 8 | AG51: 9 | AH51: 10 | AI51: 11 | AJ51: 12 | AK51: =IF(Table1[[#This Row],[Horses and Ponies]]<_xlfn.PERCENTILE.EXC(Table1[Horses and Ponies],0.2),1,IF(Table1[[#This Row],[Horses and Ponies]]<_xlfn.PERCENTILE.EXC(Table1[Horses and Ponies],0.4),2,IF(Table1[[#This Row],[Horses and Ponies]]<_xlfn.PERCENTILE.EXC(Table1[Horses and Ponies],0.6),3,IF(Table1[[#This Row],[Horses and Ponies]]<_xlfn.PERCENTILE.EXC(Table1[Horses and Ponies],0.8),4,5)))) -> 5 | AL51: 4 | AM51: 5 | AN51: 7 | AO51: 8 | AP51: 9 | AQ51: 2 | AR51: 6 | AS51: 11 | AT51: 10 | AU51: 1 | AV51: 3 | AW51: =(Table1[[#This Row],[Cattle and calves inventory]]-QUARTILE(Table1[Cattle and calves inventory],2))/(QUARTILE(Table1[Cattle and calves inventory],3)-QUARTILE(Table1[Cattle and calves inventory],1)) -> 5.088380149 | AX51: =Table1[[#This Row],[State]] -> Texas | AY51: =IF(Table1[[#This Row],[Horses and Ponies]]<_xlfn.PERCENTILE.EXC(Table1[Horses and Ponies],0.2),1,IF(Table1[[#This Row],[Horses and Ponies]]<_xlfn.PERCENTILE.EXC(Table1[Horses and Ponies],0.4),2,IF(Table1[[#This Row],[Horses and Ponies]]<_xlfn.PERCENTILE.EXC(Table1[Horses and Ponies],0.6),3,IF(Table1[[#This Row],[Horses and Ponies]]<_xlfn.PERCENTILE.EXC(Table1[Horses and Ponies],0.8),4,5)))) -> 5
A52: Utah | B52: 776833 | C52: 369670 | D52: 90449 | E52: 731666 | F52: 287883 | G52: 14723 | H52: 26083 | I52: 5629 | J52: 2894895 | K52: 58979 | L52: 2855287 | M52: =STANDARDIZE(Table1[[#This Row],[Cattle and calves inventory]],AVERAGE(Table1[Cattle and calves inventory]),_xlfn.STDEV.P(Table1[Cattle and calves inventory])) -> -0.4995807939 | N52: =STANDARDIZE(Table1[[#This Row],[Beef cows]],AVERAGE(Table1[Beef cows]),_xlfn.STDEV.P(Table1[Beef cows])) -> -0.2887832124 | O52: =STANDARDIZE(Table1[[#This Row],[Milk cows]],AVERAGE(Table1[Milk cows]),_xlfn.STDEV.P(Table1[Milk cows])) -> -0.2921021024 | P52: =STANDARDIZE(Table1[[#This Row],[Hogs and pigs inventory]],AVERAGE(Table1[Hogs and pigs inventory]),_xlfn.STDEV.P(Table1[Hogs and pigs inventory])) -> -0.1792105648 | Q52: =STANDARDIZE(Table1[[#This Row],[Sheep and lambs inventory]],AVERAGE(Table1[Sheep and lambs inventory]),_xlfn.STDEV.P(Table1[Sheep and lambs inventory])) -> 1.253891759 | R52: =STANDARDIZE(Table1[[#This Row],[All goats]],AVERAGE(Table1[All goats]),_xlfn.STDEV.P(Table1[All goats])) -> -0.3100579708 | S52: =STANDARDIZE(Table1[[#This Row],[Colonies of bees]],AVERAGE(Table1[Colonies of bees]),_xlfn.STDEV.P(Table1[Colonies of bees])) -> -0.2785395073 | T52: =STANDARDIZE(Table1[[#This Row],[Broilers and other meat-type chickens]],AVERAGE(Table1[Broilers and other meat-type chickens]),_xlfn.STDEV.P(Table1[Broilers and other meat-type chickens])) -> -0.5591903916 | U52: =STANDARDIZE(Table1[[#This Row],[Turkeys]],AVERAGE(Table1[Turkeys]),_xlfn.STDEV.P(Table1[Turkeys])) -> 0.2199577821 | V52: =STANDARDIZE(Table1[[#This Row],[Horses and Ponies]],AVERAGE(Table1[Horses and Ponies]),_xlfn.STDEV.P(Table1[Horses and Ponies])) -> -0.2223254384 | W52: =STANDARDIZE(Table1[[#This Row],[Population]],AVERAGE(Table1[Population]),_xlfn.STDEV.P(Table1[Population])) -> -0.4921173529 | X52: 1 | Y52: 1.97 | Z52: 3 | AA52: 4 | AB52: 5 | AC52: 6 | AD52: 2 | AE52: 7 | AF52: 8 | AG52: 9 | AH52: 10 | AI52: 11 | AJ52: 12 | AK52: =IF(Table1[[#This Row],[Horses and Ponies]]<_xlfn.PERCENTILE.EXC(Table1[Horses and Ponies],0.2),1,IF(Table1[[#This Row],[Horses and Ponies]]<_xlfn.PERCENTILE.EXC(Table1[Horses and Ponies],0.4),2,IF(Table1[[#This Row],[Horses and Ponies]]<_xlfn.PERCENTILE.EXC(Table1[Horses and Ponies],0.6),3,IF(Table1[[#This Row],[Horses and Ponies]]<_xlfn.PERCENTILE.EXC(Table1[Horses and Ponies],0.8),4,5)))) -> 2 | AL52: 4 | AM52: 5 | AN52: 7 | AO52: 8 | AP52: 9 | AQ52: 2 | AR52: 6 | AS52: 11 | AT52: 10 | AU52: 1 | AV52: 3 | AW52: =(Table1[[#This Row],[Cattle and calves inventory]]-QUARTILE(Table1[Cattle and calves inventory],2))/(QUARTILE(Table1[Cattle and calves inventory],3)-QUARTILE(Table1[Cattle and calves inventory],1)) -> -0.2372507966 | AX52: =Table1[[#This Row],[State]] -> Utah | AY52: =IF(Table1[[#This Row],[Horses and Ponies]]<_xlfn.PERCENTILE.EXC(Table1[Horses and Ponies],0.2),1,IF(Table1[[#This Row],[Horses and Ponies]]<_xlfn.PERCENTILE.EXC(Table1[Horses and Ponies],0.4),2,IF(Table1[[#This Row],[Horses and Ponies]]<_xlfn.PERCENTILE.EXC(Table1[Horses and Ponies],0.6),3,IF(Table1[[#This Row],[Horses and Ponies]]<_xlfn.PERCENTILE.EXC(Table1[Horses and Ponies],0.8),4,5)))) -> 2
A53: Vermont | B53: 274251 | C53: 11487 | D53: 134142 | E53: 3874 | F53: 18803 | G53: 10589 | H53: 8624 | I53: 48545 | J53: 3790 | K53: 11666 | L53: 626011 | M53: =STANDARDIZE(Table1[[#This Row],[Cattle and calves inventory]],AVERAGE(Table1[Cattle and calves inventory]),_xlfn.STDEV.P(Table1[Cattle and calves inventory])) -> -0.745001875 | N53: =STANDARDIZE(Table1[[#This Row],[Beef cows]],AVERAGE(Table1[Beef cows]),_xlfn.STDEV.P(Table1[Beef cows])) -> -0.7826088302 | O53: =STANDARDIZE(Table1[[#This Row],[Milk cows]],AVERAGE(Table1[Milk cows]),_xlfn.STDEV.P(Table1[Milk cows])) -> -0.1571835245 | P53: =STANDARDIZE(Table1[[#This Row],[Hogs and pigs inventory]],AVERAGE(Table1[Hogs and pigs inventory]),_xlfn.STDEV.P(Table1[Hogs and pigs inventory])) -> -0.4006993176 | Q53: =STANDARDIZE(Table1[[#This Row],[Sheep and lambs inventory]],AVERAGE(Table1[Sheep and lambs inventory]),_xlfn.STDEV.P(Table1[Sheep and lambs inventory])) -> -0.6144533524 | R53: =STANDARDIZE(Table1[[#This Row],[All goats]],AVERAGE(Table1[All goats]),_xlfn.STDEV.P(Table1[All goats])) -> -0.3440508668 | S53: =STANDARDIZE(Table1[[#This Row],[Colonies of bees]],AVERAGE(Table1[Colonies of bees]),_xlfn.STDEV.P(Table1[Colonies of bees])) -> -0.4014411474 | T53: =STANDARDIZE(Table1[[#This Row],[Broilers and other meat-type chickens]],AVERAGE(Table1[Broilers and other meat-type chickens]),_xlfn.STDEV.P(Table1[Broilers and other meat-type chickens])) -> -0.5583936357 | U53: =STANDARDIZE(Table1[[#This Row],[Turkeys]],AVERAGE(Table1[Turkeys]),_xlfn.STDEV.P(Table1[Turkeys])) -> -0.5034598747 | V53: =STANDARDIZE(Table1[[#This Row],[Horses and Ponies]],AVERAGE(Table1[Horses and Ponies]),_xlfn.STDEV.P(Table1[Horses and Ponies])) -> -1.004517196 | W53: =STANDARDIZE(Table1[[#This Row],[Population]],AVERAGE(Table1[Population]),_xlfn.STDEV.P(Table1[Population])) -> -0.8138046459 | X53: 1 | Y53: 2.08 | Z53: 3 | AA53: 4 | AB53: 5 | AC53: 6 | AD53: 2 | AE53: 7 | AF53: 8 | AG53: 9 | AH53: 10 | AI53: 11 | AJ53: 12 | AK53: =IF(Table1[[#This Row],[Horses and Ponies]]<_xlfn.PERCENTILE.EXC(Table1[Horses and Ponies],0.2),1,IF(Table1[[#This Row],[Horses and Ponies]]<_xlfn.PERCENTILE.EXC(Table1[Horses and Ponies],0.4),2,IF(Table1[[#This Row],[Horses and Ponies]]<_xlfn.PERCENTILE.EXC(Table1[Horses and Ponies],0.6),3,IF(Table1[[#This Row],[Horses and Ponies]]<_xlfn.PERCENTILE.EXC(Table1[Horses and Ponies],0.8),4,5)))) -> 1 | AL53: 4 | AM53: 5 | AN53: 7 | AO53: 8 | AP53: 9 | AQ53: 2 | AR53: 6 | AS53: 11 | AT53: 10 | AU53: 1 | AV53: 3 | AW53: =(Table1[[#This Row],[Cattle and calves inventory]]-QUARTILE(Table1[Cattle and calves inventory],2))/(QUARTILE(Table1[Cattle and calves inventory],3)-QUARTILE(Table1[Cattle and calves inventory],1)) -> -0.4950364483 | AX53: =Table1[[#This Row],[State]] -> Vermont | AY53: =IF(Table1[[#This Row],[Horses and Ponies]]<_xlfn.PERCENTILE.EXC(Table1[Horses and Ponies],0.2),1,IF(Table1[[#This Row],[Horses and Ponies]]<_xlfn.PERCENTILE.EXC(Table1[Horses and Ponies],0.4),2,IF(Table1[[#This Row],[Horses and Ponies]]<_xlfn.PERCENTILE.EXC(Table1[Horses and Ponies],0.6),3,IF(Table1[[#This Row],[Horses and Ponies]]<_xlfn.PERCENTILE.EXC(Table1[Horses and Ponies],0.8),4,5)))) -> 1
A54: Virginia | B54: 1631882 | C54: 657320 | D54: 94105 | E54: 239899 | F54: 84983 | G54: 50831 | H54: 14334 | I54: 38386310 | J54: 5160805 | K54: 86840 | L54: 8185867 | M54: =STANDARDIZE(Table1[[#This Row],[Cattle and calves inventory]],AVERAGE(Table1[Cattle and calves inventory]),_xlfn.STDEV.P(Table1[Cattle and calves inventory])) -> -0.08204285979 | N54: =STANDARDIZE(Table1[[#This Row],[Beef cows]],AVERAGE(Table1[Beef cows]),_xlfn.STDEV.P(Table1[Beef cows])) -> 0.1077988112 | O54: =STANDARDIZE(Table1[[#This Row],[Milk cows]],AVERAGE(Table1[Milk cows]),_xlfn.STDEV.P(Table1[Milk cows])) -> -0.2808128268 | P54: =STANDARDIZE(Table1[[#This Row],[Hogs and pigs inventory]],AVERAGE(Table1[Hogs and pigs inventory]),_xlfn.STDEV.P(Table1[Hogs and pigs inventory])) -> -0.3288698899 | Q54: =STANDARDIZE(Table1[[#This Row],[Sheep and lambs inventory]],AVERAGE(Table1[Sheep and lambs inventory]),_xlfn.STDEV.P(Table1[Sheep and lambs inventory])) -> -0.1549354415 | R54: =STANDARDIZE(Table1[[#This Row],[All goats]],AVERAGE(Table1[All goats]),_xlfn.STDEV.P(Table1[All goats])) -> -0.01315049803 | S54: =STANDARDIZE(Table1[[#This Row],[Colonies of bees]],AVERAGE(Table1[Colonies of bees]),_xlfn.STDEV.P(Table1[Colonies of bees])) -> -0.3612459263 | T54: =STANDARDIZE(Table1[[#This Row],[Broilers and other meat-type chickens]],AVERAGE(Table1[Broilers and other meat-type chickens]),_xlfn.STDEV.P(Table1[Broilers and other meat-type chickens])) -> 0.1533651745 | U54: =STANDARDIZE(Table1[[#This Row],[Turkeys]],AVERAGE(Table1[Turkeys]),_xlfn.STDEV.P(Table1[Turkeys])) -> 0.786937986 | V54: =STANDARDIZE(Table1[[#This Row],[Horses and Ponies]],AVERAGE(Table1[Horses and Ponies]),_xlfn.STDEV.P(Table1[Horses and Ponies])) -> 0.238280411 | W54: =STANDARDIZE(Table1[[#This Row],[Population]],AVERAGE(Table1[Population]),_xlfn.STDEV.P(Table1[Population])) -> 0.2770919555 | X54: 1 | Y54: 2.04 | Z54: 3 | AA54: 4 | AB54: 5 | AC54: 6 | AD54: 2 | AE54: 7 | AF54: 8 | AG54: 9 | AH54: 10 | AI54: 11 | AJ54: 12 | AK54: =IF(Table1[[#This Row],[Horses and Ponies]]<_xlfn.PERCENTILE.EXC(Table1[Horses and Ponies],0.2),1,IF(Table1[[#This Row],[Horses and Ponies]]<_xlfn.PERCENTILE.EXC(Table1[Horses and Ponies],0.4),2,IF(Table1[[#This Row],[Horses and Ponies]]<_xlfn.PERCENTILE.EXC(Table1[Horses and Ponies],0.6),3,IF(Table1[[#This Row],[Horses and Ponies]]<_xlfn.PERCENTILE.EXC(Table1[Horses and Ponies],0.8),4,5)))) -> 4 | AL54: 4 | AM54: 5 | AN54: 7 | AO54: 8 | AP54: 9 | AQ54: 2 | AR54: 6 | AS54: 11 | AT54: 10 | AU54: 1 | AV54: 3 | AW54: =(Table1[[#This Row],[Cattle and calves inventory]]-QUARTILE(Table1[Cattle and calves inventory],2))/(QUARTILE(Table1[Cattle and calves inventory],3)-QUARTILE(Table1[Cattle and calves inventory],1)) -> 0.2013231351 | AX54: =Table1[[#This Row],[State]] -> Virginia | AY54: =IF(Table1[[#This Row],[Horses and Ponies]]<_xlfn.PERCENTILE.EXC(Table1[Horses and Ponies],0.2),1,IF(Table1[[#This Row],[Horses and Ponies]]<_xlfn.PERCENTILE.EXC(Table1[Horses and Ponies],0.4),2,IF(Table1[[#This Row],[Horses and Ponies]]<_xlfn.PERCENTILE.EXC(Table1[Horses and Ponies],0.6),3,IF(Table1[[#This Row],[Horses and Ponies]]<_xlfn.PERCENTILE.EXC(Table1[Horses and Ponies],0.8),4,5)))) -> 4
A55: Washington | B55: 1162792 | C55: 211852 | D55: 266989 | E55: 19861 | F55: 44863 | G55: 27062 | H55: 96685 | I55: 7511065 | J55: 5326 | K55: 64616 | L55: 6897012 | M55: =STANDARDIZE(Table1[[#This Row],[Cattle and calves inventory]],AVERAGE(Table1[Cattle and calves inventory]),_xlfn.STDEV.P(Table1[Cattle and calves inventory])) -> -0.3111091116 | N55: =STANDARDIZE(Table1[[#This Row],[Beef cows]],AVERAGE(Table1[Beef cows]),_xlfn.STDEV.P(Table1[Beef cows])) -> -0.5063663231 | O55: =STANDARDIZE(Table1[[#This Row],[Milk cows]],AVERAGE(Table1[Milk cows]),_xlfn.STDEV.P(Table1[Milk cows])) -> 0.2530315745 | P55: =STANDARDIZE(Table1[[#This Row],[Hogs and pigs inventory]],AVERAGE(Table1[Hogs and pigs inventory]),_xlfn.STDEV.P(Table1[Hogs and pigs inventory])) -> -0.395833998 | Q55: =STANDARDIZE(Table1[[#This Row],[Sheep and lambs inventory]],AVERAGE(Table1[Sheep and lambs inventory]),_xlfn.STDEV.P(Table1[Sheep and lambs inventory])) -> -0.4335068919 | R55: =STANDARDIZE(Table1[[#This Row],[All goats]],AVERAGE(Table1[All goats]),_xlfn.STDEV.P(Table1[All goats])) -> -0.2085973164 | S55: =STANDARDIZE(Table1[[#This Row],[Colonies of bees]],AVERAGE(Table1[Colonies of bees]),_xlfn.STDEV.P(Table1[Colonies of bees])) -> 0.2184592668 | T55: =STANDARDIZE(Table1[[#This Row],[Broilers and other meat-type chickens]],AVERAGE(Table1[Broilers and other meat-type chickens]),_xlfn.STDEV.P(Table1[Broilers and other meat-type chickens])) -> -0.4198484086 | U55: =STANDARDIZE(Table1[[#This Row],[Turkeys]],AVERAGE(Table1[Turkeys]),_xlfn.STDEV.P(Table1[Turkeys])) -> -0.5030755339 | V55: =STANDARDIZE(Table1[[#This Row],[Horses and Ponies]],AVERAGE(Table1[Horses and Ponies]),_xlfn.STDEV.P(Table1[Horses and Ponies])) -> -0.1291329768 | W55: =STANDARDIZE(Table1[[#This Row],[Population]],AVERAGE(Table1[Population]),_xlfn.STDEV.P(Table1[Population])) -> 0.09110857978 | X55: 1 | Y55: 2.04 | Z55: 3 | AA55: 4 | AB55: 5 | AC55: 6 | AD55: 2 | AE55: 7 | AF55: 8 | AG55: 9 | AH55: 10 | AI55: 11 | AJ55: 12 | AK55: =IF(Table1[[#This Row],[Horses and Ponies]]<_xlfn.PERCENTILE.EXC(Table1[Horses and Ponies],0.2),1,IF(Table1[[#This Row],[Horses and Ponies]]<_xlfn.PERCENTILE.EXC(Table1[Horses and Ponies],0.4),2,IF(Table1[[#This Row],[Horses and Ponies]]<_xlfn.PERCENTILE.EXC(Table1[Horses and Ponies],0.6),3,IF(Table1[[#This Row],[Horses and Ponies]]<_xlfn.PERCENTILE.EXC(Table1[Horses and Ponies],0.8),4,5)))) -> 3 | AL55: 4 | AM55: 5 | AN55: 7 | AO55: 8 | AP55: 9 | AQ55: 2 | AR55: 6 | AS55: 11 | AT55: 10 | AU55: 1 | AV55: 3 | AW55: =(Table1[[#This Row],[Cattle and calves inventory]]-QUARTILE(Table1[Cattle and calves inventory],2))/(QUARTILE(Table1[Cattle and calves inventory],3)-QUARTILE(Table1[Cattle and calves inventory],1)) -> -0.03928371389 | AX55: =Table1[[#This Row],[State]] -> Washington | AY55: =IF(Table1[[#This Row],[Horses and Ponies]]<_xlfn.PERCENTILE.EXC(Table1[Horses and Ponies],0.2),1,IF(Table1[[#This Row],[Horses and Ponies]]<_xlfn.PERCENTILE.EXC(Table1[Horses and Ponies],0.4),2,IF(Table1[[#This Row],[Horses and Ponies]]<_xlfn.PERCENTILE.EXC(Table1[Horses and Ponies],0.6),3,IF(Table1[[#This Row],[Horses and Ponies]]<_xlfn.PERCENTILE.EXC(Table1[Horses and Ponies],0.8),4,5)))) -> 3
A56: West Virginia | B56: 414908 | C56: 191398 | D56: 10095 | E56: 5873 | F56: 31630 | G56: 18825 | H56: 9325 | I56: 14781332 | J56: 1817308 | K56: 26467 | L56: 1855413 | M56: =STANDARDIZE(Table1[[#This Row],[Cattle and calves inventory]],AVERAGE(Table1[Cattle and calves inventory]),_xlfn.STDEV.P(Table1[Cattle and calves inventory])) -> -0.6763161819 | N56: =STANDARDIZE(Table1[[#This Row],[Beef cows]],AVERAGE(Table1[Beef cows]),_xlfn.STDEV.P(Table1[Beef cows])) -> -0.5345661796 | O56: =STANDARDIZE(Table1[[#This Row],[Milk cows]],AVERAGE(Table1[Milk cows]),_xlfn.STDEV.P(Table1[Milk cows])) -> -0.5402253124 | P56: =STANDARDIZE(Table1[[#This Row],[Hogs and pigs inventory]],AVERAGE(Table1[Hogs and pigs inventory]),_xlfn.STDEV.P(Table1[Hogs and pigs inventory])) -> -0.4000909624 | Q56: =STANDARDIZE(Table1[[#This Row],[Sheep and lambs inventory]],AVERAGE(Table1[Sheep and lambs inventory]),_xlfn.STDEV.P(Table1[Sheep and lambs inventory])) -> -0.5253896437 | R56: =STANDARDIZE(Table1[[#This Row],[All goats]],AVERAGE(Table1[All goats]),_xlfn.STDEV.P(Table1[All goats])) -> -0.276328203 | S56: =STANDARDIZE(Table1[[#This Row],[Colonies of bees]],AVERAGE(Table1[Colonies of bees]),_xlfn.STDEV.P(Table1[Colonies of bees])) -> -0.3965064977 | T56: =STANDARDIZE(Table1[[#This Row],[Broilers and other meat-type chickens]],AVERAGE(Table1[Broilers and other meat-type chickens]),_xlfn.STDEV.P(Table1[Broilers and other meat-type chickens])) -> -0.2848724498 | U56: =STANDARDIZE(Table1[[#This Row],[Turkeys]],AVERAGE(Table1[Turkeys]),_xlfn.STDEV.P(Table1[Turkeys])) -> -0.04967803624 | V56: =STANDARDIZE(Table1[[#This Row],[Horses and Ponies]],AVERAGE(Table1[Horses and Ponies]),_xlfn.STDEV.P(Table1[Horses and Ponies])) -> -0.7598229215 | W56: =STANDARDIZE(Table1[[#This Row],[Population]],AVERAGE(Table1[Population]),_xlfn.STDEV.P(Table1[Population])) -> -0.6364004118 | X56: 1 | Y56: 2.04 | Z56: 3 | AA56: 4 | AB56: 5 | AC56: 6 | AD56: 2 | AE56: 7 | AF56: 8 | AG56: 9 | AH56: 10 | AI56: 11 | AJ56: 12 | AK56: =IF(Table1[[#This Row],[Horses and Ponies]]<_xlfn.PERCENTILE.EXC(Table1[Horses and Ponies],0.2),1,IF(Table1[[#This Row],[Horses and Ponies]]<_xlfn.PERCENTILE.EXC(Table1[Horses and Ponies],0.4),2,IF(Table1[[#This Row],[Horses and Ponies]]<_xlfn.PERCENTILE.EXC(Table1[Horses and Ponies],0.6),3,IF(Table1[[#This Row],[Horses and Ponies]]<_xlfn.PERCENTILE.EXC(Table1[Horses and Ponies],0.8),4,5)))) -> 2 | AL56: 4 | AM56: 5 | AN56: 7 | AO56: 8 | AP56: 9 | AQ56: 2 | AR56: 6 | AS56: 11 | AT56: 10 | AU56: 1 | AV56: 3 | AW56: =(Table1[[#This Row],[Cattle and calves inventory]]-QUARTILE(Table1[Cattle and calves inventory],2))/(QUARTILE(Table1[Cattle and calves inventory],3)-QUARTILE(Table1[Cattle and calves inventory],1)) -> -0.4228902982 | AX56: =Table1[[#This Row],[State]] -> West Virginia | AY56: =IF(Table1[[#This Row],[Horses and Ponies]]<_xlfn.PERCENTILE.EXC(Table1[Horses and Ponies],0.2),1,IF(Table1[[#This Row],[Horses and Ponies]]<_xlfn.PERCENTILE.EXC(Table1[Horses and Ponies],0.4),2,IF(Table1[[#This Row],[Horses and Ponies]]<_xlfn.PERCENTILE.EXC(Table1[Horses and Ponies],0.6),3,IF(Table1[[#This Row],[Horses and Ponies]]<_xlfn.PERCENTILE.EXC(Table1[Horses and Ponies],0.8),4,5)))) -> 2
A57: Wisconsin | B57: 3494084 | C57: 248305 | D57: 1270091 | E57: 311651 | F57: 80081 | G57: 61111 | H57: 49661 | I57: 7818682 | J57: 3468522 | K57: 103481 | L57: 5726398 | M57: =STANDARDIZE(Table1[[#This Row],[Cattle and calves inventory]],AVERAGE(Table1[Cattle and calves inventory]),_xlfn.STDEV.P(Table1[Cattle and calves inventory])) -> 0.827308506 | N57: =STANDARDIZE(Table1[[#This Row],[Beef cows]],AVERAGE(Table1[Beef cows]),_xlfn.STDEV.P(Table1[Beef cows])) -> -0.4561087027 | O57: =STANDARDIZE(Table1[[#This Row],[Milk cows]],AVERAGE(Table1[Milk cows]),_xlfn.STDEV.P(Table1[Milk cows])) -> 3.350486438 | P57: =STANDARDIZE(Table1[[#This Row],[Hogs and pigs inventory]],AVERAGE(Table1[Hogs and pigs inventory]),_xlfn.STDEV.P(Table1[Hogs and pigs inventory])) -> -0.3070336221 | Q57: =STANDARDIZE(Table1[[#This Row],[Sheep and lambs inventory]],AVERAGE(Table1[Sheep and lambs inventory]),_xlfn.STDEV.P(Table1[Sheep and lambs inventory])) -> -0.1889722623 | R57: =STANDARDIZE(Table1[[#This Row],[All goats]],AVERAGE(Table1[All goats]),_xlfn.STDEV.P(Table1[All goats])) -> 0.07137949032 | S57: =STANDARDIZE(Table1[[#This Row],[Colonies of bees]],AVERAGE(Table1[Colonies of bees]),_xlfn.STDEV.P(Table1[Colonies of bees])) -> -0.1125635137 | T57: =STANDARDIZE(Table1[[#This Row],[Broilers and other meat-type chickens]],AVERAGE(Table1[Broilers and other meat-type chickens]),_xlfn.STDEV.P(Table1[Broilers and other meat-type chickens])) -> -0.414137353 | U57: =STANDARDIZE(Table1[[#This Row],[Turkeys]],AVERAGE(Table1[Turkeys]),_xlfn.STDEV.P(Table1[Turkeys])) -> 0.3634917942 | V57: =STANDARDIZE(Table1[[#This Row],[Horses and Ponies]],AVERAGE(Table1[Horses and Ponies]),_xlfn.STDEV.P(Table1[Horses and Ponies])) -> 0.5133940803 | W57: =STANDARDIZE(Table1[[#This Row],[Population]],AVERAGE(Table1[Population]),_xlfn.STDEV.P(Table1[Population])) -> -0.07781247297 | X57: 1 | Y57: 1.91 | Z57: 3 | AA57: 4 | AB57: 5 | AC57: 6 | AD57: 2 | AE57: 7 | AF57: 8 | AG57: 9 | AH57: 10 | AI57: 11 | AJ57: 12 | AK57: =IF(Table1[[#This Row],[Horses and Ponies]]<_xlfn.PERCENTILE.EXC(Table1[Horses and Ponies],0.2),1,IF(Table1[[#This Row],[Horses and Ponies]]<_xlfn.PERCENTILE.EXC(Table1[Horses and Ponies],0.4),2,IF(Table1[[#This Row],[Horses and Ponies]]<_xlfn.PERCENTILE.EXC(Table1[Horses and Ponies],0.6),3,IF(Table1[[#This Row],[Horses and Ponies]]<_xlfn.PERCENTILE.EXC(Table1[Horses and Ponies],0.8),4,5)))) -> 5 | AL57: 4 | AM57: 5 | AN57: 7 | AO57: 8 | AP57: 9 | AQ57: 2 | AR57: 6 | AS57: 11 | AT57: 10 | AU57: 1 | AV57: 3 | AW57: =(Table1[[#This Row],[Cattle and calves inventory]]-QUARTILE(Table1[Cattle and calves inventory],2))/(QUARTILE(Table1[Cattle and calves inventory],3)-QUARTILE(Table1[Cattle and calves inventory],1)) -> 1.156488573 | AX57: =Table1[[#This Row],[State]] -> Wisconsin | AY57: =IF(Table1[[#This Row],[Horses and Ponies]]<_xlfn.PERCENTILE.EXC(Table1[Horses and Ponies],0.2),1,IF(Table1[[#This Row],[Horses and Ponies]]<_xlfn.PERCENTILE.EXC(Table1[Horses and Ponies],0.4),2,IF(Table1[[#This Row],[Horses and Ponies]]<_xlfn.PERCENTILE.EXC(Table1[Horses and Ponies],0.6),3,IF(Table1[[#This Row],[Horses and Ponies]]<_xlfn.PERCENTILE.EXC(Table1[Horses and Ponies],0.8),4,5)))) -> 5
A58: Wyoming | B58: 1307731 | C58: 664254 | D58: 6194 | E58: 85432 | F58: 354785 | G58: 9246 | H58: 45029 | I58: 4857 | J58: 926 | K58: 72461 | L58: 576412 | M58: =STANDARDIZE(Table1[[#This Row],[Cattle and calves inventory]],AVERAGE(Table1[Cattle and calves inventory]),_xlfn.STDEV.P(Table1[Cattle and calves inventory])) -> -0.2403324302 | N58: =STANDARDIZE(Table1[[#This Row],[Beef cows]],AVERAGE(Table1[Beef cows]),_xlfn.STDEV.P(Table1[Beef cows])) -> 0.1173586922 | O58: =STANDARDIZE(Table1[[#This Row],[Milk cows]],AVERAGE(Table1[Milk cows]),_xlfn.STDEV.P(Table1[Milk cows])) -> -0.5522711177 | P58: =STANDARDIZE(Table1[[#This Row],[Hogs and pigs inventory]],AVERAGE(Table1[Hogs and pigs inventory]),_xlfn.STDEV.P(Table1[Hogs and pigs inventory])) -> -0.3758787924 | Q58: =STANDARDIZE(Table1[[#This Row],[Sheep and lambs inventory]],AVERAGE(Table1[Sheep and lambs inventory]),_xlfn.STDEV.P(Table1[Sheep and lambs inventory])) -> 1.718422845 | R58: =STANDARDIZE(Table1[[#This Row],[All goats]],AVERAGE(Table1[All goats]),_xlfn.STDEV.P(Table1[All goats])) -> -0.3550940356 | S58: =STANDARDIZE(Table1[[#This Row],[Colonies of bees]],AVERAGE(Table1[Colonies of bees]),_xlfn.STDEV.P(Table1[Colonies of bees])) -> -0.145170215 | T58: =STANDARDIZE(Table1[[#This Row],[Broilers and other meat-type chickens]],AVERAGE(Table1[Broilers and other meat-type chickens]),_xlfn.STDEV.P(Table1[Broilers and other meat-type chickens])) -> -0.5592047241 | U58: =STANDARDIZE(Table1[[#This Row],[Turkeys]],AVERAGE(Table1[Turkeys]),_xlfn.STDEV.P(Table1[Turkeys])) -> -0.5041765101 | V58: =STANDARDIZE(Table1[[#This Row],[Horses and Ponies]],AVERAGE(Table1[Horses and Ponies]),_xlfn.STDEV.P(Table1[Horses and Ponies])) -> 0.0005627588067 | W58: =STANDARDIZE(Table1[[#This Row],[Population]],AVERAGE(Table1[Population]),_xlfn.STDEV.P(Table1[Population])) -> -0.8209618431 | X58: 1 | Y58: 2.09 | Z58: 3 | AA58: 4 | AB58: 5 | AC58: 6 | AD58: 2 | AE58: 7 | AF58: 8 | AG58: 9 | AH58: 10 | AI58: 11 | AJ58: 12 | AK58: =IF(Table1[[#This Row],[Horses and Ponies]]<_xlfn.PERCENTILE.EXC(Table1[Horses and Ponies],0.2),1,IF(Table1[[#This Row],[Horses and Ponies]]<_xlfn.PERCENTILE.EXC(Table1[Horses and Ponies],0.4),2,IF(Table1[[#This Row],[Horses and Ponies]]<_xlfn.PERCENTILE.EXC(Table1[Horses and Ponies],0.6),3,IF(Table1[[#This Row],[Horses and Ponies]]<_xlfn.PERCENTILE.EXC(Table1[Horses and Ponies],0.8),4,5)))) -> 4 | AL58: 4 | AM58: 5 | AN58: 7 | AO58: 8 | AP58: 9 | AQ58: 2 | AR58: 6 | AS58: 11 | AT58: 10 | AU58: 1 | AV58: 3 | AW58: =(Table1[[#This Row],[Cattle and calves inventory]]-QUARTILE(Table1[Cattle and calves inventory],2))/(QUARTILE(Table1[Cattle and calves inventory],3)-QUARTILE(Table1[Cattle and calves inventory],1)) -> 0.03505877067 | AX58: =Table1[[#This Row],[State]] -> Wyoming | AY58: =IF(Table1[[#This Row],[Horses and Ponies]]<_xlfn.PERCENTILE.EXC(Table1[Horses and Ponies],0.2),1,IF(Table1[[#This Row],[Horses and Ponies]]<_xlfn.PERCENTILE.EXC(Table1[Horses and Ponies],0.4),2,IF(Table1[[#This Row],[Horses and Ponies]]<_xlfn.PERCENTILE.EXC(Table1[Horses and Ponies],0.6),3,IF(Table1[[#This Row],[Horses and Ponies]]<_xlfn.PERCENTILE.EXC(Table1[Horses and Ponies],0.8),4,5)))) -> 4
A68: Calculations
B70: =+B8 -> Cattle and calves inventory | C70: =+C8 -> Beef cows | D70: Milk cows | E70: Hogs and pigs inventory | F70: Sheep and lambs inventory | G70: All goats | H70: Colonies of bees | I70: Broilers and other meat-type chickens | J70: Turkeys | K70: Horses and Ponies | L70: Population
A71: Average | B71: =AVERAGE(B$9:B$58) -> 1799892.28 | C71: =AVERAGE(C$9:C$58) -> 579131.06 | D71: 185045.44 | E71: 1320535.7 | F71: 107296.88 | G71: 52430.28 | H71: 65651.4 | I71: 30125536.92 | J71: 2015843.96 | K71: 72426.96 | L71: 6265634.34
A72: Standard deviation | B72: =_xlfn.STDEV.P(B$9:B$58) -> 2047835.49 | C72: =_xlfn.STDEV.P(C$9:C$58) -> 725322.8409 | D72: 323847.1726 | E72: 3285909.514 | F72: 144020.5016 | G72: 121613.645 | H72: 142056.6884 | I72: 53863421.78 | J72: 3996453.464 | K72: 60487.7251 | L72: 6929947.339
A73: Lower Limit | B73: =IF(B71-B72<0,0,B71-B72) -> 0 | C73: =IF(C71-C72<0,0,C71-C72) -> 0 | D73: 0 | E73: 0 | F73: 0 | G73: 0 | H73: 0 | I73: 0 | J73: 0 | K73: 11939.2349 | L73: 0 | M73: 0.8
A74: Upper Lim | B74: =B71+B72 -> 3847727.77 | C74: =C71+C72 -> 1304453.901 | D74: 508892.6126 | E74: 4606445.214 | F74: 251317.3816 | G74: 174043.925 | H74: 207708.0884 | I74: 83988958.7 | J74: 6012297.424 | K74: 132914.6851 | L74: 13195581.68 | M74: 0.8
A75: Lower Lim 2 | B75: =IF(B71-B72*2<MIN(B9:B58),MIN(B9:B58),B71-B72*2) -> 4667 | C75: 1447 | D75: 1097 | E75: 1009 | F75: 773 | G75: 595 | H75: 546 | I75: 1863 | J75: 117 | K75: =IF(K71-K72*2<MIN(K9:K58),MIN(K9:K58),K71-K72*2) -> 1581 | L75: =IF(L71-L72*2<0,0,L71-L72*2) -> 0 | M75: 3.2
A76: Upper Lim 2 | B76: =B71+B72*2 -> 5895563.261 | C76: =C71+C72*2 -> 2029776.742 | D76: 832739.7853 | E76: 7892354.728 | F76: 395337.8831 | G76: 295657.5701 | H76: 349764.7769 | I76: 137852380.5 | J76: 10008750.89 | K76: 193402.4102 | L76: 20125529.02 | M76: 3.2
A78: Percentile 25 | B78: =_xlfn.PERCENTILE.EXC(B$9:B$58,0.25) -> 385502.5 | C78: 102602 | D78: 14346.75 | E78: 10594 | F78: 18660.25 | G78: 10706 | H78: 10157.25 | I78: 19851.5 | J78: 3936.25 | K78: 28411 | L78: 1790491.75 | M78: 1.8
A79: Percentile 75 | B79: =_xlfn.PERCENTILE.EXC(B$9:B$58,0.5) -> 1239380 | C79: 363748 | D79: 75637.5 | E79: 145175 | F79: 54643.5 | G79: 31263.5 | H79: 22328.5 | I79: 2621868 | J79: 27417.5 | K79: =_xlfn.PERCENTILE.EXC(K$9:K$58,0.75) -> 96751.5 | L79: =_xlfn.PERCENTILE.EXC(L$9:L$58,0.5) -> 4491154 | M79: 1.8
A80: Percentile 50 | B80: =_xlfn.PERCENTILE.EXC(B$9:B$58,0.75) -> 2401326.75 | C80: 828595 | D80: 196405 | E80: 1108347.75 | F80: 115605.5 | G80: 52226.25 | H80: 65799 | I80: 39389584.5 | J80: 2561061.75 | K80: =_xlfn.PERCENTILE.EXC(K$9:K$58,0.5) -> 64471 | L80: =_xlfn.PERCENTILE.EXC(L$9:L$58,0.75) -> 7219225.75
A82: IIQ | B82: =+B79-B78 -> 853877.5 | C82: =+C79-C78 -> 261146 | D82: 61290.75 | E82: 134581 | F82: 35983.25 | G82: 20557.5 | H82: 12171.25 | I82: 2602016.5 | J82: 23481.25 | K82: =+K79-K78 -> 68340.5 | L82: 2700662.25
A83: P25 - 1,5 x IIQ | B83: =IF(+B78-B82*1.5<MIN(B9:B58),MIN(B9:B58),+B78-B82*1.5) -> 4667 | C83: 1447 | D83: 1097 | E83: 1009 | F83: 773 | G83: 595 | H83: 546 | I83: 1863 | J83: 117 | K83: =IF(+K78-K82*1.5<MIN(K9:K58),MIN(K9:K58),+K78-K82*1.5) -> 1581 | L83: =IF(+L78-L82*1.5<0,0,+L78-L82*1.5) -> 0 | M83: 4.2
A84: P75+ 1,5 x IIQ | B84: =+B79+1.5*B82 -> 2520196.25 | C84: =+C79+1.5*C82 -> 755467 | D84: 167573.625 | E84: 347046.5 | F84: 108618.375 | G84: 62099.75 | H84: 40585.375 | I84: 6524892.75 | J84: 62639.375 | K84: 199262.25 | L84: 8542147.375 | M84: 4.2
A100: NUMBER OF HORSES AND PONIES BY STATE | L100: NUMBER OF HORSES AND PONIES BY STATE | W100: NUMBER OF HORSES AND PONIES BY STATE | AF100: DISTRIBUTION OF EACH SPECIES PER STATE
L102: Median and interquartile range | W102: Median and interquartile range | AF102: Broilers
AF103: Turkeys
AF104: Sheep and lambs
AF105: Hogs and pigs
L106: Mean and standard deviation | W106: Mean and standard deviation | AF106: Milk cows
AF107: Colonies of bees
AF108: Beef cows
AF109: Cattle and calves
AF110: Population
AF111: All goats
AF112: Horses and ponies
L113: Source: USDA Census of Agriculture, 2012 | W113: Source: USDA Census of Agriculture, 2012
AF116: Source: USDA Census of Agriculture, 2012
A120: Source: USDA Census of Agriculture, 2012
A129: DISTRIBUTION OF EACH SPECIES PER STATE
A133: Broilers
M134: Cattle and calves inventory3 | N134: Beef cows3 | O134: Milk cows3 | P134: Hogs and pigs inventory3 | Q134: Sheep and lambs inventory3 | R134: All goats3 | S134: Colonies of bees3 | T134: Broilers and other meat-type chickens | U134: Turkeys3 | V134: Horses and Ponies4 | W134: Population3
A135: Turkeys | M135: =+AL9 -> 4 | N135: 5 | O135: 7 | P135: 8 | Q135: 9 | R135: 2 | S135: 6 | T135: 11 | U135: 10 | V135: 1 | W135: 3
M136: =+M135 -> 4 | N136: =+N135 -> 5 | O136: 7 | P136: 8 | Q136: 9 | R136: 2 | S136: 6 | T136: 11 | U136: 10 | V136: 1 | W136: 3
A137: Sheep and lambs | L137: P50 | M137: =_xlfn.PERCENTILE.EXC(M$9:M$58,0.5) -> -0.273709623 | N137: =_xlfn.PERCENTILE.EXC(N$9:N$58,0.5) -> -0.2969478525 | O137: -0.3378381818 | P137: -0.3576972205 | Q137: -0.3655964215 | R137: -0.1740493839 | S137: -0.3049690971 | T137: -0.5106186724 | U137: -0.4975477578 | V137: -0.1315301573 | W137: -0.2560597149
L138: P25 | M138: =_xlfn.PERCENTILE.EXC(M$9:M$58,0.25) -> -0.6906754896 | N138: =_xlfn.PERCENTILE.EXC(N$9:N$58,0.25) -> -0.6569889064 | O138: -0.5270964344 | P138: -0.3986542217 | Q138: -0.6154445307 | R138: -0.3430888038 | S138: -0.390647921 | T138: -0.5589263441 | U138: -0.5034232797 | V138: -0.7276841694 | W138: -0.6457686287
A139: Hogs and pigs | L139: P75 | M139: =_xlfn.PERCENTILE.EXC(M$9:M$58,0.75) -> 0.2936927663 | N139: 0.3439350396 | O139: 0.03507691578 | P139: -0.06457510442 | Q139: 0.05769053649 | R139: -0.001677690032 | S139: 0.001039021827 | T139: 0.1719914419 | U139: 0.1364254069 | V139: 0.4021401029 | W139: 0.1376044237
A141: Milk cows | L141: IQR | M141: =+(M139-M138)*1.5 -> 1.476552384 | N141: =+(N139-N138)*1.5 -> 1.501385919 | O141: 0.8432600253 | P141: 0.5011186759 | Q141: 1.009702601 | R141: 0.5121166706 | S141: 0.5875304143 | T141: 1.096376679 | U141: 0.95977303 | V141: 1.694736409 | W141: 1.175059579
M142: =IF(+M137-M141<MIN(M9:M58),MIN(M9:M58),+M137-M141) -> -0.876645262 | N142: -0.7964509422 | O142: -0.568010023 | P142: -0.4015712223 | Q142: -0.7396438621 | R142: -0.4262291454 | S142: -0.4583057702 | T142: -0.5592603092 | U142: -0.5043789396 | V142: -1.171245238 | W142: -0.8209618431
A143: Colonies of bees | L143: IQR*2 | M143: =+M139+M139+M141 -> 2.063937916 | N143: =+N139+N139+N141 -> 2.189255998 | O143: 0.9134138569 | P143: 0.3719684671 | Q143: 1.125083674 | R143: 0.5087612905 | S143: 0.5896084579 | T143: 1.440359563 | U143: 1.232623844 | V143: 2.499016614 | W143: 1.450268426
A145: Beef cows
A147: Cattle and calves
A149: Population
A151: All goats
A153: Horses and ponies
A160: Source: USDA Census of Agriculture, 2012

Sheet 10.9-10.10
A1: State | B1: Cattle and calves inventory | C1: Beef cows | D1: Milk cows | E1: Hogs and pigs inventory | F1: Sheep and lambs inventory | G1: All goats | H1: Colonies of bees | I1: Broilers and other meat-type chickens | J1: Turkeys | K1: Horses and Ponies | L1: Population | M1: Cattle and calves inventory2 | N1: Beef cows2 | O1: Milk cows2 | P1: Hogs and pigs inventory2 | Q1: Sheep and lambs inventory2 | R1: All goats2 | S1: Colonies of bees2 | T1: Broilers and other meat-type chickens2 | U1: Turkeys2 | V1: Horses and Ponies2 | W1: Population2
A2: Alabama | B2: 1236467 | C2: 722787 | D2: 9116 | E2: 142555 | F2: 21114 | G2: 52749 | H2: 11628 | I2: 172955409 | J2: 7354 | K2: 63707 | L2: 4822023 | M2: =B2/SUM(B$2:B$51)*100 -> 1.373934445 | N2: =C2/SUM(C$2:C$51)*100 -> 2.496108567 | O2: =D2/SUM(D$2:D$51)*100 -> 0.09852715095 | P2: =E2/SUM(E$2:E$51)*100 -> 0.2159048029 | Q2: =F2/SUM(F$2:F$51)*100 -> 0.3935622359 | R2: =G2/SUM(G$2:G$51)*100 -> 2.01215786 | S2: =H2/SUM(H$2:H$51)*100 -> 0.3542346393 | T2: =I2/SUM(I$2:I$51)*100 -> 11.48231213 | U2: =J2/SUM(J$2:J$51)*100 -> 0.007296199652 | V2: =K2/SUM(K$2:K$51)*100 -> 1.759206793 | W2: =L2/SUM(L$2:L$51)*100 -> 1.539197067
A3: Alaska | B3: 10667 | C3: 3423 | D3: 1097 | E3: 1009 | F3: 773 | G3: 595 | H3: 546 | I3: 1863 | J3: 3000 | K3: 1581 | L3: 731449 | M3: =B3/SUM(B$2:B$51)*100 -> 0.01185293155 | N3: 0.01182115841 | O3: 0.01185654724 | P3: 0.001528167697 | Q3: 0.01440862027 | R3: 0.02269680803 | S3: 0.01663330866 | T3: 0.0001236824429 | U3: 0.002976420854 | V3: 0.04365777605 | W3: 0.233479632
A4: Arizona | B4: 911334 | C4: 197901 | D4: 193621 | E4: 169603 | F4: 180551 | G4: 71654 | H4: 58461 | I4: 8451 | J4: 2465 | K4: 92394 | L4: 6553255 | M4: 1.012653935 | N4: 0.6834411541 | O4: 2.092685991 | P4: 0.256869996 | Q4: 3.365447346 | R4: 2.733306021 | S4: 1.78095212 | T4: 0.000561052241 | U4: 0.002445625801 | V4: 2.551370374 | W4: 2.091808952
A5: Arkansas | B5: 1615774 | C5: 813250 | D5: 8972 | E5: 109316 | F5: 18808 | G5: 41610 | H5: 23259 | I5: 170380435 | J5: 8821769 | K5: 61090 | L5: 2949131 | M5: 1.79541189 | N5: 2.808517989 | O5: 0.09697077648 | P5: 0.165563112 | Q5: 0.3505786934 | R5: 1.587250726 | S5: 0.7085606705 | T5: 11.31136255 | U5: 8.752432406 | V5: 1.686940885 | W5: 0.9413670955
A6: California | B6: 5370531 | C6: 583594 | D6: 1815655 | E6: 111893 | F6: 668517 | G6: 140042 | H6: 945589 | I6: 42268482 | J6: 4532307 | K6: 142555 | L6: 38041430 | M6: 5.967613795 | N6: 2.015412539 | O6: 19.62388265 | P6: 0.1694660735 | Q6: 12.46107063 | R6: 5.342027546 | S6: 28.80636209 | T6: 2.80615626 | U6: 4.496684356 | V6: 3.936517562 | W6: 12.14288225
A7: Colorado | B7: 2630082 | C7: 683291 | D7: 130736 | E7: 727301 | F7: 401376 | G7: 34757 | H7: 34813 | I7: 19571 | J7: 3761 | K7: 110360 | L7: 5187582 | M7: 2.922488228 | N7: 2.359711116 | O7: 1.413015095 | P7: 1.101524177 | Q7: 7.481596855 | R7: 1.325836902 | S7: 1.060540979 | T7: 0.001299296345 | U7: 0.00373143961 | V7: 3.047483976 | W7: 1.655884055
A8: Connecticut | B8: 48278 | C8: 8080 | D8: 17740 | E8: 4737 | F8: 6093 | G8: 4393 | H8: 5639 | I8: 79605 | J8: 9421 | K8: 17424 | L8: 3590347 | M8: 0.0536454326 | N8: 0.02790387378 | O8: 0.1917366891 | P8: 0.007174361132 | Q8: 0.1135727339 | R8: 0.1675749204 | S8: 0.171786131 | T8: 0.00528488506 | U8: 0.00934695362 | V8: 0.4811467995 | W8: 1.146044217
A9: Delaware | B9: 18225 | C9: 3833 | D9: 4512 | E9: 5891 | F9: 1040 | G9: 2008 | H9: 817 | I9: 43206514 | J9: 778 | K9: 6157 | L9: 917092 | M9: 0.02025121192 | N9: 0.0132370728 | O9: 0.0487664003 | P9: 0.008922136675 | Q9: 0.01938546582 | R9: 0.07659695886 | S9: 0.02488903512 | T9: 2.868431133 | U9: 0.0007718851413 | V9: 0.1700195618 | W9: 0.2927371596
A10: Florida | B10: 1675323 | C10: 982790 | D10: 123220 | E10: 14915 | F10: 18232 | G10: 52052 | H10: 206654 | I10: 11031656 | J10: 5567 | K10: 121034 | L10: 19317568 | M10: 1.861581405 | N10: 3.394015855 | O10: 1.331780994 | P10: 0.02258931735 | Q10: 0.3398421277 | R10: 1.985570171 | S10: 6.295494079 | T10: 0.7323790463 | U10: 0.005523244964 | V10: 3.342236096 | W10: 6.166197053
A11: Georgia | B11: 1033717 | C11: 469942 | D11: 79492 | E11: 153733 | F11: 21798 | G11: 71709 | H11: 64213 | I11: 243463943 | J11: 2661 | K11: 69861 | L11: 9919945 | M11: 1.148643184 | N11: 1.622921071 | O11: 0.8591619442 | P11: 0.232834296 | Q11: 0.4063119077 | R11: 2.735404045 | S11: 1.956180676 | T11: 16.1632932 | U11: 0.002640085297 | V11: 1.929143512 | W11: 3.166461514
A12: Hawaii | B12: 133957 | C12: 73227 | D12: 1501 | E12: 11441 | F12: 21921 | G12: 12996 | H12: 8630 | I12: 3375 | J12: 117 | K12: 5114 | L12: 1392313 | M12: 0.148850019 | N12: 0.252885763 | O12: 0.0162230423 | P12: 0.01732781628 | Q12: 0.4086046118 | R12: 0.4957440624 | S12: 0.2629037614 | T12: 0.0002240623966 | U12: 0.0001160804133 | V12: 0.141218132 | W12: 0.4444284248
A13: Idaho | B13: 2397541 | C13: 485025 | D13: 578761 | E13: 45139 | F13: 231078 | G13: 18139 | H13: 103604 | I13: 9639 | J13: 6696 | K13: 61439 | L13: 1595728 | M13: 2.664093876 | N13: 1.675009453 | O13: 6.255339229 | P13: 0.06836467958 | Q13: 4.307264107 | R13: 0.6919284047 | S13: 3.15618555 | T13: 0.0006399222046 | U13: 0.006643371345 | V13: 1.69657818 | W13: 0.5093588018
A14: Illinois | B14: 1127630 | C14: 343972 | D14: 98849 | E14: 4630796 | F14: 54675 | G14: 31546 | H14: 10043 | I14: 115927 | J14: 739660 | K14: 62714 | L14: 12875255 | M14: 1.252997207 | N14: 1.187890009 | O14: 1.068375422 | P14: 7.013511259 | Q14: 1.019134946 | R14: 1.20335043 | S14: 0.3059493019 | T14: 0.007696261169 | U14: 0.7338464828 | V14: 1.731786064 | W14: 4.109800956
A15: Indiana | B15: 821265 | C15: 182627 | D15: 174141 | E15: 3747352 | F15: 52169 | G15: 38632 | H15: 13017 | I15: 6238623 | J15: 5084794 | K15: 97383 | L15: 6537334 | M15: 0.912571279 | N15: 0.630693163 | O15: 1.88214311 | P15: 5.675502752 | Q15: 0.9724234293 | R15: 1.473652248 | S15: 0.3965490454 | T15: 0.414175058 | U15: 5.044828966 | V15: 2.689136752 | W15: 2.086726944
A16: Iowa | B16: 3893683 | C16: 885568 | D16: 204757 | E16: 20455666 | F16: 165815 | G16: 56239 | H16: 30004 | I16: 1948950 | J16: 4383172 | K16: 62206 | L16: 3074186 | M16: 4.326573366 | N16: 3.058264566 | O16: 2.213045617 | P16: 30.98086027 | Q16: 3.090770207 | R16: 2.145287036 | S16: 0.9140399138 | T16: 0.1293885653 | U16: 4.348721515 | V16: 1.717758139 | W16: 0.9812848415
A17: Kansas | B17: 5922187 | C17: 1270538 | D17: 131688 | E17: 1886197 | F17: 62541 | G17: 42315 | H17: 10726 | I17: 17851 | J17: 131247 | K17: 74873 | L17: 2885905 | M17: 6.58060159 | N17: 4.387739107 | O17: 1.42330446 | P17: 2.856714892 | Q17: 1.165756171 | R17: 1.614143583 | S17: 0.3267561697 | T17: 0.001185107508 | U17: 0.1302154359 | V17: 2.067545014 | W17: 0.9211852602
A18: Kentucky | B18: 2270871 | C18: 985075 | D18: 71783 | E18: 313360 | F18: 54612 | G18: 64118 | H18: 12669 | I18: 51189742 | J18: 34629 | K18: 141842 | L18: 4380415 | M18: 2.523341008 | N18: 3.401906988 | O18: 0.7758418689 | P18: 0.4745952722 | Q18: 1.017960634 | R18: 2.44583855 | S18: 0.3859475959 | T18: 3.398428525 | U18: 0.03435682591 | V18: 3.916828761 | W18: 1.398235123
A19: Louisiana | B19: 788967 | C19: 434252 | D19: 16089 | E19: 6806 | F19: 9843 | G19: 18779 | H19: 34905 | I19: 25061453 | J19: 1400 | K19: 59791 | L19: 4601893 | M19: 0.8766824646 | N19: 1.49966745 | O19: 0.1738924234 | P19: 0.01030793791 | Q19: 0.1834722501 | R19: 0.7163417781 | S19: 1.063343661 | T19: 1.663801251 | U19: 0.001388996398 | V19: 1.651070264 | W19: 1.468931237
A20: Maine | B20: 86256 | C20: 10505 | D20: 32117 | E20: 8923 | F20: 11925 | G20: 6449 | H20: 14456 | I20: 47252 | J20: 5554 | K20: 11987 | L20: 1329192 | M20: 0.09584573583 | N20: 0.03627848936 | O20: 0.3471255493 | P20: 0.01351421245 | Q20: 0.2222804615 | R20: 0.2460028823 | S20: 0.4403866483 | T20: 0.00313700633 | U20: 0.00551034714 | V20: 0.3310093369 | W20: 0.4242801057
A21: Maryland | B21: 194524 | C21: 39188 | D21: 50923 | E21: 19869 | F21: 19265 | G21: 10745 | H21: 7892 | I21: 64192426 | J21: 77375 | K21: 28662 | L21: 5884563 | M21: 0.2161507132 | N21: 0.1353337878 | O21: 0.5503837328 | P21: 0.03009233298 | Q21: 0.3590971145 | R21: 0.4098776509 | S21: 0.2404213772 | T21: 4.26166187 | U21: 0.07676685451 | V21: 0.7914732304 | W21: 1.878361449
A22: Massachusetts | B22: 35703 | C22: 6240 | D22: 12500 | E22: 11151 | F22: 12504 | G22: 8599 | H22: 4666 | I22: 18137 | J22: 12142 | K22: 20337 | L22: 6646144 | M22: 0.03967237417 | N22: 0.02154952629 | O22: 0.1351019512 | P22: 0.01688860059 | Q22: 0.2330729468 | R22: 0.3280165584 | S22: 0.142144722 | T22: 0.001204094722 | U22: 0.01204656733 | V22: 0.561586459 | W22: 2.121459262
A23: Michigan | B23: 1130477 | C23: 108126 | D23: 376255 | E23: 1099478 | F23: 86503 | G23: 27059 | H23: 78995 | I23: 1125601 | J23: 2190486 | K23: 87998 | L23: 9883360 | M23: 1.25616073 | N23: 0.373407705 | O23: 4.066622771 | P23: 1.665199964 | Q23: 1.61240476 | R23: 1.032189796 | S23: 2.406498567 | T23: 0.07472736522 | U23: 2.173269403 | V23: 2.429979113 | W23: 3.154783527
A24: Minnesota | B24: 2412684 | C24: 357826 | D24: 463312 | E24: 7606785 | F24: 126506 | G24: 33721 | H24: 101424 | I24: 7765172 | J24: 19449992 | K24: 66384 | L24: 5379139 | M24: 2.680920438 | N24: 1.235734101 | O24: 5.007548416 | P24: 11.52075631 | Q24: 2.358055518 | R24: 1.286317754 | S24: 3.089774171 | T24: 0.5155209031 | U24: 19.2971206 | V24: 1.833129542 | W24: 1.717029341
A25: Mississippi | B25: 921508 | C25: 495381 | D25: 14480 | E25: 401898 | F25: 12984 | G25: 24528 | H25: 36097 | I25: 134479892 | J25: 1548 | K25: 58697 | L25: 2984926 | M25: 1.023959056 | N25: 1.710773378 | O25: 0.1565021002 | P25: 0.6086893372 | Q25: 0.2420200848 | R25: 0.9356425333 | S25: 1.099656671 | T25: 8.927966486 | U25: 0.00153583316 | V25: 1.620860519 | W25: 0.9527929139
A26: Missouri | B26: 3703120 | C26: 1683731 | D26: 92952 | E26: 2774597 | F26: 91967 | G26: 103669 | H26: 14561 | I26: 46880714 | J26: 7572505 | K26: 117295 | L26: 6021988 | M26: 4.114824027 | N26: 5.814680359 | O26: 1.004639725 | P26: 4.202229444 | Q26: 1.714253015 | R26: 3.954546876 | S26: 0.4435853615 | T26: 3.112357076 | U26: 7.512987265 | V26: 3.23898725 | W26: 1.922227718
A27: Montana | B27: 2633740 | C27: 1439653 | D27: 13947 | E27: 173953 | F27: 236646 | G27: 10323 | H27: 119002 | I27: 89862 | J27: 20206 | K27: 97921 | L27: 1005141 | M27: 2.926552916 | N27: 4.971769257 | O27: 0.150741353 | P27: 0.2634582314 | Q27: 4.411050908 | R27: 0.3937800828 | S27: 3.625269225 | T27: 0.005965835579 | U27: 0.02004718659 | V27: 2.703993099 | W27: 0.3208425342
A28: Nebraska | B28: 6385675 | C28: 1730112 | D28: 54628 | E28: 2992576 | F28: 71771 | G28: 25840 | H28: 44895 | I28: 908965 | J28: 195598 | K28: 64326 | L28: 1855525 | M28: 7.095619078 | N28: 5.974854811 | O28: 0.5904279511 | P28: 4.532366675 | Q28: 1.33780218 | R28: 0.9856899486 | S28: 1.367678374 | T28: 0.06034514853 | U28: 0.1940606554 | V28: 1.776299875 | W28: 0.5922863989
A29: Nevada | B29: 420322 | C29: 220150 | D29: 29484 | E29: 2700 | F29: 91934 | G29: 21388 | H29: 10182 | I29: 3813 | J29: 1275 | K29: 22464 | L29: 2758931 | M29: 0.4670523949 | N29: 0.760276957 | O29: 0.3186676743 | P29: 0.004089249537 | Q29: 1.713637899 | R29: 0.8158644203 | S29: 0.3101837889 | T29: 0.0002531407165 | U29: 0.001264978863 | V29: 0.6203214935 | W29: 0.8806549665
A30: New Hampshire | B30: 33392 | C30: 4075 | D30: 13474 | E30: 3287 | F30: 8079 | G30: 4875 | H30: 2912 | I30: 28924 | J30: 2556 | K30: 9097 | L30: 1320718 | M30: 0.03710444272 | N30: 0.01407280763 | O30: 0.1456290952 | P30: 0.004978282677 | Q30: 0.1505915177 | R30: 0.1859612422 | S30: 0.08871097951 | T30: 0.001920231336 | U30: 0.002535910567 | V30: 0.2512048 | W30: 0.421575192
A31: New Jersey | B31: 31449 | C31: 9500 | D31: 7192 | E31: 7901 | F31: 14924 | G31: 8258 | H31: 13298 | I31: 19945 | J31: 13687 | K31: 27658 | L31: 8864590 | M31: 0.03494542462 | N31: 0.03280777239 | O31: 0.07773225863 | P31: 0.01196635578 | Q31: 0.2781814345 | R31: 0.3150088079 | S31: 0.4051094112 | T31: 0.001324125778 | U31: 0.01357942407 | V31: 0.7637487477 | W31: 2.829590595
A32: New Mexico | B32: 1354240 | C32: 461595 | D32: 318878 | E32: 1294 | F32: 89745 | G32: 30981 | H32: 15088 | I32: 3928 | J32: 6425 | K32: 50723 | L32: 2085538 | M32: 1.504801165 | N32: 1.594095126 | O32: 3.446483199 | P32: 0.001959810704 | Q32: 1.672835221 | R32: 1.181797999 | S32: 0.4596398554 | T32: 0.0002607754352 | U32: 0.006374501328 | V32: 1.400666271 | W32: 0.6657068979
A33: New York | B33: 1419365 | C33: 86030 | D33: 610712 | E33: 74671 | F33: 86286 | G33: 36441 | H33: 70557 | I33: 591576 | J33: 143473 | K33: 90157 | L33: 19570261 | M33: 1.577166607 | N33: 0.2971002799 | O33: 6.600670624 | P33: 0.1130919823 | Q33: 1.608359908 | R33: 1.39007459 | S33: 2.149443881 | T33: 0.0392740552 | U33: 0.142345343 | V33: 2.489597796 | W33: 6.246857042
A34: North Carolina | B34: 829717 | C34: 348196 | D34: 45960 | E34: 8901434 | F34: 29224 | G34: 66367 | H34: 24225 | I34: 148251469 | J34: 17191277 | K34: 66870 | L34: 9752073 | M34: 0.9219629521 | N34: 1.202477381 | O34: 0.4967428541 | P34: 13.48154995 | Q34: 0.5447315896 | R34: 2.53162867 | S34: 0.7379888319 | T34: 9.842245759 | U34: 17.05615845 | V34: 1.846549959 | W34: 3.112876517
A35: North Dakota | B35: 1809613 | C35: 881682 | D35: 17876 | E35: 133653 | F35: 64607 | G35: 4740 | H35: 370480 | I35: 24708 | J35: 419319 | K35: 45271 | L35: 699628 | M35: 2.010801446 | N35: 3.044844461 | O35: 0.1932065983 | P35: 0.2024223957 | Q35: 1.204266145 | R35: 0.1808115463 | S35: 11.28627874 | T35: 0.001640335909 | U35: 0.416023272 | V35: 1.250114598 | W35: 0.2233223205
A36: Ohio | B36: 1242293 | C36: 277949 | D36: 267857 | E36: 2058503 | F36: 111972 | G36: 51558 | H36: 21398 | I36: 12194024 | J36: 2096395 | K36: 114127 | L36: 11544225 | M36: 1.380408165 | N36: 0.9598828977 | O36: 2.895040267 | P36: 3.117678681 | Q36: 2.087143634 | R36: 1.966726098 | S36: 0.6518672869 | T36: 0.8095473307 | U36: 2.079917932 | V36: 3.151506014 | W36: 3.684934158
A37: Oklahoma | B37: 4245970 | C37: 1677903 | D37: 45885 | E37: 2304740 | F37: 53738 | G37: 89060 | H37: 21011 | I37: 38429952 | J37: 102140 | K37: 158918 | L37: 3814820 | M37: 4.718026792 | N37: 5.794553654 | O37: 0.4959322424 | P37: 3.490613696 | Q37: 1.001669387 | R37: 3.397273484 | S37: 0.640077744 | T37: 2.551320636 | U37: 0.1013372087 | V37: 4.388365879 | W37: 1.217696339
A38: Oregon | B38: 1297945 | C38: 504279 | D38: 125767 | E38: 12693 | F38: 214613 | G38: 33226 | H38: 82190 | I38: 3294786 | J38: 4770 | K38: 70427 | L38: 3899353 | M38: 1.442247422 | N38: 1.741502174 | O38: 1.359309367 | P38: 0.01922401644 | Q38: 4.000358631 | R38: 1.267435535 | S38: 2.50383084 | T38: 0.2187370807 | U38: 0.004732509157 | V38: 1.944773051 | W38: 1.244679401
A39: Pennsylvania | B39: 1626374 | C39: 148249 | D39: 532335 | E39: 1134957 | F39: 96648 | G39: 50174 | H39: 32023 | I39: 29248115 | J39: 2955993 | K39: 119900 | L39: 12763536 | M39: 1.807190373 | N39: 0.5119704683 | O39: 5.753559774 | P39: 1.718934217 | Q39: 1.801506251 | R39: 1.913932178 | S39: 0.9755465992 | T39: 1.941748961 | U39: 2.932759736 | V39: 3.310921789 | W39: 4.074140081
A40: Rhode Island | B40: 4667 | C40: 1447 | D40: 1209 | E40: 1830 | F40: 1823 | G40: 886 | H40: 739 | I40: 13402 | J40: 6252 | K40: 2417 | L40: 1050292 | M40: 0.005185865901 | N40: 0.004997141752 | O40: 0.01306706072 | P40: 0.002771602464 | Q40: 0.0339804848 | R40: 0.03379726372 | S40: 0.02251284816 | T40: 0.0008897434781 | U40: 0.006202861059 | V40: 0.06674310229 | W40: 0.335254802
A41: South Carolina | B41: 297286 | C41: 166745 | D41: 15997 | E41: 224076 | F41: 12684 | G41: 38732 | H41: 10083 | I41: 44296198 | J41: 6999565 | K41: 52395 | L41: 4723723 | M41: 0.3303375466 | N41: 0.5758454744 | O41: 0.172898073 | P41: 0.3393713627 | Q41: 0.2364281235 | R41: 1.477466838 | S41: 0.3071678593 | T41: 2.94077401 | U41: 6.944550411 | V41: 1.446836924 | W41: 1.507819558
A42: South Dakota | B42: 3893251 | C42: 1610559 | D42: 91831 | E42: 1191162 | F42: 257676 | G42: 16545 | H42: 210447 | I42: 57635 | J42: 2449784 | K42: 68925 | L42: 833354 | M42: 4.326093337 | N42: 5.561984536 | O42: 0.9925237823 | P42: 1.804058762 | Q42: 4.803047395 | R42: 0.6311238468 | S42: 6.411043786 | T42: 0.003826321845 | U42: 2.430529395 | V42: 1.903296783 | W42: 0.2660078628
A43: Tennessee | B43: 1856316 | C43: 874630 | D43: 47978 | E43: 147795 | F43: 43836 | G43: 91716 | H43: 14161 | I43: 30400743 | J43: 3985 | K43: 96541 | L43: 6456243 | M43: 2.062696774 | N43: 3.020490733 | O43: 0.5185537131 | P43: 0.2238409761 | Q43: 0.8170973844 | R43: 3.498588983 | S43: 0.4313997874 | T43: 2.018270617 | U43: 0.003953679034 | V43: 2.665885742 | W43: 2.060842574
A44: Texas | B44: 11159747 | C44: 4329341 | D44: 434928 | E44: 800893 | F44: 623000 | G44: 878914 | H44: 136830 | I44: 107351698 | J44: 1747526 | K44: 395816 | L44: 26059203 | M44: 12.40046099 | N44: 14.95116149 | O44: 4.700769714 | P44: 1.212981974 | Q44: 11.61263962 | R44: 33.5269619 | S44: 4.168380263 | T44: 7.12695666 | U44: 1.733790943 | V44: 10.93007355 | W44: 8.318137186
A45: Utah | B45: 776833 | C45: 369670 | D45: 90449 | E45: 731666 | F45: 287883 | G45: 14723 | H45: 26083 | I45: 5629 | J45: 2894895 | K45: 58979 | L45: 2855287 | M45: 0.8631994355 | N45: 1.27663676 | O45: 0.9775869105 | P45: 1.10813513 | Q45: 5.366101978 | R45: 0.5616220245 | S45: 0.7945908237 | T45: 0.000373702883 | U45: 2.872141949 | V45: 1.628647675 | W45: 0.9114119481
A46: Vermont | B46: 274251 | C46: 11487 | D46: 134142 | E46: 3874 | F46: 18803 | G46: 10589 | H46: 8624 | I46: 48545 | J46: 3790 | K46: 11666 | L46: 626011 | M46: 0.3047415704 | N46: 0.03966977699 | O46: 1.449827675 | P46: 0.005867315817 | Q46: 0.3504854941 | R46: 0.4039268911 | S46: 0.2627209778 | T46: 0.003222847123 | U46: 0.003760211678 | V46: 0.3221452343 | W46: 0.1998236622
A47: Virginia | B47: 1631882 | C47: 657320 | D47: 94105 | E47: 239899 | F47: 84983 | G47: 50831 | H47: 14334 | I47: 38386310 | J47: 5160805 | K47: 86840 | L47: 8185867 | M47: 1.813310739 | N47: 2.270021573 | O47: 1.017101529 | P47: 0.3633358795 | Q47: 1.584072156 | R47: 1.938994032 | S47: 0.4366700482 | T47: 2.548423293 | U47: 5.120242541 | V47: 2.39800207 | W47: 2.612941182
A48: Washington | B48: 1162792 | C48: 211852 | D48: 266989 | E48: 19861 | F48: 44863 | G48: 27062 | H48: 96685 | I48: 7511065 | J48: 5326 | K48: 64616 | L48: 6897012 | M48: 1.292068434 | N48: 0.7316202312 | O48: 2.885658787 | P48: 0.03008021669 | Q48: 0.8362405319 | R48: 1.032304233 | S48: 2.945405582 | T48: 0.4986510295 | U48: 0.005284139155 | V48: 1.784307943 | W48: 2.201536708
A49: West Virginia | B49: 414908 | C49: 191398 | D49: 10095 | E49: 5873 | F49: 31630 | G49: 18825 | H49: 9325 | I49: 14781332 | J49: 1817308 | K49: 26467 | L49: 1855413 | M49: 0.4610364794 | N49: 0.6609833705 | O49: 0.1091083358 | P49: 0.008894875012 | Q49: 0.5895791192 | R49: 0.7180964893 | S49: 0.2840761964 | T49: 0.9813157548 | U49: 1.803024476 | V49: 0.730860442 | W49: 0.5922506483
A50: Wisconsin | B50: 3494084 | C50: 248305 | D50: 1270091 | E50: 311651 | F50: 80081 | G50: 61111 | H50: 49661 | I50: 7818682 | J50: 3468522 | K50: 103481 | L50: 5726398 | M50: 3.882547904 | N50: 0.857508834 | O50: 13.72734178 | P50: 0.4720069287 | Q50: 1.492699508 | R50: 2.331133841 | S50: 1.512869489 | T50: 0.5190733709 | U50: 3.441260404 | V50: 2.857527087 | W50: 1.827874941
A51: Wyoming | B51: 1307731 | C51: 664254 | D51: 6194 | E51: 85432 | F51: 354785 | G51: 9246 | H51: 45029 | I51: 4857 | J51: 926 | K51: 72461 | L51: 576412 | M51: 1.453121406 | N51: 2.293967794 | O51: 0.06694571885 | P51: 0.1293899135 | Q51: 6.613146626 | R51: 0.352696953 | S51: 1.371760541 | T51: 0.0003224506845 | U51: 0.0009187219035 | V51: 2.000939981 | W51: 0.1839915861
J56: We must create a table for each species, so that we can sort it
A58: Reference lines | E58: Gray area
E59: Max | F59: Min | J59: State | K59: Cattle and calves | L59: Cumulative | M59: Proportion | N59: Cumulative | O59: Markers | Q59: State | R59: Beef cows | S59: Cumulative | T59: Proportion | U59: Cumulative | V59: Markers | X59: State | Y59: Milk cows | Z59: Cumulative | AA59: Proportion | AB59: Cumulative | AC59: Markers | AE59: State | AF59: Hogs and pigs | AG59: Cumulative | AH59: Proportion | AI59: Cumulative | AJ59: Markers | AL59: State | AM59: Sheep and lambs | AN59: Cumulative | AO59: Proportion | AP59: Cumulative | AQ59: Markers | AS59: State | AT59: All goats | AU59: Cumulative | AV59: Proportion | AW59: Cumulative | AX59: Markers | AZ59: State | BA59: Colonies of bees | BB59: Cumulative | BC59: Proportion | BD59: Cumulative | BE59: Markers | BG59: State | BH59: Broilers | BI59: Cumulative | BJ59: Proportion | BK59: Cumulative | BL59: Markers | BN59: State | BO59: Turkeys | BP59: Cumulative | BQ59: Proportion | BR59: Cumulative | BS59: Markers | BU59: State | BV59: Horses and Ponies | BW59: Cumulative | BX59: Proportion | BY59: Cumulative | BZ59: Markers | CB59: State | CC59: Population | CD59: Cumulative | CE59: Proportion | CF59: Cumulative | CG59: Markers
A60: 0 | B60: 100 | E60: =MAX(CF60,BY60,BR60,BK60,BD60,AW60,AP60,AI60,AB60,U60,N60) -> 33.5269619 | F60: =MIN(CF60,BY60,BR60,BK60,BD60,AW60,AP60,AI60,AB60,U60,N60) -> 10.93007355 | J60: Texas | K60: 11159747 | L60: =+K60 -> 11159747 | M60: =K60/SUM($K$60:$K$109)*100 -> 12.40046099 | N60: =L60/SUM($K$60:$K$109)*100 -> 12.40046099 | O60: =IF(OR(AND(N60>=49.5,N59<49.5),AND(N60>=79.5,N59<79.5)),N60,NA()) ->  | Q60: Texas | R60: 4329341 | S60: =+R60 -> 4329341 | T60: =R60/SUM(R$60:R$109)*100 -> 14.95116149 | U60: =S60/SUM(R$60:R$109)*100 -> 14.95116149 | V60: =IF(OR(AND(U60>=49.5,U59<49.5),AND(U60>=79.5,U59<79.5)),U60,NA()) ->  | X60: California | Y60: 1815655 | Z60: =+Y60 -> 1815655 | AA60: =Y60/SUM(Y$60:Y$109)*100 -> 19.62388265 | AB60: =Z60/SUM(Y$60:Y$109)*100 -> 19.62388265 | AC60: =IF(OR(AND(AB60>=49.5,AB59<49.5),AND(AB60>=79.5,AB59<79.5)),AB60,NA()) ->  | AE60: Iowa | AF60: 20455666 | AG60: =+AF60 -> 20455666 | AH60: =AF60/SUM(AF$60:AF$109)*100 -> 30.98086027 | AI60: =AG60/SUM(AF$60:AF$109)*100 -> 30.98086027 | AJ60: =IF(OR(AND(AI60>=49.5,AI59<49.5),AND(AI60>=79.5,AI59<79.5)),AI60,NA()) ->  | AL60: California | AM60: 668517 | AN60: =+AM60 -> 668517 | AO60: =AM60/SUM(AM$60:AM$109)*100 -> 12.46107063 | AP60: =AN60/SUM(AM$60:AM$109)*100 -> 12.46107063 | AQ60: =IF(OR(AND(AP60>=49.5,AP59<49.5),AND(AP60>=79.5,AP59<79.5)),AP60,NA()) ->  | AS60: Texas | AT60: 878914 | AU60: =+AT60 -> 878914 | AV60: =AT60/SUM(AT$60:AT$109)*100 -> 33.5269619 | AW60: =AU60/SUM(AT$60:AT$109)*100 -> 33.5269619 | AX60: =IF(OR(AND(AW60>=49.5,AW59<49.5),AND(AW60>=79.5,AW59<79.5)),AW60,NA()) ->  | AZ60: California | BA60: 945589 | BB60: =+BA60 -> 945589 | BC60: =BA60/SUM(BA$60:BA$109)*100 -> 28.80636209 | BD60: =BB60/SUM(BA$60:BA$109)*100 -> 28.80636209 | BE60: =IF(OR(AND(BD60>=49.5,BD59<49.5),AND(BD60>=79.5,BD59<79.5)),BD60,NA()) ->  | BG60: Georgia | BH60: 243463943 | BI60: =+BH60 -> 243463943 | BJ60: =BH60/SUM(BH$60:BH$109)*100 -> 16.1632932 | BK60: =BI60/SUM(BH$60:BH$109)*100 -> 16.1632932 | BL60: =IF(OR(AND(BK60>=49.5,BK59<49.5),AND(BK60>=79.5,BK59<79.5)),BK60,NA()) ->  | BN60: Minnesota | BO60: 19449992 | BP60: =+BO60 -> 19449992 | BQ60: =BO60/SUM(BO$60:BO$109)*100 -> 19.2971206 | BR60: =BP60/SUM(BO$60:BO$109)*100 -> 19.2971206 | BS60: =IF(OR(AND(BR60>=49.5,BR59<49.5),AND(BR60>=79.5,BR59<79.5)),BR60,NA()) ->  | BU60: Texas | BV60: 395816 | BW60: =+BV60 -> 395816 | BX60: =BV60/SUM(BV$60:BV$109)*100 -> 10.93007355 | BY60: =BW60/SUM(BV$60:BV$109)*100 -> 10.93007355 | BZ60: =IF(OR(AND(BY60>=49.5,BY59<49.5),AND(BY60>=79.5,BY59<79.5)),BY60,NA()) ->  | CB60: California | CC60: 38041430 | CD60: =+CC60 -> 38041430 | CE60: =CC60/SUM(CC$60:CC$109)*100 -> 12.14288225 | CF60: =CD60/SUM(CC$60:CC$109)*100 -> 12.14288225 | CG60: =IF(OR(AND(CF60>=49.5,CF59<49.5),AND(CF60>=79.5,CF59<79.5)),CF60,NA()) -> 
A61: =100/49 -> 2.040816327 | B61: 100 | C61: 50 | D61: 80 | E61: 44.46241022 | F61: 15.31843943 | J61: Nebraska | K61: 6385675 | L61: =K61+L60 -> 17545422 | M61: 7.095619078 | N61: 19.49608007 | O61: =IF(OR(AND(N61>=49.5,N60<49.5),AND(N61>=79.5,N60<79.5)),N61,NA()) ->  | Q61: Nebraska | R61: 1730112 | S61: =R61+S60 -> 6059453 | T61: 5.974854811 | U61: 20.9260163 | V61: =IF(OR(AND(U61>=49.5,U60<49.5),AND(U61>=79.5,U60<79.5)),U61,NA()) ->  | X61: Wisconsin | Y61: 1270091 | Z61: =Y61+Z60 -> 3085746 | AA61: 13.72734178 | AB61: 33.35122443 | AC61: =IF(OR(AND(AB61>=49.5,AB60<49.5),AND(AB61>=79.5,AB60<79.5)),AB61,NA()) ->  | AE61: North Carolina | AF61: 8901434 | AG61: =AF61+AG60 -> 29357100 | AH61: 13.48154995 | AI61: 44.46241022 | AJ61: =IF(OR(AND(AI61>=49.5,AI60<49.5),AND(AI61>=79.5,AI60<79.5)),AI61,NA()) ->  | AL61: Texas | AM61: 623000 | AN61: =AM61+AN60 -> 1291517 | AO61: 11.61263962 | AP61: 24.07371025 | AQ61: =IF(OR(AND(AP61>=49.5,AP60<49.5),AND(AP61>=79.5,AP60<79.5)),AP61,NA()) ->  | AS61: California | AT61: 140042 | AU61: =AT61+AU60 -> 1018956 | AV61: 5.342027546 | AW61: 38.86898945 | AX61: =IF(OR(AND(AW61>=49.5,AW60<49.5),AND(AW61>=79.5,AW60<79.5)),AW61,NA()) ->  | AZ61: North Dakota | BA61: 370480 | BB61: =BA61+BB60 -> 1316069 | BC61: 11.28627874 | BD61: 40.09264083 | BE61: =IF(OR(AND(BD61>=49.5,BD60<49.5),AND(BD61>=79.5,BD60<79.5)),BD61,NA()) ->  | BG61: Alabama | BH61: 172955409 | BI61: =BH61+BI60 -> 416419352 | BJ61: 11.48231213 | BK61: 27.64560533 | BL61: =IF(OR(AND(BK61>=49.5,BK60<49.5),AND(BK61>=79.5,BK60<79.5)),BK61,NA()) ->  | BN61: North Carolina | BO61: 17191277 | BP61: =BO61+BP60 -> 36641269 | BQ61: 17.05615845 | BR61: 36.35327905 | BS61: =IF(OR(AND(BR61>=49.5,BR60<49.5),AND(BR61>=79.5,BR60<79.5)),BR61,NA()) ->  | BU61: Oklahoma | BV61: 158918 | BW61: =BV61+BW60 -> 554734 | BX61: 4.388365879 | BY61: 15.31843943 | BZ61: =IF(OR(AND(BY61>=49.5,BY60<49.5),AND(BY61>=79.5,BY60<79.5)),BY61,NA()) ->  | CB61: Texas | CC61: 26059203 | CD61: =CC61+CD60 -> 64100633 | CE61: 8.318137186 | CF61: 20.46101943 | CG61: =IF(OR(AND(CF61>=49.5,CF60<49.5),AND(CF61>=79.5,CF60<79.5)),CF61,NA()) -> 
A62: =100/49+A61 -> 4.081632653 | B62: 100 | C62: 50 | D62: 80 | E62: 55.98316653 | F62: 19.25495699 | J62: Kansas | K62: 5922187 | L62: =K62+L61 -> 23467609 | M62: 6.58060159 | N62: 26.07668166 | Q62: Missouri | R62: 1683731 | S62: =R62+S61 -> 7743184 | T62: 5.814680359 | U62: 26.74069666 | X62: New York | Y62: 610712 | Z62: =Y62+Z61 -> 3696458 | AA62: 6.600670624 | AB62: 39.95189506 | AE62: Minnesota | AF62: 7606785 | AG62: =AF62+AG61 -> 36963885 | AH62: 11.52075631 | AI62: 55.98316653 | AJ62: 55.98316653 | AL62: Colorado | AM62: 401376 | AN62: =AM62+AN61 -> 1692893 | AO62: 7.481596855 | AP62: 31.55530711 | AS62: Missouri | AT62: 103669 | AU62: =AT62+AU61 -> 1122625 | AV62: 3.954546876 | AW62: 42.82353632 | AZ62: South Dakota | BA62: 210447 | BB62: =BA62+BB61 -> 1526516 | BC62: 6.411043786 | BD62: 46.50368461 | BG62: Arkansas | BH62: 170380435 | BI62: =BH62+BI61 -> 586799787 | BJ62: 11.31136255 | BK62: 38.95696787 | BN62: Arkansas | BO62: 8821769 | BP62: =BO62+BP61 -> 45463038 | BQ62: 8.752432406 | BR62: 45.10571146 | BU62: California | BV62: 142555 | BW62: =BV62+BW61 -> 697289 | BX62: 3.936517562 | BY62: 19.25495699 | CB62: New York | CC62: 19570261 | CD62: =CC62+CD61 -> 83670894 | CE62: 6.246857042 | CF62: 26.70787648
A63: =100/49+A62 -> 6.12244898 | B63: 100 | C63: 50 | D63: 80 | E63: 62.99667779 | F63: 23.17178575 | J63: California | K63: 5370531 | L63: 28838140 | M63: 5.967613795 | N63: 32.04429545 | Q63: Oklahoma | R63: 1677903 | S63: 9421087 | T63: 5.794553654 | U63: 32.53525031 | X63: Idaho | Y63: 578761 | Z63: 4275219 | AA63: 6.255339229 | AB63: 46.20723429 | AE63: Illinois | AF63: 4630796 | AG63: 41594681 | AH63: 7.013511259 | AI63: 62.99667779 | AL63: Wyoming | AM63: 354785 | AN63: 2047678 | AO63: 6.613146626 | AP63: 38.16845373 | AS63: Tennessee | AT63: 91716 | AU63: 1214341 | AV63: 3.498588983 | AW63: 46.32212531 | AZ63: Florida | BA63: 206654 | BB63: 1733170 | BC63: 6.295494079 | BD63: 52.79917869 | BE63: 52.79917869 | BG63: North Carolina | BH63: 148251469 | BI63: 735051256 | BJ63: 9.842245759 | BK63: 48.79921363 | BN63: Missouri | BO63: 7572505 | BP63: 53035543 | BQ63: 7.512987265 | BR63: 52.61869872 | BS63: 52.61869872 | BU63: Kentucky | BV63: 141842 | BW63: 839131 | BX63: 3.916828761 | BY63: 23.17178575 | CB63: Florida | CC63: 19317568 | CD63: 102988462 | CE63: 6.166197053 | CF63: 32.87407353
A64: 8.163265306 | B64: 100 | C64: 50 | D64: 80 | E64: 68.67218054 | F64: 26.51402185 | H64: =(+ROW()-59)/50*100 -> 10 | J64: Oklahoma | K64: 4245970 | L64: 33084110 | M64: 4.718026792 | N64: 36.76232224 | Q64: South Dakota | R64: 1610559 | S64: 11031646 | T64: 5.561984536 | U64: 38.09723485 | X64: Pennsylvania | Y64: 532335 | Z64: 4807554 | AA64: 5.753559774 | AB64: 51.96079406 | AC64: 51.96079406 | AE64: Indiana | AF64: 3747352 | AG64: 45342033 | AH64: 5.675502752 | AI64: 68.67218054 | AL64: Utah | AM64: 287883 | AN64: 2335561 | AO64: 5.366101978 | AP64: 43.53455571 | AS64: Oklahoma | AT64: 89060 | AU64: 1303401 | AV64: 3.397273484 | AW64: 49.71939879 | AX64: 49.71939879 | AZ64: Texas | BA64: 136830 | BB64: 1870000 | BC64: 4.168380263 | BD64: 56.96755896 | BG64: Mississippi | BH64: 134479892 | BI64: 869531148 | BJ64: 8.927966486 | BK64: 57.72718012 | BL64: 57.72718012 | BN64: South Carolina | BO64: 6999565 | BP64: 60035108 | BQ64: 6.944550411 | BR64: 59.56324913 | BU64: Florida | BV64: 121034 | BW64: 960165 | BX64: 3.342236096 | BY64: 26.51402185 | CB64: Illinois | CC64: 12875255 | CD64: 115863717 | CE64: 4.109800956 | CF64: 36.98387449
A65: 10.20408163 | B65: 100 | C65: 50 | D65: 80 | E65: 73.20454722 | F65: 29.82494364 | J65: Iowa | K65: 3893683 | L65: 36977793 | M65: 4.326573366 | N65: 41.08889561 | Q65: Montana | R65: 1439653 | S65: 12471299 | T65: 4.971769257 | U65: 43.0690041 | X65: Minnesota | Y65: 463312 | Z65: 5270866 | AA65: 5.007548416 | AB65: 56.96834248 | AE65: Nebraska | AF65: 2992576 | AG65: 48334609 | AH65: 4.532366675 | AI65: 73.20454722 | AL65: South Dakota | AM65: 257676 | AN65: 2593237 | AO65: 4.803047395 | AP65: 48.33760311 | AS65: Georgia | AT65: 71709 | AU65: 1375110 | AV65: 2.735404045 | AW65: 52.45480284 | AZ65: Montana | BA65: 119002 | BB65: 1989002 | BC65: 3.625269225 | BD65: 60.59282818 | BG65: Texas | BH65: 107351698 | BI65: 976882846 | BJ65: 7.12695666 | BK65: 64.85413678 | BN65: Virginia | BO65: 5160805 | BP65: 65195913 | BQ65: 5.120242541 | BR65: 64.68349167 | BU65: Pennsylvania | BV65: 119900 | BW65: 1080065 | BX65: 3.310921789 | BY65: 29.82494364 | CB65: Pennsylvania | CC65: 12763536 | CD65: 128627253 | CE65: 4.074140081 | CF65: 41.05801457
A66: 12.24489796 | B66: 100 | C66: 50 | D66: 80 | E66: 77.40677666 | F66: 33.06393089 | J66: South Dakota | K66: 3893251 | L66: 40871044 | M66: 4.326093337 | N66: 45.41498895 | Q66: Kansas | R66: 1270538 | S66: 13741837 | T66: 4.387739107 | U66: 47.45674321 | X66: Texas | Y66: 434928 | Z66: 5705794 | AA66: 4.700769714 | AB66: 61.66911219 | AE66: Missouri | AF66: 2774597 | AG66: 51109206 | AH66: 4.202229444 | AI66: 77.40677666 | AL66: Montana | AM66: 236646 | AN66: 2829883 | AO66: 4.411050908 | AP66: 52.74865401 | AQ66: 52.74865401 | AS66: Arizona | AT66: 71654 | AU66: 1446764 | AV66: 2.733306021 | AW66: 55.18810886 | AZ66: Idaho | BA66: 103604 | BB66: 2092606 | BC66: 3.15618555 | BD66: 63.74901373 | BG66: Maryland | BH66: 64192426 | BI66: 1041075272 | BJ66: 4.26166187 | BK66: 69.11579865 | BN66: Indiana | BO66: 5084794 | BP66: 70280707 | BQ66: 5.044828966 | BR66: 69.72832064 | BU66: Missouri | BV66: 117295 | BW66: 1197360 | BX66: 3.23898725 | BY66: 33.06393089 | CB66: Ohio | CC66: 11544225 | CD66: 140171478 | CE66: 3.684934158 | CF66: 44.74294872
A67: 14.28571429 | B67: 100 | C67: 50 | D67: 80 | E67: 80.89739035 | F67: 36.2154369 | J67: Missouri | K67: 3703120 | L67: 44574164 | M67: 4.114824027 | N67: 49.52981297 | O67: 49.52981297 | Q67: Kentucky | R67: 985075 | S67: 14726912 | T67: 3.401906988 | U67: 50.8586502 | V67: 50.8586502 | X67: Michigan | Y67: 376255 | Z67: 6082049 | AA67: 4.066622771 | AB67: 65.73573496 | AE67: Oklahoma | AF67: 2304740 | AG67: 53413946 | AH67: 3.490613696 | AI67: 80.89739035 | AJ67: 80.89739035 | AL67: Idaho | AM67: 231078 | AN67: 3060961 | AO67: 4.307264107 | AP67: 57.05591812 | AS67: North Carolina | AT67: 66367 | AU67: 1513131 | AV67: 2.53162867 | AW67: 57.71973753 | AZ67: Minnesota | BA67: 101424 | BB67: 2194030 | BC67: 3.089774171 | BD67: 66.8387879 | BG67: Kentucky | BH67: 51189742 | BI67: 1092265014 | BJ67: 3.398428525 | BK67: 72.51422718 | BN67: California | BO67: 4532307 | BP67: 74813014 | BQ67: 4.496684356 | BR67: 74.22500499 | BU67: Ohio | BV67: 114127 | BW67: 1311487 | BX67: 3.151506014 | BY67: 36.2154369 | CB67: Georgia | CC67: 9919945 | CD67: 150091423 | CE67: 3.166461514 | CF67: 47.90941024
A68: 16.32653061 | B68: 100 | C68: 50 | D68: 80 | E68: 84.01506904 | F68: 39.26292088 | J68: Wisconsin | K68: 3494084 | L68: 48068248 | M68: 3.882547904 | N68: 53.41236088 | Q68: Florida | R68: 982790 | S68: 15709702 | T68: 3.394015855 | U68: 54.25266605 | X68: New Mexico | Y68: 318878 | Z68: 6400927 | AA68: 3.446483199 | AB68: 69.18221816 | AE68: Ohio | AF68: 2058503 | AG68: 55472449 | AH68: 3.117678681 | AI68: 84.01506904 | AL68: Oregon | AM68: 214613 | AN68: 3275574 | AO68: 4.000358631 | AP68: 61.05627675 | AS68: Kentucky | AT68: 64118 | AU68: 1577249 | AV68: 2.44583855 | AW68: 60.16557608 | AZ68: Washington | BA68: 96685 | BB68: 2290715 | BC68: 2.945405582 | BD68: 69.78419348 | BG68: Missouri | BH68: 46880714 | BI68: 1139145728 | BJ68: 3.112357076 | BK68: 75.62658425 | BN68: Iowa | BO68: 4383172 | BP68: 79196186 | BQ68: 4.348721515 | BR68: 78.57372651 | BU68: Colorado | BV68: 110360 | BW68: 1421847 | BX68: 3.047483976 | BY68: 39.26292088 | CB68: Michigan | CC68: 9883360 | CD68: 159974783 | CE68: 3.154783527 | CF68: 51.06419377 | CG68: 51.06419377
A69: 18.36734694 | B69: 100 | C69: 50 | D69: 80 | E69: 86.87178393 | F69: 42.12044797 | H69: 20 | J69: Montana | K69: 2633740 | L69: 50701988 | M69: 2.926552916 | N69: 56.33891379 | Q69: Iowa | R69: 885568 | S69: 16595270 | T69: 3.058264566 | U69: 57.31093062 | X69: Ohio | Y69: 267857 | Z69: 6668784 | AA69: 2.895040267 | AB69: 72.07725843 | AE69: Kansas | AF69: 1886197 | AG69: 57358646 | AH69: 2.856714892 | AI69: 86.87178393 | AL69: Arizona | AM69: 180551 | AN69: 3456125 | AO69: 3.365447346 | AP69: 64.4217241 | AS69: Wisconsin | AT69: 61111 | AU69: 1638360 | AV69: 2.331133841 | AW69: 62.49670992 | AZ69: Oregon | BA69: 82190 | BB69: 2372905 | BC69: 2.50383084 | BD69: 72.28802432 | BG69: South Carolina | BH69: 44296198 | BI69: 1183441926 | BJ69: 2.94077401 | BK69: 78.56735826 | BN69: Wisconsin | BO69: 3468522 | BP69: 82664708 | BQ69: 3.441260404 | BR69: 82.01498691 | BS69: 82.01498691 | BU69: Wisconsin | BV69: 103481 | BW69: 1525328 | BX69: 2.857527087 | BY69: 42.12044797 | CB69: North Carolina | CC69: 9752073 | CD69: 169726856 | CE69: 3.112876517 | CF69: 54.17707028
A70: 20.40816327 | B70: 100 | C70: 50 | D70: 80 | E70: 88.67584269 | F70: 44.82444106 | J70: Colorado | K70: 2630082 | L70: 53332070 | M70: 2.922488228 | N70: 59.26140202 | Q70: North Dakota | R70: 881682 | S70: 17476952 | T70: 3.044844461 | U70: 60.35577508 | X70: Washington | Y70: 266989 | Z70: 6935773 | AA70: 2.885658787 | AB70: 74.96291722 | AE70: South Dakota | AF70: 1191162 | AG70: 58549808 | AH70: 1.804058762 | AI70: 88.67584269 | AL70: Iowa | AM70: 165815 | AN70: 3621940 | AO70: 3.090770207 | AP70: 67.51249431 | AS70: Iowa | AT70: 56239 | AU70: 1694599 | AV70: 2.145287036 | AW70: 64.64199695 | AZ70: Michigan | BA70: 78995 | BB70: 2451900 | BC70: 2.406498567 | BD70: 74.69452289 | BG70: Delaware | BH70: 43206514 | BI70: 1226648440 | BJ70: 2.868431133 | BK70: 81.43578939 | BL70: 81.43578939 | BN70: Pennsylvania | BO70: 2955993 | BP70: 85620701 | BQ70: 2.932759736 | BR70: 84.94774665 | BU70: Montana | BV70: 97921 | BW70: 1623249 | BX70: 2.703993099 | BY70: 44.82444106 | CB70: New Jersey | CC70: 8864590 | CD70: 178591446 | CE70: 2.829590595 | CF70: 57.00666088
A71: 22.44897959 | B71: 100 | C71: 50 | D71: 80 | E71: 90.39477691 | F71: 47.51357782 | J71: Minnesota | K71: 2412684 | L71: 55744754 | M71: 2.680920438 | N71: 61.94232246 | Q71: Tennessee | R71: 874630 | S71: 18351582 | T71: 3.020490733 | U71: 63.37626581 | X71: Iowa | Y71: 204757 | Z71: 7140530 | AA71: 2.213045617 | AB71: 77.17596283 | AE71: Pennsylvania | AF71: 1134957 | AG71: 59684765 | AH71: 1.718934217 | AI71: 90.39477691 | AL71: Minnesota | AM71: 126506 | AN71: 3748446 | AO71: 2.358055518 | AP71: 69.87054982 | AS71: Alabama | AT71: 52749 | AU71: 1747348 | AV71: 2.01215786 | AW71: 66.65415481 | AZ71: New York | BA71: 70557 | BB71: 2522457 | BC71: 2.149443881 | BD71: 76.84396677 | BG71: California | BH71: 42268482 | BI71: 1268916922 | BJ71: 2.80615626 | BK71: 84.24194565 | BN71: Utah | BO71: 2894895 | BP71: 88515596 | BQ71: 2.872141949 | BR71: 87.8198886 | BU71: Indiana | BV71: 97383 | BW71: 1720632 | BX71: 2.689136752 | BY71: 47.51357782 | CB71: Virginia | CC71: 8185867 | CD71: 186777313 | CE71: 2.612941182 | CF71: 59.61960206
A72: 24.48979592 | B72: 100 | C72: 50 | D72: 80 | E72: 92.05997687 | F72: 50.17946356 | J72: Idaho | K72: 2397541 | L72: 58142295 | M72: 2.664093876 | N72: 64.60641634 | Q72: Arkansas | R72: 813250 | S72: 19164832 | T72: 2.808517989 | U72: 66.1847838 | X72: Arizona | Y72: 193621 | Z72: 7334151 | AA72: 2.092685991 | AB72: 79.26864882 | AE72: Michigan | AF72: 1099478 | AG72: 60784243 | AH72: 1.665199964 | AI72: 92.05997687 | AL72: Ohio | AM72: 111972 | AN72: 3860418 | AO72: 2.087143634 | AP72: 71.95769346 | AS72: Florida | AT72: 52052 | AU72: 1799400 | AV72: 1.985570171 | AW72: 68.63972498 | AZ72: Georgia | BA72: 64213 | BB72: 2586670 | BC72: 1.956180676 | BD72: 78.80014745 | BG72: Oklahoma | BH72: 38429952 | BI72: 1307346874 | BJ72: 2.551320636 | BK72: 86.79326629 | BN72: South Dakota | BO72: 2449784 | BP72: 90965380 | BQ72: 2.430529395 | BR72: 90.25041799 | BU72: Tennessee | BV72: 96541 | BW72: 1817173 | BX72: 2.665885742 | BY72: 50.17946356 | BZ72: 50.17946356 | CB72: Washington | CC72: 6897012 | CD72: 193674325 | CE72: 2.201536708 | CF72: 61.82113877
A73: 26.53061224 | B73: 100 | C73: 50 | D73: 80 | E73: 93.27295885 | F73: 52.73083393 | J73: Kentucky | K73: 2270871 | L73: 60413166 | M73: 2.523341008 | N73: 67.12975734 | Q73: Alabama | R73: 722787 | S73: 19887619 | T73: 2.496108567 | U73: 68.68089237 | X73: Indiana | Y73: 174141 | Z73: 7508292 | AA73: 1.88214311 | AB73: 81.15079194 | AC73: 81.15079194 | AE73: Texas | AF73: 800893 | AG73: 61585136 | AH73: 1.212981974 | AI73: 93.27295885 | AL73: Pennsylvania | AM73: 96648 | AN73: 3957066 | AO73: 1.801506251 | AP73: 73.75919971 | AS73: Ohio | AT73: 51558 | AU73: 1850958 | AV73: 1.966726098 | AW73: 70.60645108 | AZ73: Arizona | BA73: 58461 | BB73: 2645131 | BC73: 1.78095212 | BD73: 80.58109957 | BE73: 80.58109957 | BG73: Virginia | BH73: 38386310 | BI73: 1345733184 | BJ73: 2.548423293 | BK73: 89.34168958 | BN73: Michigan | BO73: 2190486 | BP73: 93155866 | BQ73: 2.173269403 | BR73: 92.4236874 | BU73: Arizona | BV73: 92394 | BW73: 1909567 | BX73: 2.551370374 | BY73: 52.73083393 | CB73: Massachusetts | CC73: 6646144 | CD73: 200320469 | CE73: 2.121459262 | CF73: 63.94259803
A74: 28.57142857 | B74: 100 | C74: 50 | D74: 80 | E74: 94.50360533 | F74: 55.22043173 | H74: 30 | J74: Tennessee | K74: 1856316 | L74: 62269482 | M74: 2.062696774 | N74: 69.19245412 | Q74: Colorado | R74: 683291 | S74: 20570910 | T74: 2.359711116 | U74: 71.04060349 | X74: Vermont | Y74: 134142 | Z74: 7642434 | AA74: 1.449827675 | AB74: 82.60061961 | AE74: Utah | AF74: 731666 | AG74: 62316802 | AH74: 1.10813513 | AI74: 94.38109398 | AL74: Missouri | AM74: 91967 | AN74: 4049033 | AO74: 1.714253015 | AP74: 75.47345272 | AS74: Virginia | AT74: 50831 | AU74: 1901789 | AV74: 1.938994032 | AW74: 72.54544511 | AZ74: Wisconsin | BA74: 49661 | BB74: 2694792 | BC74: 1.512869489 | BD74: 82.09396905 | BG74: Tennessee | BH74: 30400743 | BI74: 1376133927 | BJ74: 2.018270617 | BK74: 91.3599602 | BN74: Ohio | BO74: 2096395 | BP74: 95252261 | BQ74: 2.079917932 | BR74: 94.50360533 | BU74: New York | BV74: 90157 | BW74: 1999724 | BX74: 2.489597796 | BY74: 55.22043173 | CB74: Arizona | CC74: 6553255 | CD74: 206873724 | CE74: 2.091808952 | CF74: 66.03440698
A75: 30.6122449 | B75: 100 | C75: 50 | D75: 80 | E75: 96.3066298 | F75: 57.65041084 | J75: North Dakota | K75: 1809613 | L75: 64079095 | M75: 2.010801446 | N75: 71.20325556 | Q75: Wyoming | R75: 664254 | S75: 21235164 | T75: 2.293967794 | U75: 73.33457128 | X75: Kansas | Y75: 131688 | Z75: 7774122 | AA75: 1.42330446 | AB75: 84.02392407 | AE75: Colorado | AF75: 727301 | AG75: 63044103 | AH75: 1.101524177 | AI75: 95.48261815 | AL75: Nevada | AM75: 91934 | AN75: 4140967 | AO75: 1.713637899 | AP75: 77.18709062 | AS75: Pennsylvania | AT75: 50174 | AU75: 1951963 | AV75: 1.913932178 | AW75: 74.45937729 | AZ75: Wyoming | BA75: 45029 | BB75: 2739821 | BC75: 1.371760541 | BD75: 83.4657296 | BG75: Pennsylvania | BH75: 29248115 | BI75: 1405382042 | BJ75: 1.941748961 | BK75: 93.30170916 | BN75: West Virginia | BO75: 1817308 | BP75: 97069569 | BQ75: 1.803024476 | BR75: 96.3066298 | BU75: Michigan | BV75: 87998 | BW75: 2087722 | BX75: 2.429979113 | BY75: 57.65041084 | CB75: Indiana | CC75: 6537334 | CD75: 213411058 | CE75: 2.086726944 | CF75: 68.12113392
A76: 32.65306122 | B76: 100 | C76: 50 | D76: 80 | E76: 98.04042075 | F76: 60.04841291 | J76: Florida | K76: 1675323 | L76: 65754418 | M76: 1.861581405 | N76: 73.06483697 | Q76: Virginia | R76: 657320 | S76: 21892484 | T76: 2.270021573 | U76: 75.60459285 | X76: Colorado | Y76: 130736 | Z76: 7904858 | AA76: 1.413015095 | AB76: 85.43693916 | AE76: Mississippi | AF76: 401898 | AG76: 63446001 | AH76: 0.6086893372 | AI76: 96.09130749 | AL76: New Mexico | AM76: 89745 | AN76: 4230712 | AO76: 1.672835221 | AP76: 78.85992584 | AS76: Kansas | AT76: 42315 | AU76: 1994278 | AV76: 1.614143583 | AW76: 76.07352087 | AZ76: Nebraska | BA76: 44895 | BB76: 2784716 | BC76: 1.367678374 | BD76: 84.83340797 | BG76: Louisiana | BH76: 25061453 | BI76: 1430443495 | BJ76: 1.663801251 | BK76: 94.96551041 | BN76: Texas | BO76: 1747526 | BP76: 98817095 | BQ76: 1.733790943 | BR76: 98.04042075 | BU76: Virginia | BV76: 86840 | BW76: 2174562 | BX76: 2.39800207 | BY76: 60.04841291 | CB76: Tennessee | CC76: 6456243 | CD76: 219867301 | CE76: 2.060842574 | CF76: 70.1819765
A77: 34.69387755 | B77: 100 | C77: 50 | D77: 80 | E77: 98.77426723 | F77: 62.11595793 | J77: Virginia | K77: 1631882 | L77: 67386300 | M77: 1.813310739 | N77: 74.87814771 | Q77: California | R77: 583594 | S77: 22476078 | T77: 2.015412539 | U77: 77.62000539 | X77: Oregon | Y77: 125767 | Z77: 8030625 | AA77: 1.359309367 | AB77: 86.79624853 | AE77: Kentucky | AF77: 313360 | AG77: 63759361 | AH77: 0.4745952722 | AI77: 96.56590276 | AL77: Michigan | AM77: 86503 | AN77: 4317215 | AO77: 1.61240476 | AP77: 80.4723306 | AQ77: 80.4723306 | AS77: Arkansas | AT77: 41610 | AU77: 2035888 | AV77: 1.587250726 | AW77: 77.6607716 | AZ77: Mississippi | BA77: 36097 | BB77: 2820813 | BC77: 1.099656671 | BD77: 85.93306464 | BG77: West Virginia | BH77: 14781332 | BI77: 1445224827 | BJ77: 0.9813157548 | BK77: 95.94682617 | BN77: Illinois | BO77: 739660 | BP77: 99556755 | BQ77: 0.7338464828 | BR77: 98.77426723 | BU77: Kansas | BV77: 74873 | BW77: 2249435 | BX77: 2.067545014 | BY77: 62.11595793 | CB77: Missouri | CC77: 6021988 | CD77: 225889289 | CE77: 1.922227718 | CF77: 72.10420422
A78: 36.73469388 | B78: 100 | C78: 50 | D78: 80 | E78: 99.1902905 | F78: 64.11689791 | J78: Pennsylvania | K78: 1626374 | L78: 69012674 | M78: 1.807190373 | N78: 76.68533808 | Q78: Oregon | R78: 504279 | S78: 22980357 | T78: 1.741502174 | U78: 79.36150757 | X78: Florida | Y78: 123220 | Z78: 8153845 | AA78: 1.331780994 | AB78: 88.12802953 | AE78: Wisconsin | AF78: 311651 | AG78: 64071012 | AH78: 0.4720069287 | AI78: 97.03790969 | AL78: New York | AM78: 86286 | AN78: 4403501 | AO78: 1.608359908 | AP78: 82.08069051 | AS78: South Carolina | AT78: 38732 | AU78: 2074620 | AV78: 1.477466838 | AW78: 79.13823844 | AZ78: Louisiana | BA78: 34905 | BB78: 2855718 | BC78: 1.063343661 | BD78: 86.9964083 | BG78: Ohio | BH78: 12194024 | BI78: 1457418851 | BJ78: 0.8095473307 | BK78: 96.7563735 | BN78: North Dakota | BO78: 419319 | BP78: 99976074 | BQ78: 0.416023272 | BR78: 99.1902905 | BU78: Wyoming | BV78: 72461 | BW78: 2321896 | BX78: 2.000939981 | BY78: 64.11689791 | CB78: Maryland | CC78: 5884563 | CD78: 231773852 | CE78: 1.878361449 | CF78: 73.98256567
A79: 38.7755102 | B79: 100 | C79: 50 | D79: 80 | E79: 99.38435116 | F79: 66.06167096 | H79: 40 | J79: Arkansas | K79: 1615774 | L79: 70628448 | M79: 1.79541189 | N79: 78.48074997 | Q79: Mississippi | R79: 495381 | S79: 23475738 | T79: 1.710773378 | U79: 81.07228094 | V79: 81.07228094 | X79: Illinois | Y79: 98849 | Z79: 8252694 | AA79: 1.068375422 | AB79: 89.19640495 | AE79: Virginia | AF79: 239899 | AG79: 64310911 | AH79: 0.3633358795 | AI79: 97.40124557 | AL79: Virginia | AM79: 84983 | AN79: 4488484 | AO79: 1.584072156 | AP79: 83.66476267 | AS79: Indiana | AT79: 38632 | AU79: 2113252 | AV79: 1.473652248 | AW79: 80.61189069 | AX79: 80.61189069 | AZ79: Colorado | BA79: 34813 | BB79: 2890531 | BC79: 1.060540979 | BD79: 88.05694928 | BG79: Florida | BH79: 11031656 | BI79: 1468450507 | BJ79: 0.7323790463 | BK79: 97.48875254 | BN79: Nebraska | BO79: 195598 | BP79: 100171672 | BQ79: 0.1940606554 | BR79: 99.38435116 | BU79: Oregon | BV79: 70427 | BW79: 2392323 | BX79: 1.944773051 | BY79: 66.06167096 | CB79: Wisconsin | CC79: 5726398 | CD79: 237500250 | CE79: 1.827874941 | CF79: 75.81044061
A80: 40.81632653 | B80: 100 | C80: 50 | D80: 80 | E80: 99.5266965 | F80: 67.99081447 | J80: New York | K80: 1419365 | L80: 72047813 | M80: 1.577166607 | N80: 80.05791658 | O80: 80.05791658 | Q80: Idaho | R80: 485025 | S80: 23960763 | T80: 1.675009453 | U80: 82.7472904 | X80: Virginia | Y80: 94105 | Z80: 8346799 | AA80: 1.017101529 | AB80: 90.21350648 | AE80: South Carolina | AF80: 224076 | AG80: 64534987 | AH80: 0.3393713627 | AI80: 97.74061693 | AL80: Wisconsin | AM80: 80081 | AN80: 4568565 | AO80: 1.492699508 | AP80: 85.15746217 | AS80: New York | AT80: 36441 | AU80: 2149693 | AV80: 1.39007459 | AW80: 82.00196528 | AZ80: Pennsylvania | BA80: 32023 | BB80: 2922554 | BC80: 0.9755465992 | BD80: 89.03249588 | BG80: Wisconsin | BH80: 7818682 | BI80: 1476269189 | BJ80: 0.5190733709 | BK80: 98.00782591 | BN80: New York | BO80: 143473 | BP80: 100315145 | BQ80: 0.142345343 | BR80: 99.5266965 | BU80: Georgia | BV80: 69861 | BW80: 2462184 | BX80: 1.929143512 | BY80: 67.99081447 | CB80: Minnesota | CC80: 5379139 | CD80: 242879389 | CE80: 1.717029341 | CF80: 77.52746995
A81: 42.85714286 | B81: 100 | C81: 50 | D81: 80 | E81: 99.65691194 | F81: 69.89411125 | J81: New Mexico | K81: 1354240 | L81: 73402053 | M81: 1.504801165 | N81: 81.56271774 | Q81: Georgia | R81: 469942 | S81: 24430705 | T81: 1.622921071 | U81: 84.37021147 | X81: Missouri | Y81: 92952 | Z81: 8439751 | AA81: 1.004639725 | AB81: 91.2181462 | AE81: Montana | AF81: 173953 | AG81: 64708940 | AH81: 0.2634582314 | AI81: 98.00407516 | AL81: Nebraska | AM81: 71771 | AN81: 4640336 | AO81: 1.33780218 | AP81: 86.49526435 | AS81: Colorado | AT81: 34757 | AU81: 2184450 | AV81: 1.325836902 | AW81: 83.32780218 | AZ81: Iowa | BA81: 30004 | BB81: 2952558 | BC81: 0.9140399138 | BD81: 89.94653579 | BG81: Minnesota | BH81: 7765172 | BI81: 1484034361 | BJ81: 0.5155209031 | BK81: 98.52334682 | BN81: Kansas | BO81: 131247 | BP81: 100446392 | BQ81: 0.1302154359 | BR81: 99.65691194 | BU81: South Dakota | BV81: 68925 | BW81: 2531109 | BX81: 1.903296783 | BY81: 69.89411125 | CB81: Colorado | CC81: 5187582 | CD81: 248066971 | CE81: 1.655884055 | CF81: 79.183354
A82: 44.89795918 | B82: 100 | C82: 50 | D82: 80 | E82: 99.75824915 | F82: 71.74066121 | J82: Wyoming | K82: 1307731 | L82: 74709784 | M82: 1.453121406 | N82: 83.01583915 | Q82: New Mexico | R82: 461595 | S82: 24892300 | T82: 1.594095126 | U82: 85.96430659 | X82: South Dakota | Y82: 91831 | Z82: 8531582 | AA82: 0.9925237823 | AB82: 92.21066998 | AE82: Arizona | AF82: 169603 | AG82: 64878543 | AH82: 0.256869996 | AI82: 98.26094516 | AL82: North Dakota | AM82: 64607 | AN82: 4704943 | AO82: 1.204266145 | AP82: 87.6995305 | AS82: Minnesota | AT82: 33721 | AU82: 2218171 | AV82: 1.286317754 | AW82: 84.61411993 | AZ82: Utah | BA82: 26083 | BB82: 2978641 | BC82: 0.7945908237 | BD82: 90.74112662 | BG82: Washington | BH82: 7511065 | BI82: 1491545426 | BJ82: 0.4986510295 | BK82: 99.02199785 | BN82: Oklahoma | BO82: 102140 | BP82: 100548532 | BQ82: 0.1013372087 | BR82: 99.75824915 | BU82: North Carolina | BV82: 66870 | BW82: 2597979 | BX82: 1.846549959 | BY82: 71.74066121 | CB82: Alabama | CC82: 4822023 | CD82: 252888994 | CE82: 1.539197067 | CF82: 80.72255107 | CG82: 80.72255107
A83: 46.93877551 | B83: 100 | C83: 50 | D83: 80 | E83: 99.835016 | F83: 73.57379075 | J83: Oregon | K83: 1297945 | L83: 76007729 | M83: 1.442247422 | N83: 84.45808657 | Q83: Louisiana | R83: 434252 | S83: 25326552 | T83: 1.49966745 | U83: 87.46397404 | X83: Utah | Y83: 90449 | Z83: 8622031 | AA83: 0.9775869105 | AB83: 93.1882569 | AE83: Georgia | AF83: 153733 | AG83: 65032276 | AH83: 0.232834296 | AI83: 98.49377946 | AL83: Kansas | AM83: 62541 | AN83: 4767484 | AO83: 1.165756171 | AP83: 88.86528667 | AS83: Oregon | AT83: 33226 | AU83: 2251397 | AV83: 1.267435535 | AW83: 85.88155547 | AZ83: North Carolina | BA83: 24225 | BB83: 3002866 | BC83: 0.7379888319 | BD83: 91.47911545 | BG83: Indiana | BH83: 6238623 | BI83: 1497784049 | BJ83: 0.414175058 | BK83: 99.4361729 | BN83: Maryland | BO83: 77375 | BP83: 100625907 | BQ83: 0.07676685451 | BR83: 99.835016 | BU83: Minnesota | BV83: 66384 | BW83: 2664363 | BX83: 1.833129542 | BY83: 73.57379075 | CB83: South Carolina | CC83: 4723723 | CD83: 257612717 | CE83: 1.507819558 | CF83: 82.23037063
A84: 48.97959184 | B84: 100 | C84: 50 | D84: 80 | E84: 99.86937283 | F84: 75.3580987 | H84: 50 | J84: Ohio | K84: 1242293 | L84: 77250022 | M84: 1.380408165 | N84: 85.83849473 | Q84: Utah | R84: 369670 | S84: 25696222 | T84: 1.27663676 | U84: 88.7406108 | X84: Georgia | Y84: 79492 | Z84: 8701523 | AA84: 0.8591619442 | AB84: 94.04741884 | AE84: Tennessee | AF84: 147795 | AG84: 65180071 | AH84: 0.2238409761 | AI84: 98.71762043 | AL84: Illinois | AM84: 54675 | AN84: 4822159 | AO84: 1.019134946 | AP84: 89.88442162 | AS84: Illinois | AT84: 31546 | AU84: 2282943 | AV84: 1.20335043 | AW84: 87.0849059 | AZ84: Arkansas | BA84: 23259 | BB84: 3026125 | BC84: 0.7085606705 | BD84: 92.18767612 | BG84: Oregon | BH84: 3294786 | BI84: 1501078835 | BJ84: 0.2187370807 | BK84: 99.65490998 | BN84: Kentucky | BO84: 34629 | BP84: 100660536 | BQ84: 0.03435682591 | BR84: 99.86937283 | BU84: Washington | BV84: 64616 | BW84: 2728979 | BX84: 1.784307943 | BY84: 75.3580987 | CB84: Louisiana | CC84: 4601893 | CD84: 262214610 | CE84: 1.468931237 | CF84: 83.69930187
A85: 51.02040816 | B85: 100 | C85: 50 | D85: 80 | E85: 99.88942001 | F85: 77.13439857 | J85: Alabama | K85: 1236467 | L85: 78486489 | M85: 1.373934445 | N85: 87.21242918 | Q85: Minnesota | R85: 357826 | S85: 26054048 | T85: 1.235734101 | U85: 89.97634491 | X85: Kentucky | Y85: 71783 | Z85: 8773306 | AA85: 0.7758418689 | AB85: 94.82326071 | AE85: Alabama | AF85: 142555 | AG85: 65322626 | AH85: 0.2159048029 | AI85: 98.93352524 | AL85: Kentucky | AM85: 54612 | AN85: 4876771 | AO85: 1.017960634 | AP85: 90.90238225 | AS85: New Mexico | AT85: 30981 | AU85: 2313924 | AV85: 1.181797999 | AW85: 88.2667039 | AZ85: Ohio | BA85: 21398 | BB85: 3047523 | BC85: 0.6518672869 | BD85: 92.83954341 | BG85: Iowa | BH85: 1948950 | BI85: 1503027785 | BJ85: 0.1293885653 | BK85: 99.78429855 | BN85: Montana | BO85: 20206 | BP85: 100680742 | BQ85: 0.02004718659 | BR85: 99.88942001 | BU85: Nebraska | BV85: 64326 | BW85: 2793305 | BX85: 1.776299875 | BY85: 77.13439857 | CB85: Kentucky | CC85: 4380415 | CD85: 266595025 | CE85: 1.398235123 | CF85: 85.09753699
A86: 53.06122449 | B86: 100 | C86: 50 | D86: 80 | E86: 99.90299944 | F86: 78.89360536 | J86: Washington | K86: 1162792 | L86: 79649281 | M86: 1.292068434 | N86: 88.50449761 | Q86: North Carolina | R86: 348196 | S86: 26402244 | T86: 1.202477381 | U86: 91.17882229 | X86: Nebraska | Y86: 54628 | Z86: 8827934 | AA86: 0.5904279511 | AB86: 95.41368866 | AE86: North Dakota | AF86: 133653 | AG86: 65456279 | AH86: 0.2024223957 | AI86: 99.13594763 | AL86: Oklahoma | AM86: 53738 | AN86: 4930509 | AO86: 1.001669387 | AP86: 91.90405164 | AS86: Washington | AT86: 27062 | AU86: 2340986 | AV86: 1.032304233 | AW86: 89.29900813 | AZ86: Oklahoma | BA86: 21011 | BB86: 3068534 | BC86: 0.640077744 | BD86: 93.47962115 | BG86: Michigan | BH86: 1125601 | BI86: 1504153386 | BJ86: 0.07472736522 | BK86: 99.85902592 | BN86: New Jersey | BO86: 13687 | BP86: 100694429 | BQ86: 0.01357942407 | BR86: 99.90299944 | BU86: Alabama | BV86: 63707 | BW86: 2857012 | BX86: 1.759206793 | BY86: 78.89360536 | CB86: Oregon | CC86: 3899353 | CD86: 270494378 | CE86: 1.244679401 | CF86: 86.34221639
A87: 55.10204082 | B87: 100 | C87: 50 | D87: 80 | E87: 99.91937106 | F87: 80.62539143 | J87: Michigan | K87: 1130477 | L87: 80779758 | M87: 1.25616073 | N87: 89.76065834 | Q87: Illinois | R87: 343972 | S87: 26746216 | T87: 1.187890009 | U87: 92.36671229 | X87: Maryland | Y87: 50923 | Z87: 8878857 | AA87: 0.5503837328 | AB87: 95.96407239 | AE87: California | AF87: 111893 | AG87: 65568172 | AH87: 0.1694660735 | AI87: 99.3054137 | AL87: Indiana | AM87: 52169 | AN87: 4982678 | AO87: 0.9724234293 | AP87: 92.87647507 | AS87: Michigan | AT87: 27059 | AU87: 2368045 | AV87: 1.032189796 | AW87: 90.33119793 | AZ87: New Mexico | BA87: 15088 | BB87: 3083622 | BC87: 0.4596398554 | BD87: 93.93926101 | BG87: Nebraska | BH87: 908965 | BI87: 1505062351 | BJ87: 0.06034514853 | BK87: 99.91937106 | BN87: Massachusetts | BO87: 12142 | BP87: 100706571 | BQ87: 0.01204656733 | BR87: 99.915046 | BU87: Illinois | BV87: 62714 | BW87: 2919726 | BX87: 1.731786064 | BY87: 80.62539143 | BZ87: 80.62539143 | CB87: Oklahoma | CC87: 3814820 | CD87: 274309198 | CE87: 1.217696339 | CF87: 87.55991273
A88: 57.14285714 | B88: 100 | C88: 50 | D88: 80 | E88: 99.95864512 | F88: 82.34314957 | J88: Illinois | K88: 1127630 | L88: 81907388 | M88: 1.252997207 | N88: 91.01365555 | Q88: Ohio | R88: 277949 | S88: 27024165 | T88: 0.9598828977 | U88: 93.32659519 | X88: Tennessee | Y88: 47978 | Z88: 8926835 | AA88: 0.5185537131 | AB88: 96.48262611 | AE88: Arkansas | AF88: 109316 | AG88: 65677488 | AH88: 0.165563112 | AI88: 99.47097682 | AL88: Washington | AM88: 44863 | AN88: 5027541 | AO88: 0.8362405319 | AP88: 93.7127156 | AS88: Nebraska | AT88: 25840 | AU88: 2393885 | AV88: 0.9856899486 | AW88: 91.31688787 | AZ88: Missouri | BA88: 14561 | BB88: 3098183 | BC88: 0.4435853615 | BD88: 94.38284637 | BG88: New York | BH88: 591576 | BI88: 1505653927 | BJ88: 0.0392740552 | BK88: 99.95864512 | BN88: Connecticut | BO88: 9421 | BP88: 100715992 | BQ88: 0.00934695362 | BR88: 99.92439296 | BU88: Iowa | BV88: 62206 | BW88: 2981932 | BX88: 1.717758139 | BY88: 82.34314957 | CB88: Connecticut | CC88: 3590347 | CD88: 277899545 | CE88: 1.146044217 | CF88: 88.70595695
A89: 59.18367347 | B89: 100 | C89: 50 | D89: 80 | E89: 99.96634138 | F89: 84.03972775 | H89: 60 | J89: Georgia | K89: 1033717 | L89: 82941105 | M89: 1.148643184 | N89: 92.16229873 | Q89: Wisconsin | R89: 248305 | S89: 27272470 | T89: 0.857508834 | U89: 94.18410403 | X89: North Carolina | Y89: 45960 | Z89: 8972795 | AA89: 0.4967428541 | AB89: 96.97936896 | AE89: Wyoming | AF89: 85432 | AG89: 65762920 | AH89: 0.1293899135 | AI89: 99.60036673 | AL89: Tennessee | AM89: 43836 | AN89: 5071377 | AO89: 0.8170973844 | AP89: 94.52981298 | AS89: Mississippi | AT89: 24528 | AU89: 2418413 | AV89: 0.9356425333 | AW89: 92.25253041 | AZ89: Maine | BA89: 14456 | BB89: 3112639 | BC89: 0.4403866483 | BD89: 94.82323302 | BG89: Illinois | BH89: 115927 | BI89: 1505769854 | BJ89: 0.007696261169 | BK89: 99.96634138 | BN89: Alabama | BO89: 7354 | BP89: 100723346 | BQ89: 0.007296199652 | BR89: 99.93168916 | BU89: Idaho | BV89: 61439 | BW89: 3043371 | BX89: 1.69657818 | BY89: 84.03972775 | CB89: Iowa | CC89: 3074186 | CD89: 280973731 | CE89: 0.9812848415 | CF89: 89.68724179
A90: 61.2244898 | B90: 100 | C90: 50 | D90: 80 | E90: 99.97230722 | F90: 85.72666863 | J90: Mississippi | K90: 921508 | L90: 83862613 | M90: 1.023959056 | N90: 93.18625779 | Q90: Nevada | R90: 220150 | S90: 27492620 | T90: 0.760276957 | U90: 94.94438098 | X90: Oklahoma | Y90: 45885 | Z90: 9018680 | AA90: 0.4959322424 | AB90: 97.4753012 | AE90: New York | AF90: 74671 | AG90: 65837591 | AH90: 0.1130919823 | AI90: 99.71345871 | AL90: West Virginia | AM90: 31630 | AN90: 5103007 | AO90: 0.5895791192 | AP90: 95.1193921 | AS90: Nevada | AT90: 21388 | AU90: 2439801 | AV90: 0.8158644203 | AW90: 93.06839483 | AZ90: Virginia | BA90: 14334 | BB90: 3126973 | BC90: 0.4366700482 | BD90: 95.25990306 | BG90: Montana | BH90: 89862 | BI90: 1505859716 | BJ90: 0.005965835579 | BK90: 99.97230722 | BN90: Idaho | BO90: 6696 | BP90: 100730042 | BQ90: 0.006643371345 | BR90: 99.93833253 | BU90: Arkansas | BV90: 61090 | BW90: 3104461 | BX90: 1.686940885 | BY90: 85.72666863 | CB90: Mississippi | CC90: 2984926 | CD90: 283958657 | CE90: 0.9527929139 | CF90: 90.6400347
A91: 63.26530612 | B91: 100 | C91: 50 | D91: 80 | E91: 99.9775921 | F91: 87.3777389 | J91: Arizona | K91: 911334 | L91: 84773947 | M91: 1.012653935 | N91: 94.19891173 | Q91: Washington | R91: 211852 | S91: 27704472 | T91: 0.7316202312 | U91: 95.67600121 | X91: Maine | Y91: 32117 | Z91: 9050797 | AA91: 0.3471255493 | AB91: 97.82242675 | AE91: Idaho | AF91: 45139 | AG91: 65882730 | AH91: 0.06836467958 | AI91: 99.78182339 | AL91: North Carolina | AM91: 29224 | AN91: 5132231 | AO91: 0.5447315896 | AP91: 95.66412369 | AS91: West Virginia | AT91: 18825 | AU91: 2458626 | AV91: 0.7180964893 | AW91: 93.78649132 | AZ91: Tennessee | BA91: 14161 | BB91: 3141134 | BC91: 0.4313997874 | BD91: 95.69130285 | BG91: Connecticut | BH91: 79605 | BI91: 1505939321 | BJ91: 0.00528488506 | BK91: 99.9775921 | BN91: New Mexico | BO91: 6425 | BP91: 100736467 | BQ91: 0.006374501328 | BR91: 99.94470703 | BU91: Louisiana | BV91: 59791 | BW91: 3164252 | BX91: 1.651070264 | BY91: 87.3777389 | CB91: Arkansas | CC91: 2949131 | CD91: 286907788 | CE91: 0.9413670955 | CF91: 91.5814018
A92: 65.30612245 | B92: 100 | C92: 50 | D92: 80 | E92: =MAX(CF92,BY92,BR92,BK92,BD92,AW92,AP92,AI92,AB92,U92,N92) -> 99.98141842 | F92: =MIN(CF92,BY92,BR92,BK92,BD92,AW92,AP92,AI92,AB92,U92,N92) -> 89.00638657 | J92: North Carolina | K92: 829717 | L92: 85603664 | M92: =K92/SUM($K$60:$K$109)*100 -> 0.9219629521 | N92: =L92/SUM($K$60:$K$109)*100 -> 95.12087468 | Q92: Arizona | R92: 197901 | S92: 27902373 | T92: =R92/SUM(R$60:R$109)*100 -> 0.6834411541 | U92: =S92/SUM(R$60:R$109)*100 -> 96.35944237 | X92: Nevada | Y92: 29484 | Z92: 9080281 | AA92: =Y92/SUM(Y$60:Y$109)*100 -> 0.3186676743 | AB92: =Z92/SUM(Y$60:Y$109)*100 -> 98.14109443 | AE92: Maryland | AF92: 19869 | AG92: 65902599 | AH92: =AF92/SUM(AF$60:AF$109)*100 -> 0.03009233298 | AI92: =AG92/SUM(AF$60:AF$109)*100 -> 99.81191572 | AL92: Hawaii | AM92: 21921 | AN92: 5154152 | AO92: =AM92/SUM(AM$60:AM$109)*100 -> 0.4086046118 | AP92: =AN92/SUM(AM$60:AM$109)*100 -> 96.0727283 | AS92: Louisiana | AT92: 18779 | AU92: 2477405 | AV92: =AT92/SUM(AT$60:AT$109)*100 -> 0.7163417781 | AW92: =AU92/SUM(AT$60:AT$109)*100 -> 94.5028331 | AZ92: New Jersey | BA92: 13298 | BB92: 3154432 | BC92: =BA92/SUM(BA$60:BA$109)*100 -> 0.4051094112 | BD92: =BB92/SUM(BA$60:BA$109)*100 -> 96.09641226 | BG92: South Dakota | BH92: 57635 | BI92: 1505996956 | BJ92: =BH92/SUM(BH$60:BH$109)*100 -> 0.003826321845 | BK92: =BI92/SUM(BH$60:BH$109)*100 -> 99.98141842 | BN92: Rhode Island | BO92: 6252 | BP92: 100742719 | BQ92: =BO92/SUM(BO$60:BO$109)*100 -> 0.006202861059 | BR92: =BP92/SUM(BO$60:BO$109)*100 -> 99.95090989 | BU92: Utah | BV92: 58979 | BW92: 3223231 | BX92: =BV92/SUM(BV$60:BV$109)*100 -> 1.628647675 | BY92: =BW92/SUM(BV$60:BV$109)*100 -> 89.00638657 | CB92: Kansas | CC92: 2885905 | CD92: 289793693 | CE92: =CC92/SUM(CC$60:CC$109)*100 -> 0.9211852602 | CF92: =CD92/SUM(CC$60:CC$109)*100 -> 92.50258706
A93: 67.34693878 | B93: 100 | C93: 50 | D93: 80 | E93: 99.98464127 | F93: 90.62724709 | J93: Indiana | K93: 821265 | L93: 86424929 | M93: 0.912571279 | N93: 96.03344596 | Q93: West Virginia | R93: 191398 | S93: 28093771 | T93: 0.6609833705 | U93: 97.02042574 | X93: North Dakota | Y93: 17876 | Z93: 9098157 | AA93: 0.1932065983 | AB93: 98.33430102 | AE93: Washington | AF93: 19861 | AG93: 65922460 | AH93: 0.03008021669 | AI93: 99.84199594 | AL93: Georgia | AM93: 21798 | AN93: 5175950 | AO93: 0.4063119077 | AP93: 96.47904021 | AS93: Idaho | AT93: 18139 | AU93: 2495544 | AV93: 0.6919284047 | AW93: 95.1947615 | AZ93: Indiana | BA93: 13017 | BB93: 3167449 | BC93: 0.3965490454 | BD93: 96.49296131 | BG93: Vermont | BH93: 48545 | BI93: 1506045501 | BJ93: 0.003222847123 | BK93: 99.98464127 | BN93: Florida | BO93: 5567 | BP93: 100748286 | BQ93: 0.005523244964 | BR93: 99.95643314 | BU93: Mississippi | BV93: 58697 | BW93: 3281928 | BX93: 1.620860519 | BY93: 90.62724709 | CB93: Utah | CC93: 2855287 | CD93: 292648980 | CE93: 0.9114119481 | CF93: 93.413999
A94: 69.3877551 | B94: 100 | C94: 50 | D94: 80 | E94: 99.98777828 | F94: 92.07408402 | H94: 70 | J94: Louisiana | K94: 788967 | L94: 87213896 | M94: 0.8766824646 | N94: 96.91012842 | Q94: Indiana | R94: 182627 | S94: 28276398 | T94: 0.630693163 | U94: 97.6511189 | X94: Connecticut | Y94: 17740 | Z94: 9115897 | AA94: 0.1917366891 | AB94: 98.52603771 | AE94: Florida | AF94: 14915 | AG94: 65937375 | AH94: 0.02258931735 | AI94: 99.86458526 | AL94: Alabama | AM94: 21114 | AN94: 5197064 | AO94: 0.3935622359 | AP94: 96.87260245 | AS94: South Dakota | AT94: 16545 | AU94: 2512089 | AV94: 0.6311238468 | AW94: 95.82588535 | AZ94: Kentucky | BA94: 12669 | BB94: 3180118 | BC94: 0.3859475959 | BD94: 96.8789089 | BG94: Maine | BH94: 47252 | BI94: 1506092753 | BJ94: 0.00313700633 | BK94: 99.98777828 | BN94: Maine | BO94: 5554 | BP94: 100753840 | BQ94: 0.00551034714 | BR94: 99.96194348 | BU94: South Carolina | BV94: 52395 | BW94: 3334323 | BX94: 1.446836924 | BY94: 92.07408402 | CB94: Nevada | CC94: 2758931 | CD94: 295407911 | CE94: 0.8806549665 | CF94: 94.29465397
A95: 71.42857143 | B95: 100 | C95: 50 | D95: 80 | E95: 99.98969851 | F95: 93.47475029 | J95: Utah | K95: 776833 | L95: 87990729 | M95: 0.8631994355 | N95: 97.77332786 | Q95: South Carolina | R95: 166745 | S95: 28443143 | T95: 0.5758454744 | U95: 98.22696438 | X95: Louisiana | Y95: 16089 | Z95: 9131986 | AA95: 0.1738924234 | AB95: 98.69993014 | AE95: Oregon | AF95: 12693 | AG95: 65950068 | AH95: 0.01922401644 | AI95: 99.88380928 | AL95: Maryland | AM95: 19265 | AN95: 5216329 | AO95: 0.3590971145 | AP95: 97.23169956 | AS95: Utah | AT95: 14723 | AU95: 2526812 | AV95: 0.5616220245 | AW95: 96.38750737 | AZ95: Alabama | BA95: 11628 | BB95: 3191746 | BC95: 0.3542346393 | BD95: 97.23314354 | BG95: New Hampshire | BH95: 28924 | BI95: 1506121677 | BJ95: 0.001920231336 | BK95: 99.98969851 | BN95: Washington | BO95: 5326 | BP95: 100759166 | BQ95: 0.005284139155 | BR95: 99.96722762 | BU95: New Mexico | BV95: 50723 | BW95: 3385046 | BX95: 1.400666271 | BY95: 93.47475029 | CB95: New Mexico | CC95: 2085538 | CD95: 297493449 | CE95: 0.6657068979 | CF95: 94.96036087
A96: 73.46938776 | B96: 100 | C96: 50 | D96: 80 | E96: 99.99133884 | F96: 94.72486488 | J96: Nevada | K96: 420322 | L96: 88411051 | M96: 0.4670523949 | N96: 98.24038025 | Q96: Pennsylvania | R96: 148249 | S96: 28591392 | T96: 0.5119704683 | U96: 98.73893484 | X96: South Carolina | Y96: 15997 | Z96: 9147983 | AA96: 0.172898073 | AB96: 98.87282821 | AE96: Hawaii | AF96: 11441 | AG96: 65961509 | AH96: 0.01732781628 | AI96: 99.90113709 | AL96: Arkansas | AM96: 18808 | AN96: 5235137 | AO96: 0.3505786934 | AP96: 97.58227825 | AS96: Hawaii | AT96: 12996 | AU96: 2539808 | AV96: 0.4957440624 | AW96: 96.88325143 | AZ96: Kansas | BA96: 10726 | BB96: 3202472 | BC96: 0.3267561697 | BD96: 97.55989971 | BG96: North Dakota | BH96: 24708 | BI96: 1506146385 | BJ96: 0.001640335909 | BK96: 99.99133884 | BN96: Oregon | BO96: 4770 | BP96: 100763936 | BQ96: 0.004732509157 | BR96: 99.97196013 | BU96: North Dakota | BV96: 45271 | BW96: 3430317 | BX96: 1.250114598 | BY96: 94.72486488 | CB96: Nebraska | CC96: 1855525 | CD96: 299348974 | CE96: 0.5922863989 | CF96: 95.55264727
A97: 75.51020408 | B97: 100 | C97: 50 | D97: 80 | E97: 99.99266297 | F97: 95.51633811 | J97: West Virginia | K97: 414908 | L97: 88825959 | M97: 0.4610364794 | N97: 98.70141673 | Q97: Michigan | R97: 108126 | S97: 28699518 | T97: 0.373407705 | U97: 99.11234255 | X97: Mississippi | Y97: 14480 | Z97: 9162463 | AA97: 0.1565021002 | AB97: 99.02933031 | AE97: Massachusetts | AF97: 11151 | AG97: 65972660 | AH97: 0.01688860059 | AI97: 99.91802569 | AL97: Vermont | AM97: 18803 | AN97: 5253940 | AO97: 0.3504854941 | AP97: 97.93276375 | AS97: Maryland | AT97: 10745 | AU97: 2550553 | AV97: 0.4098776509 | AW97: 97.29312908 | AZ97: Nevada | BA97: 10182 | BB97: 3212654 | BC97: 0.3101837889 | BD97: 97.8700835 | BG97: New Jersey | BH97: 19945 | BI97: 1506166330 | BJ97: 0.001324125778 | BK97: 99.99266297 | BN97: Tennessee | BO97: 3985 | BP97: 100767921 | BQ97: 0.003953679034 | BR97: 99.97591381 | BU97: Maryland | BV97: 28662 | BW97: 3458979 | BX97: 0.7914732304 | BY97: 95.51633811 | CB97: West Virginia | CC97: 1855413 | CD97: 301204387 | CE97: 0.5922506483 | CF97: 96.14489792
A98: 77.55102041 | B98: 100 | C98: 50 | D98: 80 | E98: 99.99396227 | F98: 96.28008686 | J98: South Carolina | K98: 297286 | L98: 89123245 | M98: 0.3303375466 | N98: 99.03175428 | Q98: New York | R98: 86030 | S98: 28785548 | T98: 0.2971002799 | U98: 99.40944283 | X98: Montana | Y98: 13947 | Z98: 9176410 | AA98: 0.150741353 | AB98: 99.18007166 | AE98: Maine | AF98: 8923 | AG98: 65981583 | AH98: 0.01351421245 | AI98: 99.9315399 | AL98: Florida | AM98: 18232 | AN98: 5272172 | AO98: 0.3398421277 | AP98: 98.27260588 | AS98: Vermont | AT98: 10589 | AU98: 2561142 | AV98: 0.4039268911 | AW98: 97.69705598 | AZ98: South Carolina | BA98: 10083 | BB98: 3222737 | BC98: 0.3071678593 | BD98: 98.17725136 | BG98: Colorado | BH98: 19571 | BI98: 1506185901 | BJ98: 0.001299296345 | BK98: 99.99396227 | BN98: Vermont | BO98: 3790 | BP98: 100771711 | BQ98: 0.003760211678 | BR98: 99.97967402 | BU98: New Jersey | BV98: 27658 | BW98: 3486637 | BX98: 0.7637487477 | BY98: 96.28008686 | CB98: Idaho | CC98: 1595728 | CD98: 302800115 | CE98: 0.5093588018 | CF98: 96.65425672
A99: 79.59183673 | B99: 100 | C99: 50 | D99: 80 | E99: 99.99516636 | F99: 97.0109473 | H99: 80 | J99: Vermont | K99: 274251 | L99: 89397496 | M99: 0.3047415704 | N99: 99.33649585 | Q99: Hawaii | R99: 73227 | S99: 28858775 | T99: 0.252885763 | U99: 99.66232859 | X99: New Hampshire | Y99: 13474 | Z99: 9189884 | AA99: 0.1456290952 | AB99: 99.32570076 | AE99: New Jersey | AF99: 7901 | AG99: 65989484 | AH99: 0.01196635578 | AI99: 99.94350626 | AL99: New Jersey | AM99: 14924 | AN99: 5287096 | AO99: 0.2781814345 | AP99: 98.55078731 | AS99: Montana | AT99: 10323 | AU99: 2571465 | AV99: 0.3937800828 | AW99: 98.09083606 | AZ99: Illinois | BA99: 10043 | BB99: 3232780 | BC99: 0.3059493019 | BD99: 98.48320066 | BG99: Massachusetts | BH99: 18137 | BI99: 1506204038 | BJ99: 0.001204094722 | BK99: 99.99516636 | BN99: Colorado | BO99: 3761 | BP99: 100775472 | BQ99: 0.00373143961 | BR99: 99.98340546 | BU99: West Virginia | BV99: 26467 | BW99: 3513104 | BX99: 0.730860442 | BY99: 97.0109473 | CB99: Hawaii | CC99: 1392313 | CD99: 304192428 | CE99: 0.4444284248 | CF99: 97.09868514
A100: 81.63265306 | B100: 100 | C100: 50 | D100: 80 | E100: 99.99635147 | F100: 97.52296525 | J100: Maryland | K100: 194524 | L100: 89592020 | M100: 0.2161507132 | N100: 99.55264656 | Q100: Maryland | R100: 39188 | S100: 28897963 | T100: 0.1353337878 | U100: 99.79766238 | X100: Massachusetts | Y100: 12500 | Z100: 9202384 | AA100: 0.1351019512 | AB100: 99.46080271 | AE100: Louisiana | AF100: 6806 | AG100: 65996290 | AH100: 0.01030793791 | AI100: 99.9538142 | AL100: Mississippi | AM100: 12984 | AN100: 5300080 | AO100: 0.2420200848 | AP100: 98.7928074 | AS100: Wyoming | AT100: 9246 | AU100: 2580711 | AV100: 0.352696953 | AW100: 98.44353301 | AZ100: West Virginia | BA100: 9325 | BB100: 3242105 | BC100: 0.2840761964 | BD100: 98.76727686 | BG100: Kansas | BH100: 17851 | BI100: 1506221889 | BJ100: 0.001185107508 | BK100: 99.99635147 | BN100: Alaska | BO100: 3000 | BP100: 100778472 | BQ100: 0.002976420854 | BR100: 99.98638188 | BU100: Nevada | BV100: 22464 | BW100: 3535568 | BX100: 0.6203214935 | BY100: 97.6312688 | CB100: Maine | CC100: 1329192 | CD100: 305521620 | CE100: 0.4242801057 | CF100: 97.52296525
A101: 83.67346939 | B101: 100 | C101: 50 | D101: 80 | E101: 99.99724121 | F101: 97.94454044 | J101: Hawaii | K101: 133957 | L101: 89725977 | M101: 0.148850019 | N101: 99.70149658 | Q101: Vermont | R101: 11487 | S101: 28909450 | T101: 0.03966977699 | U101: 99.83733216 | X101: West Virginia | Y101: 10095 | Z101: 9212479 | AA101: 0.1091083358 | AB101: 99.56991104 | AE101: Delaware | AF101: 5891 | AG101: 66002181 | AH101: 0.008922136675 | AI101: 99.96273633 | AL101: South Carolina | AM101: 12684 | AN101: 5312764 | AO101: 0.2364281235 | AP101: 99.02923552 | AS101: Massachusetts | AT101: 8599 | AU101: 2589310 | AV101: 0.3280165584 | AW101: 98.77154957 | AZ101: Hawaii | BA101: 8630 | BB101: 3250735 | BC101: 0.2629037614 | BD101: 99.03018062 | BG101: Rhode Island | BH101: 13402 | BI101: 1506235291 | BJ101: 0.0008897434781 | BK101: 99.99724121 | BN101: Georgia | BO101: 2661 | BP101: 100781133 | BQ101: 0.002640085297 | BR101: 99.98902197 | BU101: Massachusetts | BV101: 20337 | BW101: 3555905 | BX101: 0.561586459 | BY101: 98.19285526 | CB101: New Hampshire | CC101: 1320718 | CD101: 306842338 | CE101: 0.421575192 | CF101: 97.94454044
A102: 85.71428571 | B102: 100 | C102: 50 | D102: 80 | E102: 99.99788113 | F102: 98.27979524 | J102: Maine | K102: 86256 | L102: 89812233 | M102: 0.09584573583 | N102: 99.79734232 | Q102: Maine | R102: 10505 | S102: 28919955 | T102: 0.03627848936 | U102: 99.87361065 | X102: Alabama | Y102: 9116 | Z102: 9221595 | AA102: 0.09852715095 | AB102: 99.6684382 | AE102: West Virginia | AF102: 5873 | AG102: 66008054 | AH102: 0.008894875012 | AI102: 99.97163121 | AL102: Massachusetts | AM102: 12504 | AN102: 5325268 | AO102: 0.2330729468 | AP102: 99.26230847 | AS102: New Jersey | AT102: 8258 | AU102: 2597568 | AV102: 0.3150088079 | AW102: 99.08655838 | AZ102: Vermont | BA102: 8624 | BB102: 3259359 | BC102: 0.2627209778 | BD102: 99.2929016 | BG102: Idaho | BH102: 9639 | BI102: 1506244930 | BJ102: 0.0006399222046 | BK102: 99.99788113 | BN102: New Hampshire | BO102: 2556 | BP102: 100783689 | BQ102: 0.002535910567 | BR102: 99.99155788 | BU102: Connecticut | BV102: 17424 | BW102: 3573329 | BX102: 0.4811467995 | BY102: 98.67400206 | CB102: Rhode Island | CC102: 1050292 | CD102: 307892630 | CE102: 0.335254802 | CF102: 98.27979524
A103: 87.75510204 | B103: 100 | C103: 50 | D103: 80 | E103: 99.99844219 | F103: 98.60063778 | J103: Connecticut | K103: 48278 | L103: 89860511 | M103: 0.0536454326 | N103: 99.85098775 | Q103: New Jersey | R103: 9500 | S103: 28929455 | T103: 0.03280777239 | U103: 99.90641842 | X103: Arkansas | Y103: 8972 | Z103: 9230567 | AA103: 0.09697077648 | AB103: 99.76540897 | AE103: Connecticut | AF103: 4737 | AG103: 66012791 | AH103: 0.007174361132 | AI103: 99.97880557 | AL103: Maine | AM103: 11925 | AN103: 5337193 | AO103: 0.2222804615 | AP103: 99.48458893 | AS103: Maine | AT103: 6449 | AU103: 2604017 | AV103: 0.2460028823 | AW103: 99.33256126 | AZ103: Maryland | BA103: 7892 | BB103: 3267251 | BC103: 0.2404213772 | BD103: 99.53332298 | BG103: Arizona | BH103: 8451 | BI103: 1506253381 | BJ103: 0.000561052241 | BK103: 99.99844219 | BN103: Arizona | BO103: 2465 | BP103: 100786154 | BQ103: 0.002445625801 | BR103: 99.9940035 | BU103: Maine | BV103: 11987 | BW103: 3585316 | BX103: 0.3310093369 | BY103: 99.00501139 | CB103: Montana | CC103: 1005141 | CD103: 308897771 | CE103: 0.3208425342 | CF103: 98.60063778
A104: 89.79591837 | B104: 100 | C104: 50 | D104: 80 | E104: 99.99881589 | F104: 98.89337494 | H104: 90 | J104: Massachusetts | K104: 35703 | L104: 89896214 | M104: 0.03967237417 | N104: 99.89066012 | Q104: Connecticut | R104: 8080 | S104: 28937535 | T104: 0.02790387378 | U104: 99.93432229 | X104: New Jersey | Y104: 7192 | Z104: 9237759 | AA104: 0.07773225863 | AB104: 99.84314123 | AE104: Vermont | AF104: 3874 | AG104: 66016665 | AH104: 0.005867315817 | AI104: 99.98467289 | AL104: Louisiana | AM104: 9843 | AN104: 5347036 | AO104: 0.1834722501 | AP104: 99.66806118 | AS104: New Hampshire | AT104: 4875 | AU104: 2608892 | AV104: 0.1859612422 | AW104: 99.5185225 | AZ104: Connecticut | BA104: 5639 | BB104: 3272890 | BC104: 0.171786131 | BD104: 99.70510911 | BG104: Utah | BH104: 5629 | BI104: 1506259010 | BJ104: 0.000373702883 | BK104: 99.99881589 | BN104: Mississippi | BO104: 1548 | BP104: 100787702 | BQ104: 0.00153583316 | BR104: 99.99553934 | BU104: Vermont | BV104: 11666 | BW104: 3596982 | BX104: 0.3221452343 | BY104: 99.32715663 | CB104: Delaware | CC104: 917092 | CD104: 309814863 | CE104: 0.2927371596 | CF104: 98.89337494
A105: 91.83673469 | B105: 100 | C105: 50 | D105: 80 | E105: 99.99913834 | F105: 99.1593828 | J105: New Hampshire | K105: 33392 | L105: 89929606 | M105: 0.03710444272 | N105: 99.92776457 | Q105: Massachusetts | R105: 6240 | S105: 28943775 | T105: 0.02154952629 | U105: 99.95587182 | X105: Wyoming | Y105: 6194 | Z105: 9243953 | AA105: 0.06694571885 | AB105: 99.91008695 | AE105: New Hampshire | AF105: 3287 | AG105: 66019952 | AH105: 0.004978282677 | AI105: 99.98965117 | AL105: New Hampshire | AM105: 8079 | AN105: 5355115 | AO105: 0.1505915177 | AP105: 99.8186527 | AS105: North Dakota | AT105: 4740 | AU105: 2613632 | AV105: 0.1808115463 | AW105: 99.69933405 | AZ105: Massachusetts | BA105: 4666 | BB105: 3277556 | BC105: 0.142144722 | BD105: 99.84725383 | BG105: Wyoming | BH105: 4857 | BI105: 1506263867 | BJ105: 0.0003224506845 | BK105: 99.99913834 | BN105: Louisiana | BO105: 1400 | BP105: 100789102 | BQ105: 0.001388996398 | BR105: 99.99692833 | BU105: New Hampshire | BV105: 9097 | BW105: 3606079 | BX105: 0.2512048 | BY105: 99.57836143 | CB105: South Dakota | CC105: 833354 | CD105: 310648217 | CE105: 0.2660078628 | CF105: 99.1593828
A106: 93.87755102 | B106: 100 | C106: 50 | D106: 80 | E106: 99.99939911 | F106: 99.39286243 | J106: New Jersey | K106: 31449 | L106: 89961055 | M106: 0.03494542462 | N106: 99.96270999 | Q106: New Hampshire | R106: 4075 | S106: 28947850 | T106: 0.01407280763 | U106: 99.96994463 | X106: Delaware | Y106: 4512 | Z106: 9248465 | AA106: 0.0487664003 | AB106: 99.95885335 | AE106: Nevada | AF106: 2700 | AG106: 66022652 | AH106: 0.004089249537 | AI106: 99.99374042 | AL106: Connecticut | AM106: 6093 | AN106: 5361208 | AO106: 0.1135727339 | AP106: 99.93222543 | AS106: Connecticut | AT106: 4393 | AU106: 2618025 | AV106: 0.1675749204 | AW106: 99.86690897 | AZ106: New Hampshire | BA106: 2912 | BB106: 3280468 | BC106: 0.08871097951 | BD106: 99.93596481 | BG106: New Mexico | BH106: 3928 | BI106: 1506267795 | BJ106: 0.0002607754352 | BK106: 99.99939911 | BN106: Nevada | BO106: 1275 | BP106: 100790377 | BQ106: 0.001264978863 | BR106: 99.99819331 | BU106: Delaware | BV106: 6157 | BW106: 3612236 | BX106: 0.1700195618 | BY106: 99.74838099 | CB106: Alaska | CC106: 731449 | CD106: 311379666 | CE106: 0.233479632 | CF106: 99.39286243
A107: 95.91836735 | B107: 100 | C107: 50 | D107: 80 | E107: 99.99965226 | F107: 99.61618475 | J107: Delaware | K107: 18225 | L107: 89979280 | M107: 0.02025121192 | N107: 99.9829612 | Q107: Delaware | R107: 3833 | S107: 28951683 | T107: 0.0132370728 | U107: 99.9831817 | X107: Hawaii | Y107: 1501 | Z107: 9249966 | AA107: 0.0162230423 | AB107: 99.97507639 | AE107: Rhode Island | AF107: 1830 | AG107: 66024482 | AH107: 0.002771602464 | AI107: 99.99651202 | AL107: Rhode Island | AM107: 1823 | AN107: 5363031 | AO107: 0.0339804848 | AP107: 99.96620591 | AS107: Delaware | AT107: 2008 | AU107: 2620033 | AV107: 0.07659695886 | AW107: 99.94350593 | AZ107: Delaware | BA107: 817 | BB107: 3281285 | BC107: 0.02488903512 | BD107: 99.96085384 | BG107: Nevada | BH107: 3813 | BI107: 1506271608 | BJ107: 0.0002531407165 | BK107: 99.99965226 | BN107: Wyoming | BO107: 926 | BP107: 100791303 | BQ107: 0.0009187219035 | BR107: 99.99911203 | BU107: Hawaii | BV107: 5114 | BW107: 3617350 | BX107: 0.141218132 | BY107: 99.88959912 | CB107: North Dakota | CC107: 699628 | CD107: 312079294 | CE107: 0.2233223205 | CF107: 99.61618475
A108: 97.95918367 | B108: 100 | C108: 50 | D108: 80 | E108: 99.99988392 | F108: 99.81600841 | J108: Alaska | K108: 10667 | L108: 89989947 | M108: 0.01185293155 | N108: 99.99481413 | Q108: Alaska | R108: 3423 | S108: 28955106 | T108: 0.01182115841 | U108: 99.99500286 | X108: Rhode Island | Y108: 1209 | Z108: 9251175 | AA108: 0.01306706072 | AB108: 99.98814345 | AE108: New Mexico | AF108: 1294 | AG108: 66025776 | AH108: 0.001959810704 | AI108: 99.99847183 | AL108: Delaware | AM108: 1040 | AN108: 5364071 | AO108: 0.01938546582 | AP108: 99.98559138 | AS108: Rhode Island | AT108: 886 | AU108: 2620919 | AV108: 0.03379726372 | AW108: 99.97730319 | AZ108: Rhode Island | BA108: 739 | BB108: 3282024 | BC108: 0.02251284816 | BD108: 99.98336669 | BG108: Hawaii | BH108: 3375 | BI108: 1506274983 | BJ108: 0.0002240623966 | BK108: 99.99987632 | BN108: Delaware | BO108: 778 | BP108: 100792081 | BQ108: 0.0007718851413 | BR108: 99.99988392 | BU108: Rhode Island | BV108: 2417 | BW108: 3619767 | BX108: 0.06674310229 | BY108: 99.95634222 | CB108: Vermont | CC108: 626011 | CD108: 312705305 | CE108: 0.1998236622 | CF108: 99.81600841
A109: 100 | B109: 100 | C109: 50 | D109: 80 | E109: 100 | F109: 100 | J109: Rhode Island | K109: 4667 | L109: 89994614 | M109: 0.005185865901 | N109: 100 | Q109: Rhode Island | R109: 1447 | S109: 28956553 | T109: 0.004997141752 | U109: 100 | X109: Alaska | Y109: 1097 | Z109: 9252272 | AA109: 0.01185654724 | AB109: 100 | AE109: Alaska | AF109: 1009 | AG109: 66026785 | AH109: 0.001528167697 | AI109: 100 | AL109: Alaska | AM109: 773 | AN109: 5364844 | AO109: 0.01440862027 | AP109: 100 | AS109: Alaska | AT109: 595 | AU109: 2621514 | AV109: 0.02269680803 | AW109: 100 | AZ109: Alaska | BA109: 546 | BB109: 3282570 | BC109: 0.01663330866 | BD109: 100 | BG109: Alaska | BH109: 1863 | BI109: 1506276846 | BJ109: 0.0001236824429 | BK109: 100 | BN109: Hawaii | BO109: 117 | BP109: 100792198 | BQ109: 0.0001160804133 | BR109: 100 | BU109: Alaska | BV109: 1581 | BW109: 3621348 | BX109: 0.04365777605 | BY109: 100 | CB109: Wyoming | CC109: 576412 | CD109: 313281717 | CE109: 0.1839915861 | CF109: 100
C116: CUMULATIVE INVENTORY PER STATE
C117: Hogs and Pigs | F117: Horses and Ponies | L117: HOW TO READ | O117: HOGS AND PIGS | R117: TURKEYS | U117: BROILERS
L128: COLONIES OF BEES | O128: MILK COWS | R128: SHEEP AND LAMBS | U128: ALL GOATS
L139: BEEF COWS | O139: CATTLE AND CALVES | R139: POPULATION | U139: HORSES AND PONIES

Sheet 10.12-10.16
C1: Table with column headers in row 3
C2: Table 1: 2010 Poverty and Median Income Estimates - Counties Source: U.S. Census Bureau, Small Area Estimates Branch Release date: 11.2011
C3: State FIPS | D3: County FIPS | E3: Postal | F3: Name | G3: Population | H3: Poverty Estimate All Ages | I3: 90% CI Lower Bound | J3: 90% CI Upper Bound | K3: Poverty Percent All Ages | L3: 90% CI Lower Bound | M3: 90% CI Upper Bound | N3: Poverty Estimate Under Age 18 | O3: 90% CI Lower Bound | P3: 90% CI Upper Bound | Q3: Poverty Percent Under Age 18 | R3: 90% CI Lower Bound | S3: 90% CI Upper Bound | T3: Poverty Estimate Ages 5-17 | U3: 90% CI Lower Bound | V3: 90% CI Upper Bound | W3: Poverty Percent Ages 5-17 | X3: 90% CI Lower Bound | Y3: 90% CI Upper Bound | Z3: Median Household Income | AA3: 90% CI Lower Bound | AB3: 90% CI Upper Bound | AC3: Poverty Estimate Ages 0-4 | AD3: 90% CI Lower Bound | AE3: 90% CI Upper Bound | AF3: Poverty Percent Ages 0-4 | AG3: 90% CI Lower Bound | AH3: 90% CI Upper Bound
B4: 1 | C4: 00 | D4: 0 | E4: US | F4: United States | H4: 46215956 | I4: 45975650 | J4: 46456262 | K4: 15.3 | L4: 15.2 | M4: 15.4 | N4: 15749129 | O4: 15621395 | P4: 15876863 | Q4: 21.6 | R4: 21.4 | S4: 21.8 | T4: 10484513 | U4: 10394015 | V4: 10575011 | W4: 19.8 | X4: 19.6 | Y4: 20 | Z4: 50046 | AA4: 49982 | AB4: 50110 | AC4: 4961524 | AD4: 4910772 | AE4: 5012276 | AF4: 25 | AG4: 24.8 | AH4: 25.2 | AJ4: POVERTY PERCENT IN ALL AGES BY U.S. COUNTY IN 2010
B5: 2 | C5: 01 | D5: 0 | E5: AL | F5: Alabama | H5: 883078 | I5: 867106 | J5: 899050 | K5: 18.9 | L5: 18.6 | M5: 19.2 | N5: 305292 | O5: 296223 | P5: 314361 | Q5: 27.4 | R5: 26.6 | S5: 28.2 | T5: 207778 | U5: 199900 | V5: 215656 | W5: 25.6 | X5: 24.6 | Y5: 26.6 | Z5: 40538 | AA5: 40081 | AB5: 40995 | AC5: 93895 | AD5: 89540 | AE5: 98250 | AF5: 31.3 | AG5: 29.8 | AH5: 32.8
B6: 70 | C6: 02 | D6: 0 | E6: AK | F6: Alaska | H6: 76850 | I6: 72916 | J6: 80784 | K6: 11 | L6: 10.4 | M6: 11.6 | N6: 27209 | O6: 25096 | P6: 29322 | Q6: 14.8 | R6: 13.6 | S6: 16 | T6: 15714 | U6: 13861 | V6: 17567 | W6: 12.1 | X6: 10.7 | Y6: 13.5 | Z6: 63456 | AA6: 62061 | AB6: 64851 | AC6: 10481 | AD6: 9515 | AE6: 11447 | AF6: 19.8 | AG6: 18 | AH6: 21.6
B7: 100 | C7: 04 | D7: 0 | E7: AZ | F7: Arizona | H7: 1105075 | I7: 1082284 | J7: 1127866 | K7: 17.6 | L7: 17.2 | M7: 18 | N7: 401664 | O7: 387835 | P7: 415493 | Q7: 25 | R7: 24.1 | S7: 25.9 | T7: 263822 | U7: 251690 | V7: 275954 | W7: 23 | X7: 21.9 | Y7: 24.1 | Z7: 46787 | AA7: 46278 | AB7: 47296 | AC7: 129973 | AD7: 123200 | AE7: 136746 | AF7: 29 | AG7: 27.5 | AH7: 30.5
B8: 116 | C8: 05 | D8: 0 | E8: AR | F8: Arkansas | H8: 529710 | I8: 518451 | J8: 540969 | K8: 18.7 | L8: 18.3 | M8: 19.1 | N8: 190538 | O8: 184070 | P8: 197006 | Q8: 27.3 | R8: 26.4 | S8: 28.2 | T8: 124638 | U8: 118946 | V8: 130330 | W8: 24.9 | X8: 23.8 | Y8: 26 | Z8: 38413 | AA8: 37806 | AB8: 39020 | AC8: 61985 | AD8: 58970 | AE8: 65000 | AF8: 32 | AG8: 30.4 | AH8: 33.6
B9: 192 | C9: 06 | D9: 0 | E9: CA | F9: California | H9: 5785036 | I9: 5732381 | J9: 5837691 | K9: 15.8 | L9: 15.7 | M9: 15.9 | N9: 2012723 | O9: 1979594 | P9: 2045852 | Q9: 22 | R9: 21.6 | S9: 22.4 | T9: 1382859 | U9: 1353694 | V9: 1412024 | W9: 20.8 | X9: 20.4 | Y9: 21.2 | Z9: 57664 | AA9: 57316 | AB9: 58012 | AC9: 588090 | AD9: 573739 | AE9: 602441 | AF9: 23.7 | AG9: 23.1 | AH9: 24.3
B10: 251 | C10: 08 | D10: 0 | E10: CO | F10: Colorado | H10: 651744 | I10: 636277 | J10: 667211 | K10: 13.2 | L10: 12.9 | M10: 13.5 | N10: 207165 | O10: 198566 | P10: 215764 | Q10: 17.1 | R10: 16.4 | S10: 17.8 | T10: 131486 | U10: 124025 | V10: 138947 | W10: 15.1 | X10: 14.2 | Y10: 16 | Z10: 54411 | AA10: 53726 | AB10: 55096 | AC10: 70745 | AD10: 66602 | AE10: 74888 | AF10: 20.8 | AG10: 19.6 | AH10: 22
B11: 316 | C11: 09 | D11: 0 | E11: CT | F11: Connecticut | H11: 348881 | I11: 338009 | J11: 359753 | K11: 10.1 | L11: 9.8 | M11: 10.4 | N11: 103003 | O11: 96964 | P11: 109042 | Q11: 12.8 | R11: 12.1 | S11: 13.5 | T11: 68661 | U11: 63160 | V11: 74162 | W11: 11.3 | X11: 10.4 | Y11: 12.2 | Z11: 64321 | AA11: 63372 | AB11: 65270 | AC11: 32374 | AD11: 29778 | AE11: 34970 | AF11: 16.3 | AG11: 15 | AH11: 17.6
B12: 325 | C12: 10 | D12: 0 | E12: DE | F12: Delaware | H12: 104456 | I12: 99719 | J12: 109193 | K12: 11.9 | L12: 11.4 | M12: 12.4 | N12: 36018 | O12: 33638 | P12: 38398 | Q12: 17.8 | R12: 16.6 | S12: 19 | T12: 23356 | U12: 21250 | V12: 25462 | W12: 15.9 | X12: 14.5 | Y12: 17.3 | Z12: 56172 | AA12: 55018 | AB12: 57326 | AC12: 11938 | AD12: 10826 | AE12: 13050 | AF12: 22.1 | AG12: 20 | AH12: 24.2 | AJ12: Source: U.S. Census Bureau
B13: 329 | C13: 11 | D13: 0 | E13: DC | F13: District of Columbia | H13: 107279 | I13: 102359 | J13: 112199 | K13: 18.8 | L13: 17.9 | M13: 19.7 | N13: 31147 | O13: 28720 | P13: 33574 | Q13: 31.1 | R13: 28.7 | S13: 33.5 | T13: 20872 | U13: 18719 | V13: 23025 | W13: 30.9 | X13: 27.7 | Y13: 34.1 | Z13: 60729 | AA13: 59552 | AB13: 61906 | AC13: 9786 | AD13: 8770 | AE13: 10802 | AF13: 30.2 | AG13: 27.1 | AH13: 33.3
B14: 331 | C14: 12 | D14: 0 | E14: FL | F14: Florida | H14: 3048621 | I14: 3014414 | J14: 3082828 | K14: 16.5 | L14: 16.3 | M14: 16.7 | N14: 929620 | O14: 909688 | P14: 949552 | Q14: 23.6 | R14: 23.1 | S14: 24.1 | T14: 628165 | U14: 611525 | V14: 644805 | W14: 21.9 | X14: 21.3 | Y14: 22.5 | Z14: 44390 | AA14: 44071 | AB14: 44709 | AC14: 284672 | AD14: 274753 | AE14: 294591 | AF14: 27 | AG14: 26.1 | AH14: 27.9
B15: 399 | C15: 13 | D15: 0 | E15: GA | F15: Georgia | H15: 1698004 | I15: 1670505 | J15: 1725503 | K15: 18 | L15: 17.7 | M15: 18.3 | N15: 613581 | O15: 600100 | P15: 627062 | Q15: 25 | R15: 24.5 | S15: 25.5 | T15: 406975 | U15: 395681 | V15: 418269 | W15: 23 | X15: 22.4 | Y15: 23.6 | Z15: 46252 | AA15: 45792 | AB15: 46712 | AC15: 197978 | AD15: 190997 | AE15: 204959 | AF15: 29.4 | AG15: 28.4 | AH15: 30.4
B16: 559 | C16: 15 | D16: 0 | E16: HI | F16: Hawaii | H16: 146923 | I16: 140582 | J16: 153264 | K16: 11.1 | L16: 10.6 | M16: 11.6 | N16: 43595 | O16: 40209 | P16: 46981 | Q16: 14.7 | R16: 13.6 | S16: 15.8 | T16: 27307 | U16: 24374 | V16: 30240 | W16: 13 | X16: 11.6 | Y16: 14.4 | Z16: 62774 | AA16: 61500 | AB16: 64048 | AC16: 14535 | AD16: 12873 | AE16: 16197 | AF16: 17.1 | AG16: 15.1 | AH16: 19.1
B17: 565 | C17: 16 | D17: 0 | E17: ID | F17: Idaho | H17: 244009 | I17: 236574 | J17: 251444 | K17: 15.8 | L17: 15.3 | M17: 16.3 | N17: 83752 | O17: 79791 | P17: 87713 | Q17: 19.8 | R17: 18.9 | S17: 20.7 | T17: 51930 | U17: 48574 | V17: 55286 | W17: 17.2 | X17: 16.1 | Y17: 18.3 | Z17: 43259 | AA17: 42380 | AB17: 44138 | AC17: 30059 | AD17: 27951 | AE17: 32167 | AF17: 25.1 | AG17: 23.3 | AH17: 26.9
B18: 610 | C18: 17 | D18: 0 | E18: IL | F18: Illinois | H18: 1732129 | I18: 1707831 | J18: 1756427 | K18: 13.8 | L18: 13.6 | M18: 14 | N18: 599714 | O18: 585217 | P18: 614211 | Q18: 19.4 | R18: 18.9 | S18: 19.9 | T18: 408636 | U18: 395855 | V18: 421417 | W18: 18.1 | X18: 17.5 | Y18: 18.7 | Z18: 52967 | AA18: 52541 | AB18: 53393 | AC18: 181600 | AD18: 174555 | AE18: 188645 | AF18: 22.1 | AG18: 21.2 | AH18: 23 | AJ18: POPULATION BY U.S. COUNTY, 2012 ESTIMATES
B19: 713 | C19: 18 | D19: 0 | E19: IN | F19: Indiana | H19: 960402 | I19: 942495 | J19: 978309 | K19: 15.3 | L19: 15 | M19: 15.6 | N19: 340700 | O19: 330138 | P19: 351262 | Q19: 21.6 | R19: 20.9 | S19: 22.3 | T19: 224269 | U19: 214987 | V19: 233551 | W19: 19.6 | X19: 18.8 | Y19: 20.4 | Z19: 44616 | AA19: 44178 | AB19: 45054 | AC19: 107909 | AD19: 102827 | AE19: 112991 | AF19: 25.4 | AG19: 24.2 | AH19: 26.6
B20: 806 | C20: 19 | D20: 0 | E20: IA | F20: Iowa | H20: 368965 | I20: 358787 | J20: 379143 | K20: 12.5 | L20: 12.2 | M20: 12.8 | N20: 115731 | O20: 110103 | P20: 121359 | Q20: 16.2 | R20: 15.4 | S20: 17 | T20: 72763 | U20: 67783 | V20: 77743 | W20: 14.2 | X20: 13.2 | Y20: 15.2 | Z20: 48031 | AA20: 47421 | AB20: 48641 | AC20: 39502 | AD20: 36745 | AE20: 42259 | AF20: 20 | AG20: 18.6 | AH20: 21.4
B21: 906 | C21: 20 | D21: 0 | E21: KS | F21: Kansas | H21: 374677 | I21: 364111 | J21: 385243 | K21: 13.5 | L21: 13.1 | M21: 13.9 | N21: 129009 | O21: 122672 | P21: 135346 | Q21: 18.1 | R21: 17.2 | S21: 19 | T21: 81077 | U21: 75631 | V21: 86523 | W21: 15.9 | X21: 14.8 | Y21: 17 | Z21: 47888 | AA21: 47096 | AB21: 48680 | AC21: 44653 | AD21: 41582 | AE21: 47724 | AF21: 22.1 | AG21: 20.6 | AH21: 23.6
B22: 1012 | C22: 21 | D22: 0 | E22: KY | F22: Kentucky | H22: 796208 | I22: 781996 | J22: 810420 | K22: 18.9 | L22: 18.6 | M22: 19.2 | N22: 261696 | O22: 253671 | P22: 269721 | Q22: 26.1 | R22: 25.3 | S22: 26.9 | T22: 171016 | U22: 164346 | V22: 177686 | W22: 23.7 | X22: 22.8 | Y22: 24.6 | Z22: 40089 | AA22: 39605 | AB22: 40573 | AC22: 85526 | AD22: 81231 | AE22: 89821 | AF22: 31.1 | AG22: 29.5 | AH22: 32.7
B23: 1133 | C23: 22 | D23: 0 | E23: LA | F23: Louisiana | H23: 831512 | I23: 816150 | J23: 846874 | K23: 18.8 | L23: 18.5 | M23: 19.1 | N23: 302056 | O23: 292729 | P23: 311383 | Q23: 27.4 | R23: 26.6 | S23: 28.2 | T23: 197278 | U23: 189030 | V23: 205526 | W23: 25 | X23: 24 | Y23: 26 | Z23: 42510 | AA23: 41852 | AB23: 43168 | AC23: 101442 | AD23: 97102 | AE23: 105782 | AF23: 32.9 | AG23: 31.5 | AH23: 34.3
B24: 1198 | C24: 23 | D24: 0 | E24: ME | F24: Maine | H24: 169076 | I24: 163712 | J24: 174440 | K24: 13.1 | L24: 12.7 | M24: 13.5 | N24: 48734 | O24: 45782 | P24: 51686 | Q24: 18.2 | R24: 17.1 | S24: 19.3 | T24: 31620 | U24: 29034 | V24: 34206 | W24: 15.8 | X24: 14.5 | Y24: 17.1 | Z24: 45882 | AA24: 45042 | AB24: 46722 | AC24: 15752 | AD24: 14364 | AE24: 17140 | AF24: 23.5 | AG24: 21.4 | AH24: 25.6
B25: 1215 | C25: 24 | D25: 0 | E25: MD | F25: Maryland | H25: 559937 | I25: 545242 | J25: 574632 | K25: 9.9 | L25: 9.6 | M25: 10.2 | N25: 174469 | O25: 166013 | P25: 182925 | Q25: 13.1 | R25: 12.5 | S25: 13.7 | T25: 113786 | U25: 106642 | V25: 120930 | W25: 11.8 | X25: 11.1 | Y25: 12.5 | Z25: 68933 | AA25: 68100 | AB25: 69766 | AC25: 55882 | AD25: 51594 | AE25: 60170 | AF25: 15.6 | AG25: 14.4 | AH25: 16.8
B26: 1240 | C26: 25 | D26: 0 | E26: MA | F26: Massachusetts | H26: 724845 | I26: 708843 | J26: 740847 | K26: 11.4 | L26: 11.1 | M26: 11.7 | N26: 201703 | O26: 193194 | P26: 210212 | Q26: 14.4 | R26: 13.8 | S26: 15 | T26: 132074 | U26: 124969 | V26: 139179 | W26: 12.8 | X26: 12.1 | Y26: 13.5 | Z26: 62133 | AA26: 61734 | AB26: 62532 | AC26: 63114 | AD26: 58750 | AE26: 67478 | AF26: 17.4 | AG26: 16.2 | AH26: 18.6 | AJ26: Source: U.S. Census Bureau
B27: 1255 | C27: 26 | D27: 0 | E27: MI | F27: Michigan | H27: 1614110 | I27: 1591644 | J27: 1636576 | K27: 16.7 | L27: 16.5 | M27: 16.9 | N27: 537003 | O27: 524201 | P27: 549805 | Q27: 23.4 | R27: 22.8 | S27: 24 | T27: 360763 | U27: 349617 | V27: 371909 | W27: 21.2 | X27: 20.5 | Y27: 21.9 | Z27: 45354 | AA27: 45052 | AB27: 45656 | AC27: 164207 | AD27: 158142 | AE27: 170272 | AF27: 28.2 | AG27: 27.2 | AH27: 29.2
B28: 1339 | C28: 27 | D28: 0 | E28: MN | F28: Minnesota | H28: 595485 | I28: 583230 | J28: 607740 | K28: 11.5 | L28: 11.3 | M28: 11.7 | N28: 189999 | O28: 182563 | P28: 197435 | Q28: 15 | R28: 14.4 | S28: 15.6 | T28: 124031 | U28: 117459 | V28: 130603 | W28: 13.6 | X28: 12.9 | Y28: 14.3 | Z28: 55422 | AA28: 54978 | AB28: 55866 | AC28: 59780 | AD28: 56238 | AE28: 63322 | AF28: 17.1 | AG28: 16.1 | AH28: 18.1
B29: 1427 | C29: 28 | D29: 0 | E29: MS | F29: Mississippi | H29: 644156 | I29: 629743 | J29: 658569 | K29: 22.4 | L29: 21.9 | M29: 22.9 | N29: 240782 | O29: 232859 | P29: 248705 | Q29: 32.4 | R29: 31.3 | S29: 33.5 | T29: 160282 | U29: 153313 | V29: 167251 | W29: 30.2 | X29: 28.9 | Y29: 31.5 | Z29: 36992 | AA29: 36390 | AB29: 37594 | AC29: 77993 | AD29: 74484 | AE29: 81502 | AF29: 37.5 | AG29: 35.8 | AH29: 39.2
B30: 1510 | C30: 29 | D30: 0 | E30: MO | F30: Missouri | H30: 888471 | I30: 872312 | J30: 904630 | K30: 15.3 | L30: 15 | M30: 15.6 | N30: 293856 | O30: 284167 | P30: 303545 | Q30: 21 | R30: 20.3 | S30: 21.7 | T30: 186633 | U30: 178336 | V30: 194930 | W30: 18.5 | X30: 17.7 | Y30: 19.3 | Z30: 44306 | AA30: 43819 | AB30: 44793 | AC30: 100603 | AD30: 95787 | AE30: 105419 | AF30: 26.5 | AG30: 25.2 | AH30: 27.8
B31: 1626 | C31: 30 | D31: 0 | E31: MT | F31: Montana | H31: 146257 | I31: 140628 | J31: 151886 | K31: 15.2 | L31: 14.6 | M31: 15.8 | N31: 46183 | O31: 43543 | P31: 48823 | Q31: 21.1 | R31: 19.9 | S31: 22.3 | T31: 29085 | U31: 26726 | V31: 31444 | W31: 18.7 | X31: 17.2 | Y31: 20.2 | Z31: 42303 | AA31: 41341 | AB31: 43265 | AC31: 15720 | AD31: 14501 | AE31: 16939 | AF31: 25.7 | AG31: 23.7 | AH31: 27.7
B32: 1683 | C32: 31 | D32: 0 | E32: NE | F32: Nebraska | H32: 224530 | I32: 216981 | J32: 232079 | K32: 12.6 | L32: 12.2 | M32: 13 | N32: 77895 | O32: 73532 | P32: 82258 | Q32: 17.3 | R32: 16.3 | S32: 18.3 | T32: 49230 | U32: 45294 | V32: 53166 | W32: 15.5 | X32: 14.3 | Y32: 16.7 | Z32: 48415 | AA32: 47608 | AB32: 49222 | AC32: 26193 | AD32: 24037 | AE32: 28349 | AF32: 20.3 | AG32: 18.6 | AH32: 22
B33: 1777 | C33: 32 | D33: 0 | E33: NV | F33: Nevada | H33: 393605 | I33: 380753 | J33: 406457 | K33: 14.8 | L33: 14.3 | M33: 15.3 | N33: 139981 | O33: 132945 | P33: 147017 | Q33: 21.3 | R33: 20.2 | S33: 22.4 | T33: 89928 | U33: 83702 | V33: 96154 | W33: 19.2 | X33: 17.9 | Y33: 20.5 | Z33: 50987 | AA33: 50262 | AB33: 51712 | AC33: 46954 | AD33: 43865 | AE33: 50043 | AF33: 25.6 | AG33: 23.9 | AH33: 27.3
B34: 1795 | C34: 33 | D34: 0 | E34: NH | F34: New Hampshire | H34: 110096 | I34: 104548 | J34: 115644 | K34: 8.6 | L34: 8.2 | M34: 9 | N34: 30481 | O34: 27601 | P34: 33361 | Q34: 10.8 | R34: 9.8 | S34: 11.8 | T34: 19067 | U34: 16551 | V34: 21583 | W34: 9 | X34: 7.8 | Y34: 10.2 | Z34: 60917 | AA34: 59946 | AB34: 61888 | AC34: 10138 | AD34: 8895 | AE34: 11381 | AF34: 14.8 | AG34: 13 | AH34: 16.6 | AN34: NUMBER OF COUNTIES BY POVERTY PERCENT
B35: 1806 | C35: 34 | D35: 0 | E35: NJ | F35: New Jersey | H35: 883643 | I35: 865040 | J35: 902246 | K35: 10.2 | L35: 10 | M35: 10.4 | N35: 292455 | O35: 281736 | P35: 303174 | Q35: 14.3 | R35: 13.8 | S35: 14.8 | T35: 196338 | U35: 187443 | V35: 205233 | W35: 13.1 | X35: 12.5 | Y35: 13.7 | Z35: 67719 | AA35: 67011 | AB35: 68427 | AC35: 89521 | AD35: 84089 | AE35: 94953 | AF35: 16.8 | AG35: 15.8 | AH35: 17.8 | AN35: 2-point bin width | AX35: These histograms are new to Excel 2016.
B36: 1828 | C36: 35 | D36: 0 | E36: NM | F36: New Mexico | H36: 400779 | I36: 389376 | J36: 412182 | K36: 19.8 | L36: 19.2 | M36: 20.4 | N36: 145779 | O36: 139740 | P36: 151818 | Q36: 28.5 | R36: 27.3 | S36: 29.7 | T36: 98187 | U36: 92895 | V36: 103479 | W36: 26.7 | X36: 25.3 | Y36: 28.1 | Z36: 42186 | AA36: 41505 | AB36: 42867 | AC36: 45529 | AD36: 42920 | AE36: 48138 | AF36: 32 | AG36: 30.2 | AH36: 33.8
B37: 1862 | C37: 36 | D37: 0 | E37: NY | F37: New York | H37: 2840564 | I37: 2806009 | J37: 2875119 | K37: 15 | L37: 14.8 | M37: 15.2 | N37: 912004 | O37: 893606 | P37: 930402 | Q37: 21.5 | R37: 21.1 | S37: 21.9 | T37: 621649 | U37: 605530 | V37: 637768 | W37: 20 | X37: 19.5 | Y37: 20.5 | Z37: 54047 | AA37: 53677 | AB37: 54417 | AC37: 275636 | AD37: 266722 | AE37: 284550 | AF37: 24.4 | AG37: 23.6 | AH37: 25.2
B38: 1925 | C38: 37 | D38: 0 | E38: NC | F38: North Carolina | H38: 1618597 | I38: 1596260 | J38: 1640934 | K38: 17.4 | L38: 17.2 | M38: 17.6 | N38: 554191 | O38: 540569 | P38: 567813 | Q38: 24.6 | R38: 24 | S38: 25.2 | T38: 366148 | U38: 354108 | V38: 378188 | W38: 22.6 | X38: 21.9 | Y38: 23.3 | Z38: 43417 | AA38: 43053 | AB38: 43781 | AC38: 178823 | AD38: 172350 | AE38: 185296 | AF38: 28.7 | AG38: 27.7 | AH38: 29.7
B39: 2026 | C39: 38 | D39: 0 | E39: ND | F39: North Dakota | H39: 81176 | I39: 77653 | J39: 84699 | K39: 12.5 | L39: 12 | M39: 13 | N39: 23330 | O39: 21613 | P39: 25047 | Q39: 15.7 | R39: 14.5 | S39: 16.9 | T39: 14149 | U39: 12660 | V39: 15638 | W39: 13.7 | X39: 12.3 | Y39: 15.1 | Z39: 48878 | AA39: 47689 | AB39: 50067 | AC39: 8507 | AD39: 7645 | AE39: 9369 | AF39: 19.3 | AG39: 17.3 | AH39: 21.3
B40: 2080 | C40: 39 | D40: 0 | E40: OH | F40: Ohio | H40: 1771404 | I40: 1746640 | J40: 1796168 | K40: 15.8 | L40: 15.6 | M40: 16 | N40: 619354 | O40: 604905 | P40: 633803 | Q40: 23.1 | R40: 22.6 | S40: 23.6 | T40: 407567 | U40: 394584 | V40: 420550 | W40: 20.8 | X40: 20.1 | Y40: 21.5 | Z40: 45151 | AA40: 44860 | AB40: 45442 | AC40: 199674 | AD40: 192989 | AE40: 206359 | AF40: 28.3 | AG40: 27.4 | AH40: 29.2
B41: 2169 | C41: 40 | D41: 0 | E41: OK | F41: Oklahoma | H41: 613067 | I41: 601462 | J41: 624672 | K41: 16.8 | L41: 16.5 | M41: 17.1 | N41: 223349 | O41: 215772 | P41: 230926 | Q41: 24.4 | R41: 23.6 | S41: 25.2 | T41: 146681 | U41: 139934 | V41: 153428 | W41: 22.5 | X41: 21.5 | Y41: 23.5 | Z41: 42076 | AA41: 41680 | AB41: 42472 | AC41: 72594 | AD41: 69050 | AE41: 76138 | AF41: 28 | AG41: 26.6 | AH41: 29.4
B42: 2247 | C42: 41 | D42: 0 | E42: OR | F42: Oregon | H42: 596649 | I42: 584161 | J42: 609137 | K42: 15.8 | L42: 15.5 | M42: 16.1 | N42: 184511 | O42: 178153 | P42: 190869 | Q42: 21.7 | R42: 21 | S42: 22.4 | T42: 119412 | U42: 113929 | V42: 124895 | W42: 19.5 | X42: 18.6 | Y42: 20.4 | Z42: 46536 | AA42: 46018 | AB42: 47054 | AC42: 59278 | AD42: 56093 | AE42: 62463 | AF42: 25.4 | AG42: 24 | AH42: 26.8
B43: 2284 | C43: 42 | D43: 0 | E43: PA | F43: Pennsylvania | H43: 1645097 | I43: 1623338 | J43: 1666856 | K43: 13.4 | L43: 13.2 | M43: 13.6 | N43: 518779 | O43: 505091 | P43: 532467 | Q43: 18.9 | R43: 18.4 | S43: 19.4 | T43: 352865 | U43: 340693 | V43: 365037 | W43: 17.5 | X43: 16.9 | Y43: 18.1 | Z43: 49245 | AA43: 48824 | AB43: 49666 | AC43: 155365 | AD43: 148894 | AE43: 161836 | AF43: 21.7 | AG43: 20.8 | AH43: 22.6
B44: 2352 | C44: 44 | D44: 0 | E44: RI | F44: Rhode Island | H44: 143132 | I44: 137475 | J44: 148789 | K44: 14.1 | L44: 13.5 | M44: 14.7 | N44: 44041 | O44: 41340 | P44: 46742 | Q44: 19.9 | R44: 18.7 | S44: 21.1 | T44: 29074 | U44: 26666 | V44: 31482 | W44: 17.7 | X44: 16.2 | Y44: 19.2 | Z44: 52053 | AA44: 51032 | AB44: 53074 | AC44: 14107 | AD44: 12882 | AE44: 15332 | AF44: 25.1 | AG44: 22.9 | AH44: 27.3
B45: 2358 | C45: 45 | D45: 0 | E45: SC | F45: South Carolina | H45: 813939 | I45: 798358 | J45: 829520 | K45: 18.1 | L45: 17.8 | M45: 18.4 | N45: 276637 | O45: 266962 | P45: 286312 | Q45: 26 | R45: 25.1 | S45: 26.9 | T45: 180286 | U45: 171758 | V45: 188814 | W45: 23.6 | X45: 22.5 | Y45: 24.7 | Z45: 42117 | AA45: 41702 | AB45: 42532 | AC45: 92708 | AD45: 88252 | AE45: 97164 | AF45: 31.2 | AG45: 29.7 | AH45: 32.7
B46: 2405 | C46: 46 | D46: 0 | E46: SD | F46: South Dakota | H46: 114798 | I46: 110248 | J46: 119348 | K46: 14.6 | L46: 14 | M46: 15.2 | N46: 38736 | O46: 36262 | P46: 41210 | Q46: 19.4 | R46: 18.2 | S46: 20.6 | T46: 23779 | U46: 21637 | V46: 25921 | W46: 17.1 | X46: 15.6 | Y46: 18.6 | Z46: 45861 | AA46: 44856 | AB46: 46866 | AC46: 13793 | AD46: 12604 | AE46: 14982 | AF46: 23.5 | AG46: 21.5 | AH46: 25.5
B47: 2472 | C47: 47 | D47: 0 | E47: TN | F47: Tennessee | H47: 1102643 | I47: 1082798 | J47: 1122488 | K47: 17.8 | L47: 17.5 | M47: 18.1 | N47: 380591 | O47: 368554 | P47: 392628 | Q47: 25.9 | R47: 25.1 | S47: 26.7 | T47: 253241 | U47: 242837 | V47: 263645 | W47: 23.9 | X47: 22.9 | Y47: 24.9 | Z47: 41461 | AA47: 41068 | AB47: 41854 | AC47: 120569 | AD47: 114736 | AE47: 126402 | AF47: 30.1 | AG47: 28.6 | AH47: 31.6
B48: 2568 | C48: 48 | D48: 0 | E48: TX | F48: Texas | H48: 4411273 | I48: 4369830 | J48: 4452716 | K48: 17.9 | L48: 17.7 | M48: 18.1 | N48: 1746564 | O48: 1720072 | P48: 1773056 | Q48: 25.7 | R48: 25.3 | S48: 26.1 | T48: 1177868 | U48: 1155791 | V48: 1199945 | W48: 24.2 | X48: 23.7 | Y48: 24.7 | Z48: 48622 | AA48: 48281 | AB48: 48963 | AC48: 547186 | AD48: 533154 | AE48: 561218 | AF48: 28.8 | AG48: 28.1 | AH48: 29.5
B49: 2823 | C49: 49 | D49: 0 | E49: UT | F49: Utah | H49: 362689 | I49: 352107 | J49: 373271 | K49: 13.3 | L49: 12.9 | M49: 13.7 | N49: 137407 | O49: 130952 | P49: 143862 | Q49: 15.9 | R49: 15.2 | S49: 16.6 | T49: 89067 | U49: 83469 | V49: 94665 | W49: 14.9 | X49: 14 | Y49: 15.8 | Z49: 54740 | AA49: 54150 | AB49: 55330 | AC49: 45802 | AD49: 42491 | AE49: 49113 | AF49: 17.6 | AG49: 16.3 | AH49: 18.9
B50: 2853 | C50: 50 | D50: 0 | E50: VT | F50: Vermont | H50: 74720 | I50: 71172 | J50: 78268 | K50: 12.4 | L50: 11.8 | M50: 13 | N50: 20036 | O50: 18373 | P50: 21699 | Q50: 15.9 | R50: 14.6 | S50: 17.2 | T50: 12762 | U50: 11254 | V50: 14270 | W50: 13.6 | X50: 12 | Y50: 15.2 | Z50: 49393 | AA50: 48253 | AB50: 50533 | AC50: 6282 | AD50: 5570 | AE50: 6994 | AF50: 20.1 | AG50: 17.8 | AH50: 22.4
B51: 2868 | C51: 51 | D51: 0 | E51: VA | F51: Virginia | H51: 865746 | I51: 848523 | J51: 882969 | K51: 11.1 | L51: 10.9 | M51: 11.3 | N51: 266606 | O51: 257069 | P51: 276143 | Q51: 14.6 | R51: 14.1 | S51: 15.1 | T51: 172606 | U51: 164452 | V51: 180760 | W51: 13.1 | X51: 12.5 | Y51: 13.7 | Z51: 60665 | AA51: 60222 | AB51: 61108 | AC51: 88699 | AD51: 83490 | AE51: 93908 | AF51: 17.7 | AG51: 16.7 | AH51: 18.7
B52: 3003 | C52: 53 | D52: 0 | E52: WA | F52: Washington | H52: 890251 | I52: 871019 | J52: 909483 | K52: 13.5 | L52: 13.2 | M52: 13.8 | N52: 283993 | O52: 273947 | P52: 294039 | Q52: 18.2 | R52: 17.6 | S52: 18.8 | T52: 179829 | U52: 171359 | V52: 188299 | W52: 16.1 | X52: 15.3 | Y52: 16.9 | Z52: 55584 | AA52: 55058 | AB52: 56110 | AC52: 95040 | AD52: 89869 | AE52: 100211 | AF52: 22.1 | AG52: 20.9 | AH52: 23.3
B53: 3043 | C53: 54 | D53: 0 | E53: WV | F53: West Virginia | H53: 327459 | I53: 318847 | J53: 336071 | K53: 18.2 | L53: 17.7 | M53: 18.7 | N53: 96683 | O53: 92408 | P53: 100958 | Q53: 25.7 | R53: 24.6 | S53: 26.8 | T53: 63739 | U53: 60033 | V53: 67445 | W53: 23.4 | X53: 22 | Y53: 24.8 | Z53: 38241 | AA53: 37435 | AB53: 39047 | AC53: 30906 | AD53: 28891 | AE53: 32921 | AF53: 30.4 | AG53: 28.4 | AH53: 32.4
B54: 3099 | C54: 55 | D54: 0 | E54: WI | F54: Wisconsin | H54: 731564 | I54: 717890 | J54: 745238 | K54: 13.2 | L54: 13 | M54: 13.4 | N54: 248924 | O54: 240710 | P54: 257138 | Q54: 19 | R54: 18.4 | S54: 19.6 | T54: 162223 | U54: 155265 | V54: 169181 | W54: 17 | X54: 16.3 | Y54: 17.7 | Z54: 48974 | AA54: 48492 | AB54: 49456 | AC54: 80637 | AD54: 76447 | AE54: 84827 | AF54: 23 | AG54: 21.8 | AH54: 24.2
B55: 3172 | C55: 56 | D55: 0 | E55: WY | F55: Wyoming | H55: 62636 | I55: 59142 | J55: 66130 | K55: 11.4 | L55: 10.8 | M55: 12 | N55: 19861 | O55: 18160 | P55: 21562 | Q55: 14.9 | R55: 13.6 | S55: 16.2 | T55: 11942 | U55: 10517 | V55: 13367 | W55: 12.8 | X55: 11.3 | Y55: 14.3 | Z55: 53757 | AA55: 52440 | AB55: 55074 | AC55: 7389 | AD55: 6482 | AE55: 8296 | AF55: 18.6 | AG55: 16.3 | AH55: 20.9
A56: =RAND() -> 0.4795916421 | B56: 3 | C56: 01 | D56: 1 | E56: AL | F56: Autauga County | G56: 54571 | H56: 6459 | I56: 5075 | J56: 7843 | K56: 11.9 | L56: 9.3 | M56: 14.5 | N56: 2530 | O56: 1956 | P56: 3104 | Q56: 17.5 | R56: 13.5 | S56: 21.5 | T56: 1791 | U56: 1397 | V56: 2185 | W56: 16.4 | X56: 12.8 | Y56: 20 | Z56: 53049 | AA56: 49486 | AB56: 56612
A57: =RAND() -> 0.9969319034 | B57: 101 | C57: 04 | D57: 1 | E57: AZ | F57: Apache County | G57: 71518 | H57: 24394 | I57: 21102 | J57: 27686 | K57: 34.5 | L57: 29.8 | M57: 39.2 | N57: 9358 | O57: 7803 | P57: 10913 | Q57: 41.8 | R57: 34.9 | S57: 48.7 | T57: 5966 | U57: 4799 | V57: 7133 | W57: 36.4 | X57: 29.3 | Y57: 43.5 | Z57: 30651 | AA57: 28209 | AB57: 33093
A58: 0.2422285023 | B58: 117 | C58: 05 | D58: 1 | E58: AR | F58: Arkansas County | G58: 19019 | H58: 3477 | I58: 2733 | J58: 4221 | K58: 18.6 | L58: 14.6 | M58: 22.6 | N58: 1225 | O58: 923 | P58: 1527 | Q58: 28.3 | R58: 21.3 | S58: 35.3 | T58: 789 | U58: 588 | V58: 990 | W58: 24.8 | X58: 18.5 | Y58: 31.1 | Z58: 38129 | AA58: 34614 | AB58: 41644
A59: 0.5808225023 | B59: 193 | C59: 06 | D59: 1 | E59: CA | F59: Alameda County | G59: 1510271 | H59: 200273 | I59: 185384 | J59: 215162 | K59: 13.5 | L59: 12.5 | M59: 14.5 | N59: 57722 | O59: 51479 | P59: 63965 | Q59: 17.2 | R59: 15.3 | S59: 19.1 | T59: 40580 | U59: 36033 | V59: 45127 | W59: 17 | X59: 15.1 | Y59: 18.9 | Z59: 66937 | AA59: 65510 | AB59: 68364
A60: 0.1235546016 | B60: 252 | C60: 08 | D60: 1 | E60: CO | F60: Adams County | G60: 441603 | H60: 57201 | I60: 50541 | J60: 63861 | K60: 13 | L60: 11.5 | M60: 14.5 | N60: 21796 | O60: 18363 | P60: 25229 | Q60: 17.5 | R60: 14.8 | S60: 20.2 | T60: 13932 | U60: 11503 | V60: 16361 | W60: 16 | X60: 13.2 | Y60: 18.8 | Z60: 52785 | AA60: 51071 | AB60: 54499
A61: 0.8038862872 | B61: 317 | C61: 09 | D61: 1 | E61: CT | F61: Fairfield County | G61: 916829 | H61: 84125 | I61: 76604 | J61: 91646 | K61: 9.3 | L61: 8.5 | M61: 10.1 | N61: 24304 | O61: 21114 | P61: 27494 | Q61: 10.8 | R61: 9.4 | S61: 12.2 | T61: 16633 | U61: 14164 | V61: 19102 | W61: 9.9 | X61: 8.4 | Y61: 11.4 | Z61: 74634 | AA61: 72009 | AB61: 77259 | AN61: 5-point bin width | AQ61: 1-point bin width
A62: 0.933720655 | B62: 326 | C62: 10 | D62: 1 | E62: DE | F62: Kent County | G62: 162310 | H62: 19145 | I62: 15792 | J62: 22498 | K62: 12.1 | L62: 10 | M62: 14.2 | N62: 7831 | O62: 6270 | P62: 9392 | Q62: 19.6 | R62: 15.7 | S62: 23.5 | T62: 5040 | U62: 3981 | V62: 6099 | W62: 17.4 | X62: 13.7 | Y62: 21.1 | Z62: 51490 | AA62: 47920 | AB62: 55060
A63: 0.5737318038 | B63: 330 | C63: 11 | D63: 1 | E63: DC | F63: District of Columbia | G63: 601723 | H63: 107279 | I63: 102359 | J63: 112199 | K63: 18.8 | L63: 17.9 | M63: 19.7 | N63: 31147 | O63: 28720 | P63: 33574 | Q63: 31.1 | R63: 28.7 | S63: 33.5 | T63: 20872 | U63: 18719 | V63: 23025 | W63: 30.9 | X63: 27.7 | Y63: 34.1 | Z63: 60729 | AA63: 59552 | AB63: 61906
A64: 0.5880827899 | B64: 332 | C64: 12 | D64: 1 | E64: FL | F64: Alachua County | G64: 247336 | H64: 59315 | I64: 55001 | J64: 63629 | K64: 25.3 | L64: 23.5 | M64: 27.1 | N64: 11463 | O64: 9842 | P64: 13084 | Q64: 26.3 | R64: 22.6 | S64: 30 | T64: 7699 | U64: 6546 | V64: 8852 | W64: 25.3 | X64: 21.5 | Y64: 29.1 | Z64: 40656 | AA64: 38367 | AB64: 42945
A65: 0.275489191 | B65: 400 | C65: 13 | D65: 1 | E65: GA | F65: Appling County | G65: 18236 | H65: 4347 | I65: 3510 | J65: 5184 | K65: 24.5 | L65: 19.8 | M65: 29.2 | N65: 1636 | O65: 1279 | P65: 1993 | Q65: 35.7 | R65: 27.9 | S65: 43.5 | T65: 1092 | U65: 849 | V65: 1335 | W65: 33.3 | X65: 25.9 | Y65: 40.7 | Z65: 36601 | AA65: 33460 | AB65: 39742
A66: 0.5021630319 | B66: 560 | C66: 15 | D66: 1 | E66: HI | F66: Hawaii County | G66: 185079 | H66: 33285 | I66: 28635 | J66: 37935 | K66: 18.3 | L66: 15.7 | M66: 20.9 | N66: 10022 | O66: 7945 | P66: 12099 | Q66: 24.5 | R66: 19.4 | S66: 29.6 | T66: 6429 | U66: 4956 | V66: 7902 | W66: 22.1 | X66: 17 | Y66: 27.2 | Z66: 46444 | AA66: 43586 | AB66: 49302
A67: 0.6031918695 | B67: 566 | C67: 16 | D67: 1 | E67: ID | F67: Ada County | G67: 392365 | H67: 53188 | I67: 48974 | J67: 57402 | K67: 13.9 | L67: 12.8 | M67: 15 | N67: 16474 | O67: 14368 | P67: 18580 | Q67: 16.1 | R67: 14 | S67: 18.2 | T67: 9585 | U67: 8021 | V67: 11149 | W67: 12.9 | X67: 10.8 | Y67: 15 | Z67: 50909 | AA67: 49527 | AB67: 52291
A68: 0.3147103964 | B68: 611 | C68: 17 | D68: 1 | E68: IL | F68: Adams County | G68: 67103 | H68: 8547 | I68: 7075 | J68: 10019 | K68: 13.2 | L68: 10.9 | M68: 15.5 | N68: 2761 | O68: 2150 | P68: 3372 | Q68: 18.3 | R68: 14.3 | S68: 22.3 | T68: 1854 | U68: 1433 | V68: 2275 | W68: 16.9 | X68: 13.1 | Y68: 20.7 | Z68: 41734 | AA68: 39274 | AB68: 44194
A69: 0.1879411912 | B69: 714 | C69: 18 | D69: 1 | E69: IN | F69: Adams County | G69: 34387 | H69: 5705 | I69: 4669 | J69: 6741 | K69: 16.8 | L69: 13.7 | M69: 19.9 | N69: 3136 | O69: 2453 | P69: 3819 | Q69: 29.6 | R69: 23.2 | S69: 36 | T69: 2193 | U69: 1721 | V69: 2665 | W69: 29.7 | X69: 23.3 | Y69: 36.1 | Z69: 43121 | AA69: 39862 | AB69: 46380
A70: 0.8259611092 | B70: 807 | C70: 19 | D70: 1 | E70: IA | F70: Adair County | G70: 7682 | H70: 727 | I70: 553 | J70: 901 | K70: 9.7 | L70: 7.4 | M70: 12 | N70: 239 | O70: 178 | P70: 300 | Q70: 14.1 | R70: 10.5 | S70: 17.7 | T70: 158 | U70: 117 | V70: 199 | W70: 12.7 | X70: 9.4 | Y70: 16 | Z70: 45540 | AA70: 41480 | AB70: 49600
A71: 0.3465878042 | B71: 907 | C71: 20 | D71: 1 | E71: KS | F71: Allen County | G71: 13371 | H71: 2367 | I71: 1926 | J71: 2808 | K71: 18.4 | L71: 15 | M71: 21.8 | N71: 809 | O71: 617 | P71: 1001 | Q71: 26.4 | R71: 20.1 | S71: 32.7 | T71: 523 | U71: 395 | V71: 651 | W71: 24 | X71: 18.1 | Y71: 29.9 | Z71: 39662 | AA71: 36890 | AB71: 42434
A72: 0.7182939548 | B72: 1013 | C72: 21 | D72: 1 | E72: KY | F72: Adair County | G72: 18656 | H72: 4189 | I72: 3300 | J72: 5078 | K72: 24 | L72: 18.9 | M72: 29.1 | N72: 1417 | O72: 1072 | P72: 1762 | Q72: 35.4 | R72: 26.8 | S72: 44 | T72: 933 | U72: 697 | V72: 1169 | W72: 32.7 | X72: 24.4 | Y72: 41 | Z72: 30177 | AA72: 27453 | AB72: 32901
A73: 0.9830211196 | B73: 1134 | C73: 22 | D73: 1 | E73: LA | F73: Acadia Parish | G73: 61773 | H73: 12760 | I73: 10650 | J73: 14870 | K73: 21 | L73: 17.5 | M73: 24.5 | N73: 4886 | O73: 3958 | P73: 5814 | Q73: 29.6 | R73: 24 | S73: 35.2 | T73: 3220 | U73: 2590 | V73: 3850 | W73: 27.1 | X73: 21.8 | Y73: 32.4 | Z73: 36814 | AA73: 33728 | AB73: 39900
A74: 0.3438482983 | B74: 1199 | C74: 23 | D74: 1 | E74: ME | F74: Androscoggin County | G74: 107702 | H74: 15240 | I74: 12879 | J74: 17601 | K74: 14.6 | L74: 12.3 | M74: 16.9 | N74: 4847 | O74: 3809 | P74: 5885 | Q74: 20.4 | R74: 16 | S74: 24.8 | T74: 3184 | U74: 2452 | V74: 3916 | W74: 18.7 | X74: 14.4 | Y74: 23 | Z74: 41831 | AA74: 39247 | AB74: 44415
A75: 0.4747732191 | B75: 1216 | C75: 24 | D75: 1 | E75: MD | F75: Allegany County | G75: 75087 | H75: 11465 | I75: 9451 | J75: 13479 | K75: 17.1 | L75: 14.1 | M75: 20.1 | N75: 3144 | O75: 2458 | P75: 3830 | Q75: 23.9 | R75: 18.7 | S75: 29.1 | T75: 2005 | U75: 1553 | V75: 2457 | W75: 20.8 | X75: 16.1 | Y75: 25.5 | Z75: 37083 | AA75: 34257 | AB75: 39909
A76: 0.9640677717 | B76: 1241 | C76: 25 | D76: 1 | E76: MA | F76: Barnstable County | G76: 215888 | H76: 23102 | I76: 19749 | J76: 26455 | K76: 10.9 | L76: 9.3 | M76: 12.5 | N76: 5735 | O76: 4704 | P76: 6766 | Q76: 15.7 | R76: 12.9 | S76: 18.5 | T76: 3998 | U76: 3288 | V76: 4708 | W76: 14.5 | X76: 11.9 | Y76: 17.1 | Z76: 54871 | AA76: 52039 | AB76: 57703
A77: 0.5810099189 | B77: 1256 | C77: 26 | D77: 1 | E77: MI | F77: Alcona County | G77: 10942 | H77: 1777 | I77: 1417 | J77: 2137 | K77: 16.5 | L77: 13.2 | M77: 19.8 | N77: 503 | O77: 389 | P77: 617 | Q77: 32.7 | R77: 25.3 | S77: 40.1 | T77: 334 | U77: 256 | V77: 412 | W77: 27.9 | X77: 21.4 | Y77: 34.4 | Z77: 33853 | AA77: 31668 | AB77: 36038
A78: 0.7691475731 | B78: 1340 | C78: 27 | D78: 1 | E78: MN | F78: Aitkin County | G78: 16202 | H78: 2090 | I78: 1628 | J78: 2552 | K78: 13.1 | L78: 10.2 | M78: 16 | N78: 688 | O78: 525 | P78: 851 | Q78: 24.1 | R78: 18.4 | S78: 29.8 | T78: 438 | U78: 328 | V78: 548 | W78: 21.1 | X78: 15.8 | Y78: 26.4 | Z78: 38646 | AA78: 35689 | AB78: 41603 | AN78: NUMBER OF COUNTIES BY POVERTY PERCENT
A79: 0.8177943124 | B79: 1428 | C79: 28 | D79: 1 | E79: MS | F79: Adams County | G79: 32297 | H79: 9213 | I79: 7777 | J79: 10649 | K79: 30.8 | L79: 26 | M79: 35.6 | N79: 2958 | O79: 2357 | P79: 3559 | Q79: 41.8 | R79: 33.3 | S79: 50.3 | T79: 2047 | U79: 1635 | V79: 2459 | W79: 40.3 | X79: 32.2 | Y79: 48.4 | Z79: 28587 | AA79: 26126 | AB79: 31048
A80: 0.3673770049 | B80: 1511 | C80: 29 | D80: 1 | E80: MO | F80: Adair County | G80: 25607 | H80: 5031 | I80: 4048 | J80: 6014 | K80: 22.2 | L80: 17.9 | M80: 26.5 | N80: 1142 | O80: 856 | P80: 1428 | Q80: 23.6 | R80: 17.7 | S80: 29.5 | T80: 717 | U80: 530 | V80: 904 | W80: 20.9 | X80: 15.5 | Y80: 26.3 | Z80: 32015 | AA80: 30098 | AB80: 33932 | AN80: By 5-point bin width | AR80: By classes
A81: 0.6040188595 | B81: 1627 | C81: 30 | D81: 1 | E81: MT | F81: Beaverhead County | G81: 9246 | H81: 1591 | I81: 1260 | J81: 1922 | K81: 18.1 | L81: 14.3 | M81: 21.9 | N81: 445 | O81: 332 | P81: 558 | Q81: 25.3 | R81: 18.8 | S81: 31.8 | T81: 293 | U81: 215 | V81: 371 | W81: 23.2 | X81: 17 | Y81: 29.4 | Z81: 35952 | AA81: 32722 | AB81: 39182 | AW81: Counties
A82: 0.8533293045 | B82: 1684 | C82: 31 | D82: 1 | E82: NE | F82: Adams County | G82: 31364 | H82: 3739 | I82: 3001 | J82: 4477 | K82: 12.5 | L82: 10 | M82: 15 | N82: 1298 | O82: 1008 | P82: 1588 | Q82: 17.7 | R82: 13.8 | S82: 21.6 | T82: 821 | U82: 624 | V82: 1018 | W82: 15.7 | X82: 11.9 | Y82: 19.5 | Z82: 45149 | AA82: 41781 | AB82: 48517 | AV82: 2 | AW82: 1023
